Workbook

Sheet BSC Master
B2: Document Owner | D2: E. Berghmans | F2: Subject | I2: Status Overview Actionlog
F3: SRI LH/RH | I3: Date: | J3: =TODAY() -> 2018-10-02
B4: Revision | D4: 1.1
J5: Status | K5: Count
J6: Ready | K6: =COUNTIF($M$21:$M$50,"=Ready") -> 0
B7: Revision date | D7: 2014-10-23 | J7: Late | K7: =COUNTIF($M$21:$M$50,"=Late") -> 0
J8: Pending | K8: =COUNTIF($M$21:$M$50,"=Pending") -> 0
B20: Nr. | C20: Type | D20: Station | E20: Probleem | F20: TAF | G20: Oorzaak | H20: Actie | I20: Resp. | J20: Date Assigned | K20: Target Completion Date | L20: Actual Completion Date | M20: Status | N20: Beheerder | O20: Prio

Sheet TA SRI LH
X1: =DATA!$C$15 -> SRI LH | AC1: TA Target | AE1: =DATA!$C$9 -> 0.89 | AP1: TA | AQ1: = | AR1: [ A ]
AC2: Cycle Time | AE2: =DATA!$C$10 -> 64 | AG2: =AE2/60 -> 1.066666667
AC3: Enter Data | AR3: [ T ] - [ BS ] - [ PS ]
A4: ID | B4: Shift Start Time | C4: Shift End Time | D4: Break Time | E4: Total Shift time [Hour] | F4: Available Production Time [Hour] | G4: Target [%] | H4: Cycle time [s] | I4: Target Ouput [56/H] | J4: Parts Target [56/H] | K4: Parts Target [100% Availability] | L4: Blocked / Starved [Hour] | M4: Loss Blocked/ Starved [Parts] | N4: Loss Blocked/ Starved [%] | O4: Planned Stop/ Early Finish [Hour] | P4: Loss Planned Stop/ Early Finish [Parts] | Q4: Loss Planned Stop/ Early Finish [%] | R4: Rekenkolom Benodigde tijd | S4: Produced Parts Actual | T4: Produced Parts Shift D1 | U4: Produced Parts Shift D2 | V4: Produced Parts Shift D3 | X4: Week | Y4: Date | Z4: Day | AA4: Shift | AB4: Shift | AC4: Blocked / Starved [Min] | AD4: Planned Stop / Early Finish [Min] | AE4: Parts during break | AF4: Produced Parts Total | AG4: Downtime Technical SAP[min] | AH4: Delta [Parts] | AI4: Availability (Total Time) [%] | AJ4: Technical Availabilty SRI LH [%] | AK4: Parts Target [100% Availability] | AL4: Parts Actual | AM4: Availability (Total Time) [%] | AN4: Loss Blocked/ Starved [Parts] | AO4: Loss Blocked/ Starved [%] | AP4: Loss Planned Stop/ Early Finish [Parts] | AQ4: Loss Planned Stop/ Early Finish [%] | AR4: Technical Availability Total LH [%] | AS4: Technical Availability Shift D1 [%] | AT4: Technical Availability Shift D2 [%] | AU4: Technical Availability Shift D3 [%] | AV4: Total Downtime [Parts] | AW4: Total Downtime [%] | AX4: Total Downtime [Min] | AY4: Geregistreerd SAP Technical Downtime [Min] | AZ4: Major Items Downtime
AK5: [T] | AL5: [A] | AN5: [BS] | AP5: [PS] | AS5: D1 | AT5: D2 | AU5: D3
A6: =X6&Z6&AA6 -> 1maDD | B6: =VLOOKUP($AA6,DATA!$B$3:$E$6,2,0) -> 06:30:00 | C6: =VLOOKUP($AA6,DATA!$B$3:$E$6,3,0) -> 14:30:00 | D6: =VLOOKUP($AA6,DATA!$B$3:$E$6,4,0) -> 0.03125 | E6: =(C6-B6+(B6>C6))-D6 -> 0.3020833333 | F6: =E6-O6-L6 -> 0.3020833333 | G6: =DATA!$C$9 -> 0.89 | H6: =DATA!$C$10 -> 64 | I6: 1 | J6: =F6*86400/H6*I6 -> 407.8125 | K6: =E6*86400/H6 -> 407.8125 | L6: =TIME(INT($AC6/60),INT(MOD($AC6,60)/1),0) -> 0 | M6: =IF($L6*86400/$H6=0,"",$L6*86400/$H6) ->  | N6: =IFERROR($M6/$K6,"") ->  | O6: =TIME(INT($AD6/60),INT(MOD($AD6,60)/1),0) -> 0 | P6: =IF($O6*86400/$H6=0,"",$O6*86400/$H6) ->  | Q6: =IFERROR($P6/$K6,"") ->  | R6: =AF6*AG$2 -> 0 | S6: =IF(AF6-AE6=0,"",AF6-AE6) ->  | T6: =IF(IF($AB6="D1",$S6,"")=0,"",IF($AB6="D1",$S6,"")) ->  | U6: =IF(IF($AB6="D2",$S6,"")=0,"",IF($AB6="D2",$S6,"")) ->  | V6: =IF(IF($AB6="D3",$S6,"")=0,"",IF($AB6="D3",$S6,"")) ->  | X6: =X16 -> 1 | Y6: 2018-01-01 | Z6: =TEXT(Y6,"ddd") -> ma | AA6: DD | AB6: =IFERROR(HLOOKUP(Y6,[1]DATA!$A$1:$NB$5,3,0),"") -> D1 | AG6: 0 | AK6: 3487.5 | AL6: 2392 | AM6: 0.6858781362 | AN6: 916.875 | AO6: 0.2629032258 | AP6: 56.25 | AQ6: 0.01612903226 | AR6: 0.9679281935 | AS6: 0.9679275394 | AU6: 0.9679288477 | AV6: 122.375 | AW6: 0.03508960573 | AX6: 130.5333333 | AY6: 94
A7: 1maMD | B7: =VLOOKUP($AA7,DATA!$B$3:$E$6,2,0) -> 14:30:00 | C7: =VLOOKUP($AA7,DATA!$B$3:$E$6,3,0) -> 22:30:00 | D7: =VLOOKUP($AA7,DATA!$B$3:$E$6,4,0) -> 0.03125 | E7: =(C7-B7+(B7>C7))-D7 -> 0.3020833333 | F7: =E7-O7-L7 -> 0.3020833333 | G7: =DATA!$C$9 -> 0.89 | H7: =DATA!$C$10 -> 64 | I7: 1 | J7: =F7*86400/H7*I7 -> 407.8125 | K7: =E7*86400/H7 -> 407.8125 | L7: =TIME(INT($AC7/60),INT(MOD($AC7,60)/1),0) -> 0 | M7: =IF($L7*86400/$H7=0,"",$L7*86400/$H7) ->  | N7: =IFERROR($M7/$K7,"") ->  | O7: =TIME(INT(AD7/60),INT(MOD(AD7,60)/1),0) -> 0 | Q7: =IFERROR($P7/$K7,"") ->  | R7: =AF7*AG$2 -> 0 | S7: =IF(AF7-AE7=0,"",AF7-AE7) ->  | T7: =IF(IF($AB7="D1",$S7,"")=0,"",IF($AB7="D1",$S7,"")) ->  | U7: =IF(IF($AB7="D2",$S7,"")=0,"",IF($AB7="D2",$S7,"")) ->  | V7: =IF(IF($AB7="D3",$S7,"")=0,"",IF($AB7="D3",$S7,"")) ->  | X7: =X16 -> 1 | Z7: =TEXT(Y6,"ddd") -> ma | AA7: MD | AB7: =IFERROR(HLOOKUP(Y6,[1]DATA!$A$1:$NB$5,4,0),"") -> D3 | AG7: 0
A8: 1maND | B8: =VLOOKUP($AA8,DATA!$B$3:$E$6,2,0) -> 22:30:00 | C8: =VLOOKUP($AA8,DATA!$B$3:$E$6,3,0) -> 06:30:00 | D8: =VLOOKUP($AA8,DATA!$B$3:$E$6,4,0) -> 0.03125 | E8: 0.3020833333 | F8: 0.3020833333 | G8: =DATA!$C$9 -> 0.89 | H8: =DATA!$C$10 -> 64 | I8: 1 | J8: 407.8125 | K8: 407.8125 | L8: 0 | O8: 0 | R8: 0 | X8: =X16 -> 1 | Z8: =TEXT(Y6,"ddd") -> ma | AA8: ND | AB8: =IFERROR(HLOOKUP(Y6,[1]DATA!$A$1:$NB$5,5,0),"") -> D2 | AG8: 0
A9: 1diDD | B9: =VLOOKUP($AA9,DATA!$B$3:$E$6,2,0) -> 06:30:00 | C9: =VLOOKUP($AA9,DATA!$B$3:$E$6,3,0) -> 14:30:00 | D9: =VLOOKUP($AA9,DATA!$B$3:$E$6,4,0) -> 0.03125 | E9: 0.3020833333 | F9: 0.2111111111 | G9: =DATA!$C$9 -> 0.89 | H9: =DATA!$C$10 -> 64 | I9: 1 | J9: 285 | K9: 407.8125 | L9: 0.09097222222 | M9: 122.8125 | N9: 0.3011494253 | O9: 0 | R9: 263.4666667 | S9: 226 | T9: 226 | X9: =X16 -> 1 | Y9: =Y6+1 -> 2018-01-02 | Z9: =TEXT(Y9,"ddd") -> di | AA9: DD | AB9: =IFERROR(HLOOKUP(Y9,[1]DATA!$A$1:$NB$5,3,0),"") -> D1 | AC9: 131 | AE9: 21 | AF9: 247 | AG9: 3 | AH9: -87.125 | AI9: 0.5184229391 | AJ9: 0.9887415562
A10: 1diMD | B10: =VLOOKUP($AA10,DATA!$B$3:$E$6,2,0) -> 14:30:00 | C10: =VLOOKUP($AA10,DATA!$B$3:$E$6,3,0) -> 22:30:00 | D10: =VLOOKUP($AA10,DATA!$B$3:$E$6,4,0) -> 0.03125 | E10: 0.3020833333 | F10: 0.2861111111 | G10: =DATA!$C$9 -> 0.89 | H10: =DATA!$C$10 -> 64 | I10: 1 | J10: 386.25 | K10: 407.8125 | L10: 0.01597222222 | M10: 21.5625 | N10: 0.05287356322 | O10: 0 | R10: 385.0666667 | S10: 339 | V10: 339 | X10: =X16 -> 1 | Z10: =TEXT(Y9,"ddd") -> di | AA10: MD | AB10: =IFERROR(HLOOKUP(Y9,[1]DATA!$A$1:$NB$5,4,0),"") -> D3 | AC10: 23 | AE10: 22 | AF10: 361 | AG10: 30 | AH10: -75.375 | AI10: 0.7776344086 | AJ10: 0.9277224542
A11: 1diND | B11: =VLOOKUP($AA11,DATA!$B$3:$E$6,2,0) -> 22:30:00 | C11: =VLOOKUP($AA11,DATA!$B$3:$E$6,3,0) -> 06:30:00 | D11: =VLOOKUP($AA11,DATA!$B$3:$E$6,4,0) -> 0.03125 | E11: 0.3020833333 | F11: 0.3020833333 | G11: =DATA!$C$9 -> 0.89 | H11: =DATA!$C$10 -> 64 | I11: 1 | J11: 407.8125 | K11: 407.8125 | L11: 0 | O11: 0 | R11: 0 | X11: =X16 -> 1 | Z11: =TEXT(Y9,"ddd") -> di | AA11: ND | AB11: =IFERROR(HLOOKUP(Y9,[1]DATA!$A$1:$NB$5,5,0),"") -> D2 | AG11: 0
A12: 1woDD | B12: =VLOOKUP($AA12,DATA!$B$3:$E$6,2,0) -> 06:30:00 | C12: =VLOOKUP($AA12,DATA!$B$3:$E$6,3,0) -> 14:30:00 | D12: =VLOOKUP($AA12,DATA!$B$3:$E$6,4,0) -> 0.03125 | E12: 0.3020833333 | F12: 0.2284722222 | G12: =DATA!$C$9 -> 0.89 | H12: =DATA!$C$10 -> 64 | I12: 1 | J12: 308.4375 | K12: 407.8125 | L12: 0.07361111111 | M12: 99.375 | N12: 0.2436781609 | O12: 0 | R12: 360.5333333 | S12: 323 | T12: 323 | X12: =X16 -> 1 | Y12: =Y9+1 -> 2018-01-03 | Z12: =TEXT(Y12,"ddd") -> wo | AA12: DD | AB12: =IFERROR(HLOOKUP(Y12,[1]DATA!$A$1:$NB$5,3,0),"") -> D1 | AC12: 106 | AE12: 15 | AF12: 338 | AG12: 0 | AH12: -13.5625 | AI12: 0.7409318996 | AJ12: 1
A13: 1woMD | B13: =VLOOKUP($AA13,DATA!$B$3:$E$6,2,0) -> 14:30:00 | C13: =VLOOKUP($AA13,DATA!$B$3:$E$6,3,0) -> 22:30:00 | D13: =VLOOKUP($AA13,DATA!$B$3:$E$6,4,0) -> 0.03125 | E13: 0.3020833333 | F13: 0.2222222222 | G13: =DATA!$C$9 -> 0.89 | H13: =DATA!$C$10 -> 64 | I13: 1 | J13: 300 | K13: 407.8125 | L13: 0.07986111111 | M13: 107.8125 | N13: 0.2643678161 | O13: 0 | R13: 375.4666667 | S13: 343 | V13: 343 | X13: =X16 -> 1 | Z13: =TEXT(Y12,"ddd") -> wo | AA13: MD | AB13: =IFERROR(HLOOKUP(Y12,[1]DATA!$A$1:$NB$5,4,0),"") -> D3 | AC13: 115 | AE13: 9 | AF13: 352 | AG13: 5 | AH13: 14.875 | AI13: 0.7868100358 | AJ13: 0.9868582443
A14: 1woND | B14: =VLOOKUP($AA14,DATA!$B$3:$E$6,2,0) -> 22:30:00 | C14: =VLOOKUP($AA14,DATA!$B$3:$E$6,3,0) -> 06:30:00 | D14: =VLOOKUP($AA14,DATA!$B$3:$E$6,4,0) -> 0.03125 | E14: 0.3020833333 | F14: 0.3020833333 | G14: =DATA!$C$9 -> 0.89 | H14: =DATA!$C$10 -> 64 | I14: 1 | J14: 407.8125 | K14: 407.8125 | L14: 0 | O14: 0 | R14: 0 | X14: =X16 -> 1 | Z14: =TEXT(Y12,"ddd") -> wo | AA14: ND | AB14: =IFERROR(HLOOKUP(Y12,[1]DATA!$A$1:$NB$5,5,0),"") -> D2 | AG14: 0
A15: 1doDD | B15: =VLOOKUP($AA15,DATA!$B$3:$E$6,2,0) -> 06:30:00 | C15: =VLOOKUP($AA15,DATA!$B$3:$E$6,3,0) -> 14:30:00 | D15: =VLOOKUP($AA15,DATA!$B$3:$E$6,4,0) -> 0.03125 | E15: 0.3020833333 | F15: 0.1486111111 | G15: =DATA!$C$9 -> 0.89 | H15: =DATA!$C$10 -> 64 | I15: 1 | J15: 200.625 | K15: 407.8125 | L15: 0.1534722222 | M15: 207.1875 | N15: 0.508045977 | O15: 0 | R15: 300.8 | S15: 262 | T15: 262 | X15: =X16 -> 1 | Y15: =Y12+1 -> 2018-01-04 | Z15: =TEXT(Y15,"ddd") -> do | AA15: DD | AB15: =IFERROR(HLOOKUP(Y15,[1]DATA!$A$1:$NB$5,3,0),"") -> D1 | AC15: 221 | AE15: 20 | AF15: 282 | AG15: 0 | AH15: 33.25 | AI15: 0.6010035842 | AJ15: 1
A16: 1doMD | B16: =VLOOKUP($AA16,DATA!$B$3:$E$6,2,0) -> 14:30:00 | C16: =VLOOKUP($AA16,DATA!$B$3:$E$6,3,0) -> 22:30:00 | D16: =VLOOKUP($AA16,DATA!$B$3:$E$6,4,0) -> 0.03125 | E16: 0.3020833333 | F16: 0.2069444444 | G16: =DATA!$C$9 -> 0.89 | H16: =DATA!$C$10 -> 64 | I16: 1 | J16: 279.375 | K16: 407.8125 | L16: 0.09513888889 | M16: 128.4375 | N16: 0.3149425287 | O16: 0 | R16: 361.6 | S16: 324 | V16: 324 | X16: =WEEKNUM($Y6) -> 1 | Z16: =TEXT(Y15,"ddd") -> do | AA16: MD | AB16: =IFERROR(HLOOKUP(Y15,[1]DATA!$A$1:$NB$5,4,0),"") -> D3 | AC16: 137 | AE16: 15 | AF16: 339 | AG16: 0 | AH16: 16.5 | AI16: 0.7432258065 | AJ16: 1
A17: 1doND | B17: =VLOOKUP($AA17,DATA!$B$3:$E$6,2,0) -> 22:30:00 | C17: =VLOOKUP($AA17,DATA!$B$3:$E$6,3,0) -> 06:30:00 | D17: =VLOOKUP($AA17,DATA!$B$3:$E$6,4,0) -> 0.03125 | E17: 0.3020833333 | F17: 0.3020833333 | G17: =DATA!$C$9 -> 0.89 | H17: =DATA!$C$10 -> 64 | I17: 1 | J17: 407.8125 | K17: 407.8125 | L17: 0 | O17: 0 | R17: 0 | X17: =X16 -> 1 | Z17: =TEXT(Y15,"ddd") -> do | AA17: ND | AB17: =IFERROR(HLOOKUP(Y15,[1]DATA!$A$1:$NB$5,5,0),"") -> D2 | AG17: 0
A18: 1vrDD | B18: =VLOOKUP($AA18,DATA!$B$3:$E$6,2,0) -> 06:30:00 | C18: =VLOOKUP($AA18,DATA!$B$3:$E$6,3,0) -> 14:30:00 | D18: =VLOOKUP($AA18,DATA!$B$3:$E$6,4,0) -> 0.03125 | E18: 0.3020833333 | F18: 0.1805555556 | G18: =DATA!$C$9 -> 0.89 | H18: =DATA!$C$10 -> 64 | I18: 1 | J18: 243.75 | K18: 407.8125 | L18: 0.09375 | M18: 126.5625 | N18: 0.3103448276 | O18: 0.02777777778 | P18: 37.5 | Q18: 0.09195402299 | R18: 309.3333333 | S18: 274 | T18: 274 | X18: =X16 -> 1 | Y18: =Y15+1 -> 2018-01-05 | Z18: =TEXT(Y18,"ddd") -> vr | AA18: DD | AB18: =IFERROR(HLOOKUP(Y18,[1]DATA!$A$1:$NB$5,3,0),"") -> D1 | AC18: 135 | AD18: 40 | AE18: 16 | AF18: 290 | AG18: 41 | AH18: 2.125 | AI18: 0.6285304659 | AJ18: 0.8829686013
A19: 1vrMD | B19: =VLOOKUP($AA19,DATA!$B$3:$E$6,2,0) -> 14:30:00 | C19: =VLOOKUP($AA19,DATA!$B$3:$E$6,3,0) -> 22:30:00 | D19: =VLOOKUP($AA19,DATA!$B$3:$E$6,4,0) -> 0.03125 | E19: 0.3020833333 | F19: 0.2118055556 | G19: =DATA!$C$9 -> 0.89 | H19: =DATA!$C$10 -> 64 | I19: 1 | J19: 285.9375 | K19: 407.8125 | L19: 0.07638888889 | M19: 103.125 | N19: 0.2528735632 | O19: 0.01388888889 | P19: 18.75 | Q19: 0.04597701149 | R19: 334.9333333 | S19: 301 | V19: 301 | X19: =X16 -> 1 | Z19: =TEXT(Y18,"ddd") -> vr | AA19: MD | AB19: =IFERROR(HLOOKUP(Y18,[1]DATA!$A$1:$NB$5,4,0),"") -> D3 | AC19: 110 | AD19: 20 | AE19: 13 | AF19: 314 | AG19: 15 | AH19: -13.0625 | AI19: 0.6904659498 | AJ19: 0.9571346923
A20: 1vrND | B20: =VLOOKUP($AA20,DATA!$B$3:$E$6,2,0) -> 22:30:00 | C20: =VLOOKUP($AA20,DATA!$B$3:$E$6,3,0) -> 06:30:00 | D20: =VLOOKUP($AA20,DATA!$B$3:$E$6,4,0) -> 0.03125 | E20: 0.3020833333 | F20: 0.3020833333 | G20: =DATA!$C$9 -> 0.89 | H20: =DATA!$C$10 -> 64 | I20: 1 | J20: 407.8125 | K20: 407.8125 | L20: 0 | O20: 0 | R20: 0 | X20: =X16 -> 1 | Z20: =TEXT(Y18,"ddd") -> vr | AA20: ND | AB20: =IFERROR(HLOOKUP(Y18,[1]DATA!$A$1:$NB$5,5,0),"") -> - | AG20: 0
A21: 1zaDD | B21: =VLOOKUP($AA21,DATA!$B$3:$E$6,2,0) -> 06:30:00 | C21: =VLOOKUP($AA21,DATA!$B$3:$E$6,3,0) -> 14:30:00 | D21: =VLOOKUP($AA21,DATA!$B$3:$E$6,4,0) -> 0.03125 | E21: 0.3020833333 | F21: 0.3020833333 | G21: =DATA!$C$9 -> 0.89 | H21: =DATA!$C$10 -> 64 | I21: 1 | J21: 407.8125 | K21: 407.8125 | L21: 0 | O21: 0 | R21: 0 | X21: =X16 -> 1 | Y21: =Y18+1 -> 2018-01-06 | Z21: =TEXT(Y21,"ddd") -> za | AA21: DD | AB21: =IFERROR(HLOOKUP(Y21,[1]DATA!$A$1:$NB$5,3,0),"") -> - | AG21: 0
A22: 1zaMD | B22: =VLOOKUP($AA22,DATA!$B$3:$E$6,2,0) -> 14:30:00 | C22: =VLOOKUP($AA22,DATA!$B$3:$E$6,3,0) -> 22:30:00 | D22: =VLOOKUP($AA22,DATA!$B$3:$E$6,4,0) -> 0.03125 | E22: 0.3020833333 | F22: 0.3020833333 | G22: =DATA!$C$9 -> 0.89 | H22: =DATA!$C$10 -> 64 | I22: 1 | J22: 407.8125 | K22: 407.8125 | L22: 0 | O22: 0 | R22: 0 | X22: =X16 -> 1 | Z22: =TEXT(Y21,"ddd") -> za | AA22: MD | AB22: =IFERROR(HLOOKUP(Y21,[1]DATA!$A$1:$NB$5,4,0),"") -> - | AG22: 0
A23: 1zaND | B23: =VLOOKUP($AA23,DATA!$B$3:$E$6,2,0) -> 22:30:00 | C23: =VLOOKUP($AA23,DATA!$B$3:$E$6,3,0) -> 06:30:00 | D23: =VLOOKUP($AA23,DATA!$B$3:$E$6,4,0) -> 0.03125 | E23: 0.3020833333 | F23: 0.3020833333 | G23: =DATA!$C$9 -> 0.89 | H23: =DATA!$C$10 -> 64 | I23: 1 | J23: 407.8125 | K23: 407.8125 | L23: 0 | O23: 0 | R23: 0 | X23: =X16 -> 1 | Z23: =TEXT(Y21,"ddd") -> za | AA23: ND | AB23: =IFERROR(HLOOKUP(Y21,[1]DATA!$A$1:$NB$5,5,0),"") -> - | AG23: 0
A24: 1zoDD | B24: =VLOOKUP($AA24,DATA!$B$3:$E$6,2,0) -> 06:30:00 | C24: =VLOOKUP($AA24,DATA!$B$3:$E$6,3,0) -> 14:30:00 | D24: =VLOOKUP($AA24,DATA!$B$3:$E$6,4,0) -> 0.03125 | E24: 0.3020833333 | F24: 0.3020833333 | G24: =DATA!$C$9 -> 0.89 | H24: =DATA!$C$10 -> 64 | I24: 1 | J24: 407.8125 | K24: 407.8125 | L24: 0 | O24: 0 | R24: 0 | X24: =X16 -> 1 | Y24: =Y21+1 -> 2018-01-07 | Z24: =TEXT(Y24,"ddd") -> zo | AA24: DD | AB24: =IFERROR(HLOOKUP(Y24,[1]DATA!$A$1:$NB$5,3,0),"") -> - | AG24: 0
A25: 1zoMD | B25: =VLOOKUP($AA25,DATA!$B$3:$E$6,2,0) -> 14:30:00 | C25: =VLOOKUP($AA25,DATA!$B$3:$E$6,3,0) -> 22:30:00 | D25: =VLOOKUP($AA25,DATA!$B$3:$E$6,4,0) -> 0.03125 | E25: 0.3020833333 | F25: 0.3020833333 | G25: =DATA!$C$9 -> 0.89 | H25: =DATA!$C$10 -> 64 | I25: 1 | J25: 407.8125 | K25: 407.8125 | L25: 0 | O25: 0 | R25: 0 | X25: =X16 -> 1 | Z25: =TEXT(Y24,"ddd") -> zo | AA25: MD | AB25: =IFERROR(HLOOKUP(Y24,[1]DATA!$A$1:$NB$5,4,0),"") -> - | AG25: 0
A26: 1zoZND | B26: =VLOOKUP($AA26,DATA!$B$3:$E$6,2,0) -> 00:00:00 | C26: =VLOOKUP($AA26,DATA!$B$3:$E$6,3,0) -> 00:00:00 | D26: =VLOOKUP($AA26,DATA!$B$3:$E$6,4,0) -> 0.03125 | E26: -0.03125 | F26: -0.03125 | G26: =DATA!$C$9 -> 0.89 | H26: =DATA!$C$10 -> 64 | I26: 1 | J26: -42.1875 | K26: -42.1875 | L26: 0 | O26: 0 | R26: 0 | X26: =X16 -> 1 | Z26: =TEXT(Y24,"ddd") -> zo | AA26: ZND | AB26: =IFERROR(HLOOKUP(Y24,[1]DATA!$A$1:$NB$5,5,0),"") -> D1 | AG26: 0
A27: 2maDD | B27: =VLOOKUP($AA27,DATA!$B$3:$E$6,2,0) -> 06:30:00 | C27: =VLOOKUP($AA27,DATA!$B$3:$E$6,3,0) -> 14:30:00 | D27: =VLOOKUP($AA27,DATA!$B$3:$E$6,4,0) -> 0.03125 | E27: 0.3020833333 | F27: 0.1340277778 | G27: =DATA!$C$9 -> 0.89 | H27: =DATA!$C$10 -> 64 | I27: 1 | J27: =F27*86400/H27*I27 -> 180.9375 | K27: =E27*86400/H27 -> 407.8125 | L27: =TIME(INT($AC27/60),INT(MOD($AC27,60)/1),0) -> 0.09027777778 | M27: =IF($L27*86400/$H27=0,"",$L27*86400/$H27) -> 121.875 | N27: =IFERROR($M27/$K27,"") -> 0.2988505747 | O27: =TIME(INT($AD27/60),INT(MOD($AD27,60)/1),0) -> 0.07777777778 | P27: 105 | Q27: =IFERROR($P27/$K27,"") -> 0.2574712644 | R27: =AF27*AG$2 -> 230.4 | S27: =IF(AF27-AE27=0,"",AF27-AE27) -> 209 | T27: =IF(IF($AB27="D1",$S27,"")=0,"",IF($AB27="D1",$S27,"")) ->  | U27: =IF(IF($AB27="D2",$S27,"")=0,"",IF($AB27="D2",$S27,"")) ->  | V27: =IF(IF($AB27="D3",$S27,"")=0,"",IF($AB27="D3",$S27,"")) -> 209 | X27: =X37 -> 2 | Y27: =Y24+1 -> 2018-01-08 | Z27: =TEXT(Y27,"ddd") -> ma | AA27: DD | AB27: =IFERROR(HLOOKUP(Y27,[1]DATA!$A$1:$NB$5,3,0),"") -> D3 | AC27: 130 | AD27: 112 | AE27: 7 | AF27: 216 | AG27: 20 | AH27: -0.0625 | AI27: 0.4794265233 | AJ27: 0.9201277955 | AK27: 4359.375 | AL27: 3146 | AM27: 0.7216630824 | AN27: 1083.75 | AO27: 0.2486021505 | AP27: 105 | AQ27: 0.02408602151 | AR27: 0.9685426375 | AT27: 0.9800251909 | AU27: 0.9570600841 | AV27: 24.625 | AW27: 0.00564874552 | AX27: 26.26666667 | AY27: 115
A28: 2maMD | B28: =VLOOKUP($AA28,DATA!$B$3:$E$6,2,0) -> 14:30:00 | C28: =VLOOKUP($AA28,DATA!$B$3:$E$6,3,0) -> 22:30:00 | D28: =VLOOKUP($AA28,DATA!$B$3:$E$6,4,0) -> 0.03125 | E28: =(C28-B28+(B28>C28))-D28 -> 0.3020833333 | F28: =E28-O28-L28 -> 0.1958333333 | G28: =DATA!$C$9 -> 0.89 | H28: =DATA!$C$10 -> 64 | I28: 1 | J28: =F28*86400/H28*I28 -> 264.375 | K28: =E28*86400/H28 -> 407.8125 | L28: 0.10625 | M28: 143.4375 | N28: 0.3517241379 | O28: =TIME(INT(AD28/60),INT(MOD(AD28,60)/1),0) -> 0 | R28: =AF28*AG$2 -> 358.4 | S28: =IF(AF28-AE28=0,"",AF28-AE28) -> 320 | U28: 320 | X28: =X37 -> 2 | Z28: =TEXT(Y27,"ddd") -> ma | AA28: MD | AB28: =IFERROR(HLOOKUP(Y27,[1]DATA!$A$1:$NB$5,4,0),"") -> D2 | AC28: 153 | AE28: 16 | AF28: 336 | AG28: 3 | AH28: 27.5 | AI28: 0.7340501792 | AJ28: 0.9916989485
A29: 2maND | B29: =VLOOKUP($AA29,DATA!$B$3:$E$6,2,0) -> 22:30:00 | C29: =VLOOKUP($AA29,DATA!$B$3:$E$6,3,0) -> 06:30:00 | D29: =VLOOKUP($AA29,DATA!$B$3:$E$6,4,0) -> 0.03125 | E29: 0.3020833333 | F29: 0.3020833333 | G29: =DATA!$C$9 -> 0.89 | H29: =DATA!$C$10 -> 64 | I29: 1 | J29: 407.8125 | K29: 407.8125 | L29: 0 | O29: 0 | R29: 0 | X29: =X37 -> 2 | Z29: =TEXT(Y27,"ddd") -> ma | AA29: ND | AB29: =IFERROR(HLOOKUP(Y27,[1]DATA!$A$1:$NB$5,5,0),"") -> D1 | AG29: 0
A30: 2diDD | B30: =VLOOKUP($AA30,DATA!$B$3:$E$6,2,0) -> 06:30:00 | C30: =VLOOKUP($AA30,DATA!$B$3:$E$6,3,0) -> 14:30:00 | D30: =VLOOKUP($AA30,DATA!$B$3:$E$6,4,0) -> 0.03125 | E30: 0.3020833333 | F30: 0.1722222222 | G30: =DATA!$C$9 -> 0.89 | H30: =DATA!$C$10 -> 64 | I30: 1 | J30: 232.5 | K30: 407.8125 | L30: 0.1298611111 | M30: 175.3125 | N30: 0.4298850575 | O30: 0 | R30: 330.6666667 | S30: 287 | V30: 287 | X30: =X37 -> 2 | Y30: =Y27+1 -> 2018-01-09 | Z30: =TEXT(Y30,"ddd") -> di | AA30: DD | AB30: =IFERROR(HLOOKUP(Y30,[1]DATA!$A$1:$NB$5,3,0),"") -> D3 | AC30: 187 | AE30: 23 | AF30: 310 | AG30: 5 | AH30: 26.375 | AI30: 0.6583512545 | AJ30: 0.9851042701
A31: 2diMD | B31: =VLOOKUP($AA31,DATA!$B$3:$E$6,2,0) -> 14:30:00 | C31: =VLOOKUP($AA31,DATA!$B$3:$E$6,3,0) -> 22:30:00 | D31: =VLOOKUP($AA31,DATA!$B$3:$E$6,4,0) -> 0.03125 | E31: 0.3020833333 | F31: 0.2138888889 | G31: =DATA!$C$9 -> 0.89 | H31: =DATA!$C$10 -> 64 | I31: 1 | J31: 288.75 | K31: 407.8125 | L31: 0.08819444444 | M31: 119.0625 | N31: 0.291954023 | O31: 0 | R31: 349.8666667 | S31: 314 | U31: 314 | X31: =X37 -> 2 | Z31: =TEXT(Y30,"ddd") -> di | AA31: MD | AB31: =IFERROR(HLOOKUP(Y30,[1]DATA!$A$1:$NB$5,4,0),"") -> D2 | AC31: 127 | AE31: 14 | AF31: 328 | AG31: 0 | AH31: -2.875 | AI31: 0.7202867384 | AJ31: 1
A32: 2diND | B32: =VLOOKUP($AA32,DATA!$B$3:$E$6,2,0) -> 22:30:00 | C32: =VLOOKUP($AA32,DATA!$B$3:$E$6,3,0) -> 06:30:00 | D32: =VLOOKUP($AA32,DATA!$B$3:$E$6,4,0) -> 0.03125 | E32: 0.3020833333 | F32: 0.3020833333 | G32: =DATA!$C$9 -> 0.89 | H32: =DATA!$C$10 -> 64 | I32: 1 | J32: 407.8125 | K32: 407.8125 | L32: 0 | O32: 0 | R32: 0 | X32: =X37 -> 2 | Z32: =TEXT(Y30,"ddd") -> di | AA32: ND | AB32: =IFERROR(HLOOKUP(Y30,[1]DATA!$A$1:$NB$5,5,0),"") -> D1 | AG32: 0
A33: 2woDD | B33: =VLOOKUP($AA33,DATA!$B$3:$E$6,2,0) -> 06:30:00 | C33: =VLOOKUP($AA33,DATA!$B$3:$E$6,3,0) -> 14:30:00 | D33: =VLOOKUP($AA33,DATA!$B$3:$E$6,4,0) -> 0.03125 | E33: 0.3020833333 | F33: 0.2923611111 | G33: =DATA!$C$9 -> 0.89 | H33: =DATA!$C$10 -> 64 | I33: 1 | J33: 394.6875 | K33: 407.8125 | L33: 0.009722222222 | M33: 13.125 | N33: 0.03218390805 | O33: 0 | R33: 400 | S33: 363 | V33: 363 | X33: =X37 -> 2 | Y33: =Y30+1 -> 2018-01-10 | Z33: =TEXT(Y33,"ddd") -> wo | AA33: DD | AB33: =IFERROR(HLOOKUP(Y33,[1]DATA!$A$1:$NB$5,3,0),"") -> D3 | AC33: 14 | AE33: 12 | AF33: 375 | AG33: 10 | AH33: -59.8125 | AI33: 0.832688172 | AJ33: 0.9756097561
A34: 2woMD | B34: =VLOOKUP($AA34,DATA!$B$3:$E$6,2,0) -> 14:30:00 | C34: =VLOOKUP($AA34,DATA!$B$3:$E$6,3,0) -> 22:30:00 | D34: =VLOOKUP($AA34,DATA!$B$3:$E$6,4,0) -> 0.03125 | E34: 0.3020833333 | F34: 0.1840277778 | G34: =DATA!$C$9 -> 0.89 | H34: =DATA!$C$10 -> 64 | I34: 1 | J34: 248.4375 | K34: 407.8125 | L34: 0.1180555556 | M34: 159.375 | N34: 0.3908045977 | O34: 0 | R34: 328.5333333 | S34: 292 | U34: 292 | X34: =X37 -> 2 | Z34: =TEXT(Y33,"ddd") -> wo | AA34: MD | AB34: =IFERROR(HLOOKUP(Y33,[1]DATA!$A$1:$NB$5,4,0),"") -> D2 | AC34: 170 | AE34: 16 | AF34: 308 | AG34: 3 | AH34: 15.4375 | AI34: 0.6698207885 | AJ34: 0.9909511361
A35: 2woND | B35: =VLOOKUP($AA35,DATA!$B$3:$E$6,2,0) -> 22:30:00 | C35: =VLOOKUP($AA35,DATA!$B$3:$E$6,3,0) -> 06:30:00 | D35: =VLOOKUP($AA35,DATA!$B$3:$E$6,4,0) -> 0.03125 | E35: 0.3020833333 | F35: 0.3020833333 | G35: =DATA!$C$9 -> 0.89 | H35: =DATA!$C$10 -> 64 | I35: 1 | J35: 407.8125 | K35: 407.8125 | L35: 0 | O35: 0 | R35: 0 | X35: =X37 -> 2 | Z35: =TEXT(Y33,"ddd") -> wo | AA35: ND | AB35: =IFERROR(HLOOKUP(Y33,[1]DATA!$A$1:$NB$5,5,0),"") -> D1 | AG35: 0
A36: 2doDD | B36: =VLOOKUP($AA36,DATA!$B$3:$E$6,2,0) -> 06:30:00 | C36: =VLOOKUP($AA36,DATA!$B$3:$E$6,3,0) -> 14:30:00 | D36: =VLOOKUP($AA36,DATA!$B$3:$E$6,4,0) -> 0.03125 | E36: 0.3020833333 | F36: 0.2194444444 | G36: =DATA!$C$9 -> 0.89 | H36: =DATA!$C$10 -> 64 | I36: 1 | J36: 296.25 | K36: 407.8125 | L36: 0.08263888889 | M36: 111.5625 | N36: 0.2735632184 | O36: 0 | R36: 390.4 | S36: 344 | V36: 344 | X36: =X37 -> 2 | Y36: =Y33+1 -> 2018-01-11 | Z36: =TEXT(Y36,"ddd") -> do | AA36: DD | AB36: =IFERROR(HLOOKUP(Y36,[1]DATA!$A$1:$NB$5,3,0),"") -> D3 | AC36: 119 | AE36: 22 | AF36: 366 | AG36: 0 | AH36: 19.625 | AI36: 0.7891039427 | AJ36: 1
A37: 2doMD | B37: =VLOOKUP($AA37,DATA!$B$3:$E$6,2,0) -> 14:30:00 | C37: =VLOOKUP($AA37,DATA!$B$3:$E$6,3,0) -> 22:30:00 | D37: =VLOOKUP($AA37,DATA!$B$3:$E$6,4,0) -> 0.03125 | E37: 0.3020833333 | F37: 0.2680555556 | G37: =DATA!$C$9 -> 0.89 | H37: =DATA!$C$10 -> 64 | I37: 1 | J37: 361.875 | K37: 407.8125 | L37: 0.03402777778 | M37: 45.9375 | N37: 0.1126436782 | O37: 0 | R37: 384 | S37: 341 | U37: 341 | X37: =WEEKNUM($Y27) -> 2 | Z37: =TEXT(Y36,"ddd") -> do | AA37: MD | AB37: =IFERROR(HLOOKUP(Y36,[1]DATA!$A$1:$NB$5,4,0),"") -> D2 | AC37: 49 | AE37: 19 | AF37: 360 | AG37: 30 | AH37: -49 | AI37: 0.7822222222 | AJ37: 0.9275362319
A38: 2doND | B38: =VLOOKUP($AA38,DATA!$B$3:$E$6,2,0) -> 22:30:00 | C38: =VLOOKUP($AA38,DATA!$B$3:$E$6,3,0) -> 06:30:00 | D38: =VLOOKUP($AA38,DATA!$B$3:$E$6,4,0) -> 0.03125 | E38: 0.3020833333 | F38: 0.3020833333 | G38: =DATA!$C$9 -> 0.89 | H38: =DATA!$C$10 -> 64 | I38: 1 | J38: 407.8125 | K38: 407.8125 | L38: 0 | O38: 0 | R38: 0 | X38: =X37 -> 2 | Z38: =TEXT(Y36,"ddd") -> do | AA38: ND | AB38: =IFERROR(HLOOKUP(Y36,[1]DATA!$A$1:$NB$5,5,0),"") -> D1 | AG38: 0
A39: 2vrDD | B39: =VLOOKUP($AA39,DATA!$B$3:$E$6,2,0) -> 06:30:00 | C39: =VLOOKUP($AA39,DATA!$B$3:$E$6,3,0) -> 14:30:00 | D39: =VLOOKUP($AA39,DATA!$B$3:$E$6,4,0) -> 0.03125 | E39: 0.3020833333 | F39: 0.2541666667 | G39: =DATA!$C$9 -> 0.89 | H39: =DATA!$C$10 -> 64 | I39: 1 | J39: 343.125 | K39: 407.8125 | L39: 0.04791666667 | M39: 64.6875 | N39: 0.1586206897 | O39: 0 | R39: 378.6666667 | S39: 330 | V39: 330 | X39: =X37 -> 2 | Y39: =Y36+1 -> 2018-01-12 | Z39: =TEXT(Y39,"ddd") -> vr | AA39: DD | AB39: =IFERROR(HLOOKUP(Y39,[1]DATA!$A$1:$NB$5,3,0),"") -> D3 | AC39: 69 | AE39: 25 | AF39: 355 | AG39: 40 | AH39: -41.25 | AI39: 0.7569892473 | AJ39: 0.9044585987
A40: 2vrMD | B40: =VLOOKUP($AA40,DATA!$B$3:$E$6,2,0) -> 14:30:00 | C40: =VLOOKUP($AA40,DATA!$B$3:$E$6,3,0) -> 22:30:00 | D40: =VLOOKUP($AA40,DATA!$B$3:$E$6,4,0) -> 0.03125 | E40: 0.3020833333 | F40: 0.20625 | G40: =DATA!$C$9 -> 0.89 | H40: =DATA!$C$10 -> 64 | I40: 1 | J40: 278.4375 | K40: 407.8125 | L40: 0.09583333333 | M40: 129.375 | N40: 0.3172413793 | O40: 0 | R40: 393.6 | S40: 346 | U40: 346 | X40: =X37 -> 2 | Z40: =TEXT(Y39,"ddd") -> vr | AA40: MD | AB40: =IFERROR(HLOOKUP(Y39,[1]DATA!$A$1:$NB$5,4,0),"") -> D2 | AC40: 138 | AE40: 23 | AF40: 369 | AG40: 4 | AH40: 39.4375 | AI40: 0.7936917563 | AJ40: 0.9899396378
A41: 2vrND | B41: =VLOOKUP($AA41,DATA!$B$3:$E$6,2,0) -> 22:30:00 | C41: =VLOOKUP($AA41,DATA!$B$3:$E$6,3,0) -> 06:30:00 | D41: =VLOOKUP($AA41,DATA!$B$3:$E$6,4,0) -> 0.03125 | E41: 0.3020833333 | F41: 0.3020833333 | G41: =DATA!$C$9 -> 0.89 | H41: =DATA!$C$10 -> 64 | I41: 1 | J41: 407.8125 | K41: 407.8125 | L41: 0 | O41: 0 | R41: 0 | X41: =X37 -> 2 | Z41: =TEXT(Y39,"ddd") -> vr | AA41: ND | AB41: =IFERROR(HLOOKUP(Y39,[1]DATA!$A$1:$NB$5,5,0),"") -> - | AG41: 0
A42: 2zaDD | B42: =VLOOKUP($AA42,DATA!$B$3:$E$6,2,0) -> 06:30:00 | C42: =VLOOKUP($AA42,DATA!$B$3:$E$6,3,0) -> 14:30:00 | D42: =VLOOKUP($AA42,DATA!$B$3:$E$6,4,0) -> 0.03125 | E42: 0.3020833333 | F42: 0.3020833333 | G42: =DATA!$C$9 -> 0.89 | H42: =DATA!$C$10 -> 64 | I42: 1 | J42: 407.8125 | K42: 407.8125 | L42: 0 | O42: 0 | R42: 0 | X42: =X37 -> 2 | Y42: =Y39+1 -> 2018-01-13 | Z42: =TEXT(Y42,"ddd") -> za | AA42: DD | AB42: =IFERROR(HLOOKUP(Y42,[1]DATA!$A$1:$NB$5,3,0),"") -> - | AG42: 0
A43: 2zaMD | B43: =VLOOKUP($AA43,DATA!$B$3:$E$6,2,0) -> 14:30:00 | C43: =VLOOKUP($AA43,DATA!$B$3:$E$6,3,0) -> 22:30:00 | D43: =VLOOKUP($AA43,DATA!$B$3:$E$6,4,0) -> 0.03125 | E43: 0.3020833333 | F43: 0.3020833333 | G43: =DATA!$C$9 -> 0.89 | H43: =DATA!$C$10 -> 64 | I43: 1 | J43: 407.8125 | K43: 407.8125 | L43: 0 | O43: 0 | R43: 0 | X43: =X37 -> 2 | Z43: =TEXT(Y42,"ddd") -> za | AA43: MD | AB43: =IFERROR(HLOOKUP(Y42,[1]DATA!$A$1:$NB$5,4,0),"") -> - | AG43: 0
A44: 2zaND | B44: =VLOOKUP($AA44,DATA!$B$3:$E$6,2,0) -> 22:30:00 | C44: =VLOOKUP($AA44,DATA!$B$3:$E$6,3,0) -> 06:30:00 | D44: =VLOOKUP($AA44,DATA!$B$3:$E$6,4,0) -> 0.03125 | E44: 0.3020833333 | F44: 0.3020833333 | G44: =DATA!$C$9 -> 0.89 | H44: =DATA!$C$10 -> 64 | I44: 1 | J44: 407.8125 | K44: 407.8125 | L44: 0 | O44: 0 | R44: 0 | X44: =X37 -> 2 | Z44: =TEXT(Y42,"ddd") -> za | AA44: ND | AB44: =IFERROR(HLOOKUP(Y42,[1]DATA!$A$1:$NB$5,5,0),"") -> - | AG44: 0
A45: 2zoDD | B45: =VLOOKUP($AA45,DATA!$B$3:$E$6,2,0) -> 06:30:00 | C45: =VLOOKUP($AA45,DATA!$B$3:$E$6,3,0) -> 14:30:00 | D45: =VLOOKUP($AA45,DATA!$B$3:$E$6,4,0) -> 0.03125 | E45: 0.3020833333 | F45: 0.3020833333 | G45: =DATA!$C$9 -> 0.89 | H45: =DATA!$C$10 -> 64 | I45: 1 | J45: 407.8125 | K45: 407.8125 | L45: 0 | O45: 0 | R45: 0 | X45: =X37 -> 2 | Y45: =Y42+1 -> 2018-01-14 | Z45: =TEXT(Y45,"ddd") -> zo | AA45: DD | AB45: =IFERROR(HLOOKUP(Y45,[1]DATA!$A$1:$NB$5,3,0),"") -> - | AG45: 0
A46: 2zoMD | B46: =VLOOKUP($AA46,DATA!$B$3:$E$6,2,0) -> 14:30:00 | C46: =VLOOKUP($AA46,DATA!$B$3:$E$6,3,0) -> 22:30:00 | D46: =VLOOKUP($AA46,DATA!$B$3:$E$6,4,0) -> 0.03125 | E46: 0.3020833333 | F46: 0.3020833333 | G46: =DATA!$C$9 -> 0.89 | H46: =DATA!$C$10 -> 64 | I46: 1 | J46: 407.8125 | K46: 407.8125 | L46: 0 | O46: 0 | R46: 0 | X46: =X37 -> 2 | Z46: =TEXT(Y45,"ddd") -> zo | AA46: MD | AB46: =IFERROR(HLOOKUP(Y45,[1]DATA!$A$1:$NB$5,4,0),"") -> - | AG46: 0
A47: 2zoZND | B47: =VLOOKUP($AA47,DATA!$B$3:$E$6,2,0) -> 00:00:00 | C47: =VLOOKUP($AA47,DATA!$B$3:$E$6,3,0) -> 00:00:00 | D47: =VLOOKUP($AA47,DATA!$B$3:$E$6,4,0) -> 0.03125 | E47: -0.03125 | F47: -0.03125 | G47: =DATA!$C$9 -> 0.89 | H47: =DATA!$C$10 -> 64 | I47: 1 | J47: -42.1875 | K47: -42.1875 | L47: 0 | O47: 0 | R47: 0 | X47: =X37 -> 2 | Z47: =TEXT(Y45,"ddd") -> zo | AA47: ZND | AB47: =IFERROR(HLOOKUP(Y45,[1]DATA!$A$1:$NB$5,5,0),"") -> D3 | AG47: 0
A48: =X48&Z48&AA48 -> 3maDD | B48: =VLOOKUP($AA48,DATA!$B$3:$E$6,2,0) -> 06:30:00 | C48: =VLOOKUP($AA48,DATA!$B$3:$E$6,3,0) -> 14:30:00 | D48: =VLOOKUP($AA48,DATA!$B$3:$E$6,4,0) -> 0.03125 | E48: 0.3020833333 | F48: 0.2027777778 | G48: =DATA!$C$9 -> 0.89 | H48: =DATA!$C$10 -> 64 | I48: 1 | J48: 273.75 | K48: 407.8125 | L48: 0.09930555556 | M48: 134.0625 | N48: 0.3287356322 | O48: =TIME(INT($AD48/60),INT(MOD($AD48,60)/1),0) -> 0 | P48: =IF($O48*86400/$H48=0,"",$O48*86400/$H48) ->  | R48: 350.9333333 | S48: 307 | U48: 307 | X48: =X58 -> 3 | Y48: =Y45+1 -> 2018-01-15 | Z48: =TEXT(Y48,"ddd") -> ma | AA48: DD | AB48: =IFERROR(HLOOKUP(Y48,[1]DATA!$A$1:$NB$5,3,0),"") -> D2 | AC48: 143 | AE48: 22 | AF48: 329 | AG48: 10 | AH48: 5.125 | AI48: 0.7042293907 | AJ48: 0.9722940525 | AK48: 4359.375 | AL48: 2881 | AM48: 0.660874552 | AN48: 1325.625 | AO48: 0.3040860215 | AP48: 0 | AQ48: 0 | AR48: 0.9181373562 | AS48: 0.9665436963 | AT48: 0.8697310161 | AV48: 152.75 | AW48: 0.03503942652 | AX48: 162.9333333 | AY48: 260
A49: 3maMD | B49: =VLOOKUP($AA49,DATA!$B$3:$E$6,2,0) -> 14:30:00 | C49: =VLOOKUP($AA49,DATA!$B$3:$E$6,3,0) -> 22:30:00 | D49: =VLOOKUP($AA49,DATA!$B$3:$E$6,4,0) -> 0.03125 | E49: 0.3020833333 | F49: 0.1944444444 | G49: =DATA!$C$9 -> 0.89 | H49: =DATA!$C$10 -> 64 | I49: 1 | J49: 262.5 | K49: 407.8125 | L49: 0.1076388889 | M49: 145.3125 | N49: 0.3563218391 | O49: =TIME(INT(AD49/60),INT(MOD(AD49,60)/1),0) -> 0 | R49: 330.6666667 | S49: 295 | T49: 295 | X49: =X58 -> 3 | Z49: =TEXT(Y48,"ddd") -> ma | AA49: MD | AB49: =IFERROR(HLOOKUP(Y48,[1]DATA!$A$1:$NB$5,4,0),"") -> D1 | AC49: 155 | AE49: 15 | AF49: 310 | AG49: 0 | AH49: 4.375 | AI49: 0.676702509 | AJ49: 1
A50: 3maND | B50: =VLOOKUP($AA50,DATA!$B$3:$E$6,2,0) -> 22:30:00 | C50: =VLOOKUP($AA50,DATA!$B$3:$E$6,3,0) -> 06:30:00 | D50: =VLOOKUP($AA50,DATA!$B$3:$E$6,4,0) -> 0.03125 | E50: 0.3020833333 | F50: 0.3020833333 | G50: =DATA!$C$9 -> 0.89 | H50: =DATA!$C$10 -> 64 | I50: 1 | J50: 407.8125 | K50: 407.8125 | L50: 0 | O50: 0 | R50: 0 | X50: =X58 -> 3 | Z50: =TEXT(Y48,"ddd") -> ma | AA50: ND | AB50: =IFERROR(HLOOKUP(Y48,[1]DATA!$A$1:$NB$5,5,0),"") -> D3 | AG50: 0
A51: 3diDD | B51: =VLOOKUP($AA51,DATA!$B$3:$E$6,2,0) -> 06:30:00 | C51: =VLOOKUP($AA51,DATA!$B$3:$E$6,3,0) -> 14:30:00 | D51: =VLOOKUP($AA51,DATA!$B$3:$E$6,4,0) -> 0.03125 | E51: 0.3020833333 | F51: 0.2125 | G51: =DATA!$C$9 -> 0.89 | H51: =DATA!$C$10 -> 64 | I51: 1 | J51: 286.875 | K51: 407.8125 | L51: 0.08958333333 | M51: 120.9375 | N51: 0.2965517241 | O51: 0 | R51: 331.7333333 | S51: 300 | U51: 300 | X51: =X58 -> 3 | Y51: =Y48+1 -> 2018-01-16 | Z51: =TEXT(Y51,"ddd") -> di | AA51: DD | AB51: =IFERROR(HLOOKUP(Y51,[1]DATA!$A$1:$NB$5,3,0),"") -> D2 | AC51: 129 | AE51: 11 | AF51: 311 | AG51: 0 | AH51: -15 | AI51: 0.688172043 | AJ51: 1
A52: 3diMD | B52: =VLOOKUP($AA52,DATA!$B$3:$E$6,2,0) -> 14:30:00 | C52: =VLOOKUP($AA52,DATA!$B$3:$E$6,3,0) -> 22:30:00 | D52: =VLOOKUP($AA52,DATA!$B$3:$E$6,4,0) -> 0.03125 | E52: 0.3020833333 | F52: 0.2284722222 | G52: =DATA!$C$9 -> 0.89 | H52: =DATA!$C$10 -> 64 | I52: 1 | J52: 308.4375 | K52: 407.8125 | L52: 0.07361111111 | M52: 99.375 | N52: 0.2436781609 | O52: 0 | R52: 405.3333333 | S52: 354 | T52: 354 | X52: =X58 -> 3 | Z52: =TEXT(Y51,"ddd") -> di | AA52: MD | AB52: =IFERROR(HLOOKUP(Y51,[1]DATA!$A$1:$NB$5,4,0),"") -> D1 | AC52: 106 | AE52: 26 | AF52: 380 | AG52: 0 | AH52: 17.4375 | AI52: 0.8120430108 | AJ52: 1
A53: 3diND | B53: =VLOOKUP($AA53,DATA!$B$3:$E$6,2,0) -> 22:30:00 | C53: =VLOOKUP($AA53,DATA!$B$3:$E$6,3,0) -> 06:30:00 | D53: =VLOOKUP($AA53,DATA!$B$3:$E$6,4,0) -> 0.03125 | E53: 0.3020833333 | F53: 0.3020833333 | G53: =DATA!$C$9 -> 0.89 | H53: =DATA!$C$10 -> 64 | I53: 1 | J53: 407.8125 | K53: 407.8125 | L53: 0 | O53: 0 | R53: 0 | X53: =X58 -> 3 | Z53: =TEXT(Y51,"ddd") -> di | AA53: ND | AB53: =IFERROR(HLOOKUP(Y51,[1]DATA!$A$1:$NB$5,5,0),"") -> D3 | AG53: 0
A54: 3woDD | B54: =VLOOKUP($AA54,DATA!$B$3:$E$6,2,0) -> 06:30:00 | C54: =VLOOKUP($AA54,DATA!$B$3:$E$6,3,0) -> 14:30:00 | D54: =VLOOKUP($AA54,DATA!$B$3:$E$6,4,0) -> 0.03125 | E54: 0.3020833333 | F54: 0.1256944444 | G54: =DATA!$C$9 -> 0.89 | H54: =DATA!$C$10 -> 64 | I54: 1 | J54: 169.6875 | K54: 407.8125 | L54: 0.1763888889 | M54: 238.125 | N54: 0.583908046 | O54: 0 | R54: 133.3333333 | S54: 118 | U54: 118 | X54: =X58 -> 3 | Y54: =Y51+1 -> 2018-01-17 | Z54: =TEXT(Y54,"ddd") -> wo | AA54: DD | AB54: =IFERROR(HLOOKUP(Y54,[1]DATA!$A$1:$NB$5,3,0),"") -> D2 | AC54: 254 | AE54: 7 | AF54: 125 | AG54: 120 | AH54: -79.8125 | AI54: 0.2706810036 | AJ54: 0.5263157895
A55: 3woMD | B55: =VLOOKUP($AA55,DATA!$B$3:$E$6,2,0) -> 14:30:00 | C55: =VLOOKUP($AA55,DATA!$B$3:$E$6,3,0) -> 22:30:00 | D55: =VLOOKUP($AA55,DATA!$B$3:$E$6,4,0) -> 0.03125 | E55: 0.3020833333 | F55: 0.2784722222 | G55: =DATA!$C$9 -> 0.89 | H55: =DATA!$C$10 -> 64 | I55: 1 | J55: 375.9375 | K55: 407.8125 | L55: 0.02361111111 | M55: 31.875 | N55: 0.07816091954 | O55: 0 | R55: 392.5333333 | S55: 328 | T55: 328 | X55: =X58 -> 3 | Z55: =TEXT(Y54,"ddd") -> wo | AA55: MD | AB55: =IFERROR(HLOOKUP(Y54,[1]DATA!$A$1:$NB$5,4,0),"") -> D1 | AC55: 34 | AE55: 40 | AF55: 368 | AG55: 74 | AH55: -76.0625 | AI55: 0.7524014337 | AJ55: 0.8413832524
A56: 3woND | B56: =VLOOKUP($AA56,DATA!$B$3:$E$6,2,0) -> 22:30:00 | C56: =VLOOKUP($AA56,DATA!$B$3:$E$6,3,0) -> 06:30:00 | D56: =VLOOKUP($AA56,DATA!$B$3:$E$6,4,0) -> 0.03125 | E56: 0.3020833333 | F56: 0.3020833333 | G56: =DATA!$C$9 -> 0.89 | H56: =DATA!$C$10 -> 64 | I56: 1 | J56: 407.8125 | K56: 407.8125 | L56: 0 | O56: 0 | R56: 0 | X56: =X58 -> 3 | Z56: =TEXT(Y54,"ddd") -> wo | AA56: ND | AB56: =IFERROR(HLOOKUP(Y54,[1]DATA!$A$1:$NB$5,5,0),"") -> D3 | AG56: 0
A57: 3doDD | B57: =VLOOKUP($AA57,DATA!$B$3:$E$6,2,0) -> 06:30:00 | C57: =VLOOKUP($AA57,DATA!$B$3:$E$6,3,0) -> 14:30:00 | D57: =VLOOKUP($AA57,DATA!$B$3:$E$6,4,0) -> 0.03125 | E57: 0.3020833333 | F57: 0.1548611111 | G57: =DATA!$C$9 -> 0.89 | H57: =DATA!$C$10 -> 64 | I57: 1 | J57: 209.0625 | K57: 407.8125 | L57: 0.1472222222 | M57: 198.75 | N57: 0.4873563218 | O57: 0 | R57: 249.6 | S57: 225 | U57: 225 | X57: =X58 -> 3 | Y57: =Y54+1 -> 2018-01-18 | Z57: =TEXT(Y57,"ddd") -> do | AA57: DD | AB57: =IFERROR(HLOOKUP(Y57,[1]DATA!$A$1:$NB$5,3,0),"") -> D2 | AC57: 212 | AE57: 9 | AF57: 234 | AG57: 18 | AH57: -12.1875 | AI57: 0.5161290323 | AJ57: 0.932735426
A58: 3doMD | B58: =VLOOKUP($AA58,DATA!$B$3:$E$6,2,0) -> 14:30:00 | C58: =VLOOKUP($AA58,DATA!$B$3:$E$6,3,0) -> 22:30:00 | D58: =VLOOKUP($AA58,DATA!$B$3:$E$6,4,0) -> 0.03125 | E58: 0.3020833333 | F58: 0.2013888889 | G58: =DATA!$C$9 -> 0.89 | H58: =DATA!$C$10 -> 64 | I58: 1 | J58: 271.875 | K58: 407.8125 | L58: 0.1006944444 | M58: 135.9375 | N58: 0.3333333333 | O58: 0 | R58: 368 | S58: 321 | T58: 321 | X58: =WEEKNUM($Y48) -> 3 | Z58: =TEXT(Y57,"ddd") -> do | AA58: MD | AB58: =IFERROR(HLOOKUP(Y57,[1]DATA!$A$1:$NB$5,4,0),"") -> D1 | AC58: 145 | AE58: 24 | AF58: 345 | AG58: 1 | AH58: 21 | AI58: 0.736344086 | AJ58: 0.9972899729
A59: 3doND | B59: =VLOOKUP($AA59,DATA!$B$3:$E$6,2,0) -> 22:30:00 | C59: =VLOOKUP($AA59,DATA!$B$3:$E$6,3,0) -> 06:30:00 | D59: =VLOOKUP($AA59,DATA!$B$3:$E$6,4,0) -> 0.03125 | E59: 0.3020833333 | F59: 0.3020833333 | G59: =DATA!$C$9 -> 0.89 | H59: =DATA!$C$10 -> 64 | I59: 1 | J59: 407.8125 | K59: 407.8125 | L59: 0 | O59: 0 | R59: 0 | X59: =X58 -> 3 | Z59: =TEXT(Y57,"ddd") -> do | AA59: ND | AB59: =IFERROR(HLOOKUP(Y57,[1]DATA!$A$1:$NB$5,5,0),"") -> D3 | AG59: 0
A60: 3vrDD | B60: =VLOOKUP($AA60,DATA!$B$3:$E$6,2,0) -> 06:30:00 | C60: =VLOOKUP($AA60,DATA!$B$3:$E$6,3,0) -> 14:30:00 | D60: =VLOOKUP($AA60,DATA!$B$3:$E$6,4,0) -> 0.03125 | E60: 0.3020833333 | F60: 0.25625 | G60: =DATA!$C$9 -> 0.89 | H60: =DATA!$C$10 -> 64 | I60: 1 | J60: 345.9375 | K60: 407.8125 | L60: 0.04583333333 | M60: 61.875 | N60: 0.1517241379 | O60: 0 | R60: 388.2666667 | S60: 343 | U60: 343 | X60: =X58 -> 3 | Y60: =Y57+1 -> 2018-01-19 | Z60: =TEXT(Y60,"ddd") -> vr | AA60: DD | AB60: =IFERROR(HLOOKUP(Y60,[1]DATA!$A$1:$NB$5,3,0),"") -> D2 | AC60: 66 | AE60: 21 | AF60: 364 | AG60: 35 | AH60: -31.0625 | AI60: 0.7868100358 | AJ60: 0.9173098126
A61: 3vrMD | B61: =VLOOKUP($AA61,DATA!$B$3:$E$6,2,0) -> 14:30:00 | C61: =VLOOKUP($AA61,DATA!$B$3:$E$6,3,0) -> 22:30:00 | D61: =VLOOKUP($AA61,DATA!$B$3:$E$6,4,0) -> 0.03125 | E61: 0.3020833333 | F61: 0.1840277778 | G61: =DATA!$C$9 -> 0.89 | H61: =DATA!$C$10 -> 64 | I61: 1 | J61: 248.4375 | K61: 407.8125 | L61: 0.1180555556 | M61: 159.375 | N61: 0.3908045977 | O61: 0 | R61: 333.8666667 | S61: 290 | T61: 290 | X61: =X58 -> 3 | Z61: =TEXT(Y60,"ddd") -> vr | AA61: MD | AB61: =IFERROR(HLOOKUP(Y60,[1]DATA!$A$1:$NB$5,4,0),"") -> D1 | AC61: 170 | AE61: 23 | AF61: 313 | AG61: 2 | AH61: 13.4375 | AI61: 0.6652329749 | AJ61: 0.9940452561
A62: 3vrND | B62: =VLOOKUP($AA62,DATA!$B$3:$E$6,2,0) -> 22:30:00 | C62: =VLOOKUP($AA62,DATA!$B$3:$E$6,3,0) -> 06:30:00 | D62: =VLOOKUP($AA62,DATA!$B$3:$E$6,4,0) -> 0.03125 | E62: 0.3020833333 | F62: 0.3020833333 | G62: =DATA!$C$9 -> 0.89 | H62: =DATA!$C$10 -> 64 | I62: 1 | J62: 407.8125 | K62: 407.8125 | L62: 0 | O62: 0 | R62: 0 | X62: =X58 -> 3 | Z62: =TEXT(Y60,"ddd") -> vr | AA62: ND | AB62: =IFERROR(HLOOKUP(Y60,[1]DATA!$A$1:$NB$5,5,0),"") -> - | AG62: 0
A63: 3zaDD | B63: =VLOOKUP($AA63,DATA!$B$3:$E$6,2,0) -> 06:30:00 | C63: =VLOOKUP($AA63,DATA!$B$3:$E$6,3,0) -> 14:30:00 | D63: =VLOOKUP($AA63,DATA!$B$3:$E$6,4,0) -> 0.03125 | E63: 0.3020833333 | F63: 0.3020833333 | G63: =DATA!$C$9 -> 0.89 | H63: =DATA!$C$10 -> 64 | I63: 1 | J63: 407.8125 | K63: 407.8125 | L63: 0 | O63: 0 | R63: 0 | X63: =X58 -> 3 | Y63: =Y60+1 -> 2018-01-20 | Z63: =TEXT(Y63,"ddd") -> za | AA63: DD | AB63: =IFERROR(HLOOKUP(Y63,[1]DATA!$A$1:$NB$5,3,0),"") -> - | AG63: 0
A64: 3zaMD | B64: =VLOOKUP($AA64,DATA!$B$3:$E$6,2,0) -> 14:30:00 | C64: =VLOOKUP($AA64,DATA!$B$3:$E$6,3,0) -> 22:30:00 | D64: =VLOOKUP($AA64,DATA!$B$3:$E$6,4,0) -> 0.03125 | E64: 0.3020833333 | F64: 0.3020833333 | G64: =DATA!$C$9 -> 0.89 | H64: =DATA!$C$10 -> 64 | I64: 1 | J64: 407.8125 | K64: 407.8125 | L64: 0 | O64: 0 | R64: 0 | X64: =X58 -> 3 | Z64: =TEXT(Y63,"ddd") -> za | AA64: MD | AB64: =IFERROR(HLOOKUP(Y63,[1]DATA!$A$1:$NB$5,4,0),"") -> - | AG64: 0
A65: 3zaND | B65: =VLOOKUP($AA65,DATA!$B$3:$E$6,2,0) -> 22:30:00 | C65: =VLOOKUP($AA65,DATA!$B$3:$E$6,3,0) -> 06:30:00 | D65: =VLOOKUP($AA65,DATA!$B$3:$E$6,4,0) -> 0.03125 | E65: 0.3020833333 | F65: 0.3020833333 | G65: =DATA!$C$9 -> 0.89 | H65: =DATA!$C$10 -> 64 | I65: 1 | J65: 407.8125 | K65: 407.8125 | L65: 0 | O65: 0 | R65: 0 | X65: =X58 -> 3 | Z65: =TEXT(Y63,"ddd") -> za | AA65: ND | AB65: =IFERROR(HLOOKUP(Y63,[1]DATA!$A$1:$NB$5,5,0),"") -> - | AG65: 0
A66: 3zoDD | B66: =VLOOKUP($AA66,DATA!$B$3:$E$6,2,0) -> 06:30:00 | C66: =VLOOKUP($AA66,DATA!$B$3:$E$6,3,0) -> 14:30:00 | D66: =VLOOKUP($AA66,DATA!$B$3:$E$6,4,0) -> 0.03125 | E66: 0.3020833333 | F66: 0.3020833333 | G66: =DATA!$C$9 -> 0.89 | H66: =DATA!$C$10 -> 64 | I66: 1 | J66: 407.8125 | K66: 407.8125 | L66: 0 | O66: 0 | R66: 0 | X66: =X58 -> 3 | Y66: =Y63+1 -> 2018-01-21 | Z66: =TEXT(Y66,"ddd") -> zo | AA66: DD | AB66: =IFERROR(HLOOKUP(Y66,[1]DATA!$A$1:$NB$5,3,0),"") -> - | AG66: 0
A67: 3zoMD | B67: =VLOOKUP($AA67,DATA!$B$3:$E$6,2,0) -> 14:30:00 | C67: =VLOOKUP($AA67,DATA!$B$3:$E$6,3,0) -> 22:30:00 | D67: =VLOOKUP($AA67,DATA!$B$3:$E$6,4,0) -> 0.03125 | E67: 0.3020833333 | F67: 0.3020833333 | G67: =DATA!$C$9 -> 0.89 | H67: =DATA!$C$10 -> 64 | I67: 1 | J67: 407.8125 | K67: 407.8125 | L67: 0 | O67: 0 | R67: 0 | X67: =X58 -> 3 | Z67: =TEXT(Y66,"ddd") -> zo | AA67: MD | AB67: =IFERROR(HLOOKUP(Y66,[1]DATA!$A$1:$NB$5,4,0),"") -> - | AG67: 0
A68: 3zoZND | B68: =VLOOKUP($AA68,DATA!$B$3:$E$6,2,0) -> 00:00:00 | C68: =VLOOKUP($AA68,DATA!$B$3:$E$6,3,0) -> 00:00:00 | D68: =VLOOKUP($AA68,DATA!$B$3:$E$6,4,0) -> 0.03125 | E68: -0.03125 | F68: -0.03125 | G68: =DATA!$C$9 -> 0.89 | H68: =DATA!$C$10 -> 64 | I68: 1 | J68: -42.1875 | K68: -42.1875 | L68: 0 | O68: 0 | R68: 0 | X68: =X58 -> 3 | Z68: =TEXT(Y66,"ddd") -> zo | AA68: ZND | AB68: =IFERROR(HLOOKUP(Y66,[1]DATA!$A$1:$NB$5,5,0),"") -> D2 | AG68: 0
A69: 4maDD | B69: =VLOOKUP($AA69,DATA!$B$3:$E$6,2,0) -> 06:30:00 | C69: =VLOOKUP($AA69,DATA!$B$3:$E$6,3,0) -> 14:30:00 | D69: =VLOOKUP($AA69,DATA!$B$3:$E$6,4,0) -> 0.03125 | E69: 0.3020833333 | F69: 0.2458333333 | G69: =DATA!$C$9 -> 0.89 | H69: =DATA!$C$10 -> 64 | I69: 1 | J69: 331.875 | K69: 407.8125 | L69: 0.05625 | M69: 75.9375 | N69: 0.1862068966 | O69: =TIME(INT($AD69/60),INT(MOD($AD69,60)/1),0) -> 0 | R69: 390.4 | S69: 354 | T69: 354 | X69: =X79 -> 4 | Y69: =Y66+1 -> 2018-01-22 | Z69: =TEXT(Y69,"ddd") -> ma | AA69: DD | AB69: =IFERROR(HLOOKUP(Y69,[1]DATA!$A$1:$NB$5,3,0),"") -> D1 | AC69: 81 | AE69: 12 | AF69: 366 | AG69: 5 | AH69: -6 | AI69: 0.8120430108 | AJ69: 0.9873545776 | AK69: 4359.375 | AL69: 3220 | AM69: 0.7386379928 | AN69: 1039.6875 | AO69: 0.2384946237 | AP69: 0 | AQ69: 0 | AR69: 0.9766691562 | AS69: 0.9931526148 | AU69: 0.9601856975 | AV69: 99.6875 | AW69: 0.02286738351 | AX69: 106.3333333 | AY69: 96
A70: 4maMD | B70: =VLOOKUP($AA70,DATA!$B$3:$E$6,2,0) -> 14:30:00 | C70: =VLOOKUP($AA70,DATA!$B$3:$E$6,3,0) -> 22:30:00 | D70: =VLOOKUP($AA70,DATA!$B$3:$E$6,4,0) -> 0.03125 | E70: 0.3020833333 | F70: 0.2291666667 | G70: =DATA!$C$9 -> 0.89 | H70: =DATA!$C$10 -> 64 | I70: 1 | J70: =F70*86400/H70*I70 -> 309.375 | K70: =E70*86400/H70 -> 407.8125 | L70: 0.07291666667 | M70: 98.4375 | N70: 0.2413793103 | O70: =TIME(INT(AD70/60),INT(MOD(AD70,60)/1),0) -> 0 | R70: =AF70*AG$2 -> 392.5333333 | S70: =IF(AF70-AE70=0,"",AF70-AE70) -> 347 | V70: 347 | X70: =X79 -> 4 | Z70: =TEXT(Y69,"ddd") -> ma | AA70: MD | AB70: =IFERROR(HLOOKUP(Y69,[1]DATA!$A$1:$NB$5,4,0),"") -> D3 | AC70: 105 | AE70: 21 | AF70: 368 | AG70: 7 | AH70: 9.5 | AI70: 0.7959856631 | AJ70: 0.9824795595
A71: 4maND | B71: =VLOOKUP($AA71,DATA!$B$3:$E$6,2,0) -> 22:30:00 | C71: =VLOOKUP($AA71,DATA!$B$3:$E$6,3,0) -> 06:30:00 | D71: =VLOOKUP($AA71,DATA!$B$3:$E$6,4,0) -> 0.03125 | E71: 0.3020833333 | F71: 0.3020833333 | G71: =DATA!$C$9 -> 0.89 | H71: =DATA!$C$10 -> 64 | I71: 1 | J71: 407.8125 | K71: 407.8125 | L71: =TIME(INT($AC71/60),INT(MOD($AC71,60)/1),0) -> 0 | M71: =IF($L71*86400/$H71=0,"",$L71*86400/$H71) ->  | N71: =IFERROR($M71/$K71,"") ->  | O71: 0 | Q71: =IFERROR($P71/$K71,"") ->  | R71: 0 | T71: =IF(IF($AB71="D1",$S71,"")=0,"",IF($AB71="D1",$S71,"")) ->  | U71: =IF(IF($AB71="D2",$S71,"")=0,"",IF($AB71="D2",$S71,"")) ->  | V71: =IF(IF($AB71="D3",$S71,"")=0,"",IF($AB71="D3",$S71,"")) ->  | X71: =X79 -> 4 | Z71: =TEXT(Y69,"ddd") -> ma | AA71: ND | AB71: =IFERROR(HLOOKUP(Y69,[1]DATA!$A$1:$NB$5,5,0),"") -> D2 | AG71: 0
A72: 4diDD | B72: =VLOOKUP($AA72,DATA!$B$3:$E$6,2,0) -> 06:30:00 | C72: =VLOOKUP($AA72,DATA!$B$3:$E$6,3,0) -> 14:30:00 | D72: =VLOOKUP($AA72,DATA!$B$3:$E$6,4,0) -> 0.03125 | E72: 0.3020833333 | F72: 0.2208333333 | G72: =DATA!$C$9 -> 0.89 | H72: =DATA!$C$10 -> 64 | I72: 1 | J72: 298.125 | K72: 407.8125 | L72: 0.08125 | M72: 109.6875 | N72: 0.2689655172 | O72: 0 | R72: 387.2 | S72: 346 | T72: 346 | X72: =X79 -> 4 | Y72: =Y69+1 -> 2018-01-23 | Z72: =TEXT(Y72,"ddd") -> di | AA72: DD | AB72: =IFERROR(HLOOKUP(Y72,[1]DATA!$A$1:$NB$5,3,0),"") -> D1 | AC72: 117 | AE72: 17 | AF72: 363 | AG72: 0 | AH72: 19.75 | AI72: 0.7936917563 | AJ72: 1
A73: 4diMD | B73: =VLOOKUP($AA73,DATA!$B$3:$E$6,2,0) -> 14:30:00 | C73: =VLOOKUP($AA73,DATA!$B$3:$E$6,3,0) -> 22:30:00 | D73: =VLOOKUP($AA73,DATA!$B$3:$E$6,4,0) -> 0.03125 | E73: 0.3020833333 | F73: 0.2090277778 | G73: =DATA!$C$9 -> 0.89 | H73: =DATA!$C$10 -> 64 | I73: 1 | J73: 282.1875 | K73: 407.8125 | L73: 0.09305555556 | M73: 125.625 | N73: 0.308045977 | O73: 0 | R73: 328.5333333 | S73: 286 | V73: 286 | X73: =X79 -> 4 | Z73: =TEXT(Y72,"ddd") -> di | AA73: MD | AB73: =IFERROR(HLOOKUP(Y72,[1]DATA!$A$1:$NB$5,4,0),"") -> D3 | AC73: 134 | AE73: 22 | AF73: 308 | AG73: 17 | AH73: -24.3125 | AI73: 0.6560573477 | AJ73: 0.9508006946
A74: 4diND | B74: =VLOOKUP($AA74,DATA!$B$3:$E$6,2,0) -> 22:30:00 | C74: =VLOOKUP($AA74,DATA!$B$3:$E$6,3,0) -> 06:30:00 | D74: =VLOOKUP($AA74,DATA!$B$3:$E$6,4,0) -> 0.03125 | E74: 0.3020833333 | F74: 0.3020833333 | G74: =DATA!$C$9 -> 0.89 | H74: =DATA!$C$10 -> 64 | I74: 1 | J74: 407.8125 | K74: 407.8125 | L74: 0 | O74: 0 | R74: 0 | X74: =X79 -> 4 | Z74: =TEXT(Y72,"ddd") -> di | AA74: ND | AB74: =IFERROR(HLOOKUP(Y72,[1]DATA!$A$1:$NB$5,5,0),"") -> D2 | AG74: 0
A75: 4woDD | B75: =VLOOKUP($AA75,DATA!$B$3:$E$6,2,0) -> 06:30:00 | C75: =VLOOKUP($AA75,DATA!$B$3:$E$6,3,0) -> 14:30:00 | D75: =VLOOKUP($AA75,DATA!$B$3:$E$6,4,0) -> 0.03125 | E75: 0.3020833333 | F75: 0.2180555556 | G75: =DATA!$C$9 -> 0.89 | H75: =DATA!$C$10 -> 64 | I75: 1 | J75: 294.375 | K75: 407.8125 | L75: 0.08402777778 | M75: 113.4375 | N75: 0.2781609195 | O75: 0 | R75: 366.9333333 | S75: 328 | T75: 328 | X75: =X79 -> 4 | Y75: =Y72+1 -> 2018-01-24 | Z75: =TEXT(Y75,"ddd") -> wo | AA75: DD | AB75: =IFERROR(HLOOKUP(Y75,[1]DATA!$A$1:$NB$5,3,0),"") -> D1 | AC75: 121 | AE75: 16 | AF75: 344 | AG75: 3 | AH75: 5.5 | AI75: 0.7524014337 | AJ75: 0.9918904307
A76: 4woMD | B76: =VLOOKUP($AA76,DATA!$B$3:$E$6,2,0) -> 14:30:00 | C76: =VLOOKUP($AA76,DATA!$B$3:$E$6,3,0) -> 22:30:00 | D76: =VLOOKUP($AA76,DATA!$B$3:$E$6,4,0) -> 0.03125 | E76: 0.3020833333 | F76: 0.2895833333 | G76: =DATA!$C$9 -> 0.89 | H76: =DATA!$C$10 -> 64 | I76: 1 | J76: 390.9375 | K76: 407.8125 | L76: 0.0125 | M76: 16.875 | N76: 0.04137931034 | O76: 0 | R76: 434.1333333 | S76: 381 | V76: 381 | X76: =X79 -> 4 | Z76: =TEXT(Y75,"ddd") -> wo | AA76: MD | AB76: =IFERROR(HLOOKUP(Y75,[1]DATA!$A$1:$NB$5,4,0),"") -> D3 | AC76: 18 | AE76: 26 | AF76: 407 | AG76: 34 | AH76: -38.0625 | AI76: 0.8739784946 | AJ76: 0.9273711193
A77: 4woND | B77: =VLOOKUP($AA77,DATA!$B$3:$E$6,2,0) -> 22:30:00 | C77: =VLOOKUP($AA77,DATA!$B$3:$E$6,3,0) -> 06:30:00 | D77: =VLOOKUP($AA77,DATA!$B$3:$E$6,4,0) -> 0.03125 | E77: 0.3020833333 | F77: 0.3020833333 | G77: =DATA!$C$9 -> 0.89 | H77: =DATA!$C$10 -> 64 | I77: 1 | J77: 407.8125 | K77: 407.8125 | L77: 0 | O77: 0 | R77: 0 | X77: =X79 -> 4 | Z77: =TEXT(Y75,"ddd") -> wo | AA77: ND | AB77: =IFERROR(HLOOKUP(Y75,[1]DATA!$A$1:$NB$5,5,0),"") -> D2 | AG77: 0
A78: 4doDD | B78: =VLOOKUP($AA78,DATA!$B$3:$E$6,2,0) -> 06:30:00 | C78: =VLOOKUP($AA78,DATA!$B$3:$E$6,3,0) -> 14:30:00 | D78: =VLOOKUP($AA78,DATA!$B$3:$E$6,4,0) -> 0.03125 | E78: 0.3020833333 | F78: 0.1256944444 | G78: =DATA!$C$9 -> 0.89 | H78: =DATA!$C$10 -> 64 | I78: 1 | J78: 169.6875 | K78: 407.8125 | L78: 0.1763888889 | M78: 238.125 | N78: 0.583908046 | O78: 0 | R78: 253.8666667 | S78: 223 | T78: 223 | X78: =X79 -> 4 | Y78: =Y75+1 -> 2018-01-25 | Z78: =TEXT(Y78,"ddd") -> do | AA78: DD | AB78: =IFERROR(HLOOKUP(Y78,[1]DATA!$A$1:$NB$5,3,0),"") -> D1 | AC78: 254 | AE78: 15 | AF78: 238 | AG78: 0 | AH78: 25.1875 | AI78: 0.5115412186 | AJ78: 1
A79: 4doMD | B79: =VLOOKUP($AA79,DATA!$B$3:$E$6,2,0) -> 14:30:00 | C79: =VLOOKUP($AA79,DATA!$B$3:$E$6,3,0) -> 22:30:00 | D79: =VLOOKUP($AA79,DATA!$B$3:$E$6,4,0) -> 0.03125 | E79: 0.3020833333 | F79: 0.2763888889 | G79: =DATA!$C$9 -> 0.89 | H79: =DATA!$C$10 -> 64 | I79: 1 | J79: 373.125 | K79: 407.8125 | L79: 0.02569444444 | M79: 34.6875 | N79: 0.08505747126 | O79: 0 | R79: 393.6 | S79: 332 | V79: 332 | X79: =WEEKNUM($Y69) -> 4 | Z79: =TEXT(Y78,"ddd") -> do | AA79: MD | AB79: =IFERROR(HLOOKUP(Y78,[1]DATA!$A$1:$NB$5,4,0),"") -> D3 | AC79: 37 | AE79: 37 | AF79: 369 | AG79: 25 | AH79: -69.25 | AI79: 0.7615770609 | AJ79: 0.9402771142
A80: 4doND | B80: =VLOOKUP($AA80,DATA!$B$3:$E$6,2,0) -> 22:30:00 | C80: =VLOOKUP($AA80,DATA!$B$3:$E$6,3,0) -> 06:30:00 | D80: =VLOOKUP($AA80,DATA!$B$3:$E$6,4,0) -> 0.03125 | E80: 0.3020833333 | F80: 0.3020833333 | G80: =DATA!$C$9 -> 0.89 | H80: =DATA!$C$10 -> 64 | I80: 1 | J80: 407.8125 | K80: 407.8125 | L80: 0 | O80: 0 | R80: 0 | X80: =X79 -> 4 | Z80: =TEXT(Y78,"ddd") -> do | AA80: ND | AB80: =IFERROR(HLOOKUP(Y78,[1]DATA!$A$1:$NB$5,5,0),"") -> D2 | AG80: 0
A81: 4vrDD | B81: =VLOOKUP($AA81,DATA!$B$3:$E$6,2,0) -> 06:30:00 | C81: =VLOOKUP($AA81,DATA!$B$3:$E$6,3,0) -> 14:30:00 | D81: =VLOOKUP($AA81,DATA!$B$3:$E$6,4,0) -> 0.03125 | E81: 0.3020833333 | F81: 0.2673611111 | G81: =DATA!$C$9 -> 0.89 | H81: =DATA!$C$10 -> 64 | I81: 1 | J81: 360.9375 | K81: 407.8125 | L81: 0.03472222222 | M81: 46.875 | N81: 0.1149425287 | O81: 0 | R81: 365.8666667 | S81: 330 | T81: 330 | X81: =X79 -> 4 | Y81: =Y78+1 -> 2018-01-26 | Z81: =TEXT(Y81,"ddd") -> vr | AA81: DD | AB81: =IFERROR(HLOOKUP(Y81,[1]DATA!$A$1:$NB$5,3,0),"") -> D1 | AC81: 50 | AE81: 13 | AF81: 343 | AG81: 5 | AH81: -59.0625 | AI81: 0.7569892473 | AJ81: 0.9865180658
A82: 4vrMD | B82: =VLOOKUP($AA82,DATA!$B$3:$E$6,2,0) -> 14:30:00 | C82: =VLOOKUP($AA82,DATA!$B$3:$E$6,3,0) -> 22:30:00 | D82: =VLOOKUP($AA82,DATA!$B$3:$E$6,4,0) -> 0.03125 | E82: 0.3020833333 | F82: 0.16875 | G82: =DATA!$C$9 -> 0.89 | H82: =DATA!$C$10 -> 64 | I82: 1 | J82: 227.8125 | K82: 407.8125 | L82: 0.1333333333 | M82: 180 | N82: 0.4413793103 | O82: 0 | R82: 322.1333333 | S82: 293 | V82: 293 | X82: =X79 -> 4 | Z82: =TEXT(Y81,"ddd") -> vr | AA82: MD | AB82: =IFERROR(HLOOKUP(Y81,[1]DATA!$A$1:$NB$5,4,0),"") -> D3 | AC82: 192 | AE82: 9 | AF82: 302 | AG82: 0 | AH82: 37.0625 | AI82: 0.6721146953 | AJ82: 1
A83: 4vrND | B83: =VLOOKUP($AA83,DATA!$B$3:$E$6,2,0) -> 22:30:00 | C83: =VLOOKUP($AA83,DATA!$B$3:$E$6,3,0) -> 06:30:00 | D83: =VLOOKUP($AA83,DATA!$B$3:$E$6,4,0) -> 0.03125 | E83: 0.3020833333 | F83: 0.3020833333 | G83: =DATA!$C$9 -> 0.89 | H83: =DATA!$C$10 -> 64 | I83: 1 | J83: 407.8125 | K83: 407.8125 | L83: 0 | O83: 0 | R83: 0 | X83: =X79 -> 4 | Z83: =TEXT(Y81,"ddd") -> vr | AA83: ND | AB83: =IFERROR(HLOOKUP(Y81,[1]DATA!$A$1:$NB$5,5,0),"") -> - | AG83: 0
A84: 4zaDD | B84: =VLOOKUP($AA84,DATA!$B$3:$E$6,2,0) -> 06:30:00 | C84: =VLOOKUP($AA84,DATA!$B$3:$E$6,3,0) -> 14:30:00 | D84: =VLOOKUP($AA84,DATA!$B$3:$E$6,4,0) -> 0.03125 | E84: 0.3020833333 | F84: 0.3020833333 | G84: =DATA!$C$9 -> 0.89 | H84: =DATA!$C$10 -> 64 | I84: 1 | J84: 407.8125 | K84: 407.8125 | L84: 0 | O84: 0 | R84: 0 | X84: =X79 -> 4 | Y84: =Y81+1 -> 2018-01-27 | Z84: =TEXT(Y84,"ddd") -> za | AA84: DD | AB84: =IFERROR(HLOOKUP(Y84,[1]DATA!$A$1:$NB$5,3,0),"") -> - | AG84: 0
A85: 4zaMD | B85: =VLOOKUP($AA85,DATA!$B$3:$E$6,2,0) -> 14:30:00 | C85: =VLOOKUP($AA85,DATA!$B$3:$E$6,3,0) -> 22:30:00 | D85: =VLOOKUP($AA85,DATA!$B$3:$E$6,4,0) -> 0.03125 | E85: 0.3020833333 | F85: 0.3020833333 | G85: =DATA!$C$9 -> 0.89 | H85: =DATA!$C$10 -> 64 | I85: 1 | J85: 407.8125 | K85: 407.8125 | L85: 0 | O85: 0 | R85: 0 | X85: =X79 -> 4 | Z85: =TEXT(Y84,"ddd") -> za | AA85: MD | AB85: =IFERROR(HLOOKUP(Y84,[1]DATA!$A$1:$NB$5,4,0),"") -> - | AG85: 0
A86: 4zaND | B86: =VLOOKUP($AA86,DATA!$B$3:$E$6,2,0) -> 22:30:00 | C86: =VLOOKUP($AA86,DATA!$B$3:$E$6,3,0) -> 06:30:00 | D86: =VLOOKUP($AA86,DATA!$B$3:$E$6,4,0) -> 0.03125 | E86: 0.3020833333 | F86: 0.3020833333 | G86: =DATA!$C$9 -> 0.89 | H86: =DATA!$C$10 -> 64 | I86: 1 | J86: 407.8125 | K86: 407.8125 | L86: 0 | O86: 0 | R86: 0 | X86: =X79 -> 4 | Z86: =TEXT(Y84,"ddd") -> za | AA86: ND | AB86: =IFERROR(HLOOKUP(Y84,[1]DATA!$A$1:$NB$5,5,0),"") -> - | AG86: 0
A87: 4zoDD | B87: =VLOOKUP($AA87,DATA!$B$3:$E$6,2,0) -> 06:30:00 | C87: =VLOOKUP($AA87,DATA!$B$3:$E$6,3,0) -> 14:30:00 | D87: =VLOOKUP($AA87,DATA!$B$3:$E$6,4,0) -> 0.03125 | E87: 0.3020833333 | F87: 0.3020833333 | G87: =DATA!$C$9 -> 0.89 | H87: =DATA!$C$10 -> 64 | I87: 1 | J87: 407.8125 | K87: 407.8125 | L87: 0 | O87: 0 | R87: 0 | X87: =X79 -> 4 | Y87: =Y84+1 -> 2018-01-28 | Z87: =TEXT(Y87,"ddd") -> zo | AA87: DD | AB87: =IFERROR(HLOOKUP(Y87,[1]DATA!$A$1:$NB$5,3,0),"") -> - | AG87: 0
A88: 4zoMD | B88: =VLOOKUP($AA88,DATA!$B$3:$E$6,2,0) -> 14:30:00 | C88: =VLOOKUP($AA88,DATA!$B$3:$E$6,3,0) -> 22:30:00 | D88: =VLOOKUP($AA88,DATA!$B$3:$E$6,4,0) -> 0.03125 | E88: 0.3020833333 | F88: 0.3020833333 | G88: =DATA!$C$9 -> 0.89 | H88: =DATA!$C$10 -> 64 | I88: 1 | J88: 407.8125 | K88: 407.8125 | L88: 0 | O88: 0 | R88: 0 | X88: =X79 -> 4 | Z88: =TEXT(Y87,"ddd") -> zo | AA88: MD | AB88: =IFERROR(HLOOKUP(Y87,[1]DATA!$A$1:$NB$5,4,0),"") -> - | AG88: 0
A89: 4zoZND | B89: =VLOOKUP($AA89,DATA!$B$3:$E$6,2,0) -> 00:00:00 | C89: =VLOOKUP($AA89,DATA!$B$3:$E$6,3,0) -> 00:00:00 | D89: =VLOOKUP($AA89,DATA!$B$3:$E$6,4,0) -> 0.03125 | E89: -0.03125 | F89: -0.03125 | G89: =DATA!$C$9 -> 0.89 | H89: =DATA!$C$10 -> 64 | I89: 1 | J89: -42.1875 | K89: -42.1875 | L89: 0 | O89: 0 | R89: 0 | X89: =X79 -> 4 | Z89: =TEXT(Y87,"ddd") -> zo | AA89: ZND | AB89: =IFERROR(HLOOKUP(Y87,[1]DATA!$A$1:$NB$5,5,0),"") -> D1 | AG89: 0
A90: 5maDD | B90: =VLOOKUP($AA90,DATA!$B$3:$E$6,2,0) -> 06:30:00 | C90: =VLOOKUP($AA90,DATA!$B$3:$E$6,3,0) -> 14:30:00 | D90: =VLOOKUP($AA90,DATA!$B$3:$E$6,4,0) -> 0.03125 | E90: 0.3020833333 | F90: 0.1625 | G90: =DATA!$C$9 -> 0.89 | H90: =DATA!$C$10 -> 64 | I90: 1 | J90: 219.375 | K90: 407.8125 | L90: 0.1395833333 | M90: 188.4375 | N90: 0.4620689655 | O90: =TIME(INT($AD90/60),INT(MOD($AD90,60)/1),0) -> 0 | R90: 308.2666667 | S90: 266 | V90: 266 | X90: =X100 -> 5 | Y90: =Y87+1 -> 2018-01-29 | Z90: =TEXT(Y90,"ddd") -> ma | AA90: DD | AB90: =IFERROR(HLOOKUP(Y90,[1]DATA!$A$1:$NB$5,3,0),"") -> D3 | AC90: 201 | AE90: 23 | AF90: 289 | AG90: 5 | AH90: 18.5 | AI90: 0.6101792115 | AJ90: 0.9840391573 | AK90: 4359.375 | AL90: 2870 | AM90: 0.6583512545 | AN90: 1085.625 | AO90: 0.2490322581 | AP90: 225 | AQ90: 0.05161290323 | AR90: 0.964349149 | AT90: 0.9468150945 | AU90: 0.9818832034 | AV90: 178.75 | AW90: 0.04100358423 | AX90: 190.6666667 | AY90: 130
A91: 5maMD | B91: =VLOOKUP($AA91,DATA!$B$3:$E$6,2,0) -> 14:30:00 | C91: =VLOOKUP($AA91,DATA!$B$3:$E$6,3,0) -> 22:30:00 | D91: =VLOOKUP($AA91,DATA!$B$3:$E$6,4,0) -> 0.03125 | E91: 0.3020833333 | F91: 0.23125 | G91: =DATA!$C$9 -> 0.89 | H91: =DATA!$C$10 -> 64 | I91: 1 | J91: 312.1875 | K91: 407.8125 | L91: 0.07083333333 | M91: 95.625 | N91: 0.2344827586 | O91: =TIME(INT(AD91/60),INT(MOD(AD91,60)/1),0) -> 0 | R91: 361.6 | S91: 328 | U91: 328 | X91: =X100 -> 5 | Z91: =TEXT(Y90,"ddd") -> ma | AA91: MD | AB91: =IFERROR(HLOOKUP(Y90,[1]DATA!$A$1:$NB$5,4,0),"") -> D2 | AC91: 102 | AE91: 11 | AF91: 339 | AG91: 14 | AH91: -12.3125 | AI91: 0.7524014337 | AJ91: 0.9627263046
A92: 5maND | B92: =VLOOKUP($AA92,DATA!$B$3:$E$6,2,0) -> 22:30:00 | C92: =VLOOKUP($AA92,DATA!$B$3:$E$6,3,0) -> 06:30:00 | D92: =VLOOKUP($AA92,DATA!$B$3:$E$6,4,0) -> 0.03125 | E92: =(C92-B92+(B92>C92))-D92 -> 0.3020833333 | F92: =E92-O92-L92 -> 0.3020833333 | G92: =DATA!$C$9 -> 0.89 | H92: =DATA!$C$10 -> 64 | I92: 1 | J92: 407.8125 | K92: 407.8125 | L92: 0 | O92: 0 | R92: 0 | X92: =X100 -> 5 | Z92: =TEXT(Y90,"ddd") -> ma | AA92: ND | AB92: =IFERROR(HLOOKUP(Y90,[1]DATA!$A$1:$NB$5,5,0),"") -> D1 | AG92: 0
A93: 5diDD | B93: =VLOOKUP($AA93,DATA!$B$3:$E$6,2,0) -> 06:30:00 | C93: =VLOOKUP($AA93,DATA!$B$3:$E$6,3,0) -> 14:30:00 | D93: =VLOOKUP($AA93,DATA!$B$3:$E$6,4,0) -> 0.03125 | E93: 0.3020833333 | F93: 0.2180555556 | G93: =DATA!$C$9 -> 0.89 | H93: =DATA!$C$10 -> 64 | I93: 1 | J93: 294.375 | K93: 407.8125 | L93: 0.08402777778 | M93: 113.4375 | N93: 0.2781609195 | O93: 0 | R93: 341.3333333 | S93: 307 | V93: 307 | X93: =X100 -> 5 | Y93: =Y90+1 -> 2018-01-30 | Z93: =TEXT(Y93,"ddd") -> di | AA93: DD | AB93: =IFERROR(HLOOKUP(Y93,[1]DATA!$A$1:$NB$5,3,0),"") -> D3 | AC93: 121 | AE93: 13 | AF93: 320 | AG93: 3 | AH93: -15.5 | AI93: 0.7042293907 | AJ93: 0.9912875121
A94: 5diMD | B94: =VLOOKUP($AA94,DATA!$B$3:$E$6,2,0) -> 14:30:00 | C94: =VLOOKUP($AA94,DATA!$B$3:$E$6,3,0) -> 22:30:00 | D94: =VLOOKUP($AA94,DATA!$B$3:$E$6,4,0) -> 0.03125 | E94: 0.3020833333 | F94: 0.2625 | G94: =DATA!$C$9 -> 0.89 | H94: =DATA!$C$10 -> 64 | I94: 1 | J94: 354.375 | K94: 407.8125 | L94: 0.03958333333 | M94: 53.4375 | N94: 0.1310344828 | O94: 0 | R94: 408.5333333 | S94: 368 | U94: 368 | X94: =X100 -> 5 | Z94: =TEXT(Y93,"ddd") -> di | AA94: MD | AB94: =IFERROR(HLOOKUP(Y93,[1]DATA!$A$1:$NB$5,4,0),"") -> D2 | AC94: 57 | AE94: 15 | AF94: 383 | AG94: 12 | AH94: -14.5 | AI94: 0.8441577061 | AJ94: 0.9714648066
A95: 5diND | B95: =VLOOKUP($AA95,DATA!$B$3:$E$6,2,0) -> 22:30:00 | C95: =VLOOKUP($AA95,DATA!$B$3:$E$6,3,0) -> 06:30:00 | D95: =VLOOKUP($AA95,DATA!$B$3:$E$6,4,0) -> 0.03125 | E95: 0.3020833333 | F95: 0.3020833333 | G95: =DATA!$C$9 -> 0.89 | H95: =DATA!$C$10 -> 64 | I95: 1 | J95: 407.8125 | K95: 407.8125 | L95: 0 | O95: 0 | R95: 0 | X95: =X100 -> 5 | Z95: =TEXT(Y93,"ddd") -> di | AA95: ND | AB95: =IFERROR(HLOOKUP(Y93,[1]DATA!$A$1:$NB$5,5,0),"") -> D1 | AG95: 0
A96: 5woDD | B96: =VLOOKUP($AA96,DATA!$B$3:$E$6,2,0) -> 06:30:00 | C96: =VLOOKUP($AA96,DATA!$B$3:$E$6,3,0) -> 14:30:00 | D96: =VLOOKUP($AA96,DATA!$B$3:$E$6,4,0) -> 0.03125 | E96: 0.3020833333 | F96: 0.1493055556 | G96: =DATA!$C$9 -> 0.89 | H96: =DATA!$C$10 -> 64 | I96: 1 | J96: 201.5625 | K96: 407.8125 | L96: 0.125 | M96: 168.75 | N96: 0.4137931034 | O96: 0.02777777778 | P96: 37.5 | Q96: 0.09195402299 | R96: 251.7333333 | S96: 231 | V96: 231 | X96: =X100 -> 5 | Y96: =Y93+1 -> 2018-01-31 | Z96: =TEXT(Y96,"ddd") -> wo | AA96: DD | AB96: =IFERROR(HLOOKUP(Y96,[1]DATA!$A$1:$NB$5,3,0),"") -> D3 | AC96: 180 | AD96: 40 | AE96: 5 | AF96: 236 | AG96: 3 | AH96: 1.3125 | AI96: 0.5298924731 | AJ96: 0.9882229783
A97: 5woMD | B97: =VLOOKUP($AA97,DATA!$B$3:$E$6,2,0) -> 14:30:00 | C97: =VLOOKUP($AA97,DATA!$B$3:$E$6,3,0) -> 22:30:00 | D97: =VLOOKUP($AA97,DATA!$B$3:$E$6,4,0) -> 0.03125 | E97: 0.3020833333 | F97: 0.1375 | G97: =DATA!$C$9 -> 0.89 | H97: =DATA!$C$10 -> 64 | I97: 1 | J97: 185.625 | K97: 407.8125 | L97: 0.02569444444 | M97: 34.6875 | N97: 0.08505747126 | O97: 0.1388888889 | P97: 187.5 | Q97: 0.4597701149 | R97: 236.8 | S97: 207 | U97: 207 | X97: =X100 -> 5 | Z97: =TEXT(Y96,"ddd") -> wo | AA97: MD | AB97: =IFERROR(HLOOKUP(Y96,[1]DATA!$A$1:$NB$5,4,0),"") -> D2 | AC97: 37 | AD97: 200 | AE97: 15 | AF97: 222 | AG97: 4 | AH97: -6.75 | AI97: 0.4748387097 | AJ97: 0.9833887043
A98: 5woND | B98: =VLOOKUP($AA98,DATA!$B$3:$E$6,2,0) -> 22:30:00 | C98: =VLOOKUP($AA98,DATA!$B$3:$E$6,3,0) -> 06:30:00 | D98: =VLOOKUP($AA98,DATA!$B$3:$E$6,4,0) -> 0.03125 | E98: 0.3020833333 | F98: 0.3020833333 | G98: =DATA!$C$9 -> 0.89 | H98: =DATA!$C$10 -> 64 | I98: 1 | J98: 407.8125 | K98: 407.8125 | L98: 0 | O98: 0 | R98: 0 | X98: =X100 -> 5 | Z98: =TEXT(Y96,"ddd") -> wo | AA98: ND | AB98: =IFERROR(HLOOKUP(Y96,[1]DATA!$A$1:$NB$5,5,0),"") -> D1 | AG98: 0
A99: 5doDD | B99: =VLOOKUP($AA99,DATA!$B$3:$E$6,2,0) -> 06:30:00 | C99: =VLOOKUP($AA99,DATA!$B$3:$E$6,3,0) -> 14:30:00 | D99: =VLOOKUP($AA99,DATA!$B$3:$E$6,4,0) -> 0.03125 | E99: 0.3020833333 | F99: 0.2125 | G99: =DATA!$C$9 -> 0.89 | H99: =DATA!$C$10 -> 64 | I99: 1 | J99: 286.875 | K99: 407.8125 | L99: 0.08958333333 | M99: 120.9375 | N99: 0.2965517241 | O99: 0 | R99: 294.4 | S99: 273 | V99: 273 | X99: =X100 -> 5 | Y99: =Y96+1 -> 2018-02-01 | Z99: =TEXT(Y99,"ddd") -> do | AA99: DD | AB99: =IFERROR(HLOOKUP(Y99,[1]DATA!$A$1:$NB$5,3,0),"") -> D3 | AC99: 129 | AE99: 3 | AF99: 276 | AG99: 9 | AH99: -42 | AI99: 0.6262365591 | AJ99: 0.9703361898
A100: 5doMD | B100: =VLOOKUP($AA100,DATA!$B$3:$E$6,2,0) -> 14:30:00 | C100: =VLOOKUP($AA100,DATA!$B$3:$E$6,3,0) -> 22:30:00 | D100: =VLOOKUP($AA100,DATA!$B$3:$E$6,4,0) -> 0.03125 | E100: 0.3020833333 | F100: 0.2611111111 | G100: =DATA!$C$9 -> 0.89 | H100: =DATA!$C$10 -> 64 | I100: 1 | J100: 352.5 | K100: 407.8125 | L100: 0.04097222222 | M100: 55.3125 | N100: 0.1356321839 | O100: 0 | R100: 334.9333333 | S100: 283 | U100: 283 | X100: =WEEKNUM($Y90) -> 5 | Z100: =TEXT(Y99,"ddd") -> do | AA100: MD | AB100: =IFERROR(HLOOKUP(Y99,[1]DATA!$A$1:$NB$5,4,0),"") -> D2 | AC100: 59 | AE100: 31 | AF100: 314 | AG100: 61 | AH100: -97.625 | AI100: 0.6491756272 | AJ100: 0.8459336589
A101: 5doND | B101: =VLOOKUP($AA101,DATA!$B$3:$E$6,2,0) -> 22:30:00 | C101: =VLOOKUP($AA101,DATA!$B$3:$E$6,3,0) -> 06:30:00 | D101: =VLOOKUP($AA101,DATA!$B$3:$E$6,4,0) -> 0.03125 | E101: 0.3020833333 | F101: 0.3020833333 | G101: =DATA!$C$9 -> 0.89 | H101: =DATA!$C$10 -> 64 | I101: 1 | J101: 407.8125 | K101: 407.8125 | L101: 0 | O101: 0 | R101: 0 | X101: =X100 -> 5 | Z101: =TEXT(Y99,"ddd") -> do | AA101: ND | AB101: =IFERROR(HLOOKUP(Y99,[1]DATA!$A$1:$NB$5,5,0),"") -> D1 | AG101: 0
A102: 5vrDD | B102: =VLOOKUP($AA102,DATA!$B$3:$E$6,2,0) -> 06:30:00 | C102: =VLOOKUP($AA102,DATA!$B$3:$E$6,3,0) -> 14:30:00 | D102: =VLOOKUP($AA102,DATA!$B$3:$E$6,4,0) -> 0.03125 | E102: 0.3020833333 | F102: 0.2111111111 | G102: =DATA!$C$9 -> 0.89 | H102: =DATA!$C$10 -> 64 | I102: 1 | J102: 285 | K102: 407.8125 | L102: 0.09097222222 | M102: 122.8125 | N102: 0.3011494253 | O102: 0 | R102: 318.9333333 | S102: 295 | V102: 295 | X102: =X100 -> 5 | Y102: =Y99+1 -> 2018-02-02 | Z102: =TEXT(Y102,"ddd") -> vr | AA102: DD | AB102: =IFERROR(HLOOKUP(Y102,[1]DATA!$A$1:$NB$5,3,0),"") -> D3 | AC102: 131 | AE102: 4 | AF102: 299 | AG102: 8 | AH102: -18.125 | AI102: 0.676702509 | AJ102: 0.9755301794
A103: 5vrMD | B103: =VLOOKUP($AA103,DATA!$B$3:$E$6,2,0) -> 14:30:00 | C103: =VLOOKUP($AA103,DATA!$B$3:$E$6,3,0) -> 22:30:00 | D103: =VLOOKUP($AA103,DATA!$B$3:$E$6,4,0) -> 0.03125 | E103: 0.3020833333 | F103: 0.2041666667 | G103: =DATA!$C$9 -> 0.89 | H103: =DATA!$C$10 -> 64 | I103: 1 | J103: 275.625 | K103: 407.8125 | L103: 0.09791666667 | M103: 132.1875 | N103: 0.324137931 | O103: 0 | R103: 362.6666667 | S103: 312 | U103: 312 | X103: =X100 -> 5 | Z103: =TEXT(Y102,"ddd") -> vr | AA103: MD | AB103: =IFERROR(HLOOKUP(Y102,[1]DATA!$A$1:$NB$5,4,0),"") -> D2 | AC103: 141 | AE103: 28 | AF103: 340 | AG103: 11 | AH103: 8.25 | AI103: 0.7156989247 | AJ103: 0.9705619982
A104: 5vrND | B104: =VLOOKUP($AA104,DATA!$B$3:$E$6,2,0) -> 22:30:00 | C104: =VLOOKUP($AA104,DATA!$B$3:$E$6,3,0) -> 06:30:00 | D104: =VLOOKUP($AA104,DATA!$B$3:$E$6,4,0) -> 0.03125 | E104: 0.3020833333 | F104: 0.3020833333 | G104: =DATA!$C$9 -> 0.89 | H104: =DATA!$C$10 -> 64 | I104: 1 | J104: 407.8125 | K104: 407.8125 | L104: 0 | O104: 0 | R104: 0 | X104: =X100 -> 5 | Z104: =TEXT(Y102,"ddd") -> vr | AA104: ND | AB104: =IFERROR(HLOOKUP(Y102,[1]DATA!$A$1:$NB$5,5,0),"") -> - | AG104: 0
A105: 5zaDD | B105: =VLOOKUP($AA105,DATA!$B$3:$E$6,2,0) -> 06:30:00 | C105: =VLOOKUP($AA105,DATA!$B$3:$E$6,3,0) -> 14:30:00 | D105: =VLOOKUP($AA105,DATA!$B$3:$E$6,4,0) -> 0.03125 | E105: 0.3020833333 | F105: 0.3020833333 | G105: =DATA!$C$9 -> 0.89 | H105: =DATA!$C$10 -> 64 | I105: 1 | J105: 407.8125 | K105: 407.8125 | L105: 0 | O105: 0 | R105: 0 | X105: =X100 -> 5 | Y105: =Y102+1 -> 2018-02-03 | Z105: =TEXT(Y105,"ddd") -> za | AA105: DD | AB105: =IFERROR(HLOOKUP(Y105,[1]DATA!$A$1:$NB$5,3,0),"") -> - | AG105: 0
A106: 5zaMD | B106: =VLOOKUP($AA106,DATA!$B$3:$E$6,2,0) -> 14:30:00 | C106: =VLOOKUP($AA106,DATA!$B$3:$E$6,3,0) -> 22:30:00 | D106: =VLOOKUP($AA106,DATA!$B$3:$E$6,4,0) -> 0.03125 | E106: 0.3020833333 | F106: 0.3020833333 | G106: =DATA!$C$9 -> 0.89 | H106: =DATA!$C$10 -> 64 | I106: 1 | J106: 407.8125 | K106: 407.8125 | L106: 0 | O106: 0 | R106: 0 | X106: =X100 -> 5 | Z106: =TEXT(Y105,"ddd") -> za | AA106: MD | AB106: =IFERROR(HLOOKUP(Y105,[1]DATA!$A$1:$NB$5,4,0),"") -> - | AG106: 0
A107: 5zaND | B107: =VLOOKUP($AA107,DATA!$B$3:$E$6,2,0) -> 22:30:00 | C107: =VLOOKUP($AA107,DATA!$B$3:$E$6,3,0) -> 06:30:00 | D107: =VLOOKUP($AA107,DATA!$B$3:$E$6,4,0) -> 0.03125 | E107: 0.3020833333 | F107: 0.3020833333 | G107: =DATA!$C$9 -> 0.89 | H107: =DATA!$C$10 -> 64 | I107: 1 | J107: 407.8125 | K107: 407.8125 | L107: 0 | O107: 0 | R107: 0 | X107: =X100 -> 5 | Z107: =TEXT(Y105,"ddd") -> za | AA107: ND | AB107: =IFERROR(HLOOKUP(Y105,[1]DATA!$A$1:$NB$5,5,0),"") -> - | AG107: 0
A108: 5zoDD | B108: =VLOOKUP($AA108,DATA!$B$3:$E$6,2,0) -> 06:30:00 | C108: =VLOOKUP($AA108,DATA!$B$3:$E$6,3,0) -> 14:30:00 | D108: =VLOOKUP($AA108,DATA!$B$3:$E$6,4,0) -> 0.03125 | E108: 0.3020833333 | F108: 0.3020833333 | G108: =DATA!$C$9 -> 0.89 | H108: =DATA!$C$10 -> 64 | I108: 1 | J108: 407.8125 | K108: 407.8125 | L108: 0 | O108: 0 | R108: 0 | X108: =X100 -> 5 | Y108: =Y105+1 -> 2018-02-04 | Z108: =TEXT(Y108,"ddd") -> zo | AA108: DD | AB108: =IFERROR(HLOOKUP(Y108,[1]DATA!$A$1:$NB$5,3,0),"") -> - | AG108: 0
A109: 5zoMD | B109: =VLOOKUP($AA109,DATA!$B$3:$E$6,2,0) -> 14:30:00 | C109: =VLOOKUP($AA109,DATA!$B$3:$E$6,3,0) -> 22:30:00 | D109: =VLOOKUP($AA109,DATA!$B$3:$E$6,4,0) -> 0.03125 | E109: 0.3020833333 | F109: 0.3020833333 | G109: =DATA!$C$9 -> 0.89 | H109: =DATA!$C$10 -> 64 | I109: 1 | J109: 407.8125 | K109: 407.8125 | L109: 0 | O109: 0 | R109: 0 | X109: =X100 -> 5 | Z109: =TEXT(Y108,"ddd") -> zo | AA109: MD | AB109: =IFERROR(HLOOKUP(Y108,[1]DATA!$A$1:$NB$5,4,0),"") -> - | AG109: 0
A110: 5zoZND | B110: =VLOOKUP($AA110,DATA!$B$3:$E$6,2,0) -> 00:00:00 | C110: =VLOOKUP($AA110,DATA!$B$3:$E$6,3,0) -> 00:00:00 | D110: =VLOOKUP($AA110,DATA!$B$3:$E$6,4,0) -> 0.03125 | E110: -0.03125 | F110: -0.03125 | G110: =DATA!$C$9 -> 0.89 | H110: =DATA!$C$10 -> 64 | I110: 1 | J110: -42.1875 | K110: -42.1875 | L110: 0 | O110: 0 | R110: 0 | X110: =X100 -> 5 | Z110: =TEXT(Y108,"ddd") -> zo | AA110: ZND | AB110: =IFERROR(HLOOKUP(Y108,[1]DATA!$A$1:$NB$5,5,0),"") -> D3 | AG110: 0
A111: 6maDD | B111: =VLOOKUP($AA111,DATA!$B$3:$E$6,2,0) -> 06:30:00 | C111: =VLOOKUP($AA111,DATA!$B$3:$E$6,3,0) -> 14:30:00 | D111: =VLOOKUP($AA111,DATA!$B$3:$E$6,4,0) -> 0.03125 | E111: 0.3020833333 | F111: 0.2034722222 | G111: =DATA!$C$9 -> 0.89 | H111: =DATA!$C$10 -> 64 | I111: 1 | J111: 274.6875 | K111: 407.8125 | L111: 0.09861111111 | M111: 133.125 | N111: 0.3264367816 | O111: =TIME(INT($AD111/60),INT(MOD($AD111,60)/1),0) -> 0 | R111: 308.2666667 | S111: 273 | U111: 273 | X111: =X121 -> 6 | Y111: =Y108+1 -> 2018-02-05 | Z111: =TEXT(Y111,"ddd") -> ma | AA111: DD | AB111: =IFERROR(HLOOKUP(Y111,[1]DATA!$A$1:$NB$5,3,0),"") -> D2 | AC111: 142 | AE111: 16 | AF111: 289 | AG111: 16 | AH111: -29.8125 | AI111: 0.6262365591 | AJ111: 0.9506578947 | AK111: 4359.375 | AL111: 3043 | AM111: 0.6980358423 | AN111: 1128.75 | AO111: 0.2589247312 | AP111: 0 | AQ111: 0 | AR111: 0.9363330736 | AS111: 0.8943864395 | AT111: 0.9782797077 | AV111: 187.625 | AW111: 0.04303942652 | AX111: 200.1333333 | AY111: 269
A112: =X112&Z112&AA112 -> 6maMD | B112: =VLOOKUP($AA112,DATA!$B$3:$E$6,2,0) -> 14:30:00 | C112: =VLOOKUP($AA112,DATA!$B$3:$E$6,3,0) -> 22:30:00 | D112: =VLOOKUP($AA112,DATA!$B$3:$E$6,4,0) -> 0.03125 | E112: 0.3020833333 | F112: 0.2090277778 | G112: =DATA!$C$9 -> 0.89 | H112: =DATA!$C$10 -> 64 | I112: 1 | J112: 282.1875 | K112: 407.8125 | L112: 0.09305555556 | M112: 125.625 | N112: 0.308045977 | O112: =TIME(INT(AD112/60),INT(MOD(AD112,60)/1),0) -> 0 | P112: =IF($O112*86400/$H112=0,"",$O112*86400/$H112) ->  | R112: 363.7333333 | S112: 325 | T112: 325 | X112: =X121 -> 6 | Z112: =TEXT(Y111,"ddd") -> ma | AA112: MD | AB112: =IFERROR(HLOOKUP(Y111,[1]DATA!$A$1:$NB$5,4,0),"") -> D1 | AC112: 134 | AE112: 16 | AF112: 341 | AG112: 0 | AH112: 14.6875 | AI112: 0.7455197133 | AJ112: 1
A113: 6maND | B113: =VLOOKUP($AA113,DATA!$B$3:$E$6,2,0) -> 22:30:00 | C113: =VLOOKUP($AA113,DATA!$B$3:$E$6,3,0) -> 06:30:00 | D113: =VLOOKUP($AA113,DATA!$B$3:$E$6,4,0) -> 0.03125 | E113: 0.3020833333 | F113: 0.3020833333 | G113: =DATA!$C$9 -> 0.89 | H113: =DATA!$C$10 -> 64 | I113: 1 | J113: 407.8125 | K113: 407.8125 | L113: 0 | O113: 0 | R113: 0 | X113: =X121 -> 6 | Z113: =TEXT(Y111,"ddd") -> ma | AA113: ND | AB113: =IFERROR(HLOOKUP(Y111,[1]DATA!$A$1:$NB$5,5,0),"") -> D3 | AG113: 0
A114: 6diDD | B114: =VLOOKUP($AA114,DATA!$B$3:$E$6,2,0) -> 06:30:00 | C114: =VLOOKUP($AA114,DATA!$B$3:$E$6,3,0) -> 14:30:00 | D114: =VLOOKUP($AA114,DATA!$B$3:$E$6,4,0) -> 0.03125 | E114: 0.3020833333 | F114: 0.2666666667 | G114: =DATA!$C$9 -> 0.89 | H114: =DATA!$C$10 -> 64 | I114: 1 | J114: 360 | K114: 407.8125 | L114: 0.03541666667 | M114: 47.8125 | N114: 0.1172413793 | O114: 0 | R114: 349.8666667 | S114: 316 | U114: 316 | X114: =X121 -> 6 | Y114: =Y111+1 -> 2018-02-06 | Z114: =TEXT(Y114,"ddd") -> di | AA114: DD | AB114: =IFERROR(HLOOKUP(Y114,[1]DATA!$A$1:$NB$5,3,0),"") -> D2 | AC114: 51 | AE114: 12 | AF114: 328 | AG114: 6 | AH114: -72.125 | AI114: 0.724874552 | AJ114: 0.9831397527
A115: 6diMD | B115: =VLOOKUP($AA115,DATA!$B$3:$E$6,2,0) -> 14:30:00 | C115: =VLOOKUP($AA115,DATA!$B$3:$E$6,3,0) -> 22:30:00 | D115: =VLOOKUP($AA115,DATA!$B$3:$E$6,4,0) -> 0.03125 | E115: 0.3020833333 | F115: 0.2548611111 | G115: =DATA!$C$9 -> 0.89 | H115: =DATA!$C$10 -> 64 | I115: 1 | J115: 344.0625 | K115: 407.8125 | L115: 0.04722222222 | M115: 63.75 | N115: 0.1563218391 | O115: 0 | R115: 218.6666667 | S115: 200 | T115: 200 | X115: =X121 -> 6 | Z115: =TEXT(Y114,"ddd") -> di | AA115: MD | AB115: =IFERROR(HLOOKUP(Y114,[1]DATA!$A$1:$NB$5,4,0),"") -> D1 | AC115: 68 | AE115: 5 | AF115: 205 | AG115: 220 | AH115: -172.1875 | AI115: 0.458781362 | AJ115: 0.4984802432
A116: 6diND | B116: =VLOOKUP($AA116,DATA!$B$3:$E$6,2,0) -> 22:30:00 | C116: =VLOOKUP($AA116,DATA!$B$3:$E$6,3,0) -> 06:30:00 | D116: =VLOOKUP($AA116,DATA!$B$3:$E$6,4,0) -> 0.03125 | E116: 0.3020833333 | F116: 0.3020833333 | G116: =DATA!$C$9 -> 0.89 | H116: =DATA!$C$10 -> 64 | I116: 1 | J116: 407.8125 | K116: 407.8125 | L116: 0 | O116: 0 | R116: 0 | X116: =X121 -> 6 | Z116: =TEXT(Y114,"ddd") -> di | AA116: ND | AB116: =IFERROR(HLOOKUP(Y114,[1]DATA!$A$1:$NB$5,5,0),"") -> D3 | AG116: 0
A117: 6woDD | B117: =VLOOKUP($AA117,DATA!$B$3:$E$6,2,0) -> 06:30:00 | C117: =VLOOKUP($AA117,DATA!$B$3:$E$6,3,0) -> 14:30:00 | D117: =VLOOKUP($AA117,DATA!$B$3:$E$6,4,0) -> 0.03125 | E117: 0.3020833333 | F117: 0.1944444444 | G117: =DATA!$C$9 -> 0.89 | H117: =DATA!$C$10 -> 64 | I117: 1 | J117: 262.5 | K117: 407.8125 | L117: 0.1076388889 | M117: 145.3125 | N117: 0.3563218391 | O117: 0 | R117: 389.3333333 | S117: 335 | U117: 335 | X117: =X121 -> 6 | Y117: =Y114+1 -> 2018-02-07 | Z117: =TEXT(Y117,"ddd") -> wo | AA117: DD | AB117: =IFERROR(HLOOKUP(Y117,[1]DATA!$A$1:$NB$5,3,0),"") -> D2 | AC117: 155 | AE117: 30 | AF117: 365 | AG117: 14 | AH117: 44.375 | AI117: 0.7684587814 | AJ117: 0.9652892562
A118: 6woMD | B118: =VLOOKUP($AA118,DATA!$B$3:$E$6,2,0) -> 14:30:00 | C118: =VLOOKUP($AA118,DATA!$B$3:$E$6,3,0) -> 22:30:00 | D118: =VLOOKUP($AA118,DATA!$B$3:$E$6,4,0) -> 0.03125 | E118: 0.3020833333 | F118: 0.1680555556 | G118: =DATA!$C$9 -> 0.89 | H118: =DATA!$C$10 -> 64 | I118: 1 | J118: 226.875 | K118: 407.8125 | L118: 0.1340277778 | M118: 180.9375 | N118: 0.4436781609 | O118: 0 | R118: 297.6 | S118: 259 | T118: 259 | X118: =X121 -> 6 | Z118: =TEXT(Y117,"ddd") -> wo | AA118: MD | AB118: =IFERROR(HLOOKUP(Y117,[1]DATA!$A$1:$NB$5,4,0),"") -> D1 | AC118: 193 | AE118: 20 | AF118: 279 | AG118: 0 | AH118: 4 | AI118: 0.5941218638 | AJ118: 1
A119: 6woND | B119: =VLOOKUP($AA119,DATA!$B$3:$E$6,2,0) -> 22:30:00 | C119: =VLOOKUP($AA119,DATA!$B$3:$E$6,3,0) -> 06:30:00 | D119: =VLOOKUP($AA119,DATA!$B$3:$E$6,4,0) -> 0.03125 | E119: 0.3020833333 | F119: 0.3020833333 | G119: =DATA!$C$9 -> 0.89 | H119: =DATA!$C$10 -> 64 | I119: 1 | J119: 407.8125 | K119: 407.8125 | L119: 0 | O119: 0 | R119: 0 | X119: =X121 -> 6 | Z119: =TEXT(Y117,"ddd") -> wo | AA119: ND | AB119: =IFERROR(HLOOKUP(Y117,[1]DATA!$A$1:$NB$5,5,0),"") -> D3 | AG119: 0
A120: 6doDD | B120: =VLOOKUP($AA120,DATA!$B$3:$E$6,2,0) -> 06:30:00 | C120: =VLOOKUP($AA120,DATA!$B$3:$E$6,3,0) -> 14:30:00 | D120: =VLOOKUP($AA120,DATA!$B$3:$E$6,4,0) -> 0.03125 | E120: 0.3020833333 | F120: 0.2173611111 | G120: =DATA!$C$9 -> 0.89 | H120: =DATA!$C$10 -> 64 | I120: 1 | J120: 293.4375 | K120: 407.8125 | L120: 0.08472222222 | M120: 114.375 | N120: 0.2804597701 | O120: 0 | R120: 371.2 | S120: 332 | U120: 332 | X120: =X121 -> 6 | Y120: =Y117+1 -> 2018-02-08 | Z120: =TEXT(Y120,"ddd") -> do | AA120: DD | AB120: =IFERROR(HLOOKUP(Y120,[1]DATA!$A$1:$NB$5,3,0),"") -> D2 | AC120: 122 | AE120: 16 | AF120: 348 | AG120: 0 | AH120: 10.4375 | AI120: 0.7615770609 | AJ120: 1
A121: 6doMD | B121: =VLOOKUP($AA121,DATA!$B$3:$E$6,2,0) -> 14:30:00 | C121: =VLOOKUP($AA121,DATA!$B$3:$E$6,3,0) -> 22:30:00 | D121: =VLOOKUP($AA121,DATA!$B$3:$E$6,4,0) -> 0.03125 | E121: 0.3020833333 | F121: 0.1888888889 | G121: =DATA!$C$9 -> 0.89 | H121: =DATA!$C$10 -> 64 | I121: 1 | J121: 255 | K121: 407.8125 | L121: 0.1131944444 | M121: 152.8125 | N121: 0.3747126437 | O121: 0 | R121: 357.3333333 | S121: 314 | T121: 314 | X121: =WEEKNUM($Y111) -> 6 | Z121: =TEXT(Y120,"ddd") -> do | AA121: MD | AB121: =IFERROR(HLOOKUP(Y120,[1]DATA!$A$1:$NB$5,4,0),"") -> D1 | AC121: 163 | AE121: 21 | AF121: 335 | AG121: 5 | AH121: 30.875 | AI121: 0.7202867384 | AJ121: 0.986200552
A122: 6doND | B122: =VLOOKUP($AA122,DATA!$B$3:$E$6,2,0) -> 22:30:00 | C122: =VLOOKUP($AA122,DATA!$B$3:$E$6,3,0) -> 06:30:00 | D122: =VLOOKUP($AA122,DATA!$B$3:$E$6,4,0) -> 0.03125 | E122: 0.3020833333 | F122: 0.3020833333 | G122: =DATA!$C$9 -> 0.89 | H122: =DATA!$C$10 -> 64 | I122: 1 | J122: 407.8125 | K122: 407.8125 | L122: 0 | O122: 0 | R122: 0 | X122: =X121 -> 6 | Z122: =TEXT(Y120,"ddd") -> do | AA122: ND | AB122: =IFERROR(HLOOKUP(Y120,[1]DATA!$A$1:$NB$5,5,0),"") -> D3 | AG122: 0
A123: 6vrDD | B123: =VLOOKUP($AA123,DATA!$B$3:$E$6,2,0) -> 06:30:00 | C123: =VLOOKUP($AA123,DATA!$B$3:$E$6,3,0) -> 14:30:00 | D123: =VLOOKUP($AA123,DATA!$B$3:$E$6,4,0) -> 0.03125 | E123: 0.3020833333 | F123: 0.25625 | G123: =DATA!$C$9 -> 0.89 | H123: =DATA!$C$10 -> 64 | I123: 1 | J123: 345.9375 | K123: 407.8125 | L123: 0.04583333333 | M123: 61.875 | N123: 0.1517241379 | O123: 0 | R123: 387.2 | S123: 338 | U123: 338 | X123: =X121 -> 6 | Y123: =Y120+1 -> 2018-02-09 | Z123: =TEXT(Y123,"ddd") -> vr | AA123: DD | AB123: =IFERROR(HLOOKUP(Y123,[1]DATA!$A$1:$NB$5,3,0),"") -> D2 | AC123: 66 | AE123: 25 | AF123: 363 | AG123: 3 | AH123: -36.0625 | AI123: 0.7753405018 | AJ123: 0.9923116351
A124: 6vrMD | B124: =VLOOKUP($AA124,DATA!$B$3:$E$6,2,0) -> 14:30:00 | C124: =VLOOKUP($AA124,DATA!$B$3:$E$6,3,0) -> 22:30:00 | D124: =VLOOKUP($AA124,DATA!$B$3:$E$6,4,0) -> 0.03125 | E124: 0.3020833333 | F124: 0.2256944444 | G124: =DATA!$C$9 -> 0.89 | H124: =DATA!$C$10 -> 64 | I124: 1 | J124: 304.6875 | K124: 407.8125 | L124: 0.07638888889 | M124: 103.125 | N124: 0.2528735632 | O124: 0 | R124: 387.2 | S124: 351 | T124: 351 | X124: =X121 -> 6 | Z124: =TEXT(Y123,"ddd") -> vr | AA124: MD | AB124: =IFERROR(HLOOKUP(Y123,[1]DATA!$A$1:$NB$5,4,0),"") -> D1 | AC124: 110 | AE124: 12 | AF124: 363 | AG124: 5 | AH124: 18.1875 | AI124: 0.8051612903 | AJ124: 0.9872514023
A125: 6vrND | B125: =VLOOKUP($AA125,DATA!$B$3:$E$6,2,0) -> 22:30:00 | C125: =VLOOKUP($AA125,DATA!$B$3:$E$6,3,0) -> 06:30:00 | D125: =VLOOKUP($AA125,DATA!$B$3:$E$6,4,0) -> 0.03125 | E125: 0.3020833333 | F125: 0.3020833333 | G125: =DATA!$C$9 -> 0.89 | H125: =DATA!$C$10 -> 64 | I125: 1 | J125: 407.8125 | K125: 407.8125 | L125: 0 | O125: 0 | R125: 0 | X125: =X121 -> 6 | Z125: =TEXT(Y123,"ddd") -> vr | AA125: ND | AB125: =IFERROR(HLOOKUP(Y123,[1]DATA!$A$1:$NB$5,5,0),"") -> - | AG125: 0
A126: 6zaDD | B126: =VLOOKUP($AA126,DATA!$B$3:$E$6,2,0) -> 06:30:00 | C126: =VLOOKUP($AA126,DATA!$B$3:$E$6,3,0) -> 14:30:00 | D126: =VLOOKUP($AA126,DATA!$B$3:$E$6,4,0) -> 0.03125 | E126: 0.3020833333 | F126: 0.3020833333 | G126: =DATA!$C$9 -> 0.89 | H126: =DATA!$C$10 -> 64 | I126: 1 | J126: 407.8125 | K126: 407.8125 | L126: 0 | O126: 0 | R126: 0 | X126: =X121 -> 6 | Y126: =Y123+1 -> 2018-02-10 | Z126: =TEXT(Y126,"ddd") -> za | AA126: DD | AB126: =IFERROR(HLOOKUP(Y126,[1]DATA!$A$1:$NB$5,3,0),"") -> - | AG126: 0
A127: 6zaMD | B127: =VLOOKUP($AA127,DATA!$B$3:$E$6,2,0) -> 14:30:00 | C127: =VLOOKUP($AA127,DATA!$B$3:$E$6,3,0) -> 22:30:00 | D127: =VLOOKUP($AA127,DATA!$B$3:$E$6,4,0) -> 0.03125 | E127: 0.3020833333 | F127: 0.3020833333 | G127: =DATA!$C$9 -> 0.89 | H127: =DATA!$C$10 -> 64 | I127: 1 | J127: 407.8125 | K127: 407.8125 | L127: 0 | O127: 0 | R127: 0 | X127: =X121 -> 6 | Z127: =TEXT(Y126,"ddd") -> za | AA127: MD | AB127: =IFERROR(HLOOKUP(Y126,[1]DATA!$A$1:$NB$5,4,0),"") -> - | AG127: 0
A128: 6zaND | B128: =VLOOKUP($AA128,DATA!$B$3:$E$6,2,0) -> 22:30:00 | C128: =VLOOKUP($AA128,DATA!$B$3:$E$6,3,0) -> 06:30:00 | D128: =VLOOKUP($AA128,DATA!$B$3:$E$6,4,0) -> 0.03125 | E128: 0.3020833333 | F128: 0.3020833333 | G128: =DATA!$C$9 -> 0.89 | H128: =DATA!$C$10 -> 64 | I128: 1 | J128: 407.8125 | K128: 407.8125 | L128: 0 | O128: 0 | R128: 0 | X128: =X121 -> 6 | Z128: =TEXT(Y126,"ddd") -> za | AA128: ND | AB128: =IFERROR(HLOOKUP(Y126,[1]DATA!$A$1:$NB$5,5,0),"") -> - | AG128: 0
A129: 6zoDD | B129: =VLOOKUP($AA129,DATA!$B$3:$E$6,2,0) -> 06:30:00 | C129: =VLOOKUP($AA129,DATA!$B$3:$E$6,3,0) -> 14:30:00 | D129: =VLOOKUP($AA129,DATA!$B$3:$E$6,4,0) -> 0.03125 | E129: 0.3020833333 | F129: 0.3020833333 | G129: =DATA!$C$9 -> 0.89 | H129: =DATA!$C$10 -> 64 | I129: 1 | J129: 407.8125 | K129: 407.8125 | L129: 0 | O129: 0 | R129: 0 | X129: =X121 -> 6 | Y129: =Y126+1 -> 2018-02-11 | Z129: =TEXT(Y129,"ddd") -> zo | AA129: DD | AB129: =IFERROR(HLOOKUP(Y129,[1]DATA!$A$1:$NB$5,3,0),"") -> - | AG129: 0
A130: 6zoMD | B130: =VLOOKUP($AA130,DATA!$B$3:$E$6,2,0) -> 14:30:00 | C130: =VLOOKUP($AA130,DATA!$B$3:$E$6,3,0) -> 22:30:00 | D130: =VLOOKUP($AA130,DATA!$B$3:$E$6,4,0) -> 0.03125 | E130: 0.3020833333 | F130: 0.3020833333 | G130: =DATA!$C$9 -> 0.89 | H130: =DATA!$C$10 -> 64 | I130: 1 | J130: 407.8125 | K130: 407.8125 | L130: 0 | O130: 0 | R130: 0 | X130: =X121 -> 6 | Z130: =TEXT(Y129,"ddd") -> zo | AA130: MD | AB130: =IFERROR(HLOOKUP(Y129,[1]DATA!$A$1:$NB$5,4,0),"") -> - | AG130: 0
A131: 6zoZND | B131: =VLOOKUP($AA131,DATA!$B$3:$E$6,2,0) -> 00:00:00 | C131: =VLOOKUP($AA131,DATA!$B$3:$E$6,3,0) -> 00:00:00 | D131: =VLOOKUP($AA131,DATA!$B$3:$E$6,4,0) -> 0.03125 | E131: -0.03125 | F131: -0.03125 | G131: =DATA!$C$9 -> 0.89 | H131: =DATA!$C$10 -> 64 | I131: 1 | J131: -42.1875 | K131: -42.1875 | L131: 0 | O131: 0 | R131: 0 | X131: =X121 -> 6 | Z131: =TEXT(Y129,"ddd") -> zo | AA131: ZND | AB131: =IFERROR(HLOOKUP(Y129,[1]DATA!$A$1:$NB$5,5,0),"") -> D2 | AG131: 0
A132: 7maDD | B132: =VLOOKUP($AA132,DATA!$B$3:$E$6,2,0) -> 06:30:00 | C132: =VLOOKUP($AA132,DATA!$B$3:$E$6,3,0) -> 14:30:00 | D132: =VLOOKUP($AA132,DATA!$B$3:$E$6,4,0) -> 0.03125 | E132: 0.3020833333 | F132: 0.3020833333 | G132: =DATA!$C$9 -> 0.89 | H132: =DATA!$C$10 -> 64 | I132: 1 | J132: 407.8125 | K132: 407.8125 | L132: 0 | O132: =TIME(INT($AD132/60),INT(MOD($AD132,60)/1),0) -> 0 | R132: 0 | X132: =X142 -> 7 | Y132: =Y129+1 -> 2018-02-12 | Z132: =TEXT(Y132,"ddd") -> ma | AA132: DD | AB132: =IFERROR(HLOOKUP(Y132,[1]DATA!$A$1:$NB$5,3,0),"") -> D1 | AG132: 0 | AK132: 3487.5 | AL132: 2447 | AM132: 0.7016487455 | AN132: 1035.9375 | AO132: 0.2970430108 | AP132: 0 | AQ132: 0 | AR132: 0.9895727754 | AS132: 0.9900143059 | AU132: 0.9891312448 | AV132: 4.5625 | AW132: 0.001308243728 | AX132: 4.866666667 | AY132: 29
A133: 7maMD | B133: =VLOOKUP($AA133,DATA!$B$3:$E$6,2,0) -> 14:30:00 | C133: =VLOOKUP($AA133,DATA!$B$3:$E$6,3,0) -> 22:30:00 | D133: =VLOOKUP($AA133,DATA!$B$3:$E$6,4,0) -> 0.03125 | E133: 0.3020833333 | F133: 0.3020833333 | G133: =DATA!$C$9 -> 0.89 | H133: =DATA!$C$10 -> 64 | I133: 1 | J133: 407.8125 | K133: 407.8125 | L133: 0 | O133: =TIME(INT(AD133/60),INT(MOD(AD133,60)/1),0) -> 0 | R133: 0 | X133: =X142 -> 7 | Z133: =TEXT(Y132,"ddd") -> ma | AA133: MD | AB133: =IFERROR(HLOOKUP(Y132,[1]DATA!$A$1:$NB$5,4,0),"") -> D3 | AG133: 0
A134: 7maND | B134: =VLOOKUP($AA134,DATA!$B$3:$E$6,2,0) -> 22:30:00 | C134: =VLOOKUP($AA134,DATA!$B$3:$E$6,3,0) -> 06:30:00 | D134: =VLOOKUP($AA134,DATA!$B$3:$E$6,4,0) -> 0.03125 | E134: 0.3020833333 | F134: 0.3020833333 | G134: =DATA!$C$9 -> 0.89 | H134: =DATA!$C$10 -> 64 | I134: 1 | J134: =F134*86400/H134*I134 -> 407.8125 | K134: =E134*86400/H134 -> 407.8125 | L134: 0 | O134: 0 | R134: =AF134*AG$2 -> 0 | S134: =IF(AF134-AE134=0,"",AF134-AE134) ->  | X134: =X142 -> 7 | Z134: =TEXT(Y132,"ddd") -> ma | AA134: ND | AB134: =IFERROR(HLOOKUP(Y132,[1]DATA!$A$1:$NB$5,5,0),"") -> D2 | AG134: 0
A135: 7diDD | B135: =VLOOKUP($AA135,DATA!$B$3:$E$6,2,0) -> 06:30:00 | C135: =VLOOKUP($AA135,DATA!$B$3:$E$6,3,0) -> 14:30:00 | D135: =VLOOKUP($AA135,DATA!$B$3:$E$6,4,0) -> 0.03125 | E135: 0.3020833333 | F135: 0.1951388889 | G135: =DATA!$C$9 -> 0.89 | H135: =DATA!$C$10 -> 64 | I135: 1 | J135: 263.4375 | K135: 407.8125 | L135: =TIME(INT($AC135/60),INT(MOD($AC135,60)/1),0) -> 0.1069444444 | M135: =IF($L135*86400/$H135=0,"",$L135*86400/$H135) -> 144.375 | N135: =IFERROR($M135/$K135,"") -> 0.3540229885 | O135: 0 | Q135: =IFERROR($P135/$K135,"") ->  | R135: 321.0666667 | S135: 277 | T135: =IF(IF($AB135="D1",$S135,"")=0,"",IF($AB135="D1",$S135,"")) -> 277 | U135: =IF(IF($AB135="D2",$S135,"")=0,"",IF($AB135="D2",$S135,"")) ->  | V135: =IF(IF($AB135="D3",$S135,"")=0,"",IF($AB135="D3",$S135,"")) ->  | X135: =X142 -> 7 | Y135: =Y132+1 -> 2018-02-13 | Z135: =TEXT(Y135,"ddd") -> di | AA135: DD | AB135: =IFERROR(HLOOKUP(Y135,[1]DATA!$A$1:$NB$5,3,0),"") -> D1 | AC135: 154 | AE135: 24 | AF135: 301 | AG135: 5 | AH135: -14.5625 | AI135: 0.6354121864 | AJ135: 0.9846657125
A136: 7diMD | B136: =VLOOKUP($AA136,DATA!$B$3:$E$6,2,0) -> 14:30:00 | C136: =VLOOKUP($AA136,DATA!$B$3:$E$6,3,0) -> 22:30:00 | D136: =VLOOKUP($AA136,DATA!$B$3:$E$6,4,0) -> 0.03125 | E136: 0.3020833333 | F136: 0.2652777778 | G136: =DATA!$C$9 -> 0.89 | H136: =DATA!$C$10 -> 64 | I136: 1 | J136: 358.125 | K136: 407.8125 | L136: 0.03680555556 | M136: 49.6875 | N136: 0.1218390805 | O136: 0 | R136: 404.2666667 | S136: 361 | V136: 361 | X136: =X142 -> 7 | Z136: =TEXT(Y135,"ddd") -> di | AA136: MD | AB136: =IFERROR(HLOOKUP(Y135,[1]DATA!$A$1:$NB$5,4,0),"") -> D3 | AC136: 53 | AE136: 18 | AF136: 379 | AG136: 0 | AH136: -25.25 | AI136: 0.8281003584 | AJ136: 1
A137: 7diND | B137: =VLOOKUP($AA137,DATA!$B$3:$E$6,2,0) -> 22:30:00 | C137: =VLOOKUP($AA137,DATA!$B$3:$E$6,3,0) -> 06:30:00 | D137: =VLOOKUP($AA137,DATA!$B$3:$E$6,4,0) -> 0.03125 | E137: 0.3020833333 | F137: 0.3020833333 | G137: =DATA!$C$9 -> 0.89 | H137: =DATA!$C$10 -> 64 | I137: 1 | J137: 407.8125 | K137: 407.8125 | L137: 0 | O137: 0 | R137: 0 | X137: =X142 -> 7 | Z137: =TEXT(Y135,"ddd") -> di | AA137: ND | AB137: =IFERROR(HLOOKUP(Y135,[1]DATA!$A$1:$NB$5,5,0),"") -> D2 | AG137: 0
A138: 7woDD | B138: =VLOOKUP($AA138,DATA!$B$3:$E$6,2,0) -> 06:30:00 | C138: =VLOOKUP($AA138,DATA!$B$3:$E$6,3,0) -> 14:30:00 | D138: =VLOOKUP($AA138,DATA!$B$3:$E$6,4,0) -> 0.03125 | E138: 0.3020833333 | F138: 0.2416666667 | G138: =DATA!$C$9 -> 0.89 | H138: =DATA!$C$10 -> 64 | I138: 1 | J138: 326.25 | K138: 407.8125 | L138: 0.06041666667 | M138: 81.5625 | N138: 0.2 | O138: 0 | R138: 389.3333333 | S138: 344 | T138: 344 | X138: =X142 -> 7 | Y138: =Y135+1 -> 2018-02-14 | Z138: =TEXT(Y138,"ddd") -> wo | AA138: DD | AB138: =IFERROR(HLOOKUP(Y138,[1]DATA!$A$1:$NB$5,3,0),"") -> D1 | AC138: 87 | AE138: 21 | AF138: 365 | AG138: 3 | AH138: -10.375 | AI138: 0.7891039427 | AJ138: 0.992353441
A139: 7woMD | B139: =VLOOKUP($AA139,DATA!$B$3:$E$6,2,0) -> 14:30:00 | C139: =VLOOKUP($AA139,DATA!$B$3:$E$6,3,0) -> 22:30:00 | D139: =VLOOKUP($AA139,DATA!$B$3:$E$6,4,0) -> 0.03125 | E139: 0.3020833333 | F139: 0.2159722222 | G139: =DATA!$C$9 -> 0.89 | H139: =DATA!$C$10 -> 64 | I139: 1 | J139: 291.5625 | K139: 407.8125 | L139: 0.08611111111 | M139: 116.25 | N139: 0.2850574713 | O139: 0 | R139: 349.8666667 | S139: 306 | V139: 306 | X139: =X142 -> 7 | Z139: =TEXT(Y138,"ddd") -> wo | AA139: MD | AB139: =IFERROR(HLOOKUP(Y138,[1]DATA!$A$1:$NB$5,4,0),"") -> D3 | AC139: 124 | AE139: 22 | AF139: 328 | AG139: 5 | AH139: -13.6875 | AI139: 0.7019354839 | AJ139: 0.985910201
A140: 7woND | B140: =VLOOKUP($AA140,DATA!$B$3:$E$6,2,0) -> 22:30:00 | C140: =VLOOKUP($AA140,DATA!$B$3:$E$6,3,0) -> 06:30:00 | D140: =VLOOKUP($AA140,DATA!$B$3:$E$6,4,0) -> 0.03125 | E140: 0.3020833333 | F140: 0.3020833333 | G140: =DATA!$C$9 -> 0.89 | H140: =DATA!$C$10 -> 64 | I140: 1 | J140: 407.8125 | K140: 407.8125 | L140: 0 | O140: 0 | R140: 0 | X140: =X142 -> 7 | Z140: =TEXT(Y138,"ddd") -> wo | AA140: ND | AB140: =IFERROR(HLOOKUP(Y138,[1]DATA!$A$1:$NB$5,5,0),"") -> D2 | AG140: 0
A141: 7doDD | B141: =VLOOKUP($AA141,DATA!$B$3:$E$6,2,0) -> 06:30:00 | C141: =VLOOKUP($AA141,DATA!$B$3:$E$6,3,0) -> 14:30:00 | D141: =VLOOKUP($AA141,DATA!$B$3:$E$6,4,0) -> 0.03125 | E141: 0.3020833333 | F141: 0.1972222222 | G141: =DATA!$C$9 -> 0.89 | H141: =DATA!$C$10 -> 64 | I141: 1 | J141: 266.25 | K141: 407.8125 | L141: 0.1048611111 | M141: 141.5625 | N141: 0.3471264368 | O141: 0 | R141: 347.7333333 | S141: 309 | T141: 309 | X141: =X142 -> 7 | Y141: =Y138+1 -> 2018-02-15 | Z141: =TEXT(Y141,"ddd") -> do | AA141: DD | AB141: =IFERROR(HLOOKUP(Y141,[1]DATA!$A$1:$NB$5,3,0),"") -> D1 | AC141: 151 | AE141: 17 | AF141: 326 | AG141: 6 | AH141: 14.625 | AI141: 0.7088172043 | AJ141: 0.9830380701
A142: 7doMD | B142: =VLOOKUP($AA142,DATA!$B$3:$E$6,2,0) -> 14:30:00 | C142: =VLOOKUP($AA142,DATA!$B$3:$E$6,3,0) -> 22:30:00 | D142: =VLOOKUP($AA142,DATA!$B$3:$E$6,4,0) -> 0.03125 | E142: 0.3020833333 | F142: 0.2076388889 | G142: =DATA!$C$9 -> 0.89 | H142: =DATA!$C$10 -> 64 | I142: 1 | J142: 280.3125 | K142: 407.8125 | L142: 0.09444444444 | M142: 127.5 | N142: 0.3126436782 | O142: 0 | R142: 361.6 | S142: 315 | V142: 315 | X142: =WEEKNUM($Y132) -> 7 | Z142: =TEXT(Y141,"ddd") -> do | AA142: MD | AB142: =IFERROR(HLOOKUP(Y141,[1]DATA!$A$1:$NB$5,4,0),"") -> D3 | AC142: 136 | AE142: 24 | AF142: 339 | AG142: 5 | AH142: 6.5625 | AI142: 0.7225806452 | AJ142: 0.9863611566
A143: 7doND | B143: =VLOOKUP($AA143,DATA!$B$3:$E$6,2,0) -> 22:30:00 | C143: =VLOOKUP($AA143,DATA!$B$3:$E$6,3,0) -> 06:30:00 | D143: =VLOOKUP($AA143,DATA!$B$3:$E$6,4,0) -> 0.03125 | E143: 0.3020833333 | F143: 0.3020833333 | G143: =DATA!$C$9 -> 0.89 | H143: =DATA!$C$10 -> 64 | I143: 1 | J143: 407.8125 | K143: 407.8125 | L143: 0 | O143: 0 | R143: 0 | X143: =X142 -> 7 | Z143: =TEXT(Y141,"ddd") -> do | AA143: ND | AB143: =IFERROR(HLOOKUP(Y141,[1]DATA!$A$1:$NB$5,5,0),"") -> D2 | AG143: 0
A144: 7vrDD | B144: =VLOOKUP($AA144,DATA!$B$3:$E$6,2,0) -> 06:30:00 | C144: =VLOOKUP($AA144,DATA!$B$3:$E$6,3,0) -> 14:30:00 | D144: =VLOOKUP($AA144,DATA!$B$3:$E$6,4,0) -> 0.03125 | E144: 0.3020833333 | F144: 0.1520833333 | G144: =DATA!$C$9 -> 0.89 | H144: =DATA!$C$10 -> 64 | I144: 1 | J144: 205.3125 | K144: 407.8125 | L144: 0.15 | M144: 202.5 | N144: 0.4965517241 | O144: 0 | R144: 279.4666667 | S144: 250 | T144: 250 | X144: =X142 -> 7 | Y144: =Y141+1 -> 2018-02-16 | Z144: =TEXT(Y144,"ddd") -> vr | AA144: DD | AB144: =IFERROR(HLOOKUP(Y144,[1]DATA!$A$1:$NB$5,3,0),"") -> D1 | AC144: 216 | AE144: 12 | AF144: 262 | AG144: 0 | AH144: 16.5625 | AI144: 0.5734767025 | AJ144: 1
A145: 7vrMD | B145: =VLOOKUP($AA145,DATA!$B$3:$E$6,2,0) -> 14:30:00 | C145: =VLOOKUP($AA145,DATA!$B$3:$E$6,3,0) -> 22:30:00 | D145: =VLOOKUP($AA145,DATA!$B$3:$E$6,4,0) -> 0.03125 | E145: 0.3020833333 | F145: 0.1743055556 | G145: =DATA!$C$9 -> 0.89 | H145: =DATA!$C$10 -> 64 | I145: 1 | J145: 235.3125 | K145: 407.8125 | L145: 0.1277777778 | M145: 172.5 | N145: 0.4229885057 | O145: 0 | R145: 312.5333333 | S145: 285 | V145: 285 | X145: =X142 -> 7 | Z145: =TEXT(Y144,"ddd") -> vr | AA145: MD | AB145: =IFERROR(HLOOKUP(Y144,[1]DATA!$A$1:$NB$5,4,0),"") -> D3 | AC145: 184 | AE145: 8 | AF145: 293 | AG145: 5 | AH145: 21.5625 | AI145: 0.6537634409 | AJ145: 0.9842536217
A146: 7vrND | B146: =VLOOKUP($AA146,DATA!$B$3:$E$6,2,0) -> 22:30:00 | C146: =VLOOKUP($AA146,DATA!$B$3:$E$6,3,0) -> 06:30:00 | D146: =VLOOKUP($AA146,DATA!$B$3:$E$6,4,0) -> 0.03125 | E146: 0.3020833333 | F146: 0.3020833333 | G146: =DATA!$C$9 -> 0.89 | H146: =DATA!$C$10 -> 64 | I146: 1 | J146: 407.8125 | K146: 407.8125 | L146: 0 | O146: 0 | R146: 0 | X146: =X142 -> 7 | Z146: =TEXT(Y144,"ddd") -> vr | AA146: ND | AB146: =IFERROR(HLOOKUP(Y144,[1]DATA!$A$1:$NB$5,5,0),"") -> - | AG146: 0
A147: 7zaDD | B147: =VLOOKUP($AA147,DATA!$B$3:$E$6,2,0) -> 06:30:00 | C147: =VLOOKUP($AA147,DATA!$B$3:$E$6,3,0) -> 14:30:00 | D147: =VLOOKUP($AA147,DATA!$B$3:$E$6,4,0) -> 0.03125 | E147: 0.3020833333 | F147: 0.3020833333 | G147: =DATA!$C$9 -> 0.89 | H147: =DATA!$C$10 -> 64 | I147: 1 | J147: 407.8125 | K147: 407.8125 | L147: 0 | O147: 0 | R147: 0 | X147: =X142 -> 7 | Y147: =Y144+1 -> 2018-02-17 | Z147: =TEXT(Y147,"ddd") -> za | AA147: DD | AB147: =IFERROR(HLOOKUP(Y147,[1]DATA!$A$1:$NB$5,3,0),"") -> - | AG147: 0
A148: 7zaMD | B148: =VLOOKUP($AA148,DATA!$B$3:$E$6,2,0) -> 14:30:00 | C148: =VLOOKUP($AA148,DATA!$B$3:$E$6,3,0) -> 22:30:00 | D148: =VLOOKUP($AA148,DATA!$B$3:$E$6,4,0) -> 0.03125 | E148: 0.3020833333 | F148: 0.3020833333 | G148: =DATA!$C$9 -> 0.89 | H148: =DATA!$C$10 -> 64 | I148: 1 | J148: 407.8125 | K148: 407.8125 | L148: 0 | O148: 0 | R148: 0 | X148: =X142 -> 7 | Z148: =TEXT(Y147,"ddd") -> za | AA148: MD | AB148: =IFERROR(HLOOKUP(Y147,[1]DATA!$A$1:$NB$5,4,0),"") -> - | AG148: 0
A149: 7zaND | B149: =VLOOKUP($AA149,DATA!$B$3:$E$6,2,0) -> 22:30:00 | C149: =VLOOKUP($AA149,DATA!$B$3:$E$6,3,0) -> 06:30:00 | D149: =VLOOKUP($AA149,DATA!$B$3:$E$6,4,0) -> 0.03125 | E149: 0.3020833333 | F149: 0.3020833333 | G149: =DATA!$C$9 -> 0.89 | H149: =DATA!$C$10 -> 64 | I149: 1 | J149: 407.8125 | K149: 407.8125 | L149: 0 | O149: 0 | R149: 0 | X149: =X142 -> 7 | Z149: =TEXT(Y147,"ddd") -> za | AA149: ND | AB149: =IFERROR(HLOOKUP(Y147,[1]DATA!$A$1:$NB$5,5,0),"") -> - | AG149: 0
A150: 7zoDD | B150: =VLOOKUP($AA150,DATA!$B$3:$E$6,2,0) -> 06:30:00 | C150: =VLOOKUP($AA150,DATA!$B$3:$E$6,3,0) -> 14:30:00 | D150: =VLOOKUP($AA150,DATA!$B$3:$E$6,4,0) -> 0.03125 | E150: 0.3020833333 | F150: 0.3020833333 | G150: =DATA!$C$9 -> 0.89 | H150: =DATA!$C$10 -> 64 | I150: 1 | J150: 407.8125 | K150: 407.8125 | L150: 0 | O150: 0 | R150: 0 | X150: =X142 -> 7 | Y150: =Y147+1 -> 2018-02-18 | Z150: =TEXT(Y150,"ddd") -> zo | AA150: DD | AB150: =IFERROR(HLOOKUP(Y150,[1]DATA!$A$1:$NB$5,3,0),"") -> - | AG150: 0
A151: 7zoMD | B151: =VLOOKUP($AA151,DATA!$B$3:$E$6,2,0) -> 14:30:00 | C151: =VLOOKUP($AA151,DATA!$B$3:$E$6,3,0) -> 22:30:00 | D151: =VLOOKUP($AA151,DATA!$B$3:$E$6,4,0) -> 0.03125 | E151: 0.3020833333 | F151: 0.3020833333 | G151: =DATA!$C$9 -> 0.89 | H151: =DATA!$C$10 -> 64 | I151: 1 | J151: 407.8125 | K151: 407.8125 | L151: 0 | O151: 0 | R151: 0 | X151: =X142 -> 7 | Z151: =TEXT(Y150,"ddd") -> zo | AA151: MD | AB151: =IFERROR(HLOOKUP(Y150,[1]DATA!$A$1:$NB$5,4,0),"") -> - | AG151: 0
A152: 7zoZND | B152: =VLOOKUP($AA152,DATA!$B$3:$E$6,2,0) -> 00:00:00 | C152: =VLOOKUP($AA152,DATA!$B$3:$E$6,3,0) -> 00:00:00 | D152: =VLOOKUP($AA152,DATA!$B$3:$E$6,4,0) -> 0.03125 | E152: -0.03125 | F152: -0.03125 | G152: =DATA!$C$9 -> 0.89 | H152: =DATA!$C$10 -> 64 | I152: 1 | J152: -42.1875 | K152: -42.1875 | L152: 0 | O152: 0 | R152: 0 | X152: =X142 -> 7 | Z152: =TEXT(Y150,"ddd") -> zo | AA152: ZND | AB152: =IFERROR(HLOOKUP(Y150,[1]DATA!$A$1:$NB$5,5,0),"") -> D1 | AG152: 0
A153: 8maDD | B153: =VLOOKUP($AA153,DATA!$B$3:$E$6,2,0) -> 06:30:00 | C153: =VLOOKUP($AA153,DATA!$B$3:$E$6,3,0) -> 14:30:00 | D153: =VLOOKUP($AA153,DATA!$B$3:$E$6,4,0) -> 0.03125 | E153: 0.3020833333 | F153: 0.25625 | G153: =DATA!$C$9 -> 0.89 | H153: =DATA!$C$10 -> 64 | I153: 1 | J153: 345.9375 | K153: 407.8125 | L153: 0.04583333333 | M153: 61.875 | N153: 0.1517241379 | O153: =TIME(INT($AD153/60),INT(MOD($AD153,60)/1),0) -> 0 | R153: 411.7333333 | S153: 362 | V153: 362 | X153: =X163 -> 8 | Y153: =Y150+1 -> 2018-02-19 | Z153: =TEXT(Y153,"ddd") -> ma | AA153: DD | AB153: =IFERROR(HLOOKUP(Y153,[1]DATA!$A$1:$NB$5,3,0),"") -> D3 | AC153: 66 | AE153: 24 | AF153: 386 | AG153: 3 | AH153: -12.0625 | AI153: 0.8303942652 | AJ153: 0.9927664363 | AK153: 3923.4375 | AL153: 2896 | AM153: 0.7381282358 | AN153: 870 | AO153: 0.221744325 | AP153: 0 | AQ153: 0 | AR153: 0.931595135 | AT153: 0.9934816522 | AU153: 0.8542369885 | AV153: 157.4375 | AW153: 0.04012743927 | AX153: 167.9333333 | AY153: 282
A154: 8maMD | B154: =VLOOKUP($AA154,DATA!$B$3:$E$6,2,0) -> 14:30:00 | C154: =VLOOKUP($AA154,DATA!$B$3:$E$6,3,0) -> 22:30:00 | D154: =VLOOKUP($AA154,DATA!$B$3:$E$6,4,0) -> 0.03125 | E154: 0.3020833333 | F154: 0.2340277778 | G154: =DATA!$C$9 -> 0.89 | H154: =DATA!$C$10 -> 64 | I154: 1 | J154: 315.9375 | K154: 407.8125 | L154: 0.06805555556 | M154: 91.875 | N154: 0.2252873563 | O154: =TIME(INT(AD154/60),INT(MOD(AD154,60)/1),0) -> 0 | R154: 392.5333333 | S154: 345 | U154: 345 | X154: =X163 -> 8 | Z154: =TEXT(Y153,"ddd") -> ma | AA154: MD | AB154: =IFERROR(HLOOKUP(Y153,[1]DATA!$A$1:$NB$5,4,0),"") -> D2 | AC154: 98 | AE154: 23 | AF154: 368 | AG154: 5 | AH154: 0.9375 | AI154: 0.7913978495 | AJ154: 0.9874224384
A155: 8maND | B155: =VLOOKUP($AA155,DATA!$B$3:$E$6,2,0) -> 22:30:00 | C155: =VLOOKUP($AA155,DATA!$B$3:$E$6,3,0) -> 06:30:00 | D155: =VLOOKUP($AA155,DATA!$B$3:$E$6,4,0) -> 0.03125 | E155: 0.3020833333 | F155: 0.3020833333 | G155: =DATA!$C$9 -> 0.89 | H155: =DATA!$C$10 -> 64 | I155: 1 | J155: 407.8125 | K155: 407.8125 | L155: 0 | O155: 0 | R155: 0 | X155: =X163 -> 8 | Z155: =TEXT(Y153,"ddd") -> ma | AA155: ND | AB155: =IFERROR(HLOOKUP(Y153,[1]DATA!$A$1:$NB$5,5,0),"") -> D1 | AG155: 0
A156: 8diDD | B156: =VLOOKUP($AA156,DATA!$B$3:$E$6,2,0) -> 06:30:00 | C156: =VLOOKUP($AA156,DATA!$B$3:$E$6,3,0) -> 14:30:00 | D156: =VLOOKUP($AA156,DATA!$B$3:$E$6,4,0) -> 0.03125 | E156: =(C156-B156+(B156>C156))-D156 -> 0.3020833333 | F156: =E156-O156-L156 -> 0.3020833333 | G156: =DATA!$C$9 -> 0.89 | H156: =DATA!$C$10 -> 64 | I156: 1 | J156: 407.8125 | K156: 407.8125 | L156: 0 | O156: 0 | R156: 229.3333333 | S156: 206 | V156: 206 | X156: =X163 -> 8 | Y156: =Y153+1 -> 2018-02-20 | Z156: =TEXT(Y156,"ddd") -> di | AA156: DD | AB156: =IFERROR(HLOOKUP(Y156,[1]DATA!$A$1:$NB$5,3,0),"") -> D3 | AC156: 0 | AE156: 9 | AF156: 215 | AG156: 244 | AH156: -229.9375 | AI156: 0.4725448029 | AJ156: 0.4845070423
A157: 8diMD | B157: =VLOOKUP($AA157,DATA!$B$3:$E$6,2,0) -> 14:30:00 | C157: =VLOOKUP($AA157,DATA!$B$3:$E$6,3,0) -> 22:30:00 | D157: =VLOOKUP($AA157,DATA!$B$3:$E$6,4,0) -> 0.03125 | E157: 0.3020833333 | F157: 0.2465277778 | G157: =DATA!$C$9 -> 0.89 | H157: =DATA!$C$10 -> 64 | I157: 1 | J157: 332.8125 | K157: 407.8125 | L157: 0.05555555556 | M157: 75 | N157: 0.183908046 | O157: 0 | R157: 449.0666667 | S157: 387 | U157: 387 | X157: =X163 -> 8 | Z157: =TEXT(Y156,"ddd") -> di | AA157: MD | AB157: =IFERROR(HLOOKUP(Y156,[1]DATA!$A$1:$NB$5,4,0),"") -> D2 | AC157: 80 | AE157: 34 | AF157: 421 | AG157: 0 | AH157: 26.0625 | AI157: 0.8877419355 | AJ157: 1
A158: 8diND | B158: =VLOOKUP($AA158,DATA!$B$3:$E$6,2,0) -> 22:30:00 | C158: =VLOOKUP($AA158,DATA!$B$3:$E$6,3,0) -> 06:30:00 | D158: =VLOOKUP($AA158,DATA!$B$3:$E$6,4,0) -> 0.03125 | E158: 0.3020833333 | F158: 0.3020833333 | G158: =DATA!$C$9 -> 0.89 | H158: =DATA!$C$10 -> 64 | I158: 1 | J158: 407.8125 | K158: 407.8125 | L158: 0 | O158: 0 | R158: 0 | X158: =X163 -> 8 | Z158: =TEXT(Y156,"ddd") -> di | AA158: ND | AB158: =IFERROR(HLOOKUP(Y156,[1]DATA!$A$1:$NB$5,5,0),"") -> D1 | AG158: 0
A159: 8woDD | B159: =VLOOKUP($AA159,DATA!$B$3:$E$6,2,0) -> 06:30:00 | C159: =VLOOKUP($AA159,DATA!$B$3:$E$6,3,0) -> 14:30:00 | D159: =VLOOKUP($AA159,DATA!$B$3:$E$6,4,0) -> 0.03125 | E159: 0.3020833333 | F159: 0.2347222222 | G159: =DATA!$C$9 -> 0.89 | H159: =DATA!$C$10 -> 64 | I159: 1 | J159: 316.875 | K159: 407.8125 | L159: 0.06736111111 | M159: 90.9375 | N159: 0.2229885057 | O159: 0 | R159: 352 | S159: 321 | V159: 321 | X159: =X163 -> 8 | Y159: =Y156+1 -> 2018-02-21 | Z159: =TEXT(Y159,"ddd") -> wo | AA159: DD | AB159: =IFERROR(HLOOKUP(Y159,[1]DATA!$A$1:$NB$5,3,0),"") -> D3 | AC159: 97 | AE159: 9 | AF159: 330 | AG159: 8 | AH159: -24 | AI159: 0.736344086 | AJ159: 0.9777777778
A160: 8woMD | B160: =VLOOKUP($AA160,DATA!$B$3:$E$6,2,0) -> 14:30:00 | C160: =VLOOKUP($AA160,DATA!$B$3:$E$6,3,0) -> 22:30:00 | D160: =VLOOKUP($AA160,DATA!$B$3:$E$6,4,0) -> 0.03125 | E160: 0.3020833333 | F160: 0.2027777778 | G160: =DATA!$C$9 -> 0.89 | H160: =DATA!$C$10 -> 64 | I160: 1 | J160: 273.75 | K160: 407.8125 | L160: 0.09930555556 | M160: 134.0625 | N160: 0.3287356322 | O160: 0 | R160: 381.8666667 | S160: 326 | U160: 326 | X160: =X163 -> 8 | Z160: =TEXT(Y159,"ddd") -> wo | AA160: MD | AB160: =IFERROR(HLOOKUP(Y159,[1]DATA!$A$1:$NB$5,4,0),"") -> D2 | AC160: 143 | AE160: 32 | AF160: 358 | AG160: 0 | AH160: 24.125 | AI160: 0.7478136201 | AJ160: 1
A161: 8woND | B161: =VLOOKUP($AA161,DATA!$B$3:$E$6,2,0) -> 22:30:00 | C161: =VLOOKUP($AA161,DATA!$B$3:$E$6,3,0) -> 06:30:00 | D161: =VLOOKUP($AA161,DATA!$B$3:$E$6,4,0) -> 0.03125 | E161: 0.3020833333 | F161: 0.3020833333 | G161: =DATA!$C$9 -> 0.89 | H161: =DATA!$C$10 -> 64 | I161: 1 | J161: 407.8125 | K161: 407.8125 | L161: 0 | O161: 0 | R161: 0 | X161: =X163 -> 8 | Z161: =TEXT(Y159,"ddd") -> wo | AA161: ND | AB161: =IFERROR(HLOOKUP(Y159,[1]DATA!$A$1:$NB$5,5,0),"") -> D1 | AG161: 0
A162: 8doDD | B162: =VLOOKUP($AA162,DATA!$B$3:$E$6,2,0) -> 06:30:00 | C162: =VLOOKUP($AA162,DATA!$B$3:$E$6,3,0) -> 14:30:00 | D162: =VLOOKUP($AA162,DATA!$B$3:$E$6,4,0) -> 0.03125 | E162: 0.3020833333 | F162: 0.2236111111 | G162: =DATA!$C$9 -> 0.89 | H162: =DATA!$C$10 -> 64 | I162: 1 | J162: 301.875 | K162: 407.8125 | L162: 0.07847222222 | M162: 105.9375 | N162: 0.2597701149 | O162: 0 | R162: 378.6666667 | S162: 334 | V162: 334 | X162: =X163 -> 8 | Y162: =Y159+1 -> 2018-02-22 | Z162: =TEXT(Y162,"ddd") -> do | AA162: DD | AB162: =IFERROR(HLOOKUP(Y162,[1]DATA!$A$1:$NB$5,3,0),"") -> D3 | AC162: 113 | AE162: 21 | AF162: 355 | AG162: 15 | AH162: 4 | AI162: 0.7661648746 | AJ162: 0.9618966977
A163: 8doMD | B163: =VLOOKUP($AA163,DATA!$B$3:$E$6,2,0) -> 14:30:00 | C163: =VLOOKUP($AA163,DATA!$B$3:$E$6,3,0) -> 22:30:00 | D163: =VLOOKUP($AA163,DATA!$B$3:$E$6,4,0) -> 0.03125 | E163: 0.3020833333 | F163: 0.2104166667 | G163: =DATA!$C$9 -> 0.89 | H163: =DATA!$C$10 -> 64 | I163: 1 | J163: 284.0625 | K163: 407.8125 | L163: 0.09166666667 | M163: 123.75 | N163: 0.3034482759 | O163: 0 | R163: 396.8 | S163: 333 | U163: 333 | X163: =WEEKNUM($Y153) -> 8 | Z163: =TEXT(Y162,"ddd") -> do | AA163: MD | AB163: =IFERROR(HLOOKUP(Y162,[1]DATA!$A$1:$NB$5,4,0),"") -> D2 | AC163: 132 | AE163: 39 | AF163: 372 | AG163: 3 | AH163: 20.8125 | AI163: 0.7638709677 | AJ163: 0.9924962481
A164: 8doND | B164: =VLOOKUP($AA164,DATA!$B$3:$E$6,2,0) -> 22:30:00 | C164: =VLOOKUP($AA164,DATA!$B$3:$E$6,3,0) -> 06:30:00 | D164: =VLOOKUP($AA164,DATA!$B$3:$E$6,4,0) -> 0.03125 | E164: 0.3020833333 | F164: 0.3020833333 | G164: =DATA!$C$9 -> 0.89 | H164: =DATA!$C$10 -> 64 | I164: 1 | J164: 407.8125 | K164: 407.8125 | L164: 0 | O164: 0 | R164: 0 | X164: =X163 -> 8 | Z164: =TEXT(Y162,"ddd") -> do | AA164: ND | AB164: =IFERROR(HLOOKUP(Y162,[1]DATA!$A$1:$NB$5,5,0),"") -> D1 | AG164: 0
A165: 8vrDD | B165: =VLOOKUP($AA165,DATA!$B$3:$E$6,2,0) -> 06:30:00 | C165: =VLOOKUP($AA165,DATA!$B$3:$E$6,3,0) -> 14:30:00 | D165: =VLOOKUP($AA165,DATA!$B$3:$E$6,4,0) -> 0.03125 | E165: 0.3020833333 | F165: 0.3020833333 | G165: =DATA!$C$9 -> 0.89 | H165: =DATA!$C$10 -> 64 | I165: 1 | J165: 407.8125 | K165: 407.8125 | L165: 0 | O165: 0 | R165: 0 | X165: =X163 -> 8 | Y165: =Y162+1 -> 2018-02-23 | Z165: =TEXT(Y165,"ddd") -> vr | AA165: DD | AB165: =IFERROR(HLOOKUP(Y165,[1]DATA!$A$1:$NB$5,3,0),"") -> D3 | AC165: 0 | AE165: 0 | AF165: 0 | AG165: 0
A166: 8vrMD | B166: =VLOOKUP($AA166,DATA!$B$3:$E$6,2,0) -> 14:30:00 | C166: =VLOOKUP($AA166,DATA!$B$3:$E$6,3,0) -> 22:30:00 | D166: =VLOOKUP($AA166,DATA!$B$3:$E$6,4,0) -> 0.03125 | E166: 0.3020833333 | F166: 0.1638888889 | G166: =DATA!$C$9 -> 0.89 | H166: =DATA!$C$10 -> 64 | I166: 1 | J166: 221.25 | K166: 407.8125 | L166: 0.1381944444 | M166: 186.5625 | N166: 0.4574712644 | O166: 0 | R166: 315.7333333 | S166: 282 | U166: 282 | X166: =X163 -> 8 | Z166: =TEXT(Y165,"ddd") -> vr | AA166: MD | AB166: =IFERROR(HLOOKUP(Y165,[1]DATA!$A$1:$NB$5,4,0),"") -> D2 | AC166: 199 | AE166: 14 | AF166: 296 | AG166: 4 | AH166: 32.625 | AI166: 0.6468817204 | AJ166: 0.9874895746
A167: 8vrND | B167: =VLOOKUP($AA167,DATA!$B$3:$E$6,2,0) -> 22:30:00 | C167: =VLOOKUP($AA167,DATA!$B$3:$E$6,3,0) -> 06:30:00 | D167: =VLOOKUP($AA167,DATA!$B$3:$E$6,4,0) -> 0.03125 | E167: 0.3020833333 | F167: 0.3020833333 | G167: =DATA!$C$9 -> 0.89 | H167: =DATA!$C$10 -> 64 | I167: 1 | J167: 407.8125 | K167: 407.8125 | L167: 0 | O167: 0 | R167: 0 | X167: =X163 -> 8 | Z167: =TEXT(Y165,"ddd") -> vr | AA167: ND | AB167: =IFERROR(HLOOKUP(Y165,[1]DATA!$A$1:$NB$5,5,0),"") -> - | AG167: 0
A168: 8zaDD | B168: =VLOOKUP($AA168,DATA!$B$3:$E$6,2,0) -> 06:30:00 | C168: =VLOOKUP($AA168,DATA!$B$3:$E$6,3,0) -> 14:30:00 | D168: =VLOOKUP($AA168,DATA!$B$3:$E$6,4,0) -> 0.03125 | E168: 0.3020833333 | F168: 0.3020833333 | G168: =DATA!$C$9 -> 0.89 | H168: =DATA!$C$10 -> 64 | I168: 1 | J168: 407.8125 | K168: 407.8125 | L168: 0 | O168: 0 | R168: 0 | X168: =X163 -> 8 | Y168: =Y165+1 -> 2018-02-24 | Z168: =TEXT(Y168,"ddd") -> za | AA168: DD | AB168: =IFERROR(HLOOKUP(Y168,[1]DATA!$A$1:$NB$5,3,0),"") -> - | AG168: 0
A169: 8zaMD | B169: =VLOOKUP($AA169,DATA!$B$3:$E$6,2,0) -> 14:30:00 | C169: =VLOOKUP($AA169,DATA!$B$3:$E$6,3,0) -> 22:30:00 | D169: =VLOOKUP($AA169,DATA!$B$3:$E$6,4,0) -> 0.03125 | E169: 0.3020833333 | F169: 0.3020833333 | G169: =DATA!$C$9 -> 0.89 | H169: =DATA!$C$10 -> 64 | I169: 1 | J169: 407.8125 | K169: 407.8125 | L169: 0 | O169: 0 | R169: 0 | X169: =X163 -> 8 | Z169: =TEXT(Y168,"ddd") -> za | AA169: MD | AB169: =IFERROR(HLOOKUP(Y168,[1]DATA!$A$1:$NB$5,4,0),"") -> - | AG169: 0
A170: 8zaND | B170: =VLOOKUP($AA170,DATA!$B$3:$E$6,2,0) -> 22:30:00 | C170: =VLOOKUP($AA170,DATA!$B$3:$E$6,3,0) -> 06:30:00 | D170: =VLOOKUP($AA170,DATA!$B$3:$E$6,4,0) -> 0.03125 | E170: 0.3020833333 | F170: 0.3020833333 | G170: =DATA!$C$9 -> 0.89 | H170: =DATA!$C$10 -> 64 | I170: 1 | J170: 407.8125 | K170: 407.8125 | L170: 0 | O170: 0 | R170: 0 | X170: =X163 -> 8 | Z170: =TEXT(Y168,"ddd") -> za | AA170: ND | AB170: =IFERROR(HLOOKUP(Y168,[1]DATA!$A$1:$NB$5,5,0),"") -> - | AG170: 0
A171: 8zoDD | B171: =VLOOKUP($AA171,DATA!$B$3:$E$6,2,0) -> 06:30:00 | C171: =VLOOKUP($AA171,DATA!$B$3:$E$6,3,0) -> 14:30:00 | D171: =VLOOKUP($AA171,DATA!$B$3:$E$6,4,0) -> 0.03125 | E171: 0.3020833333 | F171: 0.3020833333 | G171: =DATA!$C$9 -> 0.89 | H171: =DATA!$C$10 -> 64 | I171: 1 | J171: 407.8125 | K171: 407.8125 | L171: 0 | O171: 0 | R171: 0 | X171: =X163 -> 8 | Y171: =Y168+1 -> 2018-02-25 | Z171: =TEXT(Y171,"ddd") -> zo | AA171: DD | AB171: =IFERROR(HLOOKUP(Y171,[1]DATA!$A$1:$NB$5,3,0),"") -> - | AG171: 0
A172: 8zoMD | B172: =VLOOKUP($AA172,DATA!$B$3:$E$6,2,0) -> 14:30:00 | C172: =VLOOKUP($AA172,DATA!$B$3:$E$6,3,0) -> 22:30:00 | D172: =VLOOKUP($AA172,DATA!$B$3:$E$6,4,0) -> 0.03125 | E172: 0.3020833333 | F172: 0.3020833333 | G172: =DATA!$C$9 -> 0.89 | H172: =DATA!$C$10 -> 64 | I172: 1 | J172: 407.8125 | K172: 407.8125 | L172: 0 | O172: 0 | R172: 0 | X172: =X163 -> 8 | Z172: =TEXT(Y171,"ddd") -> zo | AA172: MD | AB172: =IFERROR(HLOOKUP(Y171,[1]DATA!$A$1:$NB$5,4,0),"") -> - | AG172: 0
A173: 8zoZND | B173: =VLOOKUP($AA173,DATA!$B$3:$E$6,2,0) -> 00:00:00 | C173: =VLOOKUP($AA173,DATA!$B$3:$E$6,3,0) -> 00:00:00 | D173: =VLOOKUP($AA173,DATA!$B$3:$E$6,4,0) -> 0.03125 | E173: -0.03125 | F173: -0.03125 | G173: =DATA!$C$9 -> 0.89 | H173: =DATA!$C$10 -> 64 | I173: 1 | J173: -42.1875 | K173: -42.1875 | L173: 0 | O173: 0 | R173: 0 | X173: =X163 -> 8 | Z173: =TEXT(Y171,"ddd") -> zo | AA173: ZND | AB173: =IFERROR(HLOOKUP(Y171,[1]DATA!$A$1:$NB$5,5,0),"") -> D3 | AG173: 0
A174: 9maDD | B174: =VLOOKUP($AA174,DATA!$B$3:$E$6,2,0) -> 06:30:00 | C174: =VLOOKUP($AA174,DATA!$B$3:$E$6,3,0) -> 14:30:00 | D174: =VLOOKUP($AA174,DATA!$B$3:$E$6,4,0) -> 0.03125 | E174: 0.3020833333 | F174: 0.06041666667 | G174: =DATA!$C$9 -> 0.89 | H174: =DATA!$C$10 -> 64 | I174: 1 | J174: 81.5625 | K174: 407.8125 | L174: 0.2416666667 | M174: 326.25 | N174: 0.8 | O174: =TIME(INT($AD174/60),INT(MOD($AD174,60)/1),0) -> 0 | R174: 144 | S174: 124 | U174: 124 | X174: =X184 -> 9 | Y174: =Y171+1 -> 2018-02-26 | Z174: =TEXT(Y174,"ddd") -> ma | AA174: DD | AB174: =IFERROR(HLOOKUP(Y174,[1]DATA!$A$1:$NB$5,3,0),"") -> D2 | AC174: 348 | AE174: 11 | AF174: 135 | AG174: 0 | AH174: 14.3125 | AI174: 0.2844444444 | AJ174: 1 | AK174: 4359.375 | AL174: 3178 | AM174: 0.7290035842 | AN174: 1042.5 | AO174: 0.2391397849 | AP174: 0 | AQ174: 0 | AR174: 0.9674090954 | AS174: 0.9509863726 | AT174: 0.9838318183 | AV174: 138.875 | AW174: 0.03185663082 | AX174: 148.1333333 | AY174: 142
A175: 9maMD | B175: =VLOOKUP($AA175,DATA!$B$3:$E$6,2,0) -> 14:30:00 | C175: =VLOOKUP($AA175,DATA!$B$3:$E$6,3,0) -> 22:30:00 | D175: =VLOOKUP($AA175,DATA!$B$3:$E$6,4,0) -> 0.03125 | E175: 0.3020833333 | F175: 0.2194444444 | G175: =DATA!$C$9 -> 0.89 | H175: =DATA!$C$10 -> 64 | I175: 1 | J175: 296.25 | K175: 407.8125 | L175: 0.08263888889 | M175: 111.5625 | N175: 0.2735632184 | O175: =TIME(INT(AD175/60),INT(MOD(AD175,60)/1),0) -> 0 | R175: 364.8 | S175: 321 | T175: 321 | X175: =X184 -> 9 | Z175: =TEXT(Y174,"ddd") -> ma | AA175: MD | AB175: =IFERROR(HLOOKUP(Y174,[1]DATA!$A$1:$NB$5,4,0),"") -> D1 | AC175: 119 | AE175: 21 | AF175: 342 | AG175: 2 | AH175: -3.375 | AI175: 0.736344086 | AJ175: 0.9945474373
A176: =X176&Z176&AA176 -> 9maND | B176: =VLOOKUP($AA176,DATA!$B$3:$E$6,2,0) -> 22:30:00 | C176: =VLOOKUP($AA176,DATA!$B$3:$E$6,3,0) -> 06:30:00 | D176: =VLOOKUP($AA176,DATA!$B$3:$E$6,4,0) -> 0.03125 | E176: 0.3020833333 | F176: 0.3020833333 | G176: =DATA!$C$9 -> 0.89 | H176: =DATA!$C$10 -> 64 | I176: 1 | J176: 407.8125 | K176: 407.8125 | L176: 0 | O176: 0 | P176: =IF($O176*86400/$H176=0,"",$O176*86400/$H176) ->  | R176: 0 | X176: =X184 -> 9 | Z176: =TEXT(Y174,"ddd") -> ma | AA176: ND | AB176: =IFERROR(HLOOKUP(Y174,[1]DATA!$A$1:$NB$5,5,0),"") -> D3 | AG176: 0
A177: 9diDD | B177: =VLOOKUP($AA177,DATA!$B$3:$E$6,2,0) -> 06:30:00 | C177: =VLOOKUP($AA177,DATA!$B$3:$E$6,3,0) -> 14:30:00 | D177: =VLOOKUP($AA177,DATA!$B$3:$E$6,4,0) -> 0.03125 | E177: 0.3020833333 | F177: 0.2583333333 | G177: =DATA!$C$9 -> 0.89 | H177: =DATA!$C$10 -> 64 | I177: 1 | J177: 348.75 | K177: 407.8125 | L177: 0.04375 | M177: 59.0625 | N177: 0.1448275862 | O177: 0 | R177: 422.4 | S177: 382 | U177: 382 | X177: =X184 -> 9 | Y177: =Y174+1 -> 2018-02-27 | Z177: =TEXT(Y177,"ddd") -> di | AA177: DD | AB177: =IFERROR(HLOOKUP(Y177,[1]DATA!$A$1:$NB$5,3,0),"") -> D2 | AC177: 63 | AE177: 14 | AF177: 396 | AG177: 8 | AH177: 5.125 | AI177: 0.8762724014 | AJ177: 0.9814126394
A178: 9diMD | B178: =VLOOKUP($AA178,DATA!$B$3:$E$6,2,0) -> 14:30:00 | C178: =VLOOKUP($AA178,DATA!$B$3:$E$6,3,0) -> 22:30:00 | D178: =VLOOKUP($AA178,DATA!$B$3:$E$6,4,0) -> 0.03125 | E178: 0.3020833333 | F178: 0.2097222222 | G178: =DATA!$C$9 -> 0.89 | H178: =DATA!$C$10 -> 64 | I178: 1 | J178: 283.125 | K178: 407.8125 | L178: 0.09236111111 | M178: 124.6875 | N178: 0.3057471264 | O178: 0 | R178: 362.6666667 | S178: 318 | T178: 318 | X178: =X184 -> 9 | Z178: =TEXT(Y177,"ddd") -> di | AA178: MD | AB178: =IFERROR(HLOOKUP(Y177,[1]DATA!$A$1:$NB$5,4,0),"") -> D1 | AC178: 133 | AE178: 22 | AF178: 340 | AG178: 2 | AH178: 6.75 | AI178: 0.7294623656 | AJ178: 0.9945155393
A179: 9diND | B179: =VLOOKUP($AA179,DATA!$B$3:$E$6,2,0) -> 22:30:00 | C179: =VLOOKUP($AA179,DATA!$B$3:$E$6,3,0) -> 06:30:00 | D179: =VLOOKUP($AA179,DATA!$B$3:$E$6,4,0) -> 0.03125 | E179: 0.3020833333 | F179: 0.3020833333 | G179: =DATA!$C$9 -> 0.89 | H179: =DATA!$C$10 -> 64 | I179: 1 | J179: 407.8125 | K179: 407.8125 | L179: 0 | O179: 0 | R179: 0 | X179: =X184 -> 9 | Z179: =TEXT(Y177,"ddd") -> di | AA179: ND | AB179: =IFERROR(HLOOKUP(Y177,[1]DATA!$A$1:$NB$5,5,0),"") -> D3 | AG179: 0
A180: 9woDD | B180: =VLOOKUP($AA180,DATA!$B$3:$E$6,2,0) -> 06:30:00 | C180: =VLOOKUP($AA180,DATA!$B$3:$E$6,3,0) -> 14:30:00 | D180: =VLOOKUP($AA180,DATA!$B$3:$E$6,4,0) -> 0.03125 | E180: 0.3020833333 | F180: 0.2590277778 | G180: =DATA!$C$9 -> 0.89 | H180: =DATA!$C$10 -> 64 | I180: 1 | J180: 349.6875 | K180: 407.8125 | L180: 0.04305555556 | M180: 58.125 | N180: 0.1425287356 | O180: 0 | R180: 387.2 | S180: 342 | U180: 342 | X180: =X184 -> 9 | Y180: =Y177+1 -> 2018-02-28 | Z180: =TEXT(Y180,"ddd") -> wo | AA180: DD | AB180: =IFERROR(HLOOKUP(Y180,[1]DATA!$A$1:$NB$5,3,0),"") -> D2 | AC180: 62 | AE180: 21 | AF180: 363 | AG180: 5 | AH180: -35.8125 | AI180: 0.784516129 | AJ180: 0.9872514023
A181: 9woMD | B181: =VLOOKUP($AA181,DATA!$B$3:$E$6,2,0) -> 14:30:00 | C181: =VLOOKUP($AA181,DATA!$B$3:$E$6,3,0) -> 22:30:00 | D181: =VLOOKUP($AA181,DATA!$B$3:$E$6,4,0) -> 0.03125 | E181: 0.3020833333 | F181: 0.2861111111 | G181: =DATA!$C$9 -> 0.89 | H181: =DATA!$C$10 -> 64 | I181: 1 | J181: 386.25 | K181: 407.8125 | L181: 0.01597222222 | M181: 21.5625 | N181: 0.05287356322 | O181: 0 | R181: 343.4666667 | S181: 305 | T181: 305 | X181: =X184 -> 9 | Z181: =TEXT(Y180,"ddd") -> wo | AA181: MD | AB181: =IFERROR(HLOOKUP(Y180,[1]DATA!$A$1:$NB$5,4,0),"") -> D1 | AC181: 23 | AE181: 17 | AF181: 322 | AG181: 105 | AH181: -109.375 | AI181: 0.6996415771 | AJ181: 0.7658688866
A182: 9woND | B182: =VLOOKUP($AA182,DATA!$B$3:$E$6,2,0) -> 22:30:00 | C182: =VLOOKUP($AA182,DATA!$B$3:$E$6,3,0) -> 06:30:00 | D182: =VLOOKUP($AA182,DATA!$B$3:$E$6,4,0) -> 0.03125 | E182: 0.3020833333 | F182: 0.3020833333 | G182: =DATA!$C$9 -> 0.89 | H182: =DATA!$C$10 -> 64 | I182: 1 | J182: 407.8125 | K182: 407.8125 | L182: 0 | O182: 0 | R182: 0 | X182: =X184 -> 9 | Z182: =TEXT(Y180,"ddd") -> wo | AA182: ND | AB182: =IFERROR(HLOOKUP(Y180,[1]DATA!$A$1:$NB$5,5,0),"") -> D3 | AG182: 0
A183: 9doDD | B183: =VLOOKUP($AA183,DATA!$B$3:$E$6,2,0) -> 06:30:00 | C183: =VLOOKUP($AA183,DATA!$B$3:$E$6,3,0) -> 14:30:00 | D183: =VLOOKUP($AA183,DATA!$B$3:$E$6,4,0) -> 0.03125 | E183: 0.3020833333 | F183: 0.2361111111 | G183: =DATA!$C$9 -> 0.89 | H183: =DATA!$C$10 -> 64 | I183: 1 | J183: 318.75 | K183: 407.8125 | L183: 0.06597222222 | M183: 89.0625 | N183: 0.2183908046 | O183: 0 | R183: 390.4 | S183: 345 | U183: 345 | X183: =X184 -> 9 | Y183: =Y180+1 -> 2018-03-01 | Z183: =TEXT(Y183,"ddd") -> do | AA183: DD | AB183: =IFERROR(HLOOKUP(Y183,[1]DATA!$A$1:$NB$5,3,0),"") -> D2 | AC183: 95 | AE183: 21 | AF183: 366 | AG183: 0 | AH183: -1.875 | AI183: 0.7913978495 | AJ183: 1
A184: 9doMD | B184: =VLOOKUP($AA184,DATA!$B$3:$E$6,2,0) -> 14:30:00 | C184: =VLOOKUP($AA184,DATA!$B$3:$E$6,3,0) -> 22:30:00 | D184: =VLOOKUP($AA184,DATA!$B$3:$E$6,4,0) -> 0.03125 | E184: 0.3020833333 | F184: 0.2243055556 | G184: =DATA!$C$9 -> 0.89 | H184: =DATA!$C$10 -> 64 | I184: 1 | J184: 302.8125 | K184: 407.8125 | L184: 0.07777777778 | M184: 105 | N184: 0.2574712644 | O184: 0 | R184: 397.8666667 | S184: 353 | T184: 353 | X184: =WEEKNUM($Y174) -> 9 | Z184: =TEXT(Y183,"ddd") -> do | AA184: MD | AB184: =IFERROR(HLOOKUP(Y183,[1]DATA!$A$1:$NB$5,4,0),"") -> D1 | AC184: 112 | AE184: 20 | AF184: 373 | AG184: 0 | AH184: 22.0625 | AI184: 0.8097491039 | AJ184: 1
A185: 9doND | B185: =VLOOKUP($AA185,DATA!$B$3:$E$6,2,0) -> 22:30:00 | C185: =VLOOKUP($AA185,DATA!$B$3:$E$6,3,0) -> 06:30:00 | D185: =VLOOKUP($AA185,DATA!$B$3:$E$6,4,0) -> 0.03125 | E185: 0.3020833333 | F185: 0.3020833333 | G185: =DATA!$C$9 -> 0.89 | H185: =DATA!$C$10 -> 64 | I185: 1 | J185: 407.8125 | K185: 407.8125 | L185: 0 | O185: 0 | R185: 0 | X185: =X184 -> 9 | Z185: =TEXT(Y183,"ddd") -> do | AA185: ND | AB185: =IFERROR(HLOOKUP(Y183,[1]DATA!$A$1:$NB$5,5,0),"") -> D3 | AG185: 0
A186: 9vrDD | B186: =VLOOKUP($AA186,DATA!$B$3:$E$6,2,0) -> 06:30:00 | C186: =VLOOKUP($AA186,DATA!$B$3:$E$6,3,0) -> 14:30:00 | D186: =VLOOKUP($AA186,DATA!$B$3:$E$6,4,0) -> 0.03125 | E186: 0.3020833333 | F186: 0.2409722222 | G186: =DATA!$C$9 -> 0.89 | H186: =DATA!$C$10 -> 64 | I186: 1 | J186: 325.3125 | K186: 407.8125 | L186: 0.06111111111 | M186: 82.5 | N186: 0.2022988506 | O186: 0 | R186: 384 | S186: 326 | U186: 326 | X186: =X184 -> 9 | Y186: =Y183+1 -> 2018-03-02 | Z186: =TEXT(Y186,"ddd") -> vr | AA186: DD | AB186: =IFERROR(HLOOKUP(Y186,[1]DATA!$A$1:$NB$5,3,0),"") -> D2 | AC186: 88 | AE186: 34 | AF186: 360 | AG186: 20 | AH186: -27.4375 | AI186: 0.7478136201 | AJ186: 0.9504950495
A187: 9vrMD | B187: =VLOOKUP($AA187,DATA!$B$3:$E$6,2,0) -> 14:30:00 | C187: =VLOOKUP($AA187,DATA!$B$3:$E$6,3,0) -> 22:30:00 | D187: =VLOOKUP($AA187,DATA!$B$3:$E$6,4,0) -> 0.03125 | E187: 0.3020833333 | F187: 0.2541666667 | G187: =DATA!$C$9 -> 0.89 | H187: =DATA!$C$10 -> 64 | I187: 1 | J187: 343.125 | K187: 407.8125 | L187: 0.04791666667 | M187: 64.6875 | N187: 0.1586206897 | O187: 0 | R187: 406.4 | S187: 362 | T187: 362 | X187: =X184 -> 9 | Z187: =TEXT(Y186,"ddd") -> vr | AA187: MD | AB187: =IFERROR(HLOOKUP(Y186,[1]DATA!$A$1:$NB$5,4,0),"") -> D1 | AC187: 69 | AE187: 19 | AF187: 381 | AG187: 0 | AH187: -9.25 | AI187: 0.8303942652 | AJ187: 1
A188: 9vrND | B188: =VLOOKUP($AA188,DATA!$B$3:$E$6,2,0) -> 22:30:00 | C188: =VLOOKUP($AA188,DATA!$B$3:$E$6,3,0) -> 06:30:00 | D188: =VLOOKUP($AA188,DATA!$B$3:$E$6,4,0) -> 0.03125 | E188: 0.3020833333 | F188: 0.3020833333 | G188: =DATA!$C$9 -> 0.89 | H188: =DATA!$C$10 -> 64 | I188: 1 | J188: 407.8125 | K188: 407.8125 | L188: 0 | O188: 0 | R188: 0 | X188: =X184 -> 9 | Z188: =TEXT(Y186,"ddd") -> vr | AA188: ND | AB188: =IFERROR(HLOOKUP(Y186,[1]DATA!$A$1:$NB$5,5,0),"") -> - | AG188: 0
A189: 9zaDD | B189: =VLOOKUP($AA189,DATA!$B$3:$E$6,2,0) -> 06:30:00 | C189: =VLOOKUP($AA189,DATA!$B$3:$E$6,3,0) -> 14:30:00 | D189: =VLOOKUP($AA189,DATA!$B$3:$E$6,4,0) -> 0.03125 | E189: 0.3020833333 | F189: 0.3020833333 | G189: =DATA!$C$9 -> 0.89 | H189: =DATA!$C$10 -> 64 | I189: 1 | J189: 407.8125 | K189: 407.8125 | L189: 0 | O189: 0 | R189: 0 | X189: =X184 -> 9 | Y189: =Y186+1 -> 2018-03-03 | Z189: =TEXT(Y189,"ddd") -> za | AA189: DD | AB189: =IFERROR(HLOOKUP(Y189,[1]DATA!$A$1:$NB$5,3,0),"") -> - | AG189: 0
A190: 9zaMD | B190: =VLOOKUP($AA190,DATA!$B$3:$E$6,2,0) -> 14:30:00 | C190: =VLOOKUP($AA190,DATA!$B$3:$E$6,3,0) -> 22:30:00 | D190: =VLOOKUP($AA190,DATA!$B$3:$E$6,4,0) -> 0.03125 | E190: 0.3020833333 | F190: 0.3020833333 | G190: =DATA!$C$9 -> 0.89 | H190: =DATA!$C$10 -> 64 | I190: 1 | J190: 407.8125 | K190: 407.8125 | L190: 0 | O190: 0 | R190: 0 | X190: =X184 -> 9 | Z190: =TEXT(Y189,"ddd") -> za | AA190: MD | AB190: =IFERROR(HLOOKUP(Y189,[1]DATA!$A$1:$NB$5,4,0),"") -> - | AG190: 0
A191: 9zaND | B191: =VLOOKUP($AA191,DATA!$B$3:$E$6,2,0) -> 22:30:00 | C191: =VLOOKUP($AA191,DATA!$B$3:$E$6,3,0) -> 06:30:00 | D191: =VLOOKUP($AA191,DATA!$B$3:$E$6,4,0) -> 0.03125 | E191: 0.3020833333 | F191: 0.3020833333 | G191: =DATA!$C$9 -> 0.89 | H191: =DATA!$C$10 -> 64 | I191: 1 | J191: 407.8125 | K191: 407.8125 | L191: 0 | O191: 0 | R191: 0 | X191: =X184 -> 9 | Z191: =TEXT(Y189,"ddd") -> za | AA191: ND | AB191: =IFERROR(HLOOKUP(Y189,[1]DATA!$A$1:$NB$5,5,0),"") -> - | AG191: 0
A192: 9zoDD | B192: =VLOOKUP($AA192,DATA!$B$3:$E$6,2,0) -> 06:30:00 | C192: =VLOOKUP($AA192,DATA!$B$3:$E$6,3,0) -> 14:30:00 | D192: =VLOOKUP($AA192,DATA!$B$3:$E$6,4,0) -> 0.03125 | E192: 0.3020833333 | F192: 0.3020833333 | G192: =DATA!$C$9 -> 0.89 | H192: =DATA!$C$10 -> 64 | I192: 1 | J192: 407.8125 | K192: 407.8125 | L192: 0 | O192: 0 | R192: 0 | X192: =X184 -> 9 | Y192: =Y189+1 -> 2018-03-04 | Z192: =TEXT(Y192,"ddd") -> zo | AA192: DD | AB192: =IFERROR(HLOOKUP(Y192,[1]DATA!$A$1:$NB$5,3,0),"") -> - | AG192: 0
A193: 9zoMD | B193: =VLOOKUP($AA193,DATA!$B$3:$E$6,2,0) -> 14:30:00 | C193: =VLOOKUP($AA193,DATA!$B$3:$E$6,3,0) -> 22:30:00 | D193: =VLOOKUP($AA193,DATA!$B$3:$E$6,4,0) -> 0.03125 | E193: 0.3020833333 | F193: 0.3020833333 | G193: =DATA!$C$9 -> 0.89 | H193: =DATA!$C$10 -> 64 | I193: 1 | J193: 407.8125 | K193: 407.8125 | L193: 0 | O193: 0 | R193: 0 | X193: =X184 -> 9 | Z193: =TEXT(Y192,"ddd") -> zo | AA193: MD | AB193: =IFERROR(HLOOKUP(Y192,[1]DATA!$A$1:$NB$5,4,0),"") -> - | AG193: 0
A194: 9zoZND | B194: =VLOOKUP($AA194,DATA!$B$3:$E$6,2,0) -> 00:00:00 | C194: =VLOOKUP($AA194,DATA!$B$3:$E$6,3,0) -> 00:00:00 | D194: =VLOOKUP($AA194,DATA!$B$3:$E$6,4,0) -> 0.03125 | E194: -0.03125 | F194: -0.03125 | G194: =DATA!$C$9 -> 0.89 | H194: =DATA!$C$10 -> 64 | I194: 1 | J194: -42.1875 | K194: -42.1875 | L194: 0 | O194: 0 | R194: 0 | X194: =X184 -> 9 | Z194: =TEXT(Y192,"ddd") -> zo | AA194: ZND | AB194: =IFERROR(HLOOKUP(Y192,[1]DATA!$A$1:$NB$5,5,0),"") -> D2 | AG194: 0
A195: 10maDD | B195: =VLOOKUP($AA195,DATA!$B$3:$E$6,2,0) -> 06:30:00 | C195: =VLOOKUP($AA195,DATA!$B$3:$E$6,3,0) -> 14:30:00 | D195: =VLOOKUP($AA195,DATA!$B$3:$E$6,4,0) -> 0.03125 | E195: 0.3020833333 | F195: 0.175 | G195: =DATA!$C$9 -> 0.89 | H195: =DATA!$C$10 -> 64 | I195: 1 | J195: 236.25 | K195: 407.8125 | L195: 0.1270833333 | M195: 171.5625 | N195: 0.4206896552 | O195: =TIME(INT($AD195/60),INT(MOD($AD195,60)/1),0) -> 0 | R195: 316.8 | S195: 283 | T195: 283 | X195: =X205 -> 10 | Y195: =Y192+1 -> 2018-03-05 | Z195: =TEXT(Y195,"ddd") -> ma | AA195: DD | AB195: =IFERROR(HLOOKUP(Y195,[1]DATA!$A$1:$NB$5,3,0),"") -> D1 | AC195: 183 | AE195: 14 | AF195: 297 | AG195: 2 | AH195: 18.625 | AI195: 0.6491756272 | AJ195: 0.9937264743 | AK195: 4359.375 | AL195: 2954 | AM195: 0.6776200717 | AN195: 1126.875 | AO195: 0.2584946237 | AP195: 0 | AQ195: 0 | AR195: 0.9834718553 | AS195: 0.9851259881 | AU195: 0.9818177225 | AV195: 278.5 | AW195: 0.06388530466 | AX195: 297.0666667 | AY195: 62
A196: 10maMD | B196: =VLOOKUP($AA196,DATA!$B$3:$E$6,2,0) -> 14:30:00 | C196: =VLOOKUP($AA196,DATA!$B$3:$E$6,3,0) -> 22:30:00 | D196: =VLOOKUP($AA196,DATA!$B$3:$E$6,4,0) -> 0.03125 | E196: 0.3020833333 | F196: 0.21875 | G196: =DATA!$C$9 -> 0.89 | H196: =DATA!$C$10 -> 64 | I196: 1 | J196: 295.3125 | K196: 407.8125 | L196: 0.08333333333 | M196: 112.5 | N196: 0.275862069 | O196: =TIME(INT(AD196/60),INT(MOD(AD196,60)/1),0) -> 0 | R196: 366.9333333 | S196: 328 | V196: 328 | X196: =X205 -> 10 | Z196: =TEXT(Y195,"ddd") -> ma | AA196: MD | AB196: =IFERROR(HLOOKUP(Y195,[1]DATA!$A$1:$NB$5,4,0),"") -> D3 | AC196: 120 | AE196: 16 | AF196: 344 | AG196: 3 | AH196: 4.5625 | AI196: 0.7524014337 | AJ196: 0.9918904307
A197: 10maND | B197: =VLOOKUP($AA197,DATA!$B$3:$E$6,2,0) -> 22:30:00 | C197: =VLOOKUP($AA197,DATA!$B$3:$E$6,3,0) -> 06:30:00 | D197: =VLOOKUP($AA197,DATA!$B$3:$E$6,4,0) -> 0.03125 | E197: 0.3020833333 | F197: 0.3020833333 | G197: =DATA!$C$9 -> 0.89 | H197: =DATA!$C$10 -> 64 | I197: 1 | J197: 407.8125 | K197: 407.8125 | L197: 0 | O197: 0 | R197: 0 | X197: =X205 -> 10 | Z197: =TEXT(Y195,"ddd") -> ma | AA197: ND | AB197: =IFERROR(HLOOKUP(Y195,[1]DATA!$A$1:$NB$5,5,0),"") -> D2 | AG197: 0
A198: 10diDD | B198: =VLOOKUP($AA198,DATA!$B$3:$E$6,2,0) -> 06:30:00 | C198: =VLOOKUP($AA198,DATA!$B$3:$E$6,3,0) -> 14:30:00 | D198: =VLOOKUP($AA198,DATA!$B$3:$E$6,4,0) -> 0.03125 | E198: 0.3020833333 | F198: 0.18125 | G198: =DATA!$C$9 -> 0.89 | H198: =DATA!$C$10 -> 64 | I198: 1 | J198: =F198*86400/H198*I198 -> 244.6875 | K198: =E198*86400/H198 -> 407.8125 | L198: 0.1208333333 | M198: 163.125 | N198: 0.4 | O198: 0 | R198: =AF198*AG$2 -> 248.5333333 | S198: =IF(AF198-AE198=0,"",AF198-AE198) -> 215 | T198: 215 | X198: =X205 -> 10 | Y198: =Y195+1 -> 2018-03-06 | Z198: =TEXT(Y198,"ddd") -> di | AA198: DD | AB198: =IFERROR(HLOOKUP(Y198,[1]DATA!$A$1:$NB$5,3,0),"") -> D1 | AC198: 174 | AE198: 18 | AF198: 233 | AG198: 0 | AH198: -57.8125 | AI198: 0.4931899642 | AJ198: 1
A199: 10diMD | B199: =VLOOKUP($AA199,DATA!$B$3:$E$6,2,0) -> 14:30:00 | C199: =VLOOKUP($AA199,DATA!$B$3:$E$6,3,0) -> 22:30:00 | D199: =VLOOKUP($AA199,DATA!$B$3:$E$6,4,0) -> 0.03125 | E199: 0.3020833333 | F199: 0.2 | G199: =DATA!$C$9 -> 0.89 | H199: =DATA!$C$10 -> 64 | I199: 1 | J199: 270 | K199: 407.8125 | L199: =TIME(INT($AC199/60),INT(MOD($AC199,60)/1),0) -> 0.1020833333 | M199: =IF($L199*86400/$H199=0,"",$L199*86400/$H199) -> 137.8125 | N199: =IFERROR($M199/$K199,"") -> 0.3379310345 | O199: 0 | Q199: =IFERROR($P199/$K199,"") ->  | R199: 354.1333333 | S199: 319 | T199: =IF(IF($AB199="D1",$S199,"")=0,"",IF($AB199="D1",$S199,"")) ->  | U199: =IF(IF($AB199="D2",$S199,"")=0,"",IF($AB199="D2",$S199,"")) ->  | V199: =IF(IF($AB199="D3",$S199,"")=0,"",IF($AB199="D3",$S199,"")) -> 319 | X199: =X205 -> 10 | Z199: =TEXT(Y198,"ddd") -> di | AA199: MD | AB199: =IFERROR(HLOOKUP(Y198,[1]DATA!$A$1:$NB$5,4,0),"") -> D3 | AC199: 147 | AE199: 13 | AF199: 332 | AG199: 6 | AH199: 20.875 | AI199: 0.7317562724 | AJ199: 0.9833395039
A200: 10diND | B200: =VLOOKUP($AA200,DATA!$B$3:$E$6,2,0) -> 22:30:00 | C200: =VLOOKUP($AA200,DATA!$B$3:$E$6,3,0) -> 06:30:00 | D200: =VLOOKUP($AA200,DATA!$B$3:$E$6,4,0) -> 0.03125 | E200: 0.3020833333 | F200: 0.3020833333 | G200: =DATA!$C$9 -> 0.89 | H200: =DATA!$C$10 -> 64 | I200: 1 | J200: 407.8125 | K200: 407.8125 | L200: 0 | O200: 0 | R200: 0 | X200: =X205 -> 10 | Z200: =TEXT(Y198,"ddd") -> di | AA200: ND | AB200: =IFERROR(HLOOKUP(Y198,[1]DATA!$A$1:$NB$5,5,0),"") -> D2 | AG200: 0
... 918 more rows

Sheet TA SRI RH
X1: =DATA!$C$16 -> SRI RH | AC1: TA Target | AE1: =DATA!$C$9 -> 0.89 | AP1: TA | AQ1: = | AR1: [ A ]
AC2: Cycle Time | AE2: =DATA!$C$10 -> 64 | AG2: =AE2/60 -> 1.066666667
AC3: Enter Data | AR3: [ T ] - [ BS ] - [ PS ]
A4: ID | B4: Shift Start Time | C4: Shift End Time | D4: Break Time | E4: Total Shift time [Hour] | F4: Available Production Time [Hour] | G4: Target [%] | H4: Cycle time [s] | I4: Target Ouput [56/H] | J4: Parts Target [56/H] | K4: Parts Target [100% Availability] | L4: Blocked / Starved [Hour] | M4: Loss Blocked/ Starved [Parts] | N4: Loss Blocked/ Starved [%] | O4: Planned Stop/ Early Finish [Hour] | P4: Loss Planned Stop/ Early Finish [Parts] | Q4: Loss Planned Stop/ Early Finish [%] | R4: Rekenkolom Benodigde tijd | S4: Produced Parts Actual | T4: Produced Parts Shift D1 | U4: Produced Parts Shift D2 | V4: Produced Parts Shift D3 | X4: Week | Y4: Date | Z4: Day | AA4: Shift | AB4: Shift | AC4: Blocked / Starved [Min] | AD4: Planned Stop / Early Finish [Min] | AE4: Parts during break | AF4: Produced Parts Total | AG4: Downtime Technical SAP[min] | AH4: Delta [Parts] | AI4: Availability (Total Time) [%] | AJ4: Technical Availabilty SRI RH [%] | AK4: Parts Target [100% Availability] | AL4: Parts Actual | AM4: Availability (Total Time) [%] | AN4: Loss Blocked/ Starved [Parts] | AO4: Loss Blocked/ Starved [%] | AP4: Loss Planned Stop/ Early Finish [Parts] | AQ4: Loss Planned Stop/ Early Finish [%] | AR4: Technical Availability Total LH [%] | AS4: Technical Availability Shift D1 [%] | AT4: Technical Availability Shift D2 [%] | AU4: Technical Availability Shift D3 [%] | AV4: Total Downtime [Parts] | AW4: Total Downtime [%] | AX4: Total Downtime [Min] | AY4: Geregistreerd SAP Technical Downtime [Min] | AZ4: Major Items Downtime
AK5: [T] | AL5: [A] | AN5: [BS] | AP5: [PS] | AS5: D1 | AT5: D2 | AU5: D3
A6: =X6&Z6&AA6 -> 1maDD | B6: =VLOOKUP($AA6,DATA!$B$3:$E$6,2,0) -> 06:30:00 | C6: =VLOOKUP($AA6,DATA!$B$3:$E$6,3,0) -> 14:30:00 | D6: =VLOOKUP($AA6,DATA!$B$3:$E$6,4,0) -> 0.03125 | E6: =(C6-B6+(B6>C6))-D6 -> 0.3020833333 | F6: =E6-O6-L6 -> 0.3020833333 | G6: =DATA!$C$9 -> 0.89 | H6: =DATA!$C$10 -> 64 | I6: 1 | J6: =F6*86400/H6*I6 -> 407.8125 | K6: =E6*86400/H6 -> 407.8125 | L6: =TIME(INT($AC6/60),INT(MOD($AC6,60)/1),0) -> 0 | M6: =IF($L6*86400/$H6=0,"",$L6*86400/$H6) ->  | N6: =IFERROR($M6/$K6,"") ->  | O6: =TIME(INT($AD6/60),INT(MOD($AD6,60)/1),0) -> 0 | P6: =IF($O6*86400/$H6=0,"",$O6*86400/$H6) ->  | Q6: =IFERROR($P6/$K6,"") ->  | R6: =AF6*AG$2 -> 0 | S6: =IF(AF6-AE6=0,"",AF6-AE6) ->  | T6: =IF(IF($AB6="D1",$S6,"")=0,"",IF($AB6="D1",$S6,"")) ->  | U6: =IF(IF($AB6="D2",$S6,"")=0,"",IF($AB6="D2",$S6,"")) ->  | V6: =IF(IF($AB6="D3",$S6,"")=0,"",IF($AB6="D3",$S6,"")) ->  | X6: =X16 -> 1 | Y6: 2018-01-01 | Z6: =TEXT(Y6,"ddd") -> ma | AA6: DD | AB6: =IFERROR(HLOOKUP(Y6,[1]DATA!$A$1:$NB$5,3,0),"") -> D1 | AG6: 0 | AK6: 3487.5 | AL6: 2358 | AM6: 0.6761290323 | AN6: 865.3125 | AO6: 0.2481182796 | AP6: 65.625 | AQ6: 0.0188172043 | AR6: 0.9625117767 | AS6: 0.9588456214 | AU6: 0.966177932 | AV6: 198.5625 | AW6: 0.05693548387 | AX6: 211.8 | AY6: 106
A7: 1maMD | B7: =VLOOKUP($AA7,DATA!$B$3:$E$6,2,0) -> 14:30:00 | C7: =VLOOKUP($AA7,DATA!$B$3:$E$6,3,0) -> 22:30:00 | D7: =VLOOKUP($AA7,DATA!$B$3:$E$6,4,0) -> 0.03125 | E7: =(C7-B7+(B7>C7))-D7 -> 0.3020833333 | F7: =E7-O7-L7 -> 0.3020833333 | G7: =DATA!$C$9 -> 0.89 | H7: =DATA!$C$10 -> 64 | I7: 1 | J7: =F7*86400/H7*I7 -> 407.8125 | K7: =E7*86400/H7 -> 407.8125 | L7: =TIME(INT($AC7/60),INT(MOD($AC7,60)/1),0) -> 0 | M7: =IF($L7*86400/$H7=0,"",$L7*86400/$H7) ->  | N7: =IFERROR($M7/$K7,"") ->  | O7: =TIME(INT(AD7/60),INT(MOD(AD7,60)/1),0) -> 0 | Q7: =IFERROR($P7/$K7,"") ->  | R7: =AF7*AG$2 -> 0 | S7: =IF(AF7-AE7=0,"",AF7-AE7) ->  | T7: =IF(IF($AB7="D1",$S7,"")=0,"",IF($AB7="D1",$S7,"")) ->  | U7: =IF(IF($AB7="D2",$S7,"")=0,"",IF($AB7="D2",$S7,"")) ->  | V7: =IF(IF($AB7="D3",$S7,"")=0,"",IF($AB7="D3",$S7,"")) ->  | X7: =X16 -> 1 | Z7: =TEXT(Y6,"ddd") -> ma | AA7: MD | AB7: =IFERROR(HLOOKUP(Y6,[1]DATA!$A$1:$NB$5,4,0),"") -> D3 | AG7: 0
A8: 1maND | B8: =VLOOKUP($AA8,DATA!$B$3:$E$6,2,0) -> 22:30:00 | C8: =VLOOKUP($AA8,DATA!$B$3:$E$6,3,0) -> 06:30:00 | D8: =VLOOKUP($AA8,DATA!$B$3:$E$6,4,0) -> 0.03125 | E8: 0.3020833333 | F8: 0.3020833333 | G8: =DATA!$C$9 -> 0.89 | H8: =DATA!$C$10 -> 64 | I8: 1 | J8: 407.8125 | K8: 407.8125 | L8: 0 | O8: 0 | R8: 0 | X8: =X16 -> 1 | Z8: =TEXT(Y6,"ddd") -> ma | AA8: ND | AB8: =IFERROR(HLOOKUP(Y6,[1]DATA!$A$1:$NB$5,5,0),"") -> D2 | AG8: 0
A9: 1diDD | B9: =VLOOKUP($AA9,DATA!$B$3:$E$6,2,0) -> 06:30:00 | C9: =VLOOKUP($AA9,DATA!$B$3:$E$6,3,0) -> 14:30:00 | D9: =VLOOKUP($AA9,DATA!$B$3:$E$6,4,0) -> 0.03125 | E9: 0.3020833333 | F9: 0.2 | G9: =DATA!$C$9 -> 0.89 | H9: =DATA!$C$10 -> 64 | I9: 1 | J9: 270 | K9: 407.8125 | L9: 0.1020833333 | M9: 137.8125 | N9: 0.3379310345 | O9: 0 | R9: 297.6 | S9: 256 | T9: 256 | X9: =X16 -> 1 | Y9: =Y6+1 -> 2018-01-02 | Z9: =TEXT(Y9,"ddd") -> di | AA9: DD | AB9: =IFERROR(HLOOKUP(Y9,[1]DATA!$A$1:$NB$5,3,0),"") -> D1 | AC9: 147 | AE9: 23 | AF9: 279 | AG9: 0 | AH9: -42.125 | AI9: 0.5872401434 | AJ9: 1
A10: 1diMD | B10: =VLOOKUP($AA10,DATA!$B$3:$E$6,2,0) -> 14:30:00 | C10: =VLOOKUP($AA10,DATA!$B$3:$E$6,3,0) -> 22:30:00 | D10: =VLOOKUP($AA10,DATA!$B$3:$E$6,4,0) -> 0.03125 | E10: 0.3020833333 | F10: 0.2465277778 | G10: =DATA!$C$9 -> 0.89 | H10: =DATA!$C$10 -> 64 | I10: 1 | J10: 332.8125 | K10: 407.8125 | L10: 0.05555555556 | M10: 75 | N10: 0.183908046 | O10: 0 | R10: 359.4666667 | S10: 312 | V10: 312 | X10: =X16 -> 1 | Z10: =TEXT(Y9,"ddd") -> di | AA10: MD | AB10: =IFERROR(HLOOKUP(Y9,[1]DATA!$A$1:$NB$5,4,0),"") -> D3 | AC10: 80 | AE10: 25 | AF10: 337 | AG10: 17 | AH10: -48.9375 | AI10: 0.7156989247 | AJ10: 0.9548432796
A11: 1diND | B11: =VLOOKUP($AA11,DATA!$B$3:$E$6,2,0) -> 22:30:00 | C11: =VLOOKUP($AA11,DATA!$B$3:$E$6,3,0) -> 06:30:00 | D11: =VLOOKUP($AA11,DATA!$B$3:$E$6,4,0) -> 0.03125 | E11: 0.3020833333 | F11: 0.3020833333 | G11: =DATA!$C$9 -> 0.89 | H11: =DATA!$C$10 -> 64 | I11: 1 | J11: 407.8125 | K11: 407.8125 | L11: 0 | O11: 0 | R11: 0 | X11: =X16 -> 1 | Z11: =TEXT(Y9,"ddd") -> di | AA11: ND | AB11: =IFERROR(HLOOKUP(Y9,[1]DATA!$A$1:$NB$5,5,0),"") -> D2 | AG11: 0
A12: 1woDD | B12: =VLOOKUP($AA12,DATA!$B$3:$E$6,2,0) -> 06:30:00 | C12: =VLOOKUP($AA12,DATA!$B$3:$E$6,3,0) -> 14:30:00 | D12: =VLOOKUP($AA12,DATA!$B$3:$E$6,4,0) -> 0.03125 | E12: 0.3020833333 | F12: 0.2520833333 | G12: =DATA!$C$9 -> 0.89 | H12: =DATA!$C$10 -> 64 | I12: 1 | J12: 340.3125 | K12: 407.8125 | L12: 0.05 | M12: 67.5 | N12: 0.1655172414 | O12: 0 | R12: 366.9333333 | S12: 326 | T12: 326 | X12: =X16 -> 1 | Y12: =Y9+1 -> 2018-01-03 | Z12: =TEXT(Y12,"ddd") -> wo | AA12: DD | AB12: =IFERROR(HLOOKUP(Y12,[1]DATA!$A$1:$NB$5,3,0),"") -> D1 | AC12: 72 | AE12: 18 | AF12: 344 | AG12: 12 | AH12: -42.4375 | AI12: 0.7478136201 | AJ12: 0.9683321605
A13: 1woMD | B13: =VLOOKUP($AA13,DATA!$B$3:$E$6,2,0) -> 14:30:00 | C13: =VLOOKUP($AA13,DATA!$B$3:$E$6,3,0) -> 22:30:00 | D13: =VLOOKUP($AA13,DATA!$B$3:$E$6,4,0) -> 0.03125 | E13: 0.3020833333 | F13: 0.2444444444 | G13: =DATA!$C$9 -> 0.89 | H13: =DATA!$C$10 -> 64 | I13: 1 | J13: 330 | K13: 407.8125 | L13: 0.05763888889 | M13: 77.8125 | N13: 0.1908045977 | O13: 0 | R13: 377.6 | S13: 336 | V13: 336 | X13: =X16 -> 1 | Z13: =TEXT(Y12,"ddd") -> wo | AA13: MD | AB13: =IFERROR(HLOOKUP(Y12,[1]DATA!$A$1:$NB$5,4,0),"") -> D3 | AC13: 83 | AE13: 18 | AF13: 354 | AG13: 15 | AH13: -22.125 | AI13: 0.7707526882 | AJ13: 0.9617931737
A14: 1woND | B14: =VLOOKUP($AA14,DATA!$B$3:$E$6,2,0) -> 22:30:00 | C14: =VLOOKUP($AA14,DATA!$B$3:$E$6,3,0) -> 06:30:00 | D14: =VLOOKUP($AA14,DATA!$B$3:$E$6,4,0) -> 0.03125 | E14: 0.3020833333 | F14: 0.3020833333 | G14: =DATA!$C$9 -> 0.89 | H14: =DATA!$C$10 -> 64 | I14: 1 | J14: 407.8125 | K14: 407.8125 | L14: 0 | O14: 0 | R14: 0 | X14: =X16 -> 1 | Z14: =TEXT(Y12,"ddd") -> wo | AA14: ND | AB14: =IFERROR(HLOOKUP(Y12,[1]DATA!$A$1:$NB$5,5,0),"") -> D2 | AG14: 0
A15: 1doDD | B15: =VLOOKUP($AA15,DATA!$B$3:$E$6,2,0) -> 06:30:00 | C15: =VLOOKUP($AA15,DATA!$B$3:$E$6,3,0) -> 14:30:00 | D15: =VLOOKUP($AA15,DATA!$B$3:$E$6,4,0) -> 0.03125 | E15: 0.3020833333 | F15: 0.1743055556 | G15: =DATA!$C$9 -> 0.89 | H15: =DATA!$C$10 -> 64 | I15: 1 | J15: 235.3125 | K15: 407.8125 | L15: 0.1277777778 | M15: 172.5 | N15: 0.4229885057 | O15: 0 | R15: 300.8 | S15: 260 | T15: 260 | X15: =X16 -> 1 | Y15: =Y12+1 -> 2018-01-04 | Z15: =TEXT(Y15,"ddd") -> do | AA15: DD | AB15: =IFERROR(HLOOKUP(Y15,[1]DATA!$A$1:$NB$5,3,0),"") -> D1 | AC15: 184 | AE15: 22 | AF15: 282 | AG15: 9 | AH15: -3.4375 | AI15: 0.5964157706 | AJ15: 0.9709489994
A16: 1doMD | B16: =VLOOKUP($AA16,DATA!$B$3:$E$6,2,0) -> 14:30:00 | C16: =VLOOKUP($AA16,DATA!$B$3:$E$6,3,0) -> 22:30:00 | D16: =VLOOKUP($AA16,DATA!$B$3:$E$6,4,0) -> 0.03125 | E16: 0.3020833333 | F16: 0.2145833333 | G16: =DATA!$C$9 -> 0.89 | H16: =DATA!$C$10 -> 64 | I16: 1 | J16: 289.6875 | K16: 407.8125 | L16: 0.0875 | M16: 118.125 | N16: 0.2896551724 | O16: 0 | R16: 342.4 | S16: 309 | V16: 309 | X16: =WEEKNUM($Y6) -> 1 | Z16: =TEXT(Y15,"ddd") -> do | AA16: MD | AB16: =IFERROR(HLOOKUP(Y15,[1]DATA!$A$1:$NB$5,4,0),"") -> D3 | AC16: 126 | AE16: 12 | AF16: 321 | AG16: 10 | AH16: -8.8125 | AI16: 0.7088172043 | AJ16: 0.9716231555
A17: 1doND | B17: =VLOOKUP($AA17,DATA!$B$3:$E$6,2,0) -> 22:30:00 | C17: =VLOOKUP($AA17,DATA!$B$3:$E$6,3,0) -> 06:30:00 | D17: =VLOOKUP($AA17,DATA!$B$3:$E$6,4,0) -> 0.03125 | E17: 0.3020833333 | F17: 0.3020833333 | G17: =DATA!$C$9 -> 0.89 | H17: =DATA!$C$10 -> 64 | I17: 1 | J17: 407.8125 | K17: 407.8125 | L17: 0 | O17: 0 | R17: 0 | X17: =X16 -> 1 | Z17: =TEXT(Y15,"ddd") -> do | AA17: ND | AB17: =IFERROR(HLOOKUP(Y15,[1]DATA!$A$1:$NB$5,5,0),"") -> D2 | AG17: 0
A18: 1vrDD | B18: =VLOOKUP($AA18,DATA!$B$3:$E$6,2,0) -> 06:30:00 | C18: =VLOOKUP($AA18,DATA!$B$3:$E$6,3,0) -> 14:30:00 | D18: =VLOOKUP($AA18,DATA!$B$3:$E$6,4,0) -> 0.03125 | E18: 0.3020833333 | F18: 0.1923611111 | G18: =DATA!$C$9 -> 0.89 | H18: =DATA!$C$10 -> 64 | I18: 1 | J18: 259.6875 | K18: 407.8125 | L18: 0.075 | M18: 101.25 | N18: 0.2482758621 | O18: 0.03472222222 | P18: 46.875 | Q18: 0.1149425287 | R18: 301.8666667 | S18: 266 | T18: 266 | X18: =X16 -> 1 | Y18: =Y15+1 -> 2018-01-05 | Z18: =TEXT(Y18,"ddd") -> vr | AA18: DD | AB18: =IFERROR(HLOOKUP(Y18,[1]DATA!$A$1:$NB$5,3,0),"") -> D1 | AC18: 108 | AD18: 50 | AE18: 17 | AF18: 283 | AG18: 35 | AH18: -21.8125 | AI18: 0.6101792115 | AJ18: 0.8961013259
A19: 1vrMD | B19: =VLOOKUP($AA19,DATA!$B$3:$E$6,2,0) -> 14:30:00 | C19: =VLOOKUP($AA19,DATA!$B$3:$E$6,3,0) -> 22:30:00 | D19: =VLOOKUP($AA19,DATA!$B$3:$E$6,4,0) -> 0.03125 | E19: 0.3020833333 | F19: 0.2027777778 | G19: =DATA!$C$9 -> 0.89 | H19: =DATA!$C$10 -> 64 | I19: 1 | J19: 273.75 | K19: 407.8125 | L19: 0.08541666667 | M19: 115.3125 | N19: 0.2827586207 | O19: 0.01388888889 | P19: 18.75 | Q19: 0.04597701149 | R19: 331.7333333 | S19: 293 | V19: 293 | X19: =X16 -> 1 | Z19: =TEXT(Y18,"ddd") -> vr | AA19: MD | AB19: =IFERROR(HLOOKUP(Y18,[1]DATA!$A$1:$NB$5,4,0),"") -> D3 | AC19: 123 | AD19: 20 | AE19: 18 | AF19: 311 | AG19: 8 | AH19: -8.875 | AI19: 0.6721146953 | AJ19: 0.9764521193
A20: 1vrND | B20: =VLOOKUP($AA20,DATA!$B$3:$E$6,2,0) -> 22:30:00 | C20: =VLOOKUP($AA20,DATA!$B$3:$E$6,3,0) -> 06:30:00 | D20: =VLOOKUP($AA20,DATA!$B$3:$E$6,4,0) -> 0.03125 | E20: 0.3020833333 | F20: 0.3020833333 | G20: =DATA!$C$9 -> 0.89 | H20: =DATA!$C$10 -> 64 | I20: 1 | J20: 407.8125 | K20: 407.8125 | L20: 0 | O20: 0 | R20: 0 | X20: =X16 -> 1 | Z20: =TEXT(Y18,"ddd") -> vr | AA20: ND | AB20: =IFERROR(HLOOKUP(Y18,[1]DATA!$A$1:$NB$5,5,0),"") -> - | AG20: 0
A21: 1zaDD | B21: =VLOOKUP($AA21,DATA!$B$3:$E$6,2,0) -> 06:30:00 | C21: =VLOOKUP($AA21,DATA!$B$3:$E$6,3,0) -> 14:30:00 | D21: =VLOOKUP($AA21,DATA!$B$3:$E$6,4,0) -> 0.03125 | E21: 0.3020833333 | F21: 0.3020833333 | G21: =DATA!$C$9 -> 0.89 | H21: =DATA!$C$10 -> 64 | I21: 1 | J21: 407.8125 | K21: 407.8125 | L21: 0 | O21: 0 | R21: 0 | X21: =X16 -> 1 | Y21: =Y18+1 -> 2018-01-06 | Z21: =TEXT(Y21,"ddd") -> za | AA21: DD | AB21: =IFERROR(HLOOKUP(Y21,[1]DATA!$A$1:$NB$5,3,0),"") -> - | AG21: 0
A22: 1zaMD | B22: =VLOOKUP($AA22,DATA!$B$3:$E$6,2,0) -> 14:30:00 | C22: =VLOOKUP($AA22,DATA!$B$3:$E$6,3,0) -> 22:30:00 | D22: =VLOOKUP($AA22,DATA!$B$3:$E$6,4,0) -> 0.03125 | E22: 0.3020833333 | F22: 0.3020833333 | G22: =DATA!$C$9 -> 0.89 | H22: =DATA!$C$10 -> 64 | I22: 1 | J22: 407.8125 | K22: 407.8125 | L22: 0 | O22: 0 | R22: 0 | X22: =X16 -> 1 | Z22: =TEXT(Y21,"ddd") -> za | AA22: MD | AB22: =IFERROR(HLOOKUP(Y21,[1]DATA!$A$1:$NB$5,4,0),"") -> - | AG22: 0
A23: 1zaND | B23: =VLOOKUP($AA23,DATA!$B$3:$E$6,2,0) -> 22:30:00 | C23: =VLOOKUP($AA23,DATA!$B$3:$E$6,3,0) -> 06:30:00 | D23: =VLOOKUP($AA23,DATA!$B$3:$E$6,4,0) -> 0.03125 | E23: 0.3020833333 | F23: 0.3020833333 | G23: =DATA!$C$9 -> 0.89 | H23: =DATA!$C$10 -> 64 | I23: 1 | J23: 407.8125 | K23: 407.8125 | L23: 0 | O23: 0 | R23: 0 | X23: =X16 -> 1 | Z23: =TEXT(Y21,"ddd") -> za | AA23: ND | AB23: =IFERROR(HLOOKUP(Y21,[1]DATA!$A$1:$NB$5,5,0),"") -> - | AG23: 0
A24: 1zoDD | B24: =VLOOKUP($AA24,DATA!$B$3:$E$6,2,0) -> 06:30:00 | C24: =VLOOKUP($AA24,DATA!$B$3:$E$6,3,0) -> 14:30:00 | D24: =VLOOKUP($AA24,DATA!$B$3:$E$6,4,0) -> 0.03125 | E24: 0.3020833333 | F24: 0.3020833333 | G24: =DATA!$C$9 -> 0.89 | H24: =DATA!$C$10 -> 64 | I24: 1 | J24: 407.8125 | K24: 407.8125 | L24: 0 | O24: 0 | R24: 0 | X24: =X16 -> 1 | Y24: =Y21+1 -> 2018-01-07 | Z24: =TEXT(Y24,"ddd") -> zo | AA24: DD | AB24: =IFERROR(HLOOKUP(Y24,[1]DATA!$A$1:$NB$5,3,0),"") -> - | AG24: 0
A25: 1zoMD | B25: =VLOOKUP($AA25,DATA!$B$3:$E$6,2,0) -> 14:30:00 | C25: =VLOOKUP($AA25,DATA!$B$3:$E$6,3,0) -> 22:30:00 | D25: =VLOOKUP($AA25,DATA!$B$3:$E$6,4,0) -> 0.03125 | E25: 0.3020833333 | F25: 0.3020833333 | G25: =DATA!$C$9 -> 0.89 | H25: =DATA!$C$10 -> 64 | I25: 1 | J25: 407.8125 | K25: 407.8125 | L25: 0 | O25: 0 | R25: 0 | X25: =X16 -> 1 | Z25: =TEXT(Y24,"ddd") -> zo | AA25: MD | AB25: =IFERROR(HLOOKUP(Y24,[1]DATA!$A$1:$NB$5,4,0),"") -> - | AG25: 0
A26: 1zoZND | B26: =VLOOKUP($AA26,DATA!$B$3:$E$6,2,0) -> 00:00:00 | C26: =VLOOKUP($AA26,DATA!$B$3:$E$6,3,0) -> 00:00:00 | D26: =VLOOKUP($AA26,DATA!$B$3:$E$6,4,0) -> 0.03125 | E26: -0.03125 | F26: -0.03125 | G26: =DATA!$C$9 -> 0.89 | H26: =DATA!$C$10 -> 64 | I26: 1 | J26: -42.1875 | K26: -42.1875 | L26: 0 | O26: 0 | R26: 0 | X26: =X16 -> 1 | Z26: =TEXT(Y24,"ddd") -> zo | AA26: ZND | AB26: =IFERROR(HLOOKUP(Y24,[1]DATA!$A$1:$NB$5,5,0),"") -> D1 | AG26: 0
A27: 2maDD | B27: =VLOOKUP($AA27,DATA!$B$3:$E$6,2,0) -> 06:30:00 | C27: =VLOOKUP($AA27,DATA!$B$3:$E$6,3,0) -> 14:30:00 | D27: =VLOOKUP($AA27,DATA!$B$3:$E$6,4,0) -> 0.03125 | E27: 0.3020833333 | F27: 0.125 | G27: =DATA!$C$9 -> 0.89 | H27: =DATA!$C$10 -> 64 | I27: 1 | J27: =F27*86400/H27*I27 -> 168.75 | K27: =E27*86400/H27 -> 407.8125 | L27: =TIME(INT($AC27/60),INT(MOD($AC27,60)/1),0) -> 0.1284722222 | M27: =IF($L27*86400/$H27=0,"",$L27*86400/$H27) -> 173.4375 | N27: =IFERROR($M27/$K27,"") -> 0.4252873563 | O27: =TIME(INT($AD27/60),INT(MOD($AD27,60)/1),0) -> 0.04861111111 | P27: 65.625 | Q27: =IFERROR($P27/$K27,"") -> 0.1609195402 | R27: =AF27*AG$2 -> 227.2 | S27: =IF(AF27-AE27=0,"",AF27-AE27) -> 200 | T27: =IF(IF($AB27="D1",$S27,"")=0,"",IF($AB27="D1",$S27,"")) ->  | U27: =IF(IF($AB27="D2",$S27,"")=0,"",IF($AB27="D2",$S27,"")) ->  | V27: =IF(IF($AB27="D3",$S27,"")=0,"",IF($AB27="D3",$S27,"")) -> 200 | X27: =X37 -> 2 | Y27: =Y24+1 -> 2018-01-08 | Z27: =TEXT(Y27,"ddd") -> ma | AA27: DD | AB27: =IFERROR(HLOOKUP(Y27,[1]DATA!$A$1:$NB$5,3,0),"") -> D3 | AC27: 185 | AD27: 70 | AE27: 13 | AF27: 213 | AG27: 0 | AH27: 3.125 | AI27: 0.458781362 | AJ27: 1 | AK27: 4359.375 | AL27: 3128 | AM27: 0.7175340502 | AN27: 952.5 | AO27: 0.2184946237 | AP27: 65.625 | AQ27: 0.01505376344 | AR27: 0.9834766884 | AT27: 0.9747289978 | AU27: 0.992224379 | AV27: 213.25 | AW27: 0.04891756272 | AX27: 227.4666667 | AY27: 68
A28: 2maMD | B28: =VLOOKUP($AA28,DATA!$B$3:$E$6,2,0) -> 14:30:00 | C28: =VLOOKUP($AA28,DATA!$B$3:$E$6,3,0) -> 22:30:00 | D28: =VLOOKUP($AA28,DATA!$B$3:$E$6,4,0) -> 0.03125 | E28: =(C28-B28+(B28>C28))-D28 -> 0.3020833333 | F28: =E28-O28-L28 -> 0.2111111111 | G28: =DATA!$C$9 -> 0.89 | H28: =DATA!$C$10 -> 64 | I28: 1 | J28: =F28*86400/H28*I28 -> 285 | K28: =E28*86400/H28 -> 407.8125 | L28: 0.09097222222 | M28: 122.8125 | N28: 0.3011494253 | O28: =TIME(INT(AD28/60),INT(MOD(AD28,60)/1),0) -> 0 | R28: =AF28*AG$2 -> 359.4666667 | S28: =IF(AF28-AE28=0,"",AF28-AE28) -> 320 | U28: 320 | X28: =X37 -> 2 | Z28: =TEXT(Y27,"ddd") -> ma | AA28: MD | AB28: =IFERROR(HLOOKUP(Y27,[1]DATA!$A$1:$NB$5,4,0),"") -> D2 | AC28: 131 | AE28: 17 | AF28: 337 | AG28: 0 | AH28: 6.875 | AI28: 0.7340501792 | AJ28: 1
A29: 2maND | B29: =VLOOKUP($AA29,DATA!$B$3:$E$6,2,0) -> 22:30:00 | C29: =VLOOKUP($AA29,DATA!$B$3:$E$6,3,0) -> 06:30:00 | D29: =VLOOKUP($AA29,DATA!$B$3:$E$6,4,0) -> 0.03125 | E29: 0.3020833333 | F29: 0.3020833333 | G29: =DATA!$C$9 -> 0.89 | H29: =DATA!$C$10 -> 64 | I29: 1 | J29: 407.8125 | K29: 407.8125 | L29: 0 | O29: 0 | R29: 0 | X29: =X37 -> 2 | Z29: =TEXT(Y27,"ddd") -> ma | AA29: ND | AB29: =IFERROR(HLOOKUP(Y27,[1]DATA!$A$1:$NB$5,5,0),"") -> D1 | AG29: 0
A30: 2diDD | B30: =VLOOKUP($AA30,DATA!$B$3:$E$6,2,0) -> 06:30:00 | C30: =VLOOKUP($AA30,DATA!$B$3:$E$6,3,0) -> 14:30:00 | D30: =VLOOKUP($AA30,DATA!$B$3:$E$6,4,0) -> 0.03125 | E30: 0.3020833333 | F30: 0.1847222222 | G30: =DATA!$C$9 -> 0.89 | H30: =DATA!$C$10 -> 64 | I30: 1 | J30: 249.375 | K30: 407.8125 | L30: 0.1173611111 | M30: 158.4375 | N30: 0.3885057471 | O30: 0 | R30: 330.6666667 | S30: 287 | V30: 287 | X30: =X37 -> 2 | Y30: =Y27+1 -> 2018-01-09 | Z30: =TEXT(Y30,"ddd") -> di | AA30: DD | AB30: =IFERROR(HLOOKUP(Y30,[1]DATA!$A$1:$NB$5,3,0),"") -> D3 | AC30: 169 | AE30: 23 | AF30: 310 | AG30: 3 | AH30: 9.5 | AI30: 0.6583512545 | AJ30: 0.991008991
A31: 2diMD | B31: =VLOOKUP($AA31,DATA!$B$3:$E$6,2,0) -> 14:30:00 | C31: =VLOOKUP($AA31,DATA!$B$3:$E$6,3,0) -> 22:30:00 | D31: =VLOOKUP($AA31,DATA!$B$3:$E$6,4,0) -> 0.03125 | E31: 0.3020833333 | F31: 0.21875 | G31: =DATA!$C$9 -> 0.89 | H31: =DATA!$C$10 -> 64 | I31: 1 | J31: 295.3125 | K31: 407.8125 | L31: 0.08333333333 | M31: 112.5 | N31: 0.275862069 | O31: 0 | R31: 349.8666667 | S31: 314 | U31: 314 | X31: =X37 -> 2 | Z31: =TEXT(Y30,"ddd") -> di | AA31: MD | AB31: =IFERROR(HLOOKUP(Y30,[1]DATA!$A$1:$NB$5,4,0),"") -> D2 | AC31: 120 | AE31: 14 | AF31: 328 | AG31: 0 | AH31: -9.4375 | AI31: 0.7202867384 | AJ31: 1
A32: 2diND | B32: =VLOOKUP($AA32,DATA!$B$3:$E$6,2,0) -> 22:30:00 | C32: =VLOOKUP($AA32,DATA!$B$3:$E$6,3,0) -> 06:30:00 | D32: =VLOOKUP($AA32,DATA!$B$3:$E$6,4,0) -> 0.03125 | E32: 0.3020833333 | F32: 0.3020833333 | G32: =DATA!$C$9 -> 0.89 | H32: =DATA!$C$10 -> 64 | I32: 1 | J32: 407.8125 | K32: 407.8125 | L32: 0 | O32: 0 | R32: 0 | X32: =X37 -> 2 | Z32: =TEXT(Y30,"ddd") -> di | AA32: ND | AB32: =IFERROR(HLOOKUP(Y30,[1]DATA!$A$1:$NB$5,5,0),"") -> D1 | AG32: 0
A33: 2woDD | B33: =VLOOKUP($AA33,DATA!$B$3:$E$6,2,0) -> 06:30:00 | C33: =VLOOKUP($AA33,DATA!$B$3:$E$6,3,0) -> 14:30:00 | D33: =VLOOKUP($AA33,DATA!$B$3:$E$6,4,0) -> 0.03125 | E33: 0.3020833333 | F33: 0.2972222222 | G33: =DATA!$C$9 -> 0.89 | H33: =DATA!$C$10 -> 64 | I33: 1 | J33: 401.25 | K33: 407.8125 | L33: 0.004861111111 | M33: 6.5625 | N33: 0.01609195402 | O33: 0 | R33: 404.2666667 | S33: 368 | V33: 368 | X33: =X37 -> 2 | Y33: =Y30+1 -> 2018-01-10 | Z33: =TEXT(Y33,"ddd") -> wo | AA33: DD | AB33: =IFERROR(HLOOKUP(Y33,[1]DATA!$A$1:$NB$5,3,0),"") -> D3 | AC33: 7 | AE33: 11 | AF33: 379 | AG33: 8 | AH33: -61.375 | AI33: 0.8441577061 | AJ33: 0.9805950841
A34: 2woMD | B34: =VLOOKUP($AA34,DATA!$B$3:$E$6,2,0) -> 14:30:00 | C34: =VLOOKUP($AA34,DATA!$B$3:$E$6,3,0) -> 22:30:00 | D34: =VLOOKUP($AA34,DATA!$B$3:$E$6,4,0) -> 0.03125 | E34: 0.3020833333 | F34: 0.20625 | G34: =DATA!$C$9 -> 0.89 | H34: =DATA!$C$10 -> 64 | I34: 1 | J34: 278.4375 | K34: 407.8125 | L34: 0.09583333333 | M34: 129.375 | N34: 0.3172413793 | O34: 0 | R34: 333.8666667 | S34: 302 | U34: 302 | X34: =X37 -> 2 | Z34: =TEXT(Y33,"ddd") -> wo | AA34: MD | AB34: =IFERROR(HLOOKUP(Y33,[1]DATA!$A$1:$NB$5,4,0),"") -> D2 | AC34: 138 | AE34: 11 | AF34: 313 | AG34: 0 | AH34: -4.5625 | AI34: 0.6927598566 | AJ34: 1
A35: 2woND | B35: =VLOOKUP($AA35,DATA!$B$3:$E$6,2,0) -> 22:30:00 | C35: =VLOOKUP($AA35,DATA!$B$3:$E$6,3,0) -> 06:30:00 | D35: =VLOOKUP($AA35,DATA!$B$3:$E$6,4,0) -> 0.03125 | E35: 0.3020833333 | F35: 0.3020833333 | G35: =DATA!$C$9 -> 0.89 | H35: =DATA!$C$10 -> 64 | I35: 1 | J35: 407.8125 | K35: 407.8125 | L35: 0 | O35: 0 | R35: 0 | X35: =X37 -> 2 | Z35: =TEXT(Y33,"ddd") -> wo | AA35: ND | AB35: =IFERROR(HLOOKUP(Y33,[1]DATA!$A$1:$NB$5,5,0),"") -> D1 | AG35: 0
A36: 2doDD | B36: =VLOOKUP($AA36,DATA!$B$3:$E$6,2,0) -> 06:30:00 | C36: =VLOOKUP($AA36,DATA!$B$3:$E$6,3,0) -> 14:30:00 | D36: =VLOOKUP($AA36,DATA!$B$3:$E$6,4,0) -> 0.03125 | E36: 0.3020833333 | F36: 0.2548611111 | G36: =DATA!$C$9 -> 0.89 | H36: =DATA!$C$10 -> 64 | I36: 1 | J36: 344.0625 | K36: 407.8125 | L36: 0.04722222222 | M36: 63.75 | N36: 0.1563218391 | O36: 0 | R36: 392.5333333 | S36: 345 | V36: 345 | X36: =X37 -> 2 | Y36: =Y33+1 -> 2018-01-11 | Z36: =TEXT(Y36,"ddd") -> do | AA36: DD | AB36: =IFERROR(HLOOKUP(Y36,[1]DATA!$A$1:$NB$5,3,0),"") -> D3 | AC36: 68 | AE36: 23 | AF36: 368 | AG36: 0 | AH36: -27.1875 | AI36: 0.7913978495 | AJ36: 1
A37: 2doMD | B37: =VLOOKUP($AA37,DATA!$B$3:$E$6,2,0) -> 14:30:00 | C37: =VLOOKUP($AA37,DATA!$B$3:$E$6,3,0) -> 22:30:00 | D37: =VLOOKUP($AA37,DATA!$B$3:$E$6,4,0) -> 0.03125 | E37: 0.3020833333 | F37: 0.2534722222 | G37: =DATA!$C$9 -> 0.89 | H37: =DATA!$C$10 -> 64 | I37: 1 | J37: 342.1875 | K37: 407.8125 | L37: 0.04861111111 | M37: 65.625 | N37: 0.1609195402 | O37: 0 | R37: 389.3333333 | S37: 357 | U37: 357 | X37: =WEEKNUM($Y27) -> 2 | Z37: =TEXT(Y36,"ddd") -> do | AA37: MD | AB37: =IFERROR(HLOOKUP(Y36,[1]DATA!$A$1:$NB$5,4,0),"") -> D2 | AC37: 70 | AE37: 8 | AF37: 365 | AG37: 3 | AH37: -13.3125 | AI37: 0.8189247312 | AJ37: 0.992353441
A38: 2doND | B38: =VLOOKUP($AA38,DATA!$B$3:$E$6,2,0) -> 22:30:00 | C38: =VLOOKUP($AA38,DATA!$B$3:$E$6,3,0) -> 06:30:00 | D38: =VLOOKUP($AA38,DATA!$B$3:$E$6,4,0) -> 0.03125 | E38: 0.3020833333 | F38: 0.3020833333 | G38: =DATA!$C$9 -> 0.89 | H38: =DATA!$C$10 -> 64 | I38: 1 | J38: 407.8125 | K38: 407.8125 | L38: 0 | O38: 0 | R38: 0 | X38: =X37 -> 2 | Z38: =TEXT(Y36,"ddd") -> do | AA38: ND | AB38: =IFERROR(HLOOKUP(Y36,[1]DATA!$A$1:$NB$5,5,0),"") -> D1 | AG38: 0
A39: 2vrDD | B39: =VLOOKUP($AA39,DATA!$B$3:$E$6,2,0) -> 06:30:00 | C39: =VLOOKUP($AA39,DATA!$B$3:$E$6,3,0) -> 14:30:00 | D39: =VLOOKUP($AA39,DATA!$B$3:$E$6,4,0) -> 0.03125 | E39: 0.3020833333 | F39: 0.2256944444 | G39: =DATA!$C$9 -> 0.89 | H39: =DATA!$C$10 -> 64 | I39: 1 | J39: 304.6875 | K39: 407.8125 | L39: 0.07638888889 | M39: 103.125 | N39: 0.2528735632 | O39: 0 | R39: 377.6 | S39: 328 | V39: 328 | X39: =X37 -> 2 | Y39: =Y36+1 -> 2018-01-12 | Z39: =TEXT(Y39,"ddd") -> vr | AA39: DD | AB39: =IFERROR(HLOOKUP(Y39,[1]DATA!$A$1:$NB$5,3,0),"") -> D3 | AC39: 110 | AE39: 26 | AF39: 354 | AG39: 4 | AH39: -4.8125 | AI39: 0.7524014337 | AJ39: 0.9895178197
A40: 2vrMD | B40: =VLOOKUP($AA40,DATA!$B$3:$E$6,2,0) -> 14:30:00 | C40: =VLOOKUP($AA40,DATA!$B$3:$E$6,3,0) -> 22:30:00 | D40: =VLOOKUP($AA40,DATA!$B$3:$E$6,4,0) -> 0.03125 | E40: 0.3020833333 | F40: 0.2895833333 | G40: =DATA!$C$9 -> 0.89 | H40: =DATA!$C$10 -> 64 | I40: 1 | J40: 390.9375 | K40: 407.8125 | L40: 0.0125 | M40: 16.875 | N40: 0.04137931034 | O40: 0 | R40: 371.2 | S40: 307 | U40: 307 | X40: =X37 -> 2 | Z40: =TEXT(Y39,"ddd") -> vr | AA40: MD | AB40: =IFERROR(HLOOKUP(Y39,[1]DATA!$A$1:$NB$5,4,0),"") -> D2 | AC40: 18 | AE40: 41 | AF40: 348 | AG40: 50 | AH40: -112.0625 | AI40: 0.7042293907 | AJ40: 0.881291548
A41: 2vrND | B41: =VLOOKUP($AA41,DATA!$B$3:$E$6,2,0) -> 22:30:00 | C41: =VLOOKUP($AA41,DATA!$B$3:$E$6,3,0) -> 06:30:00 | D41: =VLOOKUP($AA41,DATA!$B$3:$E$6,4,0) -> 0.03125 | E41: 0.3020833333 | F41: 0.3020833333 | G41: =DATA!$C$9 -> 0.89 | H41: =DATA!$C$10 -> 64 | I41: 1 | J41: 407.8125 | K41: 407.8125 | L41: 0 | O41: 0 | R41: 0 | X41: =X37 -> 2 | Z41: =TEXT(Y39,"ddd") -> vr | AA41: ND | AB41: =IFERROR(HLOOKUP(Y39,[1]DATA!$A$1:$NB$5,5,0),"") -> - | AG41: 0
A42: 2zaDD | B42: =VLOOKUP($AA42,DATA!$B$3:$E$6,2,0) -> 06:30:00 | C42: =VLOOKUP($AA42,DATA!$B$3:$E$6,3,0) -> 14:30:00 | D42: =VLOOKUP($AA42,DATA!$B$3:$E$6,4,0) -> 0.03125 | E42: 0.3020833333 | F42: 0.3020833333 | G42: =DATA!$C$9 -> 0.89 | H42: =DATA!$C$10 -> 64 | I42: 1 | J42: 407.8125 | K42: 407.8125 | L42: 0 | O42: 0 | R42: 0 | X42: =X37 -> 2 | Y42: =Y39+1 -> 2018-01-13 | Z42: =TEXT(Y42,"ddd") -> za | AA42: DD | AB42: =IFERROR(HLOOKUP(Y42,[1]DATA!$A$1:$NB$5,3,0),"") -> - | AG42: 0
A43: 2zaMD | B43: =VLOOKUP($AA43,DATA!$B$3:$E$6,2,0) -> 14:30:00 | C43: =VLOOKUP($AA43,DATA!$B$3:$E$6,3,0) -> 22:30:00 | D43: =VLOOKUP($AA43,DATA!$B$3:$E$6,4,0) -> 0.03125 | E43: 0.3020833333 | F43: 0.3020833333 | G43: =DATA!$C$9 -> 0.89 | H43: =DATA!$C$10 -> 64 | I43: 1 | J43: 407.8125 | K43: 407.8125 | L43: 0 | O43: 0 | R43: 0 | X43: =X37 -> 2 | Z43: =TEXT(Y42,"ddd") -> za | AA43: MD | AB43: =IFERROR(HLOOKUP(Y42,[1]DATA!$A$1:$NB$5,4,0),"") -> - | AG43: 0
A44: 2zaND | B44: =VLOOKUP($AA44,DATA!$B$3:$E$6,2,0) -> 22:30:00 | C44: =VLOOKUP($AA44,DATA!$B$3:$E$6,3,0) -> 06:30:00 | D44: =VLOOKUP($AA44,DATA!$B$3:$E$6,4,0) -> 0.03125 | E44: 0.3020833333 | F44: 0.3020833333 | G44: =DATA!$C$9 -> 0.89 | H44: =DATA!$C$10 -> 64 | I44: 1 | J44: 407.8125 | K44: 407.8125 | L44: 0 | O44: 0 | R44: 0 | X44: =X37 -> 2 | Z44: =TEXT(Y42,"ddd") -> za | AA44: ND | AB44: =IFERROR(HLOOKUP(Y42,[1]DATA!$A$1:$NB$5,5,0),"") -> - | AG44: 0
A45: 2zoDD | B45: =VLOOKUP($AA45,DATA!$B$3:$E$6,2,0) -> 06:30:00 | C45: =VLOOKUP($AA45,DATA!$B$3:$E$6,3,0) -> 14:30:00 | D45: =VLOOKUP($AA45,DATA!$B$3:$E$6,4,0) -> 0.03125 | E45: 0.3020833333 | F45: 0.3020833333 | G45: =DATA!$C$9 -> 0.89 | H45: =DATA!$C$10 -> 64 | I45: 1 | J45: 407.8125 | K45: 407.8125 | L45: 0 | O45: 0 | R45: 0 | X45: =X37 -> 2 | Y45: =Y42+1 -> 2018-01-14 | Z45: =TEXT(Y45,"ddd") -> zo | AA45: DD | AB45: =IFERROR(HLOOKUP(Y45,[1]DATA!$A$1:$NB$5,3,0),"") -> - | AG45: 0
A46: 2zoMD | B46: =VLOOKUP($AA46,DATA!$B$3:$E$6,2,0) -> 14:30:00 | C46: =VLOOKUP($AA46,DATA!$B$3:$E$6,3,0) -> 22:30:00 | D46: =VLOOKUP($AA46,DATA!$B$3:$E$6,4,0) -> 0.03125 | E46: 0.3020833333 | F46: 0.3020833333 | G46: =DATA!$C$9 -> 0.89 | H46: =DATA!$C$10 -> 64 | I46: 1 | J46: 407.8125 | K46: 407.8125 | L46: 0 | O46: 0 | R46: 0 | X46: =X37 -> 2 | Z46: =TEXT(Y45,"ddd") -> zo | AA46: MD | AB46: =IFERROR(HLOOKUP(Y45,[1]DATA!$A$1:$NB$5,4,0),"") -> - | AG46: 0
A47: 2zoZND | B47: =VLOOKUP($AA47,DATA!$B$3:$E$6,2,0) -> 00:00:00 | C47: =VLOOKUP($AA47,DATA!$B$3:$E$6,3,0) -> 00:00:00 | D47: =VLOOKUP($AA47,DATA!$B$3:$E$6,4,0) -> 0.03125 | E47: -0.03125 | F47: -0.03125 | G47: =DATA!$C$9 -> 0.89 | H47: =DATA!$C$10 -> 64 | I47: 1 | J47: -42.1875 | K47: -42.1875 | L47: 0 | O47: 0 | R47: 0 | X47: =X37 -> 2 | Z47: =TEXT(Y45,"ddd") -> zo | AA47: ZND | AB47: =IFERROR(HLOOKUP(Y45,[1]DATA!$A$1:$NB$5,5,0),"") -> D3 | AG47: 0
A48: =X48&Z48&AA48 -> 3maDD | B48: =VLOOKUP($AA48,DATA!$B$3:$E$6,2,0) -> 06:30:00 | C48: =VLOOKUP($AA48,DATA!$B$3:$E$6,3,0) -> 14:30:00 | D48: =VLOOKUP($AA48,DATA!$B$3:$E$6,4,0) -> 0.03125 | E48: 0.3020833333 | F48: 0.1951388889 | G48: =DATA!$C$9 -> 0.89 | H48: =DATA!$C$10 -> 64 | I48: 1 | J48: 263.4375 | K48: 407.8125 | L48: 0.1069444444 | M48: 144.375 | N48: 0.3540229885 | O48: =TIME(INT($AD48/60),INT(MOD($AD48,60)/1),0) -> 0 | P48: =IF($O48*86400/$H48=0,"",$O48*86400/$H48) ->  | R48: 347.7333333 | S48: 306 | U48: 306 | X48: =X58 -> 3 | Y48: =Y45+1 -> 2018-01-15 | Z48: =TEXT(Y48,"ddd") -> ma | AA48: DD | AB48: =IFERROR(HLOOKUP(Y48,[1]DATA!$A$1:$NB$5,3,0),"") -> D2 | AC48: 154 | AE48: 20 | AF48: 326 | AG48: 3 | AH48: 14.4375 | AI48: 0.7019354839 | AJ48: 0.9914464931 | AK48: 4359.375 | AL48: 2875 | AM48: 0.6594982079 | AN48: 1294.6875 | AO48: 0.2969892473 | AP48: 28.125 | AQ48: 0.006451612903 | AR48: 0.9710035103 | AS48: 0.9609490728 | AT48: 0.9810579478 | AV48: 161.5625 | AW48: 0.0370609319 | AX48: 172.3333333 | AY48: 111
A49: 3maMD | B49: =VLOOKUP($AA49,DATA!$B$3:$E$6,2,0) -> 14:30:00 | C49: =VLOOKUP($AA49,DATA!$B$3:$E$6,3,0) -> 22:30:00 | D49: =VLOOKUP($AA49,DATA!$B$3:$E$6,4,0) -> 0.03125 | E49: 0.3020833333 | F49: 0.2083333333 | G49: =DATA!$C$9 -> 0.89 | H49: =DATA!$C$10 -> 64 | I49: 1 | J49: 281.25 | K49: 407.8125 | L49: 0.09375 | M49: 126.5625 | N49: 0.3103448276 | O49: =TIME(INT(AD49/60),INT(MOD(AD49,60)/1),0) -> 0 | R49: 330.6666667 | S49: 302 | T49: 302 | X49: =X58 -> 3 | Z49: =TEXT(Y48,"ddd") -> ma | AA49: MD | AB49: =IFERROR(HLOOKUP(Y48,[1]DATA!$A$1:$NB$5,4,0),"") -> D1 | AC49: 135 | AE49: 8 | AF49: 310 | AG49: 10 | AH49: -7.375 | AI49: 0.6927598566 | AJ49: 0.9706457926
A50: 3maND | B50: =VLOOKUP($AA50,DATA!$B$3:$E$6,2,0) -> 22:30:00 | C50: =VLOOKUP($AA50,DATA!$B$3:$E$6,3,0) -> 06:30:00 | D50: =VLOOKUP($AA50,DATA!$B$3:$E$6,4,0) -> 0.03125 | E50: 0.3020833333 | F50: 0.3020833333 | G50: =DATA!$C$9 -> 0.89 | H50: =DATA!$C$10 -> 64 | I50: 1 | J50: 407.8125 | K50: 407.8125 | L50: 0 | O50: 0 | R50: 0 | X50: =X58 -> 3 | Z50: =TEXT(Y48,"ddd") -> ma | AA50: ND | AB50: =IFERROR(HLOOKUP(Y48,[1]DATA!$A$1:$NB$5,5,0),"") -> D3 | AG50: 0
A51: 3diDD | B51: =VLOOKUP($AA51,DATA!$B$3:$E$6,2,0) -> 06:30:00 | C51: =VLOOKUP($AA51,DATA!$B$3:$E$6,3,0) -> 14:30:00 | D51: =VLOOKUP($AA51,DATA!$B$3:$E$6,4,0) -> 0.03125 | E51: 0.3020833333 | F51: 0.2493055556 | G51: =DATA!$C$9 -> 0.89 | H51: =DATA!$C$10 -> 64 | I51: 1 | J51: 336.5625 | K51: 407.8125 | L51: 0.05277777778 | M51: 71.25 | N51: 0.1747126437 | O51: 0 | R51: 331.7333333 | S51: 301 | U51: 301 | X51: =X58 -> 3 | Y51: =Y48+1 -> 2018-01-16 | Z51: =TEXT(Y51,"ddd") -> di | AA51: DD | AB51: =IFERROR(HLOOKUP(Y51,[1]DATA!$A$1:$NB$5,3,0),"") -> D2 | AC51: 76 | AE51: 10 | AF51: 311 | AG51: 15 | AH51: -63.6875 | AI51: 0.6904659498 | AJ51: 0.9567390886
A52: 3diMD | B52: =VLOOKUP($AA52,DATA!$B$3:$E$6,2,0) -> 14:30:00 | C52: =VLOOKUP($AA52,DATA!$B$3:$E$6,3,0) -> 22:30:00 | D52: =VLOOKUP($AA52,DATA!$B$3:$E$6,4,0) -> 0.03125 | E52: 0.3020833333 | F52: 0.2652777778 | G52: =DATA!$C$9 -> 0.89 | H52: =DATA!$C$10 -> 64 | I52: 1 | J52: 358.125 | K52: 407.8125 | L52: 0.03680555556 | M52: 49.6875 | N52: 0.1218390805 | O52: 0 | R52: 381.8666667 | S52: 320 | T52: 320 | X52: =X58 -> 3 | Z52: =TEXT(Y51,"ddd") -> di | AA52: MD | AB52: =IFERROR(HLOOKUP(Y51,[1]DATA!$A$1:$NB$5,4,0),"") -> D1 | AC52: 53 | AE52: 38 | AF52: 358 | AG52: 58 | AH52: -66.25 | AI52: 0.7340501792 | AJ52: 0.8681418612
A53: 3diND | B53: =VLOOKUP($AA53,DATA!$B$3:$E$6,2,0) -> 22:30:00 | C53: =VLOOKUP($AA53,DATA!$B$3:$E$6,3,0) -> 06:30:00 | D53: =VLOOKUP($AA53,DATA!$B$3:$E$6,4,0) -> 0.03125 | E53: 0.3020833333 | F53: 0.3020833333 | G53: =DATA!$C$9 -> 0.89 | H53: =DATA!$C$10 -> 64 | I53: 1 | J53: 407.8125 | K53: 407.8125 | L53: 0 | O53: 0 | R53: 0 | X53: =X58 -> 3 | Z53: =TEXT(Y51,"ddd") -> di | AA53: ND | AB53: =IFERROR(HLOOKUP(Y51,[1]DATA!$A$1:$NB$5,5,0),"") -> D3 | AG53: 0
A54: 3woDD | B54: =VLOOKUP($AA54,DATA!$B$3:$E$6,2,0) -> 06:30:00 | C54: =VLOOKUP($AA54,DATA!$B$3:$E$6,3,0) -> 14:30:00 | D54: =VLOOKUP($AA54,DATA!$B$3:$E$6,4,0) -> 0.03125 | E54: 0.3020833333 | F54: 0.1145833333 | G54: =DATA!$C$9 -> 0.89 | H54: =DATA!$C$10 -> 64 | I54: 1 | J54: 154.6875 | K54: 407.8125 | L54: 0.1875 | M54: 253.125 | N54: 0.6206896552 | O54: 0 | R54: 188.8 | S54: 170 | U54: 170 | X54: =X58 -> 3 | Y54: =Y51+1 -> 2018-01-17 | Z54: =TEXT(Y54,"ddd") -> wo | AA54: DD | AB54: =IFERROR(HLOOKUP(Y54,[1]DATA!$A$1:$NB$5,3,0),"") -> D2 | AC54: 270 | AE54: 7 | AF54: 177 | AG54: 0 | AH54: -12.8125 | AI54: 0.3899641577 | AJ54: 1
A55: 3woMD | B55: =VLOOKUP($AA55,DATA!$B$3:$E$6,2,0) -> 14:30:00 | C55: =VLOOKUP($AA55,DATA!$B$3:$E$6,3,0) -> 22:30:00 | D55: =VLOOKUP($AA55,DATA!$B$3:$E$6,4,0) -> 0.03125 | E55: 0.3020833333 | F55: 0.2118055556 | G55: =DATA!$C$9 -> 0.89 | H55: =DATA!$C$10 -> 64 | I55: 1 | J55: 285.9375 | K55: 407.8125 | L55: 0.09027777778 | M55: 121.875 | N55: 0.2988505747 | O55: 0 | R55: 360.5333333 | S55: 311 | T55: 311 | X55: =X58 -> 3 | Z55: =TEXT(Y54,"ddd") -> wo | AA55: MD | AB55: =IFERROR(HLOOKUP(Y54,[1]DATA!$A$1:$NB$5,4,0),"") -> D1 | AC55: 130 | AE55: 27 | AF55: 338 | AG55: 0 | AH55: -3.0625 | AI55: 0.7134050179 | AJ55: 1
A56: 3woND | B56: =VLOOKUP($AA56,DATA!$B$3:$E$6,2,0) -> 22:30:00 | C56: =VLOOKUP($AA56,DATA!$B$3:$E$6,3,0) -> 06:30:00 | D56: =VLOOKUP($AA56,DATA!$B$3:$E$6,4,0) -> 0.03125 | E56: 0.3020833333 | F56: 0.3020833333 | G56: =DATA!$C$9 -> 0.89 | H56: =DATA!$C$10 -> 64 | I56: 1 | J56: 407.8125 | K56: 407.8125 | L56: 0 | O56: 0 | R56: 0 | X56: =X58 -> 3 | Z56: =TEXT(Y54,"ddd") -> wo | AA56: ND | AB56: =IFERROR(HLOOKUP(Y54,[1]DATA!$A$1:$NB$5,5,0),"") -> D3 | AG56: 0
A57: 3doDD | B57: =VLOOKUP($AA57,DATA!$B$3:$E$6,2,0) -> 06:30:00 | C57: =VLOOKUP($AA57,DATA!$B$3:$E$6,3,0) -> 14:30:00 | D57: =VLOOKUP($AA57,DATA!$B$3:$E$6,4,0) -> 0.03125 | E57: 0.3020833333 | F57: 0.1256944444 | G57: =DATA!$C$9 -> 0.89 | H57: =DATA!$C$10 -> 64 | I57: 1 | J57: 169.6875 | K57: 407.8125 | L57: 0.1659722222 | M57: 224.0625 | N57: 0.5494252874 | O57: 0.01041666667 | P57: 14.0625 | Q57: 0.03448275862 | R57: 233.6 | S57: 207 | U57: 207 | X57: =X58 -> 3 | Y57: =Y54+1 -> 2018-01-18 | Z57: =TEXT(Y57,"ddd") -> do | AA57: DD | AB57: =IFERROR(HLOOKUP(Y57,[1]DATA!$A$1:$NB$5,3,0),"") -> D2 | AC57: 239 | AD57: 15 | AE57: 12 | AF57: 219 | AG57: 6 | AH57: 9.1875 | AI57: 0.4748387097 | AJ57: 0.9749582638
A58: 3doMD | B58: =VLOOKUP($AA58,DATA!$B$3:$E$6,2,0) -> 14:30:00 | C58: =VLOOKUP($AA58,DATA!$B$3:$E$6,3,0) -> 22:30:00 | D58: =VLOOKUP($AA58,DATA!$B$3:$E$6,4,0) -> 0.03125 | E58: 0.3020833333 | F58: 0.2152777778 | G58: =DATA!$C$9 -> 0.89 | H58: =DATA!$C$10 -> 64 | I58: 1 | J58: 290.625 | K58: 407.8125 | L58: 0.07638888889 | M58: 103.125 | N58: 0.2528735632 | O58: 0.01041666667 | P58: 14.0625 | Q58: 0.03448275862 | R58: 368 | S58: 323 | T58: 323 | X58: =WEEKNUM($Y48) -> 3 | Z58: =TEXT(Y57,"ddd") -> do | AA58: MD | AB58: =IFERROR(HLOOKUP(Y57,[1]DATA!$A$1:$NB$5,4,0),"") -> D1 | AC58: 110 | AD58: 15 | AE58: 22 | AF58: 345 | AG58: 2 | AH58: 4.25 | AI58: 0.7409318996 | AJ58: 0.9945945946
A59: 3doND | B59: =VLOOKUP($AA59,DATA!$B$3:$E$6,2,0) -> 22:30:00 | C59: =VLOOKUP($AA59,DATA!$B$3:$E$6,3,0) -> 06:30:00 | D59: =VLOOKUP($AA59,DATA!$B$3:$E$6,4,0) -> 0.03125 | E59: 0.3020833333 | F59: 0.3020833333 | G59: =DATA!$C$9 -> 0.89 | H59: =DATA!$C$10 -> 64 | I59: 1 | J59: 407.8125 | K59: 407.8125 | L59: 0 | O59: 0 | R59: 0 | X59: =X58 -> 3 | Z59: =TEXT(Y57,"ddd") -> do | AA59: ND | AB59: =IFERROR(HLOOKUP(Y57,[1]DATA!$A$1:$NB$5,5,0),"") -> D3 | AG59: 0
A60: 3vrDD | B60: =VLOOKUP($AA60,DATA!$B$3:$E$6,2,0) -> 06:30:00 | C60: =VLOOKUP($AA60,DATA!$B$3:$E$6,3,0) -> 14:30:00 | D60: =VLOOKUP($AA60,DATA!$B$3:$E$6,4,0) -> 0.03125 | E60: 0.3020833333 | F60: 0.2395833333 | G60: =DATA!$C$9 -> 0.89 | H60: =DATA!$C$10 -> 64 | I60: 1 | J60: 323.4375 | K60: 407.8125 | L60: 0.0625 | M60: 84.375 | N60: 0.2068965517 | O60: 0 | R60: 385.0666667 | S60: 338 | U60: 338 | X60: =X58 -> 3 | Y60: =Y57+1 -> 2018-01-19 | Z60: =TEXT(Y60,"ddd") -> vr | AA60: DD | AB60: =IFERROR(HLOOKUP(Y60,[1]DATA!$A$1:$NB$5,3,0),"") -> D2 | AC60: 90 | AE60: 23 | AF60: 361 | AG60: 7 | AH60: -13.5625 | AI60: 0.7753405018 | AJ60: 0.9821458936
A61: 3vrMD | B61: =VLOOKUP($AA61,DATA!$B$3:$E$6,2,0) -> 14:30:00 | C61: =VLOOKUP($AA61,DATA!$B$3:$E$6,3,0) -> 22:30:00 | D61: =VLOOKUP($AA61,DATA!$B$3:$E$6,4,0) -> 0.03125 | E61: 0.3020833333 | F61: 0.2159722222 | G61: =DATA!$C$9 -> 0.89 | H61: =DATA!$C$10 -> 64 | I61: 1 | J61: 291.5625 | K61: 407.8125 | L61: 0.08611111111 | M61: 116.25 | N61: 0.2850574713 | O61: 0 | R61: 339.2 | S61: 297 | T61: 297 | X61: =X58 -> 3 | Z61: =TEXT(Y60,"ddd") -> vr | AA61: MD | AB61: =IFERROR(HLOOKUP(Y60,[1]DATA!$A$1:$NB$5,4,0),"") -> D1 | AC61: 124 | AE61: 21 | AF61: 318 | AG61: 10 | AH61: -22.6875 | AI61: 0.6812903226 | AJ61: 0.9713631157
A62: 3vrND | B62: =VLOOKUP($AA62,DATA!$B$3:$E$6,2,0) -> 22:30:00 | C62: =VLOOKUP($AA62,DATA!$B$3:$E$6,3,0) -> 06:30:00 | D62: =VLOOKUP($AA62,DATA!$B$3:$E$6,4,0) -> 0.03125 | E62: 0.3020833333 | F62: 0.3020833333 | G62: =DATA!$C$9 -> 0.89 | H62: =DATA!$C$10 -> 64 | I62: 1 | J62: 407.8125 | K62: 407.8125 | L62: 0 | O62: 0 | R62: 0 | X62: =X58 -> 3 | Z62: =TEXT(Y60,"ddd") -> vr | AA62: ND | AB62: =IFERROR(HLOOKUP(Y60,[1]DATA!$A$1:$NB$5,5,0),"") -> - | AG62: 0
A63: 3zaDD | B63: =VLOOKUP($AA63,DATA!$B$3:$E$6,2,0) -> 06:30:00 | C63: =VLOOKUP($AA63,DATA!$B$3:$E$6,3,0) -> 14:30:00 | D63: =VLOOKUP($AA63,DATA!$B$3:$E$6,4,0) -> 0.03125 | E63: 0.3020833333 | F63: 0.3020833333 | G63: =DATA!$C$9 -> 0.89 | H63: =DATA!$C$10 -> 64 | I63: 1 | J63: 407.8125 | K63: 407.8125 | L63: 0 | O63: 0 | R63: 0 | X63: =X58 -> 3 | Y63: =Y60+1 -> 2018-01-20 | Z63: =TEXT(Y63,"ddd") -> za | AA63: DD | AB63: =IFERROR(HLOOKUP(Y63,[1]DATA!$A$1:$NB$5,3,0),"") -> - | AG63: 0
A64: 3zaMD | B64: =VLOOKUP($AA64,DATA!$B$3:$E$6,2,0) -> 14:30:00 | C64: =VLOOKUP($AA64,DATA!$B$3:$E$6,3,0) -> 22:30:00 | D64: =VLOOKUP($AA64,DATA!$B$3:$E$6,4,0) -> 0.03125 | E64: 0.3020833333 | F64: 0.3020833333 | G64: =DATA!$C$9 -> 0.89 | H64: =DATA!$C$10 -> 64 | I64: 1 | J64: 407.8125 | K64: 407.8125 | L64: 0 | O64: 0 | R64: 0 | X64: =X58 -> 3 | Z64: =TEXT(Y63,"ddd") -> za | AA64: MD | AB64: =IFERROR(HLOOKUP(Y63,[1]DATA!$A$1:$NB$5,4,0),"") -> - | AG64: 0
A65: 3zaND | B65: =VLOOKUP($AA65,DATA!$B$3:$E$6,2,0) -> 22:30:00 | C65: =VLOOKUP($AA65,DATA!$B$3:$E$6,3,0) -> 06:30:00 | D65: =VLOOKUP($AA65,DATA!$B$3:$E$6,4,0) -> 0.03125 | E65: 0.3020833333 | F65: 0.3020833333 | G65: =DATA!$C$9 -> 0.89 | H65: =DATA!$C$10 -> 64 | I65: 1 | J65: 407.8125 | K65: 407.8125 | L65: 0 | O65: 0 | R65: 0 | X65: =X58 -> 3 | Z65: =TEXT(Y63,"ddd") -> za | AA65: ND | AB65: =IFERROR(HLOOKUP(Y63,[1]DATA!$A$1:$NB$5,5,0),"") -> - | AG65: 0
A66: 3zoDD | B66: =VLOOKUP($AA66,DATA!$B$3:$E$6,2,0) -> 06:30:00 | C66: =VLOOKUP($AA66,DATA!$B$3:$E$6,3,0) -> 14:30:00 | D66: =VLOOKUP($AA66,DATA!$B$3:$E$6,4,0) -> 0.03125 | E66: 0.3020833333 | F66: 0.3020833333 | G66: =DATA!$C$9 -> 0.89 | H66: =DATA!$C$10 -> 64 | I66: 1 | J66: 407.8125 | K66: 407.8125 | L66: 0 | O66: 0 | R66: 0 | X66: =X58 -> 3 | Y66: =Y63+1 -> 2018-01-21 | Z66: =TEXT(Y66,"ddd") -> zo | AA66: DD | AB66: =IFERROR(HLOOKUP(Y66,[1]DATA!$A$1:$NB$5,3,0),"") -> - | AG66: 0
A67: 3zoMD | B67: =VLOOKUP($AA67,DATA!$B$3:$E$6,2,0) -> 14:30:00 | C67: =VLOOKUP($AA67,DATA!$B$3:$E$6,3,0) -> 22:30:00 | D67: =VLOOKUP($AA67,DATA!$B$3:$E$6,4,0) -> 0.03125 | E67: 0.3020833333 | F67: 0.3020833333 | G67: =DATA!$C$9 -> 0.89 | H67: =DATA!$C$10 -> 64 | I67: 1 | J67: 407.8125 | K67: 407.8125 | L67: 0 | O67: 0 | R67: 0 | X67: =X58 -> 3 | Z67: =TEXT(Y66,"ddd") -> zo | AA67: MD | AB67: =IFERROR(HLOOKUP(Y66,[1]DATA!$A$1:$NB$5,4,0),"") -> - | AG67: 0
A68: 3zoZND | B68: =VLOOKUP($AA68,DATA!$B$3:$E$6,2,0) -> 00:00:00 | C68: =VLOOKUP($AA68,DATA!$B$3:$E$6,3,0) -> 00:00:00 | D68: =VLOOKUP($AA68,DATA!$B$3:$E$6,4,0) -> 0.03125 | E68: -0.03125 | F68: -0.03125 | G68: =DATA!$C$9 -> 0.89 | H68: =DATA!$C$10 -> 64 | I68: 1 | J68: -42.1875 | K68: -42.1875 | L68: 0 | O68: 0 | R68: 0 | X68: =X58 -> 3 | Z68: =TEXT(Y66,"ddd") -> zo | AA68: ZND | AB68: =IFERROR(HLOOKUP(Y66,[1]DATA!$A$1:$NB$5,5,0),"") -> D2 | AG68: 0
A69: 4maDD | B69: =VLOOKUP($AA69,DATA!$B$3:$E$6,2,0) -> 06:30:00 | C69: =VLOOKUP($AA69,DATA!$B$3:$E$6,3,0) -> 14:30:00 | D69: =VLOOKUP($AA69,DATA!$B$3:$E$6,4,0) -> 0.03125 | E69: 0.3020833333 | F69: 0.2597222222 | G69: =DATA!$C$9 -> 0.89 | H69: =DATA!$C$10 -> 64 | I69: 1 | J69: 350.625 | K69: 407.8125 | L69: 0.04236111111 | M69: 57.1875 | N69: 0.1402298851 | O69: =TIME(INT($AD69/60),INT(MOD($AD69,60)/1),0) -> 0 | R69: 370.1333333 | S69: 339 | T69: 339 | X69: =X79 -> 4 | Y69: =Y66+1 -> 2018-01-22 | Z69: =TEXT(Y69,"ddd") -> ma | AA69: DD | AB69: =IFERROR(HLOOKUP(Y69,[1]DATA!$A$1:$NB$5,3,0),"") -> D1 | AC69: 61 | AE69: 8 | AF69: 347 | AG69: 4 | AH69: -39.75 | AI69: 0.7776344086 | AJ69: 0.9893086244 | AK69: 4359.375 | AL69: 3276 | AM69: 0.751483871 | AN69: 786.5625 | AO69: 0.1804301075 | AP69: 0 | AQ69: 0 | AR69: 0.9813657965 | AS69: 0.9916620864 | AU69: 0.9710695066 | AV69: 296.8125 | AW69: 0.06808602151 | AX69: 316.6 | AY69: 70
A70: 4maMD | B70: =VLOOKUP($AA70,DATA!$B$3:$E$6,2,0) -> 14:30:00 | C70: =VLOOKUP($AA70,DATA!$B$3:$E$6,3,0) -> 22:30:00 | D70: =VLOOKUP($AA70,DATA!$B$3:$E$6,4,0) -> 0.03125 | E70: 0.3020833333 | F70: 0.275 | G70: =DATA!$C$9 -> 0.89 | H70: =DATA!$C$10 -> 64 | I70: 1 | J70: 371.25 | K70: 407.8125 | L70: 0.02708333333 | M70: 36.5625 | N70: 0.08965517241 | O70: =TIME(INT(AD70/60),INT(MOD(AD70,60)/1),0) -> 0 | R70: 414.9333333 | S70: 375 | V70: 375 | X70: =X79 -> 4 | Z70: =TEXT(Y69,"ddd") -> ma | AA70: MD | AB70: =IFERROR(HLOOKUP(Y69,[1]DATA!$A$1:$NB$5,4,0),"") -> D3 | AC70: 39 | AE70: 14 | AF70: 389 | AG70: 5 | AH70: -24.375 | AI70: 0.8602150538 | AJ70: 0.9880933482
A71: 4maND | B71: =VLOOKUP($AA71,DATA!$B$3:$E$6,2,0) -> 22:30:00 | C71: =VLOOKUP($AA71,DATA!$B$3:$E$6,3,0) -> 06:30:00 | D71: =VLOOKUP($AA71,DATA!$B$3:$E$6,4,0) -> 0.03125 | E71: 0.3020833333 | F71: 0.3020833333 | G71: =DATA!$C$9 -> 0.89 | H71: =DATA!$C$10 -> 64 | I71: 1 | J71: 407.8125 | K71: 407.8125 | L71: =TIME(INT($AC71/60),INT(MOD($AC71,60)/1),0) -> 0 | M71: =IF($L71*86400/$H71=0,"",$L71*86400/$H71) ->  | N71: =IFERROR($M71/$K71,"") ->  | O71: 0 | Q71: =IFERROR($P71/$K71,"") ->  | R71: 0 | T71: =IF(IF($AB71="D1",$S71,"")=0,"",IF($AB71="D1",$S71,"")) ->  | U71: =IF(IF($AB71="D2",$S71,"")=0,"",IF($AB71="D2",$S71,"")) ->  | V71: =IF(IF($AB71="D3",$S71,"")=0,"",IF($AB71="D3",$S71,"")) ->  | X71: =X79 -> 4 | Z71: =TEXT(Y69,"ddd") -> ma | AA71: ND | AB71: =IFERROR(HLOOKUP(Y69,[1]DATA!$A$1:$NB$5,5,0),"") -> D2 | AG71: 0
A72: 4diDD | B72: =VLOOKUP($AA72,DATA!$B$3:$E$6,2,0) -> 06:30:00 | C72: =VLOOKUP($AA72,DATA!$B$3:$E$6,3,0) -> 14:30:00 | D72: =VLOOKUP($AA72,DATA!$B$3:$E$6,4,0) -> 0.03125 | E72: 0.3020833333 | F72: 0.2423611111 | G72: =DATA!$C$9 -> 0.89 | H72: =DATA!$C$10 -> 64 | I72: 1 | J72: 327.1875 | K72: 407.8125 | L72: 0.05972222222 | M72: 80.625 | N72: 0.1977011494 | O72: 0 | R72: 375.4666667 | S72: 329 | T72: 329 | X72: =X79 -> 4 | Y72: =Y69+1 -> 2018-01-23 | Z72: =TEXT(Y72,"ddd") -> di | AA72: DD | AB72: =IFERROR(HLOOKUP(Y72,[1]DATA!$A$1:$NB$5,3,0),"") -> D1 | AC72: 86 | AE72: 23 | AF72: 352 | AG72: 10 | AH72: -26.3125 | AI72: 0.7546953405 | AJ72: 0.9740574196
A73: 4diMD | B73: =VLOOKUP($AA73,DATA!$B$3:$E$6,2,0) -> 14:30:00 | C73: =VLOOKUP($AA73,DATA!$B$3:$E$6,3,0) -> 22:30:00 | D73: =VLOOKUP($AA73,DATA!$B$3:$E$6,4,0) -> 0.03125 | E73: 0.3020833333 | F73: 0.2138888889 | G73: =DATA!$C$9 -> 0.89 | H73: =DATA!$C$10 -> 64 | I73: 1 | J73: 288.75 | K73: 407.8125 | L73: 0.08819444444 | M73: 119.0625 | N73: 0.291954023 | O73: 0 | R73: 337.0666667 | S73: 299 | V73: 299 | X73: =X79 -> 4 | Z73: =TEXT(Y72,"ddd") -> di | AA73: MD | AB73: =IFERROR(HLOOKUP(Y72,[1]DATA!$A$1:$NB$5,4,0),"") -> D3 | AC73: 127 | AE73: 17 | AF73: 316 | AG73: 8 | AH73: -17.875 | AI73: 0.6858781362 | AJ73: 0.9768160742
A74: 4diND | B74: =VLOOKUP($AA74,DATA!$B$3:$E$6,2,0) -> 22:30:00 | C74: =VLOOKUP($AA74,DATA!$B$3:$E$6,3,0) -> 06:30:00 | D74: =VLOOKUP($AA74,DATA!$B$3:$E$6,4,0) -> 0.03125 | E74: 0.3020833333 | F74: 0.3020833333 | G74: =DATA!$C$9 -> 0.89 | H74: =DATA!$C$10 -> 64 | I74: 1 | J74: 407.8125 | K74: 407.8125 | L74: 0 | O74: 0 | R74: 0 | X74: =X79 -> 4 | Z74: =TEXT(Y72,"ddd") -> di | AA74: ND | AB74: =IFERROR(HLOOKUP(Y72,[1]DATA!$A$1:$NB$5,5,0),"") -> D2 | AG74: 0
A75: 4woDD | B75: =VLOOKUP($AA75,DATA!$B$3:$E$6,2,0) -> 06:30:00 | C75: =VLOOKUP($AA75,DATA!$B$3:$E$6,3,0) -> 14:30:00 | D75: =VLOOKUP($AA75,DATA!$B$3:$E$6,4,0) -> 0.03125 | E75: 0.3020833333 | F75: 0.2534722222 | G75: =DATA!$C$9 -> 0.89 | H75: =DATA!$C$10 -> 64 | I75: 1 | J75: 342.1875 | K75: 407.8125 | L75: 0.04861111111 | M75: 65.625 | N75: 0.1609195402 | O75: 0 | R75: 393.6 | S75: 352 | T75: 352 | X75: =X79 -> 4 | Y75: =Y72+1 -> 2018-01-24 | Z75: =TEXT(Y75,"ddd") -> wo | AA75: DD | AB75: =IFERROR(HLOOKUP(Y75,[1]DATA!$A$1:$NB$5,3,0),"") -> D1 | AC75: 70 | AE75: 17 | AF75: 369 | AG75: 2 | AH75: -18.3125 | AI75: 0.8074551971 | AJ75: 0.9949443883
A76: 4woMD | B76: =VLOOKUP($AA76,DATA!$B$3:$E$6,2,0) -> 14:30:00 | C76: =VLOOKUP($AA76,DATA!$B$3:$E$6,3,0) -> 22:30:00 | D76: =VLOOKUP($AA76,DATA!$B$3:$E$6,4,0) -> 0.03125 | E76: 0.3020833333 | F76: 0.2805555556 | G76: =DATA!$C$9 -> 0.89 | H76: =DATA!$C$10 -> 64 | I76: 1 | J76: 378.75 | K76: 407.8125 | L76: 0.02152777778 | M76: 29.0625 | N76: 0.07126436782 | O76: 0 | R76: 440.5333333 | S76: 390 | V76: 390 | X76: =X79 -> 4 | Z76: =TEXT(Y75,"ddd") -> wo | AA76: MD | AB76: =IFERROR(HLOOKUP(Y75,[1]DATA!$A$1:$NB$5,4,0),"") -> D3 | AC76: 31 | AE76: 23 | AF76: 413 | AG76: 3 | AH76: -16.875 | AI76: 0.8946236559 | AJ76: 0.9932361341
A77: 4woND | B77: =VLOOKUP($AA77,DATA!$B$3:$E$6,2,0) -> 22:30:00 | C77: =VLOOKUP($AA77,DATA!$B$3:$E$6,3,0) -> 06:30:00 | D77: =VLOOKUP($AA77,DATA!$B$3:$E$6,4,0) -> 0.03125 | E77: 0.3020833333 | F77: 0.3020833333 | G77: =DATA!$C$9 -> 0.89 | H77: =DATA!$C$10 -> 64 | I77: 1 | J77: 407.8125 | K77: 407.8125 | L77: 0 | O77: 0 | R77: 0 | X77: =X79 -> 4 | Z77: =TEXT(Y75,"ddd") -> wo | AA77: ND | AB77: =IFERROR(HLOOKUP(Y75,[1]DATA!$A$1:$NB$5,5,0),"") -> D2 | AG77: 0
A78: 4doDD | B78: =VLOOKUP($AA78,DATA!$B$3:$E$6,2,0) -> 06:30:00 | C78: =VLOOKUP($AA78,DATA!$B$3:$E$6,3,0) -> 14:30:00 | D78: =VLOOKUP($AA78,DATA!$B$3:$E$6,4,0) -> 0.03125 | E78: 0.3020833333 | F78: 0.1381944444 | G78: =DATA!$C$9 -> 0.89 | H78: =DATA!$C$10 -> 64 | I78: 1 | J78: 186.5625 | K78: 407.8125 | L78: 0.1638888889 | M78: 221.25 | N78: 0.5425287356 | O78: 0 | R78: 257.0666667 | S78: 227 | T78: 227 | X78: =X79 -> 4 | Y78: =Y75+1 -> 2018-01-25 | Z78: =TEXT(Y78,"ddd") -> do | AA78: DD | AB78: =IFERROR(HLOOKUP(Y78,[1]DATA!$A$1:$NB$5,3,0),"") -> D1 | AC78: 236 | AE78: 14 | AF78: 241 | AG78: 0 | AH78: 12.3125 | AI78: 0.5207168459 | AJ78: 1
A79: 4doMD | B79: =VLOOKUP($AA79,DATA!$B$3:$E$6,2,0) -> 14:30:00 | C79: =VLOOKUP($AA79,DATA!$B$3:$E$6,3,0) -> 22:30:00 | D79: =VLOOKUP($AA79,DATA!$B$3:$E$6,4,0) -> 0.03125 | E79: 0.3020833333 | F79: 0.2840277778 | G79: =DATA!$C$9 -> 0.89 | H79: =DATA!$C$10 -> 64 | I79: 1 | J79: 383.4375 | K79: 407.8125 | L79: 0.01805555556 | M79: 24.375 | N79: 0.05977011494 | O79: 0 | R79: 402.1333333 | S79: 359 | V79: 359 | X79: =WEEKNUM($Y69) -> 4 | Z79: =TEXT(Y78,"ddd") -> do | AA79: MD | AB79: =IFERROR(HLOOKUP(Y78,[1]DATA!$A$1:$NB$5,4,0),"") -> D3 | AC79: 26 | AE79: 18 | AF79: 377 | AG79: 10 | AH79: -52.5625 | AI79: 0.8235125448 | AJ79: 0.9757360078
A80: 4doND | B80: =VLOOKUP($AA80,DATA!$B$3:$E$6,2,0) -> 22:30:00 | C80: =VLOOKUP($AA80,DATA!$B$3:$E$6,3,0) -> 06:30:00 | D80: =VLOOKUP($AA80,DATA!$B$3:$E$6,4,0) -> 0.03125 | E80: 0.3020833333 | F80: 0.3020833333 | G80: =DATA!$C$9 -> 0.89 | H80: =DATA!$C$10 -> 64 | I80: 1 | J80: 407.8125 | K80: 407.8125 | L80: 0 | O80: 0 | R80: 0 | X80: =X79 -> 4 | Z80: =TEXT(Y78,"ddd") -> do | AA80: ND | AB80: =IFERROR(HLOOKUP(Y78,[1]DATA!$A$1:$NB$5,5,0),"") -> D2 | AG80: 0
A81: 4vrDD | B81: =VLOOKUP($AA81,DATA!$B$3:$E$6,2,0) -> 06:30:00 | C81: =VLOOKUP($AA81,DATA!$B$3:$E$6,3,0) -> 14:30:00 | D81: =VLOOKUP($AA81,DATA!$B$3:$E$6,4,0) -> 0.03125 | E81: 0.3020833333 | F81: 0.2770833333 | G81: =DATA!$C$9 -> 0.89 | H81: =DATA!$C$10 -> 64 | I81: 1 | J81: 374.0625 | K81: 407.8125 | L81: 0.025 | M81: 33.75 | N81: 0.08275862069 | O81: 0 | R81: 353.0666667 | S81: 315 | T81: 315 | X81: =X79 -> 4 | Y81: =Y78+1 -> 2018-01-26 | Z81: =TEXT(Y81,"ddd") -> vr | AA81: DD | AB81: =IFERROR(HLOOKUP(Y81,[1]DATA!$A$1:$NB$5,3,0),"") -> D1 | AC81: 36 | AE81: 16 | AF81: 331 | AG81: 0 | AH81: -87.1875 | AI81: 0.7225806452 | AJ81: 1
A82: 4vrMD | B82: =VLOOKUP($AA82,DATA!$B$3:$E$6,2,0) -> 14:30:00 | C82: =VLOOKUP($AA82,DATA!$B$3:$E$6,3,0) -> 22:30:00 | D82: =VLOOKUP($AA82,DATA!$B$3:$E$6,4,0) -> 0.03125 | E82: 0.3020833333 | F82: 0.2138888889 | G82: =DATA!$C$9 -> 0.89 | H82: =DATA!$C$10 -> 64 | I82: 1 | J82: 288.75 | K82: 407.8125 | L82: 0.08819444444 | M82: 119.0625 | N82: 0.291954023 | O82: 0 | R82: 328.5333333 | S82: 291 | V82: 291 | X82: =X79 -> 4 | Z82: =TEXT(Y81,"ddd") -> vr | AA82: MD | AB82: =IFERROR(HLOOKUP(Y81,[1]DATA!$A$1:$NB$5,4,0),"") -> D3 | AC82: 127 | AE82: 17 | AF82: 308 | AG82: 28 | AH82: -25.875 | AI82: 0.6675268817 | AJ82: 0.9214659686
A83: 4vrND | B83: =VLOOKUP($AA83,DATA!$B$3:$E$6,2,0) -> 22:30:00 | C83: =VLOOKUP($AA83,DATA!$B$3:$E$6,3,0) -> 06:30:00 | D83: =VLOOKUP($AA83,DATA!$B$3:$E$6,4,0) -> 0.03125 | E83: 0.3020833333 | F83: 0.3020833333 | G83: =DATA!$C$9 -> 0.89 | H83: =DATA!$C$10 -> 64 | I83: 1 | J83: 407.8125 | K83: 407.8125 | L83: 0 | O83: 0 | R83: 0 | X83: =X79 -> 4 | Z83: =TEXT(Y81,"ddd") -> vr | AA83: ND | AB83: =IFERROR(HLOOKUP(Y81,[1]DATA!$A$1:$NB$5,5,0),"") -> - | AG83: 0
A84: 4zaDD | B84: =VLOOKUP($AA84,DATA!$B$3:$E$6,2,0) -> 06:30:00 | C84: =VLOOKUP($AA84,DATA!$B$3:$E$6,3,0) -> 14:30:00 | D84: =VLOOKUP($AA84,DATA!$B$3:$E$6,4,0) -> 0.03125 | E84: 0.3020833333 | F84: 0.3020833333 | G84: =DATA!$C$9 -> 0.89 | H84: =DATA!$C$10 -> 64 | I84: 1 | J84: 407.8125 | K84: 407.8125 | L84: 0 | O84: 0 | R84: 0 | X84: =X79 -> 4 | Y84: =Y81+1 -> 2018-01-27 | Z84: =TEXT(Y84,"ddd") -> za | AA84: DD | AB84: =IFERROR(HLOOKUP(Y84,[1]DATA!$A$1:$NB$5,3,0),"") -> - | AG84: 0
A85: 4zaMD | B85: =VLOOKUP($AA85,DATA!$B$3:$E$6,2,0) -> 14:30:00 | C85: =VLOOKUP($AA85,DATA!$B$3:$E$6,3,0) -> 22:30:00 | D85: =VLOOKUP($AA85,DATA!$B$3:$E$6,4,0) -> 0.03125 | E85: 0.3020833333 | F85: 0.3020833333 | G85: =DATA!$C$9 -> 0.89 | H85: =DATA!$C$10 -> 64 | I85: 1 | J85: 407.8125 | K85: 407.8125 | L85: 0 | O85: 0 | R85: 0 | X85: =X79 -> 4 | Z85: =TEXT(Y84,"ddd") -> za | AA85: MD | AB85: =IFERROR(HLOOKUP(Y84,[1]DATA!$A$1:$NB$5,4,0),"") -> - | AG85: 0
A86: 4zaND | B86: =VLOOKUP($AA86,DATA!$B$3:$E$6,2,0) -> 22:30:00 | C86: =VLOOKUP($AA86,DATA!$B$3:$E$6,3,0) -> 06:30:00 | D86: =VLOOKUP($AA86,DATA!$B$3:$E$6,4,0) -> 0.03125 | E86: 0.3020833333 | F86: 0.3020833333 | G86: =DATA!$C$9 -> 0.89 | H86: =DATA!$C$10 -> 64 | I86: 1 | J86: 407.8125 | K86: 407.8125 | L86: 0 | O86: 0 | R86: 0 | X86: =X79 -> 4 | Z86: =TEXT(Y84,"ddd") -> za | AA86: ND | AB86: =IFERROR(HLOOKUP(Y84,[1]DATA!$A$1:$NB$5,5,0),"") -> - | AG86: 0
A87: 4zoDD | B87: =VLOOKUP($AA87,DATA!$B$3:$E$6,2,0) -> 06:30:00 | C87: =VLOOKUP($AA87,DATA!$B$3:$E$6,3,0) -> 14:30:00 | D87: =VLOOKUP($AA87,DATA!$B$3:$E$6,4,0) -> 0.03125 | E87: 0.3020833333 | F87: 0.3020833333 | G87: =DATA!$C$9 -> 0.89 | H87: =DATA!$C$10 -> 64 | I87: 1 | J87: 407.8125 | K87: 407.8125 | L87: 0 | O87: 0 | R87: 0 | X87: =X79 -> 4 | Y87: =Y84+1 -> 2018-01-28 | Z87: =TEXT(Y87,"ddd") -> zo | AA87: DD | AB87: =IFERROR(HLOOKUP(Y87,[1]DATA!$A$1:$NB$5,3,0),"") -> - | AG87: 0
A88: 4zoMD | B88: =VLOOKUP($AA88,DATA!$B$3:$E$6,2,0) -> 14:30:00 | C88: =VLOOKUP($AA88,DATA!$B$3:$E$6,3,0) -> 22:30:00 | D88: =VLOOKUP($AA88,DATA!$B$3:$E$6,4,0) -> 0.03125 | E88: 0.3020833333 | F88: 0.3020833333 | G88: =DATA!$C$9 -> 0.89 | H88: =DATA!$C$10 -> 64 | I88: 1 | J88: 407.8125 | K88: 407.8125 | L88: 0 | O88: 0 | R88: 0 | X88: =X79 -> 4 | Z88: =TEXT(Y87,"ddd") -> zo | AA88: MD | AB88: =IFERROR(HLOOKUP(Y87,[1]DATA!$A$1:$NB$5,4,0),"") -> - | AG88: 0
A89: 4zoZND | B89: =VLOOKUP($AA89,DATA!$B$3:$E$6,2,0) -> 00:00:00 | C89: =VLOOKUP($AA89,DATA!$B$3:$E$6,3,0) -> 00:00:00 | D89: =VLOOKUP($AA89,DATA!$B$3:$E$6,4,0) -> 0.03125 | E89: -0.03125 | F89: -0.03125 | G89: =DATA!$C$9 -> 0.89 | H89: =DATA!$C$10 -> 64 | I89: 1 | J89: -42.1875 | K89: -42.1875 | L89: 0 | O89: 0 | R89: 0 | X89: =X79 -> 4 | Z89: =TEXT(Y87,"ddd") -> zo | AA89: ZND | AB89: =IFERROR(HLOOKUP(Y87,[1]DATA!$A$1:$NB$5,5,0),"") -> D1 | AG89: 0
A90: 5maDD | B90: =VLOOKUP($AA90,DATA!$B$3:$E$6,2,0) -> 06:30:00 | C90: =VLOOKUP($AA90,DATA!$B$3:$E$6,3,0) -> 14:30:00 | D90: =VLOOKUP($AA90,DATA!$B$3:$E$6,4,0) -> 0.03125 | E90: 0.3020833333 | F90: 0.1784722222 | G90: =DATA!$C$9 -> 0.89 | H90: =DATA!$C$10 -> 64 | I90: 1 | J90: 240.9375 | K90: 407.8125 | L90: 0.1236111111 | M90: 166.875 | N90: 0.4091954023 | O90: =TIME(INT($AD90/60),INT(MOD($AD90,60)/1),0) -> 0 | R90: 309.3333333 | S90: 272 | V90: 272 | X90: =X100 -> 5 | Y90: =Y87+1 -> 2018-01-29 | Z90: =TEXT(Y90,"ddd") -> ma | AA90: DD | AB90: =IFERROR(HLOOKUP(Y90,[1]DATA!$A$1:$NB$5,3,0),"") -> D3 | AC90: 178 | AE90: 18 | AF90: 290 | AG90: 10 | AH90: 2.9375 | AI90: 0.6239426523 | AJ90: 0.9686847599 | AK90: 4359.375 | AL90: 2870 | AM90: 0.6583512545 | AN90: 1064.0625 | AO90: 0.2440860215 | AP90: 225 | AQ90: 0.05161290323 | AR90: 0.9737192335 | AT90: 0.9705912121 | AU90: 0.976847255 | AV90: 200.3125 | AW90: 0.04594982079 | AX90: 213.6666667 | AY90: 93
A91: 5maMD | B91: =VLOOKUP($AA91,DATA!$B$3:$E$6,2,0) -> 14:30:00 | C91: =VLOOKUP($AA91,DATA!$B$3:$E$6,3,0) -> 22:30:00 | D91: =VLOOKUP($AA91,DATA!$B$3:$E$6,4,0) -> 0.03125 | E91: 0.3020833333 | F91: 0.2381944444 | G91: =DATA!$C$9 -> 0.89 | H91: =DATA!$C$10 -> 64 | I91: 1 | J91: 321.5625 | K91: 407.8125 | L91: 0.06388888889 | M91: 86.25 | N91: 0.2114942529 | O91: =TIME(INT(AD91/60),INT(MOD(AD91,60)/1),0) -> 0 | R91: 359.4666667 | S91: 321 | U91: 321 | X91: =X100 -> 5 | Z91: =TEXT(Y90,"ddd") -> ma | AA91: MD | AB91: =IFERROR(HLOOKUP(Y90,[1]DATA!$A$1:$NB$5,4,0),"") -> D2 | AC91: 92 | AE91: 16 | AF91: 337 | AG91: 6 | AH91: -28.6875 | AI91: 0.736344086 | AJ91: 0.9835826341
A92: 5maND | B92: =VLOOKUP($AA92,DATA!$B$3:$E$6,2,0) -> 22:30:00 | C92: =VLOOKUP($AA92,DATA!$B$3:$E$6,3,0) -> 06:30:00 | D92: =VLOOKUP($AA92,DATA!$B$3:$E$6,4,0) -> 0.03125 | E92: =(C92-B92+(B92>C92))-D92 -> 0.3020833333 | F92: =E92-O92-L92 -> 0.3020833333 | G92: =DATA!$C$9 -> 0.89 | H92: =DATA!$C$10 -> 64 | I92: 1 | J92: =F92*86400/H92*I92 -> 407.8125 | K92: =E92*86400/H92 -> 407.8125 | L92: 0 | O92: 0 | R92: =AF92*AG$2 -> 0 | S92: =IF(AF92-AE92=0,"",AF92-AE92) ->  | X92: =X100 -> 5 | Z92: =TEXT(Y90,"ddd") -> ma | AA92: ND | AB92: =IFERROR(HLOOKUP(Y90,[1]DATA!$A$1:$NB$5,5,0),"") -> D1 | AG92: 0
A93: 5diDD | B93: =VLOOKUP($AA93,DATA!$B$3:$E$6,2,0) -> 06:30:00 | C93: =VLOOKUP($AA93,DATA!$B$3:$E$6,3,0) -> 14:30:00 | D93: =VLOOKUP($AA93,DATA!$B$3:$E$6,4,0) -> 0.03125 | E93: 0.3020833333 | F93: 0.2027777778 | G93: =DATA!$C$9 -> 0.89 | H93: =DATA!$C$10 -> 64 | I93: 1 | J93: 273.75 | K93: 407.8125 | L93: 0.09930555556 | M93: 134.0625 | N93: 0.3287356322 | O93: 0 | R93: 346.6666667 | S93: 312 | V93: 312 | X93: =X100 -> 5 | Y93: =Y90+1 -> 2018-01-30 | Z93: =TEXT(Y93,"ddd") -> di | AA93: DD | AB93: =IFERROR(HLOOKUP(Y93,[1]DATA!$A$1:$NB$5,3,0),"") -> D3 | AC93: 143 | AE93: 13 | AF93: 325 | AG93: 0 | AH93: 10.125 | AI93: 0.7156989247 | AJ93: 1
A94: 5diMD | B94: =VLOOKUP($AA94,DATA!$B$3:$E$6,2,0) -> 14:30:00 | C94: =VLOOKUP($AA94,DATA!$B$3:$E$6,3,0) -> 22:30:00 | D94: =VLOOKUP($AA94,DATA!$B$3:$E$6,4,0) -> 0.03125 | E94: 0.3020833333 | F94: 0.2736111111 | G94: =DATA!$C$9 -> 0.89 | H94: =DATA!$C$10 -> 64 | I94: 1 | J94: 369.375 | K94: 407.8125 | L94: 0.02847222222 | M94: 38.4375 | N94: 0.09425287356 | O94: 0 | R94: 398.9333333 | S94: 333 | U94: 333 | X94: =X100 -> 5 | Z94: =TEXT(Y93,"ddd") -> di | AA94: MD | AB94: =IFERROR(HLOOKUP(Y93,[1]DATA!$A$1:$NB$5,4,0),"") -> D2 | AC94: 41 | AE94: 41 | AF94: 374 | AG94: 9 | AH94: -64.5 | AI94: 0.7638709677 | AJ94: 0.9779375715
A95: 5diND | B95: =VLOOKUP($AA95,DATA!$B$3:$E$6,2,0) -> 22:30:00 | C95: =VLOOKUP($AA95,DATA!$B$3:$E$6,3,0) -> 06:30:00 | D95: =VLOOKUP($AA95,DATA!$B$3:$E$6,4,0) -> 0.03125 | E95: 0.3020833333 | F95: 0.3020833333 | G95: =DATA!$C$9 -> 0.89 | H95: =DATA!$C$10 -> 64 | I95: 1 | J95: 407.8125 | K95: 407.8125 | L95: 0 | O95: 0 | R95: 0 | X95: =X100 -> 5 | Z95: =TEXT(Y93,"ddd") -> di | AA95: ND | AB95: =IFERROR(HLOOKUP(Y93,[1]DATA!$A$1:$NB$5,5,0),"") -> D1 | AG95: 0
A96: 5woDD | B96: =VLOOKUP($AA96,DATA!$B$3:$E$6,2,0) -> 06:30:00 | C96: =VLOOKUP($AA96,DATA!$B$3:$E$6,3,0) -> 14:30:00 | D96: =VLOOKUP($AA96,DATA!$B$3:$E$6,4,0) -> 0.03125 | E96: 0.3020833333 | F96: 0.1513888889 | G96: =DATA!$C$9 -> 0.89 | H96: =DATA!$C$10 -> 64 | I96: 1 | J96: 204.375 | K96: 407.8125 | L96: 0.1229166667 | M96: 165.9375 | N96: 0.4068965517 | O96: 0.02777777778 | P96: 37.5 | Q96: 0.09195402299 | R96: 238.9333333 | S96: 217 | V96: 217 | X96: =X100 -> 5 | Y96: =Y93+1 -> 2018-01-31 | Z96: =TEXT(Y96,"ddd") -> wo | AA96: DD | AB96: =IFERROR(HLOOKUP(Y96,[1]DATA!$A$1:$NB$5,3,0),"") -> D3 | AC96: 177 | AD96: 40 | AE96: 7 | AF96: 224 | AG96: 5 | AH96: -15.5 | AI96: 0.4977777778 | AJ96: 0.9795025963
A97: 5woMD | B97: =VLOOKUP($AA97,DATA!$B$3:$E$6,2,0) -> 14:30:00 | C97: =VLOOKUP($AA97,DATA!$B$3:$E$6,3,0) -> 22:30:00 | D97: =VLOOKUP($AA97,DATA!$B$3:$E$6,4,0) -> 0.03125 | E97: 0.3020833333 | F97: 0.1576388889 | G97: =DATA!$C$9 -> 0.89 | H97: =DATA!$C$10 -> 64 | I97: 1 | J97: 212.8125 | K97: 407.8125 | L97: 0.005555555556 | M97: 7.5 | N97: 0.0183908046 | O97: 0.1388888889 | P97: 187.5 | Q97: 0.4597701149 | R97: 263.4666667 | S97: 235 | U97: 235 | X97: =X100 -> 5 | Z97: =TEXT(Y96,"ddd") -> wo | AA97: MD | AB97: =IFERROR(HLOOKUP(Y96,[1]DATA!$A$1:$NB$5,4,0),"") -> D2 | AC97: 8 | AD97: 200 | AE97: 12 | AF97: 247 | AG97: 0 | AH97: -5.9375 | AI97: 0.5390681004 | AJ97: 1
A98: 5woND | B98: =VLOOKUP($AA98,DATA!$B$3:$E$6,2,0) -> 22:30:00 | C98: =VLOOKUP($AA98,DATA!$B$3:$E$6,3,0) -> 06:30:00 | D98: =VLOOKUP($AA98,DATA!$B$3:$E$6,4,0) -> 0.03125 | E98: 0.3020833333 | F98: 0.3020833333 | G98: =DATA!$C$9 -> 0.89 | H98: =DATA!$C$10 -> 64 | I98: 1 | J98: 407.8125 | K98: 407.8125 | L98: 0 | O98: 0 | R98: 0 | X98: =X100 -> 5 | Z98: =TEXT(Y96,"ddd") -> wo | AA98: ND | AB98: =IFERROR(HLOOKUP(Y96,[1]DATA!$A$1:$NB$5,5,0),"") -> D1 | AG98: 0
A99: 5doDD | B99: =VLOOKUP($AA99,DATA!$B$3:$E$6,2,0) -> 06:30:00 | C99: =VLOOKUP($AA99,DATA!$B$3:$E$6,3,0) -> 14:30:00 | D99: =VLOOKUP($AA99,DATA!$B$3:$E$6,4,0) -> 0.03125 | E99: 0.3020833333 | F99: 0.1902777778 | G99: =DATA!$C$9 -> 0.89 | H99: =DATA!$C$10 -> 64 | I99: 1 | J99: 256.875 | K99: 407.8125 | L99: 0.1118055556 | M99: 150.9375 | N99: 0.3701149425 | O99: 0 | R99: 296.5333333 | S99: 270 | V99: 270 | X99: =X100 -> 5 | Y99: =Y96+1 -> 2018-02-01 | Z99: =TEXT(Y99,"ddd") -> do | AA99: DD | AB99: =IFERROR(HLOOKUP(Y99,[1]DATA!$A$1:$NB$5,3,0),"") -> D3 | AC99: 161 | AE99: 8 | AF99: 278 | AG99: 18 | AH99: -15 | AI99: 0.6193548387 | AJ99: 0.9427723612
A100: 5doMD | B100: =VLOOKUP($AA100,DATA!$B$3:$E$6,2,0) -> 14:30:00 | C100: =VLOOKUP($AA100,DATA!$B$3:$E$6,3,0) -> 22:30:00 | D100: =VLOOKUP($AA100,DATA!$B$3:$E$6,4,0) -> 0.03125 | E100: 0.3020833333 | F100: 0.2520833333 | G100: =DATA!$C$9 -> 0.89 | H100: =DATA!$C$10 -> 64 | I100: 1 | J100: 340.3125 | K100: 407.8125 | L100: 0.05 | M100: 67.5 | N100: 0.1655172414 | O100: 0 | R100: 380.8 | S100: 326 | U100: 326 | X100: =WEEKNUM($Y90) -> 5 | Z100: =TEXT(Y99,"ddd") -> do | AA100: MD | AB100: =IFERROR(HLOOKUP(Y99,[1]DATA!$A$1:$NB$5,4,0),"") -> D2 | AC100: 72 | AE100: 31 | AF100: 357 | AG100: 26 | AH100: -42.4375 | AI100: 0.7478136201 | AJ100: 0.936086529
A101: 5doND | B101: =VLOOKUP($AA101,DATA!$B$3:$E$6,2,0) -> 22:30:00 | C101: =VLOOKUP($AA101,DATA!$B$3:$E$6,3,0) -> 06:30:00 | D101: =VLOOKUP($AA101,DATA!$B$3:$E$6,4,0) -> 0.03125 | E101: 0.3020833333 | F101: 0.3020833333 | G101: =DATA!$C$9 -> 0.89 | H101: =DATA!$C$10 -> 64 | I101: 1 | J101: 407.8125 | K101: 407.8125 | L101: 0 | O101: 0 | R101: 0 | X101: =X100 -> 5 | Z101: =TEXT(Y99,"ddd") -> do | AA101: ND | AB101: =IFERROR(HLOOKUP(Y99,[1]DATA!$A$1:$NB$5,5,0),"") -> D1 | AG101: 0
A102: 5vrDD | B102: =VLOOKUP($AA102,DATA!$B$3:$E$6,2,0) -> 06:30:00 | C102: =VLOOKUP($AA102,DATA!$B$3:$E$6,3,0) -> 14:30:00 | D102: =VLOOKUP($AA102,DATA!$B$3:$E$6,4,0) -> 0.03125 | E102: 0.3020833333 | F102: 0.1986111111 | G102: =DATA!$C$9 -> 0.89 | H102: =DATA!$C$10 -> 64 | I102: 1 | J102: 268.125 | K102: 407.8125 | L102: 0.1034722222 | M102: 139.6875 | N102: 0.3425287356 | O102: 0 | R102: 295.4666667 | S102: 270 | V102: 270 | X102: =X100 -> 5 | Y102: =Y99+1 -> 2018-02-02 | Z102: =TEXT(Y102,"ddd") -> vr | AA102: DD | AB102: =IFERROR(HLOOKUP(Y102,[1]DATA!$A$1:$NB$5,3,0),"") -> D3 | AC102: 149 | AE102: 7 | AF102: 277 | AG102: 2 | AH102: -26.25 | AI102: 0.6193548387 | AJ102: 0.9932765576
A103: 5vrMD | B103: =VLOOKUP($AA103,DATA!$B$3:$E$6,2,0) -> 14:30:00 | C103: =VLOOKUP($AA103,DATA!$B$3:$E$6,3,0) -> 22:30:00 | D103: =VLOOKUP($AA103,DATA!$B$3:$E$6,4,0) -> 0.03125 | E103: 0.3020833333 | F103: 0.2229166667 | G103: =DATA!$C$9 -> 0.89 | H103: =DATA!$C$10 -> 64 | I103: 1 | J103: 300.9375 | K103: 407.8125 | L103: 0.07916666667 | M103: 106.875 | N103: 0.2620689655 | O103: 0 | R103: 363.7333333 | S103: 314 | U103: 314 | X103: =X100 -> 5 | Z103: =TEXT(Y102,"ddd") -> vr | AA103: MD | AB103: =IFERROR(HLOOKUP(Y102,[1]DATA!$A$1:$NB$5,4,0),"") -> D2 | AC103: 114 | AE103: 27 | AF103: 341 | AG103: 17 | AH103: -15.0625 | AI103: 0.7202867384 | AJ103: 0.9553493259
A104: 5vrND | B104: =VLOOKUP($AA104,DATA!$B$3:$E$6,2,0) -> 22:30:00 | C104: =VLOOKUP($AA104,DATA!$B$3:$E$6,3,0) -> 06:30:00 | D104: =VLOOKUP($AA104,DATA!$B$3:$E$6,4,0) -> 0.03125 | E104: 0.3020833333 | F104: 0.3020833333 | G104: =DATA!$C$9 -> 0.89 | H104: =DATA!$C$10 -> 64 | I104: 1 | J104: 407.8125 | K104: 407.8125 | L104: 0 | O104: 0 | R104: 0 | X104: =X100 -> 5 | Z104: =TEXT(Y102,"ddd") -> vr | AA104: ND | AB104: =IFERROR(HLOOKUP(Y102,[1]DATA!$A$1:$NB$5,5,0),"") -> - | AG104: 0
A105: 5zaDD | B105: =VLOOKUP($AA105,DATA!$B$3:$E$6,2,0) -> 06:30:00 | C105: =VLOOKUP($AA105,DATA!$B$3:$E$6,3,0) -> 14:30:00 | D105: =VLOOKUP($AA105,DATA!$B$3:$E$6,4,0) -> 0.03125 | E105: 0.3020833333 | F105: 0.3020833333 | G105: =DATA!$C$9 -> 0.89 | H105: =DATA!$C$10 -> 64 | I105: 1 | J105: 407.8125 | K105: 407.8125 | L105: 0 | O105: 0 | R105: 0 | X105: =X100 -> 5 | Y105: =Y102+1 -> 2018-02-03 | Z105: =TEXT(Y105,"ddd") -> za | AA105: DD | AB105: =IFERROR(HLOOKUP(Y105,[1]DATA!$A$1:$NB$5,3,0),"") -> - | AG105: 0
A106: 5zaMD | B106: =VLOOKUP($AA106,DATA!$B$3:$E$6,2,0) -> 14:30:00 | C106: =VLOOKUP($AA106,DATA!$B$3:$E$6,3,0) -> 22:30:00 | D106: =VLOOKUP($AA106,DATA!$B$3:$E$6,4,0) -> 0.03125 | E106: 0.3020833333 | F106: 0.3020833333 | G106: =DATA!$C$9 -> 0.89 | H106: =DATA!$C$10 -> 64 | I106: 1 | J106: 407.8125 | K106: 407.8125 | L106: 0 | O106: 0 | R106: 0 | X106: =X100 -> 5 | Z106: =TEXT(Y105,"ddd") -> za | AA106: MD | AB106: =IFERROR(HLOOKUP(Y105,[1]DATA!$A$1:$NB$5,4,0),"") -> - | AG106: 0
A107: 5zaND | B107: =VLOOKUP($AA107,DATA!$B$3:$E$6,2,0) -> 22:30:00 | C107: =VLOOKUP($AA107,DATA!$B$3:$E$6,3,0) -> 06:30:00 | D107: =VLOOKUP($AA107,DATA!$B$3:$E$6,4,0) -> 0.03125 | E107: 0.3020833333 | F107: 0.3020833333 | G107: =DATA!$C$9 -> 0.89 | H107: =DATA!$C$10 -> 64 | I107: 1 | J107: 407.8125 | K107: 407.8125 | L107: 0 | O107: 0 | R107: 0 | X107: =X100 -> 5 | Z107: =TEXT(Y105,"ddd") -> za | AA107: ND | AB107: =IFERROR(HLOOKUP(Y105,[1]DATA!$A$1:$NB$5,5,0),"") -> - | AG107: 0
A108: 5zoDD | B108: =VLOOKUP($AA108,DATA!$B$3:$E$6,2,0) -> 06:30:00 | C108: =VLOOKUP($AA108,DATA!$B$3:$E$6,3,0) -> 14:30:00 | D108: =VLOOKUP($AA108,DATA!$B$3:$E$6,4,0) -> 0.03125 | E108: 0.3020833333 | F108: 0.3020833333 | G108: =DATA!$C$9 -> 0.89 | H108: =DATA!$C$10 -> 64 | I108: 1 | J108: 407.8125 | K108: 407.8125 | L108: 0 | O108: 0 | R108: 0 | X108: =X100 -> 5 | Y108: =Y105+1 -> 2018-02-04 | Z108: =TEXT(Y108,"ddd") -> zo | AA108: DD | AB108: =IFERROR(HLOOKUP(Y108,[1]DATA!$A$1:$NB$5,3,0),"") -> - | AG108: 0
A109: 5zoMD | B109: =VLOOKUP($AA109,DATA!$B$3:$E$6,2,0) -> 14:30:00 | C109: =VLOOKUP($AA109,DATA!$B$3:$E$6,3,0) -> 22:30:00 | D109: =VLOOKUP($AA109,DATA!$B$3:$E$6,4,0) -> 0.03125 | E109: 0.3020833333 | F109: 0.3020833333 | G109: =DATA!$C$9 -> 0.89 | H109: =DATA!$C$10 -> 64 | I109: 1 | J109: 407.8125 | K109: 407.8125 | L109: 0 | O109: 0 | R109: 0 | X109: =X100 -> 5 | Z109: =TEXT(Y108,"ddd") -> zo | AA109: MD | AB109: =IFERROR(HLOOKUP(Y108,[1]DATA!$A$1:$NB$5,4,0),"") -> - | AG109: 0
A110: 5zoZND | B110: =VLOOKUP($AA110,DATA!$B$3:$E$6,2,0) -> 00:00:00 | C110: =VLOOKUP($AA110,DATA!$B$3:$E$6,3,0) -> 00:00:00 | D110: =VLOOKUP($AA110,DATA!$B$3:$E$6,4,0) -> 0.03125 | E110: -0.03125 | F110: -0.03125 | G110: =DATA!$C$9 -> 0.89 | H110: =DATA!$C$10 -> 64 | I110: 1 | J110: -42.1875 | K110: -42.1875 | L110: 0 | O110: 0 | R110: 0 | X110: =X100 -> 5 | Z110: =TEXT(Y108,"ddd") -> zo | AA110: ZND | AB110: =IFERROR(HLOOKUP(Y108,[1]DATA!$A$1:$NB$5,5,0),"") -> D3 | AG110: 0
A111: 6maDD | B111: =VLOOKUP($AA111,DATA!$B$3:$E$6,2,0) -> 06:30:00 | C111: =VLOOKUP($AA111,DATA!$B$3:$E$6,3,0) -> 14:30:00 | D111: =VLOOKUP($AA111,DATA!$B$3:$E$6,4,0) -> 0.03125 | E111: 0.3020833333 | F111: 0.2326388889 | G111: =DATA!$C$9 -> 0.89 | H111: =DATA!$C$10 -> 64 | I111: 1 | J111: 314.0625 | K111: 407.8125 | L111: 0.06944444444 | M111: 93.75 | N111: 0.2298850575 | O111: =TIME(INT($AD111/60),INT(MOD($AD111,60)/1),0) -> 0 | R111: 334.9333333 | S111: 298 | U111: 298 | X111: =X121 -> 6 | Y111: =Y108+1 -> 2018-02-05 | Z111: =TEXT(Y111,"ddd") -> ma | AA111: DD | AB111: =IFERROR(HLOOKUP(Y111,[1]DATA!$A$1:$NB$5,3,0),"") -> D2 | AC111: 100 | AE111: 16 | AF111: 314 | AG111: 8 | AH111: -44.1875 | AI111: 0.6835842294 | AJ111: 0.9766718507 | AK111: 4359.375 | AL111: 3081 | AM111: 0.7067526882 | AN111: 975.9375 | AO111: 0.2238709677 | AP111: 0 | AQ111: 0 | AR111: 0.9687488337 | AS111: 0.9769269369 | AT111: 0.9605707304 | AV111: 302.4375 | AW111: 0.06937634409 | AX111: 322.6 | AY111: 119
A112: =X112&Z112&AA112 -> 6maMD | B112: =VLOOKUP($AA112,DATA!$B$3:$E$6,2,0) -> 14:30:00 | C112: =VLOOKUP($AA112,DATA!$B$3:$E$6,3,0) -> 22:30:00 | D112: =VLOOKUP($AA112,DATA!$B$3:$E$6,4,0) -> 0.03125 | E112: 0.3020833333 | F112: 0.2097222222 | G112: =DATA!$C$9 -> 0.89 | H112: =DATA!$C$10 -> 64 | I112: 1 | J112: 283.125 | K112: 407.8125 | L112: 0.09236111111 | M112: 124.6875 | N112: 0.3057471264 | O112: =TIME(INT(AD112/60),INT(MOD(AD112,60)/1),0) -> 0 | P112: =IF($O112*86400/$H112=0,"",$O112*86400/$H112) ->  | R112: 354.1333333 | S112: 310 | T112: 310 | X112: =X121 -> 6 | Z112: =TEXT(Y111,"ddd") -> ma | AA112: MD | AB112: =IFERROR(HLOOKUP(Y111,[1]DATA!$A$1:$NB$5,4,0),"") -> D1 | AC112: 133 | AE112: 22 | AF112: 332 | AG112: 0 | AH112: -1.25 | AI112: 0.7111111111 | AJ112: 1
A113: 6maND | B113: =VLOOKUP($AA113,DATA!$B$3:$E$6,2,0) -> 22:30:00 | C113: =VLOOKUP($AA113,DATA!$B$3:$E$6,3,0) -> 06:30:00 | D113: =VLOOKUP($AA113,DATA!$B$3:$E$6,4,0) -> 0.03125 | E113: 0.3020833333 | F113: 0.3020833333 | G113: =DATA!$C$9 -> 0.89 | H113: =DATA!$C$10 -> 64 | I113: 1 | J113: 407.8125 | K113: 407.8125 | L113: 0 | O113: 0 | R113: 0 | X113: =X121 -> 6 | Z113: =TEXT(Y111,"ddd") -> ma | AA113: ND | AB113: =IFERROR(HLOOKUP(Y111,[1]DATA!$A$1:$NB$5,5,0),"") -> D3 | AG113: 0
A114: 6diDD | B114: =VLOOKUP($AA114,DATA!$B$3:$E$6,2,0) -> 06:30:00 | C114: =VLOOKUP($AA114,DATA!$B$3:$E$6,3,0) -> 14:30:00 | D114: =VLOOKUP($AA114,DATA!$B$3:$E$6,4,0) -> 0.03125 | E114: 0.3020833333 | F114: 0.2798611111 | G114: =DATA!$C$9 -> 0.89 | H114: =DATA!$C$10 -> 64 | I114: 1 | J114: 377.8125 | K114: 407.8125 | L114: 0.02222222222 | M114: 30 | N114: 0.07356321839 | O114: 0 | R114: 349.8666667 | S114: 317 | U114: 317 | X114: =X121 -> 6 | Y114: =Y111+1 -> 2018-02-06 | Z114: =TEXT(Y114,"ddd") -> di | AA114: DD | AB114: =IFERROR(HLOOKUP(Y114,[1]DATA!$A$1:$NB$5,3,0),"") -> D2 | AC114: 32 | AE114: 11 | AF114: 328 | AG114: 20 | AH114: -88.9375 | AI114: 0.7271684588 | AJ114: 0.94592646
A115: 6diMD | B115: =VLOOKUP($AA115,DATA!$B$3:$E$6,2,0) -> 14:30:00 | C115: =VLOOKUP($AA115,DATA!$B$3:$E$6,3,0) -> 22:30:00 | D115: =VLOOKUP($AA115,DATA!$B$3:$E$6,4,0) -> 0.03125 | E115: 0.3020833333 | F115: 0.1708333333 | G115: =DATA!$C$9 -> 0.89 | H115: =DATA!$C$10 -> 64 | I115: 1 | J115: 230.625 | K115: 407.8125 | L115: 0.13125 | M115: 177.1875 | N115: 0.4344827586 | O115: 0 | R115: 245.3333333 | S115: 224 | T115: 224 | X115: =X121 -> 6 | Z115: =TEXT(Y114,"ddd") -> di | AA115: MD | AB115: =IFERROR(HLOOKUP(Y114,[1]DATA!$A$1:$NB$5,4,0),"") -> D1 | AC115: 189 | AE115: 6 | AF115: 230 | AG115: 8 | AH115: -34.75 | AI115: 0.5138351254 | AJ115: 0.9684210526
A116: 6diND | B116: =VLOOKUP($AA116,DATA!$B$3:$E$6,2,0) -> 22:30:00 | C116: =VLOOKUP($AA116,DATA!$B$3:$E$6,3,0) -> 06:30:00 | D116: =VLOOKUP($AA116,DATA!$B$3:$E$6,4,0) -> 0.03125 | E116: 0.3020833333 | F116: 0.3020833333 | G116: =DATA!$C$9 -> 0.89 | H116: =DATA!$C$10 -> 64 | I116: 1 | J116: 407.8125 | K116: 407.8125 | L116: 0 | O116: 0 | R116: 0 | X116: =X121 -> 6 | Z116: =TEXT(Y114,"ddd") -> di | AA116: ND | AB116: =IFERROR(HLOOKUP(Y114,[1]DATA!$A$1:$NB$5,5,0),"") -> D3 | AG116: 0
A117: 6woDD | B117: =VLOOKUP($AA117,DATA!$B$3:$E$6,2,0) -> 06:30:00 | C117: =VLOOKUP($AA117,DATA!$B$3:$E$6,3,0) -> 14:30:00 | D117: =VLOOKUP($AA117,DATA!$B$3:$E$6,4,0) -> 0.03125 | E117: 0.3020833333 | F117: 0.25 | G117: =DATA!$C$9 -> 0.89 | H117: =DATA!$C$10 -> 64 | I117: 1 | J117: 337.5 | K117: 407.8125 | L117: 0.05208333333 | M117: 70.3125 | N117: 0.1724137931 | O117: 0 | R117: 394.6666667 | S117: 350 | U117: 350 | X117: =X121 -> 6 | Y117: =Y114+1 -> 2018-02-07 | Z117: =TEXT(Y117,"ddd") -> wo | AA117: DD | AB117: =IFERROR(HLOOKUP(Y117,[1]DATA!$A$1:$NB$5,3,0),"") -> D2 | AC117: 75 | AE117: 20 | AF117: 370 | AG117: 42 | AH117: -15.625 | AI117: 0.8028673835 | AJ117: 0.9038167939
A118: 6woMD | B118: =VLOOKUP($AA118,DATA!$B$3:$E$6,2,0) -> 14:30:00 | C118: =VLOOKUP($AA118,DATA!$B$3:$E$6,3,0) -> 22:30:00 | D118: =VLOOKUP($AA118,DATA!$B$3:$E$6,4,0) -> 0.03125 | E118: 0.3020833333 | F118: 0.1708333333 | G118: =DATA!$C$9 -> 0.89 | H118: =DATA!$C$10 -> 64 | I118: 1 | J118: 230.625 | K118: 407.8125 | L118: 0.13125 | M118: 177.1875 | N118: 0.4344827586 | O118: 0 | R118: 294.4 | S118: 258 | T118: 258 | X118: =X121 -> 6 | Z118: =TEXT(Y117,"ddd") -> wo | AA118: MD | AB118: =IFERROR(HLOOKUP(Y117,[1]DATA!$A$1:$NB$5,4,0),"") -> D1 | AC118: 189 | AE118: 18 | AF118: 276 | AG118: 5 | AH118: -0.75 | AI118: 0.591827957 | AJ118: 0.9832999332
A119: 6woND | B119: =VLOOKUP($AA119,DATA!$B$3:$E$6,2,0) -> 22:30:00 | C119: =VLOOKUP($AA119,DATA!$B$3:$E$6,3,0) -> 06:30:00 | D119: =VLOOKUP($AA119,DATA!$B$3:$E$6,4,0) -> 0.03125 | E119: 0.3020833333 | F119: 0.3020833333 | G119: =DATA!$C$9 -> 0.89 | H119: =DATA!$C$10 -> 64 | I119: 1 | J119: 407.8125 | K119: 407.8125 | L119: 0 | O119: 0 | R119: 0 | X119: =X121 -> 6 | Z119: =TEXT(Y117,"ddd") -> wo | AA119: ND | AB119: =IFERROR(HLOOKUP(Y117,[1]DATA!$A$1:$NB$5,5,0),"") -> D3 | AG119: 0
A120: 6doDD | B120: =VLOOKUP($AA120,DATA!$B$3:$E$6,2,0) -> 06:30:00 | C120: =VLOOKUP($AA120,DATA!$B$3:$E$6,3,0) -> 14:30:00 | D120: =VLOOKUP($AA120,DATA!$B$3:$E$6,4,0) -> 0.03125 | E120: 0.3020833333 | F120: 0.2611111111 | G120: =DATA!$C$9 -> 0.89 | H120: =DATA!$C$10 -> 64 | I120: 1 | J120: 352.5 | K120: 407.8125 | L120: 0.04097222222 | M120: 55.3125 | N120: 0.1356321839 | O120: 0 | R120: 369.0666667 | S120: 333 | U120: 333 | X120: =X121 -> 6 | Y120: =Y117+1 -> 2018-02-08 | Z120: =TEXT(Y120,"ddd") -> do | AA120: DD | AB120: =IFERROR(HLOOKUP(Y120,[1]DATA!$A$1:$NB$5,3,0),"") -> D2 | AC120: 59 | AE120: 13 | AF120: 346 | AG120: 6 | AH120: -47.625 | AI120: 0.7638709677 | AJ120: 0.9840028439
A121: 6doMD | B121: =VLOOKUP($AA121,DATA!$B$3:$E$6,2,0) -> 14:30:00 | C121: =VLOOKUP($AA121,DATA!$B$3:$E$6,3,0) -> 22:30:00 | D121: =VLOOKUP($AA121,DATA!$B$3:$E$6,4,0) -> 0.03125 | E121: 0.3020833333 | F121: 0.2159722222 | G121: =DATA!$C$9 -> 0.89 | H121: =DATA!$C$10 -> 64 | I121: 1 | J121: 291.5625 | K121: 407.8125 | L121: 0.08611111111 | M121: 116.25 | N121: 0.2850574713 | O121: 0 | R121: 355.2 | S121: 315 | T121: 315 | X121: =WEEKNUM($Y111) -> 6 | Z121: =TEXT(Y120,"ddd") -> do | AA121: MD | AB121: =IFERROR(HLOOKUP(Y120,[1]DATA!$A$1:$NB$5,4,0),"") -> D1 | AC121: 124 | AE121: 18 | AF121: 333 | AG121: 0 | AH121: -4.6875 | AI121: 0.7225806452 | AJ121: 1
A122: 6doND | B122: =VLOOKUP($AA122,DATA!$B$3:$E$6,2,0) -> 22:30:00 | C122: =VLOOKUP($AA122,DATA!$B$3:$E$6,3,0) -> 06:30:00 | D122: =VLOOKUP($AA122,DATA!$B$3:$E$6,4,0) -> 0.03125 | E122: 0.3020833333 | F122: 0.3020833333 | G122: =DATA!$C$9 -> 0.89 | H122: =DATA!$C$10 -> 64 | I122: 1 | J122: 407.8125 | K122: 407.8125 | L122: 0 | O122: 0 | R122: 0 | X122: =X121 -> 6 | Z122: =TEXT(Y120,"ddd") -> do | AA122: ND | AB122: =IFERROR(HLOOKUP(Y120,[1]DATA!$A$1:$NB$5,5,0),"") -> D3 | AG122: 0
A123: 6vrDD | B123: =VLOOKUP($AA123,DATA!$B$3:$E$6,2,0) -> 06:30:00 | C123: =VLOOKUP($AA123,DATA!$B$3:$E$6,3,0) -> 14:30:00 | D123: =VLOOKUP($AA123,DATA!$B$3:$E$6,4,0) -> 0.03125 | E123: 0.3020833333 | F123: 0.25625 | G123: =DATA!$C$9 -> 0.89 | H123: =DATA!$C$10 -> 64 | I123: 1 | J123: 345.9375 | K123: 407.8125 | L123: 0.04583333333 | M123: 61.875 | N123: 0.1517241379 | O123: 0 | R123: 393.6 | S123: 345 | U123: 345 | X123: =X121 -> 6 | Y123: =Y120+1 -> 2018-02-09 | Z123: =TEXT(Y123,"ddd") -> vr | AA123: DD | AB123: =IFERROR(HLOOKUP(Y123,[1]DATA!$A$1:$NB$5,3,0),"") -> D2 | AC123: 66 | AE123: 24 | AF123: 369 | AG123: 3 | AH123: -29.0625 | AI123: 0.7913978495 | AJ123: 0.9924357035
A124: 6vrMD | B124: =VLOOKUP($AA124,DATA!$B$3:$E$6,2,0) -> 14:30:00 | C124: =VLOOKUP($AA124,DATA!$B$3:$E$6,3,0) -> 22:30:00 | D124: =VLOOKUP($AA124,DATA!$B$3:$E$6,4,0) -> 0.03125 | E124: 0.3020833333 | F124: 0.2506944444 | G124: =DATA!$C$9 -> 0.89 | H124: =DATA!$C$10 -> 64 | I124: 1 | J124: 338.4375 | K124: 407.8125 | L124: 0.05138888889 | M124: 69.375 | N124: 0.1701149425 | O124: 0 | R124: 375.4666667 | S124: 331 | T124: 331 | X124: =X121 -> 6 | Z124: =TEXT(Y123,"ddd") -> vr | AA124: MD | AB124: =IFERROR(HLOOKUP(Y123,[1]DATA!$A$1:$NB$5,4,0),"") -> D1 | AC124: 74 | AE124: 21 | AF124: 352 | AG124: 27 | AH124: -35.5625 | AI124: 0.7592831541 | AJ124: 0.9329136989
A125: 6vrND | B125: =VLOOKUP($AA125,DATA!$B$3:$E$6,2,0) -> 22:30:00 | C125: =VLOOKUP($AA125,DATA!$B$3:$E$6,3,0) -> 06:30:00 | D125: =VLOOKUP($AA125,DATA!$B$3:$E$6,4,0) -> 0.03125 | E125: 0.3020833333 | F125: 0.3020833333 | G125: =DATA!$C$9 -> 0.89 | H125: =DATA!$C$10 -> 64 | I125: 1 | J125: 407.8125 | K125: 407.8125 | L125: 0 | O125: 0 | R125: 0 | X125: =X121 -> 6 | Z125: =TEXT(Y123,"ddd") -> vr | AA125: ND | AB125: =IFERROR(HLOOKUP(Y123,[1]DATA!$A$1:$NB$5,5,0),"") -> - | AG125: 0
A126: 6zaDD | B126: =VLOOKUP($AA126,DATA!$B$3:$E$6,2,0) -> 06:30:00 | C126: =VLOOKUP($AA126,DATA!$B$3:$E$6,3,0) -> 14:30:00 | D126: =VLOOKUP($AA126,DATA!$B$3:$E$6,4,0) -> 0.03125 | E126: 0.3020833333 | F126: 0.3020833333 | G126: =DATA!$C$9 -> 0.89 | H126: =DATA!$C$10 -> 64 | I126: 1 | J126: 407.8125 | K126: 407.8125 | L126: 0 | O126: 0 | R126: 0 | X126: =X121 -> 6 | Y126: =Y123+1 -> 2018-02-10 | Z126: =TEXT(Y126,"ddd") -> za | AA126: DD | AB126: =IFERROR(HLOOKUP(Y126,[1]DATA!$A$1:$NB$5,3,0),"") -> - | AG126: 0
A127: 6zaMD | B127: =VLOOKUP($AA127,DATA!$B$3:$E$6,2,0) -> 14:30:00 | C127: =VLOOKUP($AA127,DATA!$B$3:$E$6,3,0) -> 22:30:00 | D127: =VLOOKUP($AA127,DATA!$B$3:$E$6,4,0) -> 0.03125 | E127: 0.3020833333 | F127: 0.3020833333 | G127: =DATA!$C$9 -> 0.89 | H127: =DATA!$C$10 -> 64 | I127: 1 | J127: 407.8125 | K127: 407.8125 | L127: 0 | O127: 0 | R127: 0 | X127: =X121 -> 6 | Z127: =TEXT(Y126,"ddd") -> za | AA127: MD | AB127: =IFERROR(HLOOKUP(Y126,[1]DATA!$A$1:$NB$5,4,0),"") -> - | AG127: 0
A128: 6zaND | B128: =VLOOKUP($AA128,DATA!$B$3:$E$6,2,0) -> 22:30:00 | C128: =VLOOKUP($AA128,DATA!$B$3:$E$6,3,0) -> 06:30:00 | D128: =VLOOKUP($AA128,DATA!$B$3:$E$6,4,0) -> 0.03125 | E128: 0.3020833333 | F128: 0.3020833333 | G128: =DATA!$C$9 -> 0.89 | H128: =DATA!$C$10 -> 64 | I128: 1 | J128: 407.8125 | K128: 407.8125 | L128: 0 | O128: 0 | R128: 0 | X128: =X121 -> 6 | Z128: =TEXT(Y126,"ddd") -> za | AA128: ND | AB128: =IFERROR(HLOOKUP(Y126,[1]DATA!$A$1:$NB$5,5,0),"") -> - | AG128: 0
A129: 6zoDD | B129: =VLOOKUP($AA129,DATA!$B$3:$E$6,2,0) -> 06:30:00 | C129: =VLOOKUP($AA129,DATA!$B$3:$E$6,3,0) -> 14:30:00 | D129: =VLOOKUP($AA129,DATA!$B$3:$E$6,4,0) -> 0.03125 | E129: 0.3020833333 | F129: 0.3020833333 | G129: =DATA!$C$9 -> 0.89 | H129: =DATA!$C$10 -> 64 | I129: 1 | J129: 407.8125 | K129: 407.8125 | L129: 0 | O129: 0 | R129: 0 | X129: =X121 -> 6 | Y129: =Y126+1 -> 2018-02-11 | Z129: =TEXT(Y129,"ddd") -> zo | AA129: DD | AB129: =IFERROR(HLOOKUP(Y129,[1]DATA!$A$1:$NB$5,3,0),"") -> - | AG129: 0
A130: 6zoMD | B130: =VLOOKUP($AA130,DATA!$B$3:$E$6,2,0) -> 14:30:00 | C130: =VLOOKUP($AA130,DATA!$B$3:$E$6,3,0) -> 22:30:00 | D130: =VLOOKUP($AA130,DATA!$B$3:$E$6,4,0) -> 0.03125 | E130: 0.3020833333 | F130: 0.3020833333 | G130: =DATA!$C$9 -> 0.89 | H130: =DATA!$C$10 -> 64 | I130: 1 | J130: 407.8125 | K130: 407.8125 | L130: 0 | O130: 0 | R130: 0 | X130: =X121 -> 6 | Z130: =TEXT(Y129,"ddd") -> zo | AA130: MD | AB130: =IFERROR(HLOOKUP(Y129,[1]DATA!$A$1:$NB$5,4,0),"") -> - | AG130: 0
A131: 6zoZND | B131: =VLOOKUP($AA131,DATA!$B$3:$E$6,2,0) -> 00:00:00 | C131: =VLOOKUP($AA131,DATA!$B$3:$E$6,3,0) -> 00:00:00 | D131: =VLOOKUP($AA131,DATA!$B$3:$E$6,4,0) -> 0.03125 | E131: -0.03125 | F131: -0.03125 | G131: =DATA!$C$9 -> 0.89 | H131: =DATA!$C$10 -> 64 | I131: 1 | J131: -42.1875 | K131: -42.1875 | L131: 0 | O131: 0 | R131: 0 | X131: =X121 -> 6 | Z131: =TEXT(Y129,"ddd") -> zo | AA131: ZND | AB131: =IFERROR(HLOOKUP(Y129,[1]DATA!$A$1:$NB$5,5,0),"") -> D2 | AG131: 0
A132: 7maDD | B132: =VLOOKUP($AA132,DATA!$B$3:$E$6,2,0) -> 06:30:00 | C132: =VLOOKUP($AA132,DATA!$B$3:$E$6,3,0) -> 14:30:00 | D132: =VLOOKUP($AA132,DATA!$B$3:$E$6,4,0) -> 0.03125 | E132: 0.3020833333 | F132: 0.3020833333 | G132: =DATA!$C$9 -> 0.89 | H132: =DATA!$C$10 -> 64 | I132: 1 | J132: 407.8125 | K132: 407.8125 | L132: 0 | O132: =TIME(INT($AD132/60),INT(MOD($AD132,60)/1),0) -> 0 | R132: 0 | X132: =X142 -> 7 | Y132: =Y129+1 -> 2018-02-12 | Z132: =TEXT(Y132,"ddd") -> ma | AA132: DD | AB132: =IFERROR(HLOOKUP(Y132,[1]DATA!$A$1:$NB$5,3,0),"") -> D1 | AG132: 0 | AK132: 3487.5 | AL132: 2469 | AM132: 0.7079569892 | AN132: 1070.625 | AO132: 0.3069892473 | AP132: 0 | AQ132: 0 | AR132: 0.9899668875 | AS132: 0.9893160576 | AU132: 0.9906177174 | AV132: -52.125 | AW132: -0.01494623656 | AX132: -55.6 | AY132: 30
A133: 7maMD | B133: =VLOOKUP($AA133,DATA!$B$3:$E$6,2,0) -> 14:30:00 | C133: =VLOOKUP($AA133,DATA!$B$3:$E$6,3,0) -> 22:30:00 | D133: =VLOOKUP($AA133,DATA!$B$3:$E$6,4,0) -> 0.03125 | E133: 0.3020833333 | F133: 0.3020833333 | G133: =DATA!$C$9 -> 0.89 | H133: =DATA!$C$10 -> 64 | I133: 1 | J133: 407.8125 | K133: 407.8125 | L133: 0 | O133: =TIME(INT(AD133/60),INT(MOD(AD133,60)/1),0) -> 0 | R133: 0 | X133: =X142 -> 7 | Z133: =TEXT(Y132,"ddd") -> ma | AA133: MD | AB133: =IFERROR(HLOOKUP(Y132,[1]DATA!$A$1:$NB$5,4,0),"") -> D3 | AG133: 0
A134: 7maND | B134: =VLOOKUP($AA134,DATA!$B$3:$E$6,2,0) -> 22:30:00 | C134: =VLOOKUP($AA134,DATA!$B$3:$E$6,3,0) -> 06:30:00 | D134: =VLOOKUP($AA134,DATA!$B$3:$E$6,4,0) -> 0.03125 | E134: 0.3020833333 | F134: 0.3020833333 | G134: =DATA!$C$9 -> 0.89 | H134: =DATA!$C$10 -> 64 | I134: 1 | J134: 407.8125 | K134: 407.8125 | L134: 0 | O134: 0 | R134: 0 | X134: =X142 -> 7 | Z134: =TEXT(Y132,"ddd") -> ma | AA134: ND | AB134: =IFERROR(HLOOKUP(Y132,[1]DATA!$A$1:$NB$5,5,0),"") -> D2 | AG134: 0
A135: 7diDD | B135: =VLOOKUP($AA135,DATA!$B$3:$E$6,2,0) -> 06:30:00 | C135: =VLOOKUP($AA135,DATA!$B$3:$E$6,3,0) -> 14:30:00 | D135: =VLOOKUP($AA135,DATA!$B$3:$E$6,4,0) -> 0.03125 | E135: 0.3020833333 | F135: 0.1798611111 | G135: =DATA!$C$9 -> 0.89 | H135: =DATA!$C$10 -> 64 | I135: 1 | J135: 242.8125 | K135: 407.8125 | L135: =TIME(INT($AC135/60),INT(MOD($AC135,60)/1),0) -> 0.1222222222 | M135: =IF($L135*86400/$H135=0,"",$L135*86400/$H135) -> 165 | N135: =IFERROR($M135/$K135,"") -> 0.4045977011 | O135: 0 | Q135: =IFERROR($P135/$K135,"") ->  | R135: 324.2666667 | S135: 282 | T135: =IF(IF($AB135="D1",$S135,"")=0,"",IF($AB135="D1",$S135,"")) -> 282 | U135: =IF(IF($AB135="D2",$S135,"")=0,"",IF($AB135="D2",$S135,"")) ->  | V135: =IF(IF($AB135="D3",$S135,"")=0,"",IF($AB135="D3",$S135,"")) ->  | X135: =X142 -> 7 | Y135: =Y132+1 -> 2018-02-13 | Z135: =TEXT(Y135,"ddd") -> di | AA135: DD | AB135: =IFERROR(HLOOKUP(Y135,[1]DATA!$A$1:$NB$5,3,0),"") -> D1 | AC135: 176 | AE135: 22 | AF135: 304 | AG135: 5 | AH135: 11.0625 | AI135: 0.6468817204 | AJ135: 0.9848147398
A136: 7diMD | B136: =VLOOKUP($AA136,DATA!$B$3:$E$6,2,0) -> 14:30:00 | C136: =VLOOKUP($AA136,DATA!$B$3:$E$6,3,0) -> 22:30:00 | D136: =VLOOKUP($AA136,DATA!$B$3:$E$6,4,0) -> 0.03125 | E136: 0.3020833333 | F136: 0.2333333333 | G136: =DATA!$C$9 -> 0.89 | H136: =DATA!$C$10 -> 64 | I136: 1 | J136: 315 | K136: 407.8125 | L136: 0.06875 | M136: 92.8125 | N136: 0.2275862069 | O136: 0 | R136: 403.2 | S136: 360 | V136: 360 | X136: =X142 -> 7 | Z136: =TEXT(Y135,"ddd") -> di | AA136: MD | AB136: =IFERROR(HLOOKUP(Y135,[1]DATA!$A$1:$NB$5,4,0),"") -> D3 | AC136: 99 | AE136: 18 | AF136: 378 | AG136: 4 | AH136: 16.875 | AI136: 0.8258064516 | AJ136: 0.9901768173
A137: 7diND | B137: =VLOOKUP($AA137,DATA!$B$3:$E$6,2,0) -> 22:30:00 | C137: =VLOOKUP($AA137,DATA!$B$3:$E$6,3,0) -> 06:30:00 | D137: =VLOOKUP($AA137,DATA!$B$3:$E$6,4,0) -> 0.03125 | E137: 0.3020833333 | F137: 0.3020833333 | G137: =DATA!$C$9 -> 0.89 | H137: =DATA!$C$10 -> 64 | I137: 1 | J137: 407.8125 | K137: 407.8125 | L137: 0 | O137: 0 | R137: 0 | X137: =X142 -> 7 | Z137: =TEXT(Y135,"ddd") -> di | AA137: ND | AB137: =IFERROR(HLOOKUP(Y135,[1]DATA!$A$1:$NB$5,5,0),"") -> D2 | AG137: 0
A138: 7woDD | B138: =VLOOKUP($AA138,DATA!$B$3:$E$6,2,0) -> 06:30:00 | C138: =VLOOKUP($AA138,DATA!$B$3:$E$6,3,0) -> 14:30:00 | D138: =VLOOKUP($AA138,DATA!$B$3:$E$6,4,0) -> 0.03125 | E138: 0.3020833333 | F138: 0.2256944444 | G138: =DATA!$C$9 -> 0.89 | H138: =DATA!$C$10 -> 64 | I138: 1 | J138: 304.6875 | K138: 407.8125 | L138: 0.07638888889 | M138: 103.125 | N138: 0.2528735632 | O138: 0 | R138: 388.2666667 | S138: 344 | T138: 344 | X138: =X142 -> 7 | Y138: =Y135+1 -> 2018-02-14 | Z138: =TEXT(Y138,"ddd") -> wo | AA138: DD | AB138: =IFERROR(HLOOKUP(Y138,[1]DATA!$A$1:$NB$5,3,0),"") -> D1 | AC138: 110 | AE138: 20 | AF138: 364 | AG138: 11 | AH138: 11.1875 | AI138: 0.7891039427 | AJ138: 0.9724494907
A139: 7woMD | B139: =VLOOKUP($AA139,DATA!$B$3:$E$6,2,0) -> 14:30:00 | C139: =VLOOKUP($AA139,DATA!$B$3:$E$6,3,0) -> 22:30:00 | D139: =VLOOKUP($AA139,DATA!$B$3:$E$6,4,0) -> 0.03125 | E139: 0.3020833333 | F139: 0.1972222222 | G139: =DATA!$C$9 -> 0.89 | H139: =DATA!$C$10 -> 64 | I139: 1 | J139: 266.25 | K139: 407.8125 | L139: 0.1048611111 | M139: 141.5625 | N139: 0.3471264368 | O139: 0 | R139: 350.9333333 | S139: 306 | V139: 306 | X139: =X142 -> 7 | Z139: =TEXT(Y138,"ddd") -> wo | AA139: MD | AB139: =IFERROR(HLOOKUP(Y138,[1]DATA!$A$1:$NB$5,4,0),"") -> D3 | AC139: 151 | AE139: 23 | AF139: 329 | AG139: 10 | AH139: 11.625 | AI139: 0.7019354839 | AJ139: 0.9722940525
A140: 7woND | B140: =VLOOKUP($AA140,DATA!$B$3:$E$6,2,0) -> 22:30:00 | C140: =VLOOKUP($AA140,DATA!$B$3:$E$6,3,0) -> 06:30:00 | D140: =VLOOKUP($AA140,DATA!$B$3:$E$6,4,0) -> 0.03125 | E140: 0.3020833333 | F140: 0.3020833333 | G140: =DATA!$C$9 -> 0.89 | H140: =DATA!$C$10 -> 64 | I140: 1 | J140: 407.8125 | K140: 407.8125 | L140: 0 | O140: 0 | R140: 0 | X140: =X142 -> 7 | Z140: =TEXT(Y138,"ddd") -> wo | AA140: ND | AB140: =IFERROR(HLOOKUP(Y138,[1]DATA!$A$1:$NB$5,5,0),"") -> D2 | AG140: 0
A141: 7doDD | B141: =VLOOKUP($AA141,DATA!$B$3:$E$6,2,0) -> 06:30:00 | C141: =VLOOKUP($AA141,DATA!$B$3:$E$6,3,0) -> 14:30:00 | D141: =VLOOKUP($AA141,DATA!$B$3:$E$6,4,0) -> 0.03125 | E141: 0.3020833333 | F141: 0.2076388889 | G141: =DATA!$C$9 -> 0.89 | H141: =DATA!$C$10 -> 64 | I141: 1 | J141: 280.3125 | K141: 407.8125 | L141: 0.09444444444 | M141: 127.5 | N141: 0.3126436782 | O141: 0 | R141: 354.1333333 | S141: 322 | T141: 322 | X141: =X142 -> 7 | Y141: =Y138+1 -> 2018-02-15 | Z141: =TEXT(Y141,"ddd") -> do | AA141: DD | AB141: =IFERROR(HLOOKUP(Y141,[1]DATA!$A$1:$NB$5,3,0),"") -> D1 | AC141: 136 | AE141: 10 | AF141: 332 | AG141: 0 | AH141: 13.5625 | AI141: 0.7386379928 | AJ141: 1
A142: 7doMD | B142: =VLOOKUP($AA142,DATA!$B$3:$E$6,2,0) -> 14:30:00 | C142: =VLOOKUP($AA142,DATA!$B$3:$E$6,3,0) -> 22:30:00 | D142: =VLOOKUP($AA142,DATA!$B$3:$E$6,4,0) -> 0.03125 | E142: 0.3020833333 | F142: 0.2222222222 | G142: =DATA!$C$9 -> 0.89 | H142: =DATA!$C$10 -> 64 | I142: 1 | J142: 300 | K142: 407.8125 | L142: 0.07986111111 | M142: 107.8125 | N142: 0.2643678161 | O142: 0 | R142: 365.8666667 | S142: 324 | V142: 324 | X142: =WEEKNUM($Y132) -> 7 | Z142: =TEXT(Y141,"ddd") -> do | AA142: MD | AB142: =IFERROR(HLOOKUP(Y141,[1]DATA!$A$1:$NB$5,4,0),"") -> D3 | AC142: 115 | AE142: 19 | AF142: 343 | AG142: 0 | AH142: -4.125 | AI142: 0.7432258065 | AJ142: 1
A143: 7doND | B143: =VLOOKUP($AA143,DATA!$B$3:$E$6,2,0) -> 22:30:00 | C143: =VLOOKUP($AA143,DATA!$B$3:$E$6,3,0) -> 06:30:00 | D143: =VLOOKUP($AA143,DATA!$B$3:$E$6,4,0) -> 0.03125 | E143: 0.3020833333 | F143: 0.3020833333 | G143: =DATA!$C$9 -> 0.89 | H143: =DATA!$C$10 -> 64 | I143: 1 | J143: 407.8125 | K143: 407.8125 | L143: 0 | O143: 0 | R143: 0 | X143: =X142 -> 7 | Z143: =TEXT(Y141,"ddd") -> do | AA143: ND | AB143: =IFERROR(HLOOKUP(Y141,[1]DATA!$A$1:$NB$5,5,0),"") -> D2 | AG143: 0
A144: 7vrDD | B144: =VLOOKUP($AA144,DATA!$B$3:$E$6,2,0) -> 06:30:00 | C144: =VLOOKUP($AA144,DATA!$B$3:$E$6,3,0) -> 14:30:00 | D144: =VLOOKUP($AA144,DATA!$B$3:$E$6,4,0) -> 0.03125 | E144: 0.3020833333 | F144: 0.1659722222 | G144: =DATA!$C$9 -> 0.89 | H144: =DATA!$C$10 -> 64 | I144: 1 | J144: 224.0625 | K144: 407.8125 | L144: 0.1361111111 | M144: 183.75 | N144: 0.4505747126 | O144: 0 | R144: 276.2666667 | S144: 246 | T144: 246 | X144: =X142 -> 7 | Y144: =Y141+1 -> 2018-02-16 | Z144: =TEXT(Y144,"ddd") -> vr | AA144: DD | AB144: =IFERROR(HLOOKUP(Y144,[1]DATA!$A$1:$NB$5,3,0),"") -> D1 | AC144: 196 | AE144: 13 | AF144: 259 | AG144: 0 | AH144: -6.1875 | AI144: 0.5643010753 | AJ144: 1
A145: 7vrMD | B145: =VLOOKUP($AA145,DATA!$B$3:$E$6,2,0) -> 14:30:00 | C145: =VLOOKUP($AA145,DATA!$B$3:$E$6,3,0) -> 22:30:00 | D145: =VLOOKUP($AA145,DATA!$B$3:$E$6,4,0) -> 0.03125 | E145: 0.3020833333 | F145: 0.1916666667 | G145: =DATA!$C$9 -> 0.89 | H145: =DATA!$C$10 -> 64 | I145: 1 | J145: 258.75 | K145: 407.8125 | L145: 0.1104166667 | M145: 149.0625 | N145: 0.3655172414 | O145: 0 | R145: 313.6 | S145: 285 | V145: 285 | X145: =X142 -> 7 | Z145: =TEXT(Y144,"ddd") -> vr | AA145: MD | AB145: =IFERROR(HLOOKUP(Y144,[1]DATA!$A$1:$NB$5,4,0),"") -> D3 | AC145: 159 | AE145: 9 | AF145: 294 | AG145: 0 | AH145: -1.875 | AI145: 0.6537634409 | AJ145: 1
A146: 7vrND | B146: =VLOOKUP($AA146,DATA!$B$3:$E$6,2,0) -> 22:30:00 | C146: =VLOOKUP($AA146,DATA!$B$3:$E$6,3,0) -> 06:30:00 | D146: =VLOOKUP($AA146,DATA!$B$3:$E$6,4,0) -> 0.03125 | E146: 0.3020833333 | F146: 0.3020833333 | G146: =DATA!$C$9 -> 0.89 | H146: =DATA!$C$10 -> 64 | I146: 1 | J146: 407.8125 | K146: 407.8125 | L146: 0 | O146: 0 | R146: 0 | X146: =X142 -> 7 | Z146: =TEXT(Y144,"ddd") -> vr | AA146: ND | AB146: =IFERROR(HLOOKUP(Y144,[1]DATA!$A$1:$NB$5,5,0),"") -> - | AG146: 0
A147: 7zaDD | B147: =VLOOKUP($AA147,DATA!$B$3:$E$6,2,0) -> 06:30:00 | C147: =VLOOKUP($AA147,DATA!$B$3:$E$6,3,0) -> 14:30:00 | D147: =VLOOKUP($AA147,DATA!$B$3:$E$6,4,0) -> 0.03125 | E147: 0.3020833333 | F147: 0.3020833333 | G147: =DATA!$C$9 -> 0.89 | H147: =DATA!$C$10 -> 64 | I147: 1 | J147: 407.8125 | K147: 407.8125 | L147: 0 | O147: 0 | R147: 0 | X147: =X142 -> 7 | Y147: =Y144+1 -> 2018-02-17 | Z147: =TEXT(Y147,"ddd") -> za | AA147: DD | AB147: =IFERROR(HLOOKUP(Y147,[1]DATA!$A$1:$NB$5,3,0),"") -> - | AG147: 0
A148: 7zaMD | B148: =VLOOKUP($AA148,DATA!$B$3:$E$6,2,0) -> 14:30:00 | C148: =VLOOKUP($AA148,DATA!$B$3:$E$6,3,0) -> 22:30:00 | D148: =VLOOKUP($AA148,DATA!$B$3:$E$6,4,0) -> 0.03125 | E148: 0.3020833333 | F148: 0.3020833333 | G148: =DATA!$C$9 -> 0.89 | H148: =DATA!$C$10 -> 64 | I148: 1 | J148: 407.8125 | K148: 407.8125 | L148: 0 | O148: 0 | R148: 0 | X148: =X142 -> 7 | Z148: =TEXT(Y147,"ddd") -> za | AA148: MD | AB148: =IFERROR(HLOOKUP(Y147,[1]DATA!$A$1:$NB$5,4,0),"") -> - | AG148: 0
A149: 7zaND | B149: =VLOOKUP($AA149,DATA!$B$3:$E$6,2,0) -> 22:30:00 | C149: =VLOOKUP($AA149,DATA!$B$3:$E$6,3,0) -> 06:30:00 | D149: =VLOOKUP($AA149,DATA!$B$3:$E$6,4,0) -> 0.03125 | E149: 0.3020833333 | F149: 0.3020833333 | G149: =DATA!$C$9 -> 0.89 | H149: =DATA!$C$10 -> 64 | I149: 1 | J149: 407.8125 | K149: 407.8125 | L149: 0 | O149: 0 | R149: 0 | X149: =X142 -> 7 | Z149: =TEXT(Y147,"ddd") -> za | AA149: ND | AB149: =IFERROR(HLOOKUP(Y147,[1]DATA!$A$1:$NB$5,5,0),"") -> - | AG149: 0
A150: 7zoDD | B150: =VLOOKUP($AA150,DATA!$B$3:$E$6,2,0) -> 06:30:00 | C150: =VLOOKUP($AA150,DATA!$B$3:$E$6,3,0) -> 14:30:00 | D150: =VLOOKUP($AA150,DATA!$B$3:$E$6,4,0) -> 0.03125 | E150: 0.3020833333 | F150: 0.3020833333 | G150: =DATA!$C$9 -> 0.89 | H150: =DATA!$C$10 -> 64 | I150: 1 | J150: 407.8125 | K150: 407.8125 | L150: 0 | O150: 0 | R150: 0 | X150: =X142 -> 7 | Y150: =Y147+1 -> 2018-02-18 | Z150: =TEXT(Y150,"ddd") -> zo | AA150: DD | AB150: =IFERROR(HLOOKUP(Y150,[1]DATA!$A$1:$NB$5,3,0),"") -> - | AG150: 0
A151: 7zoMD | B151: =VLOOKUP($AA151,DATA!$B$3:$E$6,2,0) -> 14:30:00 | C151: =VLOOKUP($AA151,DATA!$B$3:$E$6,3,0) -> 22:30:00 | D151: =VLOOKUP($AA151,DATA!$B$3:$E$6,4,0) -> 0.03125 | E151: 0.3020833333 | F151: 0.3020833333 | G151: =DATA!$C$9 -> 0.89 | H151: =DATA!$C$10 -> 64 | I151: 1 | J151: 407.8125 | K151: 407.8125 | L151: 0 | O151: 0 | R151: 0 | X151: =X142 -> 7 | Z151: =TEXT(Y150,"ddd") -> zo | AA151: MD | AB151: =IFERROR(HLOOKUP(Y150,[1]DATA!$A$1:$NB$5,4,0),"") -> - | AG151: 0
A152: 7zoZND | B152: =VLOOKUP($AA152,DATA!$B$3:$E$6,2,0) -> 00:00:00 | C152: =VLOOKUP($AA152,DATA!$B$3:$E$6,3,0) -> 00:00:00 | D152: =VLOOKUP($AA152,DATA!$B$3:$E$6,4,0) -> 0.03125 | E152: -0.03125 | F152: -0.03125 | G152: =DATA!$C$9 -> 0.89 | H152: =DATA!$C$10 -> 64 | I152: 1 | J152: -42.1875 | K152: -42.1875 | L152: 0 | O152: 0 | R152: 0 | X152: =X142 -> 7 | Z152: =TEXT(Y150,"ddd") -> zo | AA152: ZND | AB152: =IFERROR(HLOOKUP(Y150,[1]DATA!$A$1:$NB$5,5,0),"") -> D1 | AG152: 0
A153: 8maDD | B153: =VLOOKUP($AA153,DATA!$B$3:$E$6,2,0) -> 06:30:00 | C153: =VLOOKUP($AA153,DATA!$B$3:$E$6,3,0) -> 14:30:00 | D153: =VLOOKUP($AA153,DATA!$B$3:$E$6,4,0) -> 0.03125 | E153: 0.3020833333 | F153: 0.2625 | G153: =DATA!$C$9 -> 0.89 | H153: =DATA!$C$10 -> 64 | I153: 1 | J153: 354.375 | K153: 407.8125 | L153: 0.03958333333 | M153: 53.4375 | N153: 0.1310344828 | O153: =TIME(INT($AD153/60),INT(MOD($AD153,60)/1),0) -> 0 | R153: 404.2666667 | S153: 367 | V153: 367 | X153: =X163 -> 8 | Y153: =Y150+1 -> 2018-02-19 | Z153: =TEXT(Y153,"ddd") -> ma | AA153: DD | AB153: =IFERROR(HLOOKUP(Y153,[1]DATA!$A$1:$NB$5,3,0),"") -> D3 | AC153: 57 | AE153: 12 | AF153: 379 | AG153: 7 | AH153: -15.5 | AI153: 0.8418637993 | AJ153: 0.9829794132 | AK153: 3923.4375 | AL153: 2879 | AM153: 0.7337953007 | AN153: 938.4375 | AO153: 0.2391875747 | AP153: 0 | AQ153: 0 | AR153: 0.982120192 | AT153: 0.9841175006 | AU153: 0.9796235563 | AV153: 106 | AW153: 0.02701712465 | AX153: 113.0666667 | AY153: 55
A154: 8maMD | B154: =VLOOKUP($AA154,DATA!$B$3:$E$6,2,0) -> 14:30:00 | C154: =VLOOKUP($AA154,DATA!$B$3:$E$6,3,0) -> 22:30:00 | D154: =VLOOKUP($AA154,DATA!$B$3:$E$6,4,0) -> 0.03125 | E154: 0.3020833333 | F154: 0.2430555556 | G154: =DATA!$C$9 -> 0.89 | H154: =DATA!$C$10 -> 64 | I154: 1 | J154: 328.125 | K154: 407.8125 | L154: 0.05902777778 | M154: 79.6875 | N154: 0.1954022989 | O154: =TIME(INT(AD154/60),INT(MOD(AD154,60)/1),0) -> 0 | R154: 394.6666667 | S154: 343 | U154: 343 | X154: =X163 -> 8 | Z154: =TEXT(Y153,"ddd") -> ma | AA154: MD | AB154: =IFERROR(HLOOKUP(Y153,[1]DATA!$A$1:$NB$5,4,0),"") -> D2 | AC154: 85 | AE154: 27 | AF154: 370 | AG154: 0 | AH154: -13.25 | AI154: 0.7868100358 | AJ154: 1
A155: 8maND | B155: =VLOOKUP($AA155,DATA!$B$3:$E$6,2,0) -> 22:30:00 | C155: =VLOOKUP($AA155,DATA!$B$3:$E$6,3,0) -> 06:30:00 | D155: =VLOOKUP($AA155,DATA!$B$3:$E$6,4,0) -> 0.03125 | E155: 0.3020833333 | F155: 0.3020833333 | G155: =DATA!$C$9 -> 0.89 | H155: =DATA!$C$10 -> 64 | I155: 1 | J155: 407.8125 | K155: 407.8125 | L155: 0 | O155: 0 | R155: 0 | X155: =X163 -> 8 | Z155: =TEXT(Y153,"ddd") -> ma | AA155: ND | AB155: =IFERROR(HLOOKUP(Y153,[1]DATA!$A$1:$NB$5,5,0),"") -> D1 | AG155: 0
A156: 8diDD | B156: =VLOOKUP($AA156,DATA!$B$3:$E$6,2,0) -> 06:30:00 | C156: =VLOOKUP($AA156,DATA!$B$3:$E$6,3,0) -> 14:30:00 | D156: =VLOOKUP($AA156,DATA!$B$3:$E$6,4,0) -> 0.03125 | E156: =(C156-B156+(B156>C156))-D156 -> 0.3020833333 | F156: =E156-O156-L156 -> 0.2222222222 | G156: =DATA!$C$9 -> 0.89 | H156: =DATA!$C$10 -> 64 | I156: 1 | J156: =F156*86400/H156*I156 -> 300 | K156: =E156*86400/H156 -> 407.8125 | L156: 0.07986111111 | M156: 107.8125 | N156: 0.2643678161 | O156: 0 | R156: =AF156*AG$2 -> 243.2 | S156: =IF(AF156-AE156=0,"",AF156-AE156) -> 220 | V156: 220 | X156: =X163 -> 8 | Y156: =Y153+1 -> 2018-02-20 | Z156: =TEXT(Y156,"ddd") -> di | AA156: DD | AB156: =IFERROR(HLOOKUP(Y156,[1]DATA!$A$1:$NB$5,3,0),"") -> D3 | AC156: 115 | AE156: 8 | AF156: 228 | AG156: 9 | AH156: -108.125 | AI156: 0.5046594982 | AJ156: 0.9643140365
A157: 8diMD | B157: =VLOOKUP($AA157,DATA!$B$3:$E$6,2,0) -> 14:30:00 | C157: =VLOOKUP($AA157,DATA!$B$3:$E$6,3,0) -> 22:30:00 | D157: =VLOOKUP($AA157,DATA!$B$3:$E$6,4,0) -> 0.03125 | E157: 0.3020833333 | F157: 0.2395833333 | G157: =DATA!$C$9 -> 0.89 | H157: =DATA!$C$10 -> 64 | I157: 1 | J157: 323.4375 | K157: 407.8125 | L157: 0.0625 | M157: 84.375 | N157: 0.2068965517 | O157: 0 | R157: 430.9333333 | S157: 368 | U157: 368 | X157: =X163 -> 8 | Z157: =TEXT(Y156,"ddd") -> di | AA157: MD | AB157: =IFERROR(HLOOKUP(Y156,[1]DATA!$A$1:$NB$5,4,0),"") -> D2 | AC157: 90 | AE157: 36 | AF157: 404 | AG157: 5 | AH157: 16.4375 | AI157: 0.8441577061 | AJ157: 0.9885303563
A158: 8diND | B158: =VLOOKUP($AA158,DATA!$B$3:$E$6,2,0) -> 22:30:00 | C158: =VLOOKUP($AA158,DATA!$B$3:$E$6,3,0) -> 06:30:00 | D158: =VLOOKUP($AA158,DATA!$B$3:$E$6,4,0) -> 0.03125 | E158: 0.3020833333 | F158: 0.3020833333 | G158: =DATA!$C$9 -> 0.89 | H158: =DATA!$C$10 -> 64 | I158: 1 | J158: 407.8125 | K158: 407.8125 | L158: 0 | O158: 0 | R158: 0 | X158: =X163 -> 8 | Z158: =TEXT(Y156,"ddd") -> di | AA158: ND | AB158: =IFERROR(HLOOKUP(Y156,[1]DATA!$A$1:$NB$5,5,0),"") -> D1 | AG158: 0
A159: 8woDD | B159: =VLOOKUP($AA159,DATA!$B$3:$E$6,2,0) -> 06:30:00 | C159: =VLOOKUP($AA159,DATA!$B$3:$E$6,3,0) -> 14:30:00 | D159: =VLOOKUP($AA159,DATA!$B$3:$E$6,4,0) -> 0.03125 | E159: 0.3020833333 | F159: 0.2173611111 | G159: =DATA!$C$9 -> 0.89 | H159: =DATA!$C$10 -> 64 | I159: 1 | J159: 293.4375 | K159: 407.8125 | L159: 0.08472222222 | M159: 114.375 | N159: 0.2804597701 | O159: 0 | R159: 366.9333333 | S159: 320 | V159: 320 | X159: =X163 -> 8 | Y159: =Y156+1 -> 2018-02-21 | Z159: =TEXT(Y159,"ddd") -> wo | AA159: DD | AB159: =IFERROR(HLOOKUP(Y159,[1]DATA!$A$1:$NB$5,3,0),"") -> D3 | AC159: 122 | AE159: 24 | AF159: 344 | AG159: 3 | AH159: -1.5625 | AI159: 0.7340501792 | AJ159: 0.9918904307
A160: 8woMD | B160: =VLOOKUP($AA160,DATA!$B$3:$E$6,2,0) -> 14:30:00 | C160: =VLOOKUP($AA160,DATA!$B$3:$E$6,3,0) -> 22:30:00 | D160: =VLOOKUP($AA160,DATA!$B$3:$E$6,4,0) -> 0.03125 | E160: 0.3020833333 | F160: 0.2083333333 | G160: =DATA!$C$9 -> 0.89 | H160: =DATA!$C$10 -> 64 | I160: 1 | J160: 281.25 | K160: 407.8125 | L160: 0.09375 | M160: 126.5625 | N160: 0.3103448276 | O160: 0 | R160: 384 | S160: 324 | U160: 324 | X160: =X163 -> 8 | Z160: =TEXT(Y159,"ddd") -> wo | AA160: MD | AB160: =IFERROR(HLOOKUP(Y159,[1]DATA!$A$1:$NB$5,4,0),"") -> D2 | AC160: 135 | AE160: 36 | AF160: 360 | AG160: 2 | AH160: 14.625 | AI160: 0.7432258065 | AJ160: 0.9948186528
A161: 8woND | B161: =VLOOKUP($AA161,DATA!$B$3:$E$6,2,0) -> 22:30:00 | C161: =VLOOKUP($AA161,DATA!$B$3:$E$6,3,0) -> 06:30:00 | D161: =VLOOKUP($AA161,DATA!$B$3:$E$6,4,0) -> 0.03125 | E161: 0.3020833333 | F161: 0.3020833333 | G161: =DATA!$C$9 -> 0.89 | H161: =DATA!$C$10 -> 64 | I161: 1 | J161: 407.8125 | K161: 407.8125 | L161: 0 | O161: 0 | R161: 0 | X161: =X163 -> 8 | Z161: =TEXT(Y159,"ddd") -> wo | AA161: ND | AB161: =IFERROR(HLOOKUP(Y159,[1]DATA!$A$1:$NB$5,5,0),"") -> D1 | AG161: 0
A162: 8doDD | B162: =VLOOKUP($AA162,DATA!$B$3:$E$6,2,0) -> 06:30:00 | C162: =VLOOKUP($AA162,DATA!$B$3:$E$6,3,0) -> 14:30:00 | D162: =VLOOKUP($AA162,DATA!$B$3:$E$6,4,0) -> 0.03125 | E162: 0.3020833333 | F162: 0.2236111111 | G162: =DATA!$C$9 -> 0.89 | H162: =DATA!$C$10 -> 64 | I162: 1 | J162: 301.875 | K162: 407.8125 | L162: 0.07847222222 | M162: 105.9375 | N162: 0.2597701149 | O162: 0 | R162: 378.6666667 | S162: 334 | V162: 334 | X162: =X163 -> 8 | Y162: =Y159+1 -> 2018-02-22 | Z162: =TEXT(Y162,"ddd") -> do | AA162: DD | AB162: =IFERROR(HLOOKUP(Y162,[1]DATA!$A$1:$NB$5,3,0),"") -> D3 | AC162: 113 | AE162: 21 | AF162: 355 | AG162: 8 | AH162: 4 | AI162: 0.7661648746 | AJ162: 0.9793103448
A163: 8doMD | B163: =VLOOKUP($AA163,DATA!$B$3:$E$6,2,0) -> 14:30:00 | C163: =VLOOKUP($AA163,DATA!$B$3:$E$6,3,0) -> 22:30:00 | D163: =VLOOKUP($AA163,DATA!$B$3:$E$6,4,0) -> 0.03125 | E163: 0.3020833333 | F163: 0.2104166667 | G163: =DATA!$C$9 -> 0.89 | H163: =DATA!$C$10 -> 64 | I163: 1 | J163: 284.0625 | K163: 407.8125 | L163: 0.09166666667 | M163: 123.75 | N163: 0.3034482759 | O163: 0 | R163: 396.8 | S163: 333 | U163: 333 | X163: =WEEKNUM($Y153) -> 8 | Z163: =TEXT(Y162,"ddd") -> do | AA163: MD | AB163: =IFERROR(HLOOKUP(Y162,[1]DATA!$A$1:$NB$5,4,0),"") -> D2 | AC163: 132 | AE163: 39 | AF163: 372 | AG163: 0 | AH163: 20.8125 | AI163: 0.7638709677 | AJ163: 1
A164: 8doND | B164: =VLOOKUP($AA164,DATA!$B$3:$E$6,2,0) -> 22:30:00 | C164: =VLOOKUP($AA164,DATA!$B$3:$E$6,3,0) -> 06:30:00 | D164: =VLOOKUP($AA164,DATA!$B$3:$E$6,4,0) -> 0.03125 | E164: 0.3020833333 | F164: 0.3020833333 | G164: =DATA!$C$9 -> 0.89 | H164: =DATA!$C$10 -> 64 | I164: 1 | J164: 407.8125 | K164: 407.8125 | L164: 0 | O164: 0 | R164: 0 | X164: =X163 -> 8 | Z164: =TEXT(Y162,"ddd") -> do | AA164: ND | AB164: =IFERROR(HLOOKUP(Y162,[1]DATA!$A$1:$NB$5,5,0),"") -> D1 | AG164: 0
A165: 8vrDD | B165: =VLOOKUP($AA165,DATA!$B$3:$E$6,2,0) -> 06:30:00 | C165: =VLOOKUP($AA165,DATA!$B$3:$E$6,3,0) -> 14:30:00 | D165: =VLOOKUP($AA165,DATA!$B$3:$E$6,4,0) -> 0.03125 | E165: 0.3020833333 | F165: 0.3020833333 | G165: =DATA!$C$9 -> 0.89 | H165: =DATA!$C$10 -> 64 | I165: 1 | J165: 407.8125 | K165: 407.8125 | L165: 0 | O165: 0 | R165: 0 | X165: =X163 -> 8 | Y165: =Y162+1 -> 2018-02-23 | Z165: =TEXT(Y165,"ddd") -> vr | AA165: DD | AB165: =IFERROR(HLOOKUP(Y165,[1]DATA!$A$1:$NB$5,3,0),"") -> D3 | AC165: 0 | AE165: 0 | AF165: 0 | AG165: 0
A166: 8vrMD | B166: =VLOOKUP($AA166,DATA!$B$3:$E$6,2,0) -> 14:30:00 | C166: =VLOOKUP($AA166,DATA!$B$3:$E$6,3,0) -> 22:30:00 | D166: =VLOOKUP($AA166,DATA!$B$3:$E$6,4,0) -> 0.03125 | E166: 0.3020833333 | F166: 0.1965277778 | G166: =DATA!$C$9 -> 0.89 | H166: =DATA!$C$10 -> 64 | I166: 1 | J166: 265.3125 | K166: 407.8125 | L166: 0.1055555556 | M166: 142.5 | N166: 0.3494252874 | O166: 0 | R166: 313.6 | S166: 270 | U166: 270 | X166: =X163 -> 8 | Z166: =TEXT(Y165,"ddd") -> vr | AA166: MD | AB166: =IFERROR(HLOOKUP(Y165,[1]DATA!$A$1:$NB$5,4,0),"") -> D2 | AC166: 152 | AE166: 24 | AF166: 294 | AG166: 21 | AH166: -23.4375 | AI166: 0.6193548387 | AJ166: 0.9372384937
A167: 8vrND | B167: =VLOOKUP($AA167,DATA!$B$3:$E$6,2,0) -> 22:30:00 | C167: =VLOOKUP($AA167,DATA!$B$3:$E$6,3,0) -> 06:30:00 | D167: =VLOOKUP($AA167,DATA!$B$3:$E$6,4,0) -> 0.03125 | E167: 0.3020833333 | F167: 0.3020833333 | G167: =DATA!$C$9 -> 0.89 | H167: =DATA!$C$10 -> 64 | I167: 1 | J167: 407.8125 | K167: 407.8125 | L167: 0 | O167: 0 | R167: 0 | X167: =X163 -> 8 | Z167: =TEXT(Y165,"ddd") -> vr | AA167: ND | AB167: =IFERROR(HLOOKUP(Y165,[1]DATA!$A$1:$NB$5,5,0),"") -> - | AG167: 0
A168: 8zaDD | B168: =VLOOKUP($AA168,DATA!$B$3:$E$6,2,0) -> 06:30:00 | C168: =VLOOKUP($AA168,DATA!$B$3:$E$6,3,0) -> 14:30:00 | D168: =VLOOKUP($AA168,DATA!$B$3:$E$6,4,0) -> 0.03125 | E168: 0.3020833333 | F168: 0.3020833333 | G168: =DATA!$C$9 -> 0.89 | H168: =DATA!$C$10 -> 64 | I168: 1 | J168: 407.8125 | K168: 407.8125 | L168: 0 | O168: 0 | R168: 0 | X168: =X163 -> 8 | Y168: =Y165+1 -> 2018-02-24 | Z168: =TEXT(Y168,"ddd") -> za | AA168: DD | AB168: =IFERROR(HLOOKUP(Y168,[1]DATA!$A$1:$NB$5,3,0),"") -> - | AG168: 0
A169: 8zaMD | B169: =VLOOKUP($AA169,DATA!$B$3:$E$6,2,0) -> 14:30:00 | C169: =VLOOKUP($AA169,DATA!$B$3:$E$6,3,0) -> 22:30:00 | D169: =VLOOKUP($AA169,DATA!$B$3:$E$6,4,0) -> 0.03125 | E169: 0.3020833333 | F169: 0.3020833333 | G169: =DATA!$C$9 -> 0.89 | H169: =DATA!$C$10 -> 64 | I169: 1 | J169: 407.8125 | K169: 407.8125 | L169: 0 | O169: 0 | R169: 0 | X169: =X163 -> 8 | Z169: =TEXT(Y168,"ddd") -> za | AA169: MD | AB169: =IFERROR(HLOOKUP(Y168,[1]DATA!$A$1:$NB$5,4,0),"") -> - | AG169: 0
A170: 8zaND | B170: =VLOOKUP($AA170,DATA!$B$3:$E$6,2,0) -> 22:30:00 | C170: =VLOOKUP($AA170,DATA!$B$3:$E$6,3,0) -> 06:30:00 | D170: =VLOOKUP($AA170,DATA!$B$3:$E$6,4,0) -> 0.03125 | E170: 0.3020833333 | F170: 0.3020833333 | G170: =DATA!$C$9 -> 0.89 | H170: =DATA!$C$10 -> 64 | I170: 1 | J170: 407.8125 | K170: 407.8125 | L170: 0 | O170: 0 | R170: 0 | X170: =X163 -> 8 | Z170: =TEXT(Y168,"ddd") -> za | AA170: ND | AB170: =IFERROR(HLOOKUP(Y168,[1]DATA!$A$1:$NB$5,5,0),"") -> - | AG170: 0
A171: 8zoDD | B171: =VLOOKUP($AA171,DATA!$B$3:$E$6,2,0) -> 06:30:00 | C171: =VLOOKUP($AA171,DATA!$B$3:$E$6,3,0) -> 14:30:00 | D171: =VLOOKUP($AA171,DATA!$B$3:$E$6,4,0) -> 0.03125 | E171: 0.3020833333 | F171: 0.3020833333 | G171: =DATA!$C$9 -> 0.89 | H171: =DATA!$C$10 -> 64 | I171: 1 | J171: 407.8125 | K171: 407.8125 | L171: 0 | O171: 0 | R171: 0 | X171: =X163 -> 8 | Y171: =Y168+1 -> 2018-02-25 | Z171: =TEXT(Y171,"ddd") -> zo | AA171: DD | AB171: =IFERROR(HLOOKUP(Y171,[1]DATA!$A$1:$NB$5,3,0),"") -> - | AG171: 0
A172: 8zoMD | B172: =VLOOKUP($AA172,DATA!$B$3:$E$6,2,0) -> 14:30:00 | C172: =VLOOKUP($AA172,DATA!$B$3:$E$6,3,0) -> 22:30:00 | D172: =VLOOKUP($AA172,DATA!$B$3:$E$6,4,0) -> 0.03125 | E172: 0.3020833333 | F172: 0.3020833333 | G172: =DATA!$C$9 -> 0.89 | H172: =DATA!$C$10 -> 64 | I172: 1 | J172: 407.8125 | K172: 407.8125 | L172: 0 | O172: 0 | R172: 0 | X172: =X163 -> 8 | Z172: =TEXT(Y171,"ddd") -> zo | AA172: MD | AB172: =IFERROR(HLOOKUP(Y171,[1]DATA!$A$1:$NB$5,4,0),"") -> - | AG172: 0
A173: 8zoZND | B173: =VLOOKUP($AA173,DATA!$B$3:$E$6,2,0) -> 00:00:00 | C173: =VLOOKUP($AA173,DATA!$B$3:$E$6,3,0) -> 00:00:00 | D173: =VLOOKUP($AA173,DATA!$B$3:$E$6,4,0) -> 0.03125 | E173: -0.03125 | F173: -0.03125 | G173: =DATA!$C$9 -> 0.89 | H173: =DATA!$C$10 -> 64 | I173: 1 | J173: -42.1875 | K173: -42.1875 | L173: 0 | O173: 0 | R173: 0 | X173: =X163 -> 8 | Z173: =TEXT(Y171,"ddd") -> zo | AA173: ZND | AB173: =IFERROR(HLOOKUP(Y171,[1]DATA!$A$1:$NB$5,5,0),"") -> D3 | AG173: 0
A174: 9maDD | B174: =VLOOKUP($AA174,DATA!$B$3:$E$6,2,0) -> 06:30:00 | C174: =VLOOKUP($AA174,DATA!$B$3:$E$6,3,0) -> 14:30:00 | D174: =VLOOKUP($AA174,DATA!$B$3:$E$6,4,0) -> 0.03125 | E174: 0.3020833333 | F174: 0.06805555556 | G174: =DATA!$C$9 -> 0.89 | H174: =DATA!$C$10 -> 64 | I174: 1 | J174: 91.875 | K174: 407.8125 | L174: 0.2340277778 | M174: 315.9375 | N174: 0.7747126437 | O174: =TIME(INT($AD174/60),INT(MOD($AD174,60)/1),0) -> 0 | R174: 141.8666667 | S174: 119 | U174: 119 | X174: =X184 -> 9 | Y174: =Y171+1 -> 2018-02-26 | Z174: =TEXT(Y174,"ddd") -> ma | AA174: DD | AB174: =IFERROR(HLOOKUP(Y174,[1]DATA!$A$1:$NB$5,3,0),"") -> D2 | AC174: 337 | AE174: 14 | AF174: 133 | AG174: 0 | AH174: -1 | AI174: 0.2729749104 | AJ174: 1 | AK174: 4359.375 | AL174: 3139 | AM174: 0.7200573477 | AN174: 1073.4375 | AO174: 0.2462365591 | AP174: 0 | AQ174: 0 | AR174: 0.9815466041 | AS174: 0.9921103135 | AT174: 0.9709828946 | AV174: 146.9375 | AW174: 0.03370609319 | AX174: 156.7333333 | AY174: 75
A175: 9maMD | B175: =VLOOKUP($AA175,DATA!$B$3:$E$6,2,0) -> 14:30:00 | C175: =VLOOKUP($AA175,DATA!$B$3:$E$6,3,0) -> 22:30:00 | D175: =VLOOKUP($AA175,DATA!$B$3:$E$6,4,0) -> 0.03125 | E175: 0.3020833333 | F175: 0.2277777778 | G175: =DATA!$C$9 -> 0.89 | H175: =DATA!$C$10 -> 64 | I175: 1 | J175: 307.5 | K175: 407.8125 | L175: 0.07430555556 | M175: 100.3125 | N175: 0.2459770115 | O175: =TIME(INT(AD175/60),INT(MOD(AD175,60)/1),0) -> 0 | R175: 364.8 | S175: 323 | T175: 323 | X175: =X184 -> 9 | Z175: =TEXT(Y174,"ddd") -> ma | AA175: MD | AB175: =IFERROR(HLOOKUP(Y174,[1]DATA!$A$1:$NB$5,4,0),"") -> D1 | AC175: 107 | AE175: 19 | AF175: 342 | AG175: 2 | AH175: -12.625 | AI175: 0.7409318996 | AJ175: 0.9945474373
A176: =X176&Z176&AA176 -> 9maND | B176: =VLOOKUP($AA176,DATA!$B$3:$E$6,2,0) -> 22:30:00 | C176: =VLOOKUP($AA176,DATA!$B$3:$E$6,3,0) -> 06:30:00 | D176: =VLOOKUP($AA176,DATA!$B$3:$E$6,4,0) -> 0.03125 | E176: 0.3020833333 | F176: 0.3020833333 | G176: =DATA!$C$9 -> 0.89 | H176: =DATA!$C$10 -> 64 | I176: 1 | J176: 407.8125 | K176: 407.8125 | L176: 0 | O176: 0 | P176: =IF($O176*86400/$H176=0,"",$O176*86400/$H176) ->  | R176: 0 | X176: =X184 -> 9 | Z176: =TEXT(Y174,"ddd") -> ma | AA176: ND | AB176: =IFERROR(HLOOKUP(Y174,[1]DATA!$A$1:$NB$5,5,0),"") -> D3 | AG176: 0
A177: 9diDD | B177: =VLOOKUP($AA177,DATA!$B$3:$E$6,2,0) -> 06:30:00 | C177: =VLOOKUP($AA177,DATA!$B$3:$E$6,3,0) -> 14:30:00 | D177: =VLOOKUP($AA177,DATA!$B$3:$E$6,4,0) -> 0.03125 | E177: 0.3020833333 | F177: 0.2840277778 | G177: =DATA!$C$9 -> 0.89 | H177: =DATA!$C$10 -> 64 | I177: 1 | J177: 383.4375 | K177: 407.8125 | L177: 0.01805555556 | M177: 24.375 | N177: 0.05977011494 | O177: 0 | R177: 426.6666667 | S177: 363 | U177: 363 | X177: =X184 -> 9 | Y177: =Y174+1 -> 2018-02-27 | Z177: =TEXT(Y177,"ddd") -> di | AA177: DD | AB177: =IFERROR(HLOOKUP(Y177,[1]DATA!$A$1:$NB$5,3,0),"") -> D2 | AC177: 26 | AE177: 37 | AF177: 400 | AG177: 19 | AH177: -48.5625 | AI177: 0.832688172 | AJ177: 0.9573672401
A178: 9diMD | B178: =VLOOKUP($AA178,DATA!$B$3:$E$6,2,0) -> 14:30:00 | C178: =VLOOKUP($AA178,DATA!$B$3:$E$6,3,0) -> 22:30:00 | D178: =VLOOKUP($AA178,DATA!$B$3:$E$6,4,0) -> 0.03125 | E178: 0.3020833333 | F178: 0.2125 | G178: =DATA!$C$9 -> 0.89 | H178: =DATA!$C$10 -> 64 | I178: 1 | J178: 286.875 | K178: 407.8125 | L178: 0.08958333333 | M178: 120.9375 | N178: 0.2965517241 | O178: 0 | R178: 357.3333333 | S178: 309 | T178: 309 | X178: =X184 -> 9 | Z178: =TEXT(Y177,"ddd") -> di | AA178: MD | AB178: =IFERROR(HLOOKUP(Y177,[1]DATA!$A$1:$NB$5,4,0),"") -> D1 | AC178: 129 | AE178: 26 | AF178: 335 | AG178: 8 | AH178: -6 | AI178: 0.7088172043 | AJ178: 0.9781021898
A179: 9diND | B179: =VLOOKUP($AA179,DATA!$B$3:$E$6,2,0) -> 22:30:00 | C179: =VLOOKUP($AA179,DATA!$B$3:$E$6,3,0) -> 06:30:00 | D179: =VLOOKUP($AA179,DATA!$B$3:$E$6,4,0) -> 0.03125 | E179: 0.3020833333 | F179: 0.3020833333 | G179: =DATA!$C$9 -> 0.89 | H179: =DATA!$C$10 -> 64 | I179: 1 | J179: 407.8125 | K179: 407.8125 | L179: 0 | O179: 0 | R179: 0 | X179: =X184 -> 9 | Z179: =TEXT(Y177,"ddd") -> di | AA179: ND | AB179: =IFERROR(HLOOKUP(Y177,[1]DATA!$A$1:$NB$5,5,0),"") -> D3 | AG179: 0
A180: 9woDD | B180: =VLOOKUP($AA180,DATA!$B$3:$E$6,2,0) -> 06:30:00 | C180: =VLOOKUP($AA180,DATA!$B$3:$E$6,3,0) -> 14:30:00 | D180: =VLOOKUP($AA180,DATA!$B$3:$E$6,4,0) -> 0.03125 | E180: 0.3020833333 | F180: 0.2618055556 | G180: =DATA!$C$9 -> 0.89 | H180: =DATA!$C$10 -> 64 | I180: 1 | J180: 353.4375 | K180: 407.8125 | L180: 0.04027777778 | M180: 54.375 | N180: 0.1333333333 | O180: 0 | R180: 394.6666667 | S180: 341 | U180: 341 | X180: =X184 -> 9 | Y180: =Y177+1 -> 2018-02-28 | Z180: =TEXT(Y180,"ddd") -> wo | AA180: DD | AB180: =IFERROR(HLOOKUP(Y180,[1]DATA!$A$1:$NB$5,3,0),"") -> D2 | AC180: 58 | AE180: 29 | AF180: 370 | AG180: 26 | AH180: -40.5625 | AI180: 0.7822222222 | AJ180: 0.9381933439
A181: 9woMD | B181: =VLOOKUP($AA181,DATA!$B$3:$E$6,2,0) -> 14:30:00 | C181: =VLOOKUP($AA181,DATA!$B$3:$E$6,3,0) -> 22:30:00 | D181: =VLOOKUP($AA181,DATA!$B$3:$E$6,4,0) -> 0.03125 | E181: 0.3020833333 | F181: 0.2118055556 | G181: =DATA!$C$9 -> 0.89 | H181: =DATA!$C$10 -> 64 | I181: 1 | J181: 285.9375 | K181: 407.8125 | L181: 0.09027777778 | M181: 121.875 | N181: 0.2988505747 | O181: 0 | R181: 353.0666667 | S181: 314 | T181: 314 | X181: =X184 -> 9 | Z181: =TEXT(Y180,"ddd") -> wo | AA181: MD | AB181: =IFERROR(HLOOKUP(Y180,[1]DATA!$A$1:$NB$5,4,0),"") -> D1 | AC181: 130 | AE181: 17 | AF181: 331 | AG181: 0 | AH181: -0.0625 | AI181: 0.7202867384 | AJ181: 1
A182: 9woND | B182: =VLOOKUP($AA182,DATA!$B$3:$E$6,2,0) -> 22:30:00 | C182: =VLOOKUP($AA182,DATA!$B$3:$E$6,3,0) -> 06:30:00 | D182: =VLOOKUP($AA182,DATA!$B$3:$E$6,4,0) -> 0.03125 | E182: 0.3020833333 | F182: 0.3020833333 | G182: =DATA!$C$9 -> 0.89 | H182: =DATA!$C$10 -> 64 | I182: 1 | J182: 407.8125 | K182: 407.8125 | L182: 0 | O182: 0 | R182: 0 | X182: =X184 -> 9 | Z182: =TEXT(Y180,"ddd") -> wo | AA182: ND | AB182: =IFERROR(HLOOKUP(Y180,[1]DATA!$A$1:$NB$5,5,0),"") -> D3 | AG182: 0
A183: 9doDD | B183: =VLOOKUP($AA183,DATA!$B$3:$E$6,2,0) -> 06:30:00 | C183: =VLOOKUP($AA183,DATA!$B$3:$E$6,3,0) -> 14:30:00 | D183: =VLOOKUP($AA183,DATA!$B$3:$E$6,4,0) -> 0.03125 | E183: 0.3020833333 | F183: 0.2256944444 | G183: =DATA!$C$9 -> 0.89 | H183: =DATA!$C$10 -> 64 | I183: 1 | J183: 304.6875 | K183: 407.8125 | L183: 0.07638888889 | M183: 103.125 | N183: 0.2528735632 | O183: 0 | R183: 354.1333333 | S183: 316 | U183: 316 | X183: =X184 -> 9 | Y183: =Y180+1 -> 2018-03-01 | Z183: =TEXT(Y183,"ddd") -> do | AA183: DD | AB183: =IFERROR(HLOOKUP(Y183,[1]DATA!$A$1:$NB$5,3,0),"") -> D2 | AC183: 110 | AE183: 16 | AF183: 332 | AG183: 9 | AH183: -16.8125 | AI183: 0.724874552 | AJ183: 0.9752157151
A184: 9doMD | B184: =VLOOKUP($AA184,DATA!$B$3:$E$6,2,0) -> 14:30:00 | C184: =VLOOKUP($AA184,DATA!$B$3:$E$6,3,0) -> 22:30:00 | D184: =VLOOKUP($AA184,DATA!$B$3:$E$6,4,0) -> 0.03125 | E184: 0.3020833333 | F184: 0.2513888889 | G184: =DATA!$C$9 -> 0.89 | H184: =DATA!$C$10 -> 64 | I184: 1 | J184: 339.375 | K184: 407.8125 | L184: 0.05069444444 | M184: 68.4375 | N184: 0.167816092 | O184: 0 | R184: 403.2 | S184: 357 | T184: 357 | X184: =WEEKNUM($Y174) -> 9 | Z184: =TEXT(Y183,"ddd") -> do | AA184: MD | AB184: =IFERROR(HLOOKUP(Y183,[1]DATA!$A$1:$NB$5,4,0),"") -> D1 | AC184: 73 | AE184: 21 | AF184: 378 | AG184: 3 | AH184: -10.5 | AI184: 0.8189247312 | AJ184: 0.9926144756
A185: 9doND | B185: =VLOOKUP($AA185,DATA!$B$3:$E$6,2,0) -> 22:30:00 | C185: =VLOOKUP($AA185,DATA!$B$3:$E$6,3,0) -> 06:30:00 | D185: =VLOOKUP($AA185,DATA!$B$3:$E$6,4,0) -> 0.03125 | E185: 0.3020833333 | F185: 0.3020833333 | G185: =DATA!$C$9 -> 0.89 | H185: =DATA!$C$10 -> 64 | I185: 1 | J185: 407.8125 | K185: 407.8125 | L185: 0 | O185: 0 | R185: 0 | X185: =X184 -> 9 | Z185: =TEXT(Y183,"ddd") -> do | AA185: ND | AB185: =IFERROR(HLOOKUP(Y183,[1]DATA!$A$1:$NB$5,5,0),"") -> D3 | AG185: 0
A186: 9vrDD | B186: =VLOOKUP($AA186,DATA!$B$3:$E$6,2,0) -> 06:30:00 | C186: =VLOOKUP($AA186,DATA!$B$3:$E$6,3,0) -> 14:30:00 | D186: =VLOOKUP($AA186,DATA!$B$3:$E$6,4,0) -> 0.03125 | E186: 0.3020833333 | F186: 0.2083333333 | G186: =DATA!$C$9 -> 0.89 | H186: =DATA!$C$10 -> 64 | I186: 1 | J186: 281.25 | K186: 407.8125 | L186: 0.09375 | M186: 126.5625 | N186: 0.3103448276 | O186: 0 | R186: 372.2666667 | S186: 313 | U186: 313 | X186: =X184 -> 9 | Y186: =Y183+1 -> 2018-03-02 | Z186: =TEXT(Y186,"ddd") -> vr | AA186: DD | AB186: =IFERROR(HLOOKUP(Y186,[1]DATA!$A$1:$NB$5,3,0),"") -> D2 | AC186: 135 | AE186: 36 | AF186: 349 | AG186: 6 | AH186: 3.625 | AI186: 0.7179928315 | AJ186: 0.9841381741
A187: 9vrMD | B187: =VLOOKUP($AA187,DATA!$B$3:$E$6,2,0) -> 14:30:00 | C187: =VLOOKUP($AA187,DATA!$B$3:$E$6,3,0) -> 22:30:00 | D187: =VLOOKUP($AA187,DATA!$B$3:$E$6,4,0) -> 0.03125 | E187: 0.3020833333 | F187: 0.2743055556 | G187: =DATA!$C$9 -> 0.89 | H187: =DATA!$C$10 -> 64 | I187: 1 | J187: 370.3125 | K187: 407.8125 | L187: 0.02777777778 | M187: 37.5 | N187: 0.09195402299 | O187: 0 | R187: 422.4 | S187: 384 | T187: 384 | X187: =X184 -> 9 | Z187: =TEXT(Y186,"ddd") -> vr | AA187: MD | AB187: =IFERROR(HLOOKUP(Y186,[1]DATA!$A$1:$NB$5,4,0),"") -> D1 | AC187: 40 | AE187: 12 | AF187: 396 | AG187: 2 | AH187: -14.4375 | AI187: 0.8808602151 | AJ187: 0.9952874647
A188: 9vrND | B188: =VLOOKUP($AA188,DATA!$B$3:$E$6,2,0) -> 22:30:00 | C188: =VLOOKUP($AA188,DATA!$B$3:$E$6,3,0) -> 06:30:00 | D188: =VLOOKUP($AA188,DATA!$B$3:$E$6,4,0) -> 0.03125 | E188: 0.3020833333 | F188: 0.3020833333 | G188: =DATA!$C$9 -> 0.89 | H188: =DATA!$C$10 -> 64 | I188: 1 | J188: 407.8125 | K188: 407.8125 | L188: 0 | O188: 0 | R188: 0 | X188: =X184 -> 9 | Z188: =TEXT(Y186,"ddd") -> vr | AA188: ND | AB188: =IFERROR(HLOOKUP(Y186,[1]DATA!$A$1:$NB$5,5,0),"") -> - | AG188: 0
A189: 9zaDD | B189: =VLOOKUP($AA189,DATA!$B$3:$E$6,2,0) -> 06:30:00 | C189: =VLOOKUP($AA189,DATA!$B$3:$E$6,3,0) -> 14:30:00 | D189: =VLOOKUP($AA189,DATA!$B$3:$E$6,4,0) -> 0.03125 | E189: 0.3020833333 | F189: 0.3020833333 | G189: =DATA!$C$9 -> 0.89 | H189: =DATA!$C$10 -> 64 | I189: 1 | J189: 407.8125 | K189: 407.8125 | L189: 0 | O189: 0 | R189: 0 | X189: =X184 -> 9 | Y189: =Y186+1 -> 2018-03-03 | Z189: =TEXT(Y189,"ddd") -> za | AA189: DD | AB189: =IFERROR(HLOOKUP(Y189,[1]DATA!$A$1:$NB$5,3,0),"") -> - | AG189: 0
A190: 9zaMD | B190: =VLOOKUP($AA190,DATA!$B$3:$E$6,2,0) -> 14:30:00 | C190: =VLOOKUP($AA190,DATA!$B$3:$E$6,3,0) -> 22:30:00 | D190: =VLOOKUP($AA190,DATA!$B$3:$E$6,4,0) -> 0.03125 | E190: 0.3020833333 | F190: 0.3020833333 | G190: =DATA!$C$9 -> 0.89 | H190: =DATA!$C$10 -> 64 | I190: 1 | J190: 407.8125 | K190: 407.8125 | L190: 0 | O190: 0 | R190: 0 | X190: =X184 -> 9 | Z190: =TEXT(Y189,"ddd") -> za | AA190: MD | AB190: =IFERROR(HLOOKUP(Y189,[1]DATA!$A$1:$NB$5,4,0),"") -> - | AG190: 0
A191: 9zaND | B191: =VLOOKUP($AA191,DATA!$B$3:$E$6,2,0) -> 22:30:00 | C191: =VLOOKUP($AA191,DATA!$B$3:$E$6,3,0) -> 06:30:00 | D191: =VLOOKUP($AA191,DATA!$B$3:$E$6,4,0) -> 0.03125 | E191: 0.3020833333 | F191: 0.3020833333 | G191: =DATA!$C$9 -> 0.89 | H191: =DATA!$C$10 -> 64 | I191: 1 | J191: 407.8125 | K191: 407.8125 | L191: 0 | O191: 0 | R191: 0 | X191: =X184 -> 9 | Z191: =TEXT(Y189,"ddd") -> za | AA191: ND | AB191: =IFERROR(HLOOKUP(Y189,[1]DATA!$A$1:$NB$5,5,0),"") -> - | AG191: 0
A192: 9zoDD | B192: =VLOOKUP($AA192,DATA!$B$3:$E$6,2,0) -> 06:30:00 | C192: =VLOOKUP($AA192,DATA!$B$3:$E$6,3,0) -> 14:30:00 | D192: =VLOOKUP($AA192,DATA!$B$3:$E$6,4,0) -> 0.03125 | E192: 0.3020833333 | F192: 0.3020833333 | G192: =DATA!$C$9 -> 0.89 | H192: =DATA!$C$10 -> 64 | I192: 1 | J192: 407.8125 | K192: 407.8125 | L192: 0 | O192: 0 | R192: 0 | X192: =X184 -> 9 | Y192: =Y189+1 -> 2018-03-04 | Z192: =TEXT(Y192,"ddd") -> zo | AA192: DD | AB192: =IFERROR(HLOOKUP(Y192,[1]DATA!$A$1:$NB$5,3,0),"") -> - | AG192: 0
A193: 9zoMD | B193: =VLOOKUP($AA193,DATA!$B$3:$E$6,2,0) -> 14:30:00 | C193: =VLOOKUP($AA193,DATA!$B$3:$E$6,3,0) -> 22:30:00 | D193: =VLOOKUP($AA193,DATA!$B$3:$E$6,4,0) -> 0.03125 | E193: 0.3020833333 | F193: 0.3020833333 | G193: =DATA!$C$9 -> 0.89 | H193: =DATA!$C$10 -> 64 | I193: 1 | J193: 407.8125 | K193: 407.8125 | L193: 0 | O193: 0 | R193: 0 | X193: =X184 -> 9 | Z193: =TEXT(Y192,"ddd") -> zo | AA193: MD | AB193: =IFERROR(HLOOKUP(Y192,[1]DATA!$A$1:$NB$5,4,0),"") -> - | AG193: 0
A194: 9zoZND | B194: =VLOOKUP($AA194,DATA!$B$3:$E$6,2,0) -> 00:00:00 | C194: =VLOOKUP($AA194,DATA!$B$3:$E$6,3,0) -> 00:00:00 | D194: =VLOOKUP($AA194,DATA!$B$3:$E$6,4,0) -> 0.03125 | E194: -0.03125 | F194: -0.03125 | G194: =DATA!$C$9 -> 0.89 | H194: =DATA!$C$10 -> 64 | I194: 1 | J194: -42.1875 | K194: -42.1875 | L194: 0 | O194: 0 | R194: 0 | X194: =X184 -> 9 | Z194: =TEXT(Y192,"ddd") -> zo | AA194: ZND | AB194: =IFERROR(HLOOKUP(Y192,[1]DATA!$A$1:$NB$5,5,0),"") -> D2 | AG194: 0
A195: 10maDD | B195: =VLOOKUP($AA195,DATA!$B$3:$E$6,2,0) -> 06:30:00 | C195: =VLOOKUP($AA195,DATA!$B$3:$E$6,3,0) -> 14:30:00 | D195: =VLOOKUP($AA195,DATA!$B$3:$E$6,4,0) -> 0.03125 | E195: 0.3020833333 | F195: 0.1881944444 | G195: =DATA!$C$9 -> 0.89 | H195: =DATA!$C$10 -> 64 | I195: 1 | J195: 254.0625 | K195: 407.8125 | L195: 0.1138888889 | M195: 153.75 | N195: 0.3770114943 | O195: =TIME(INT($AD195/60),INT(MOD($AD195,60)/1),0) -> 0 | R195: 315.7333333 | S195: 281 | T195: 281 | X195: =X205 -> 10 | Y195: =Y192+1 -> 2018-03-05 | Z195: =TEXT(Y195,"ddd") -> ma | AA195: DD | AB195: =IFERROR(HLOOKUP(Y195,[1]DATA!$A$1:$NB$5,3,0),"") -> D1 | AC195: 164 | AE195: 15 | AF195: 296 | AG195: 5 | AH195: -1.1875 | AI195: 0.6445878136 | AJ195: 0.9844107254 | AK195: 4359.375 | AL195: 3011 | AM195: 0.6906953405 | AN195: 945 | AO195: 0.2167741935 | AP195: 0 | AQ195: 0 | AR195: 0.9423226676 | AS195: 0.9240034038 | AU195: 0.9606419314 | AV195: 403.375 | AW195: 0.09253046595 | AX195: 430.2666667 | AY195: 241
A196: 10maMD | B196: =VLOOKUP($AA196,DATA!$B$3:$E$6,2,0) -> 14:30:00 | C196: =VLOOKUP($AA196,DATA!$B$3:$E$6,3,0) -> 22:30:00 | D196: =VLOOKUP($AA196,DATA!$B$3:$E$6,4,0) -> 0.03125 | E196: 0.3020833333 | F196: 0.2090277778 | G196: =DATA!$C$9 -> 0.89 | H196: =DATA!$C$10 -> 64 | I196: 1 | J196: 282.1875 | K196: 407.8125 | L196: 0.09305555556 | M196: 125.625 | N196: 0.308045977 | O196: =TIME(INT(AD196/60),INT(MOD(AD196,60)/1),0) -> 0 | R196: 366.9333333 | S196: 325 | V196: 325 | X196: =X205 -> 10 | Z196: =TEXT(Y195,"ddd") -> ma | AA196: MD | AB196: =IFERROR(HLOOKUP(Y195,[1]DATA!$A$1:$NB$5,4,0),"") -> D3 | AC196: 134 | AE196: 19 | AF196: 344 | AG196: 0 | AH196: 14.6875 | AI196: 0.7455197133 | AJ196: 1
A197: 10maND | B197: =VLOOKUP($AA197,DATA!$B$3:$E$6,2,0) -> 22:30:00 | C197: =VLOOKUP($AA197,DATA!$B$3:$E$6,3,0) -> 06:30:00 | D197: =VLOOKUP($AA197,DATA!$B$3:$E$6,4,0) -> 0.03125 | E197: 0.3020833333 | F197: 0.3020833333 | G197: =DATA!$C$9 -> 0.89 | H197: =DATA!$C$10 -> 64 | I197: 1 | J197: 407.8125 | K197: 407.8125 | L197: 0 | O197: 0 | R197: 0 | X197: =X205 -> 10 | Z197: =TEXT(Y195,"ddd") -> ma | AA197: ND | AB197: =IFERROR(HLOOKUP(Y195,[1]DATA!$A$1:$NB$5,5,0),"") -> D2 | AG197: 0
A198: 10diDD | B198: =VLOOKUP($AA198,DATA!$B$3:$E$6,2,0) -> 06:30:00 | C198: =VLOOKUP($AA198,DATA!$B$3:$E$6,3,0) -> 14:30:00 | D198: =VLOOKUP($AA198,DATA!$B$3:$E$6,4,0) -> 0.03125 | E198: 0.3020833333 | F198: 0.2305555556 | G198: =DATA!$C$9 -> 0.89 | H198: =DATA!$C$10 -> 64 | I198: 1 | J198: 311.25 | K198: 407.8125 | L198: 0.07152777778 | M198: 96.5625 | N198: 0.2367816092 | O198: 0 | R198: 330.6666667 | S198: 301 | T198: 301 | X198: =X205 -> 10 | Y198: =Y195+1 -> 2018-03-06 | Z198: =TEXT(Y198,"ddd") -> di | AA198: DD | AB198: =IFERROR(HLOOKUP(Y198,[1]DATA!$A$1:$NB$5,3,0),"") -> D1 | AC198: 103 | AE198: 9 | AF198: 310 | AG198: 123 | AH198: -38.375 | AI198: 0.6904659498 | AJ198: 0.7288758266
A199: 10diMD | B199: =VLOOKUP($AA199,DATA!$B$3:$E$6,2,0) -> 14:30:00 | C199: =VLOOKUP($AA199,DATA!$B$3:$E$6,3,0) -> 22:30:00 | D199: =VLOOKUP($AA199,DATA!$B$3:$E$6,4,0) -> 0.03125 | E199: 0.3020833333 | F199: 0.2208333333 | G199: =DATA!$C$9 -> 0.89 | H199: =DATA!$C$10 -> 64 | I199: 1 | J199: 298.125 | K199: 407.8125 | L199: =TIME(INT($AC199/60),INT(MOD($AC199,60)/1),0) -> 0.08125 | M199: =IF($L199*86400/$H199=0,"",$L199*86400/$H199) -> 109.6875 | N199: =IFERROR($M199/$K199,"") -> 0.2689655172 | O199: 0 | Q199: =IFERROR($P199/$K199,"") ->  | R199: 353.0666667 | S199: 318 | T199: =IF(IF($AB199="D1",$S199,"")=0,"",IF($AB199="D1",$S199,"")) ->  | U199: =IF(IF($AB199="D2",$S199,"")=0,"",IF($AB199="D2",$S199,"")) ->  | V199: =IF(IF($AB199="D3",$S199,"")=0,"",IF($AB199="D3",$S199,"")) -> 318 | X199: =X205 -> 10 | Z199: =TEXT(Y198,"ddd") -> di | AA199: MD | AB199: =IFERROR(HLOOKUP(Y198,[1]DATA!$A$1:$NB$5,4,0),"") -> D3 | AC199: 117 | AE199: 13 | AF199: 331 | AG199: 5 | AH199: -8.25 | AI199: 0.7294623656 | AJ199: 0.9860361199
A200: 10diND | B200: =VLOOKUP($AA200,DATA!$B$3:$E$6,2,0) -> 22:30:00 | C200: =VLOOKUP($AA200,DATA!$B$3:$E$6,3,0) -> 06:30:00 | D200: =VLOOKUP($AA200,DATA!$B$3:$E$6,4,0) -> 0.03125 | E200: 0.3020833333 | F200: 0.3020833333 | G200: =DATA!$C$9 -> 0.89 | H200: =DATA!$C$10 -> 64 | I200: 1 | J200: 407.8125 | K200: 407.8125 | L200: 0 | O200: 0 | R200: 0 | X200: =X205 -> 10 | Z200: =TEXT(Y198,"ddd") -> di | AA200: ND | AB200: =IFERROR(HLOOKUP(Y198,[1]DATA!$A$1:$NB$5,5,0),"") -> D2 | AG200: 0
... 918 more rows

Sheet Grafieken
P3: 0.89
P4: 0.89
P5: 0.89
P6: 0.89
P7: 0.89
P8: 0.89
P9: 0.89 | AB9: Week
P10: 0.89 | AB10: 39
P11: 0.89
P12: 0.89
P13: 0.89
P14: 0.89
P15: 0.89
P16: 0.89
P17: 0.89
P18: 0.89
P19: 0.89
P20: 0.89

Sheet Data voor grafieken (hidden)
A1: =Grafieken!AB10 -> 39 | B1: 0
B2: Week | E2: Parts Target [TA 100%] | F2: Parts Actual | G2: Availability (Total Time) [%] | H2: Loss due to Blocked/ Starved [Theoretical] | I2: Loss Blocked/ Starved [%] | J2: Loss due to Planned Stop/ Early Finish | K2: Loss Planned Stop/ Early Finish [%] | L2: Technical Availability Total [%] | M2: Technical Availability Shift D1 [%] | N2: Technical Availability Shift D2 [%] | O2: Technical Availability Shift D3 [%] | P2: Downtime [Parts] | Q2: Total Downtime [%] | R2: Target TA [%]
A3: 2017 | B3: =B4-1 -> 33 | E3: =VLOOKUP($B3,'TA SRI LH'!$X$6:$AY$1118,14,FALSE) -> 6117.1875 | F3: =VLOOKUP($B3,'TA SRI LH'!$X$6:$AY$1118,15,FALSE) -> 3873 | G3: =VLOOKUP($B3,'TA SRI LH'!$X$6:$AY$1118,16,FALSE) -> 0.6331340996 | H3: =VLOOKUP($B3,'TA SRI LH'!$X$6:$AY$1118,17,FALSE) -> 1705.3125 | I3: =VLOOKUP($B3,'TA SRI LH'!$X$6:$AY$1118,18,FALSE) -> 0.2787739464 | J3: =VLOOKUP($B3,'TA SRI LH'!$X$6:$AY$1118,19,FALSE) -> 0 | K3: =VLOOKUP($B3,'TA SRI LH'!$X$6:$AY$1118,20,FALSE) -> 0 | L3: =VLOOKUP($B3,'TA SRI LH'!$X$6:$AY$1118,21,FALSE) -> 0.9561832312 | M3: =VLOOKUP($B3,'TA SRI LH'!$X$6:$AY$1118,22,FALSE) -> 0.9723317263 | N3: =VLOOKUP($B3,'TA SRI LH'!$X$6:$AY$1118,23,FALSE) -> 0.9385022729 | O3: =VLOOKUP($B3,'TA SRI LH'!$X$6:$AY$1118,24,FALSE) -> 0.9625190498 | P3: =VLOOKUP($B3,'TA SRI LH'!$X$6:$AY$1118,25,FALSE) -> 538.875 | Q3: =VLOOKUP($B3,'TA SRI LH'!$X$6:$AY$1118,26,FALSE) -> 0.08809195402 | R3: =DATA!$C$9 -> 0.89 | S3: SRI LH
B4: 34 | E4: =VLOOKUP($B4,'TA SRI LH'!$X$6:$AY$1118,14,FALSE) -> 6117.1875 | F4: =VLOOKUP($B4,'TA SRI LH'!$X$6:$AY$1118,15,FALSE) -> 4463 | G4: =VLOOKUP($B4,'TA SRI LH'!$X$6:$AY$1118,16,FALSE) -> 0.7295836526 | H4: =VLOOKUP($B4,'TA SRI LH'!$X$6:$AY$1118,17,FALSE) -> 1125.9375 | I4: =VLOOKUP($B4,'TA SRI LH'!$X$6:$AY$1118,18,FALSE) -> 0.1840613027 | J4: =VLOOKUP($B4,'TA SRI LH'!$X$6:$AY$1118,19,FALSE) -> 0 | K4: =VLOOKUP($B4,'TA SRI LH'!$X$6:$AY$1118,20,FALSE) -> 0 | L4: =VLOOKUP($B4,'TA SRI LH'!$X$6:$AY$1118,21,FALSE) -> 0.9513232768 | M4: =VLOOKUP($B4,'TA SRI LH'!$X$6:$AY$1118,22,FALSE) -> 0.9838925615 | N4: =VLOOKUP($B4,'TA SRI LH'!$X$6:$AY$1118,23,FALSE) -> 0.9494003286 | O4: =VLOOKUP($B4,'TA SRI LH'!$X$6:$AY$1118,24,FALSE) -> 0.9206769402 | P4: =VLOOKUP($B4,'TA SRI LH'!$X$6:$AY$1118,25,FALSE) -> 528.25 | Q4: =VLOOKUP($B4,'TA SRI LH'!$X$6:$AY$1118,26,FALSE) -> 0.0863550447 | R4: =DATA!$C$9 -> 0.89
B5: 35 | E5: =VLOOKUP($B5,'TA SRI LH'!$X$6:$AY$1118,14,FALSE) -> 5709.375 | F5: =VLOOKUP($B5,'TA SRI LH'!$X$6:$AY$1118,15,FALSE) -> 4260 | G5: =VLOOKUP($B5,'TA SRI LH'!$X$6:$AY$1118,16,FALSE) -> 0.7461412151 | H5: =VLOOKUP($B5,'TA SRI LH'!$X$6:$AY$1118,17,FALSE) -> 647.8125 | I5: =VLOOKUP($B5,'TA SRI LH'!$X$6:$AY$1118,18,FALSE) -> 0.1134646962 | J5: =VLOOKUP($B5,'TA SRI LH'!$X$6:$AY$1118,19,FALSE) -> 0 | K5: =VLOOKUP($B5,'TA SRI LH'!$X$6:$AY$1118,20,FALSE) -> 0 | L5: =VLOOKUP($B5,'TA SRI LH'!$X$6:$AY$1118,21,FALSE) -> 0.9298917926 | M5: =VLOOKUP($B5,'TA SRI LH'!$X$6:$AY$1118,22,FALSE) -> 0.9454880356 | N5: =VLOOKUP($B5,'TA SRI LH'!$X$6:$AY$1118,23,FALSE) -> 0.9407208763 | O5: =VLOOKUP($B5,'TA SRI LH'!$X$6:$AY$1118,24,FALSE) -> 0.9065857145 | P5: =VLOOKUP($B5,'TA SRI LH'!$X$6:$AY$1118,25,FALSE) -> 801.5625 | Q5: =VLOOKUP($B5,'TA SRI LH'!$X$6:$AY$1118,26,FALSE) -> 0.1403940887 | R5: =DATA!$C$9 -> 0.89
B6: =B7-1 -> 36 | E6: =VLOOKUP($B6,'TA SRI LH'!$X$6:$AY$1118,14,FALSE) -> 6525 | F6: =VLOOKUP($B6,'TA SRI LH'!$X$6:$AY$1118,15,FALSE) -> 4409 | G6: =VLOOKUP($B6,'TA SRI LH'!$X$6:$AY$1118,16,FALSE) -> 0.6757088123 | H6: =VLOOKUP($B6,'TA SRI LH'!$X$6:$AY$1118,17,FALSE) -> 1601.25 | I6: =VLOOKUP($B6,'TA SRI LH'!$X$6:$AY$1118,18,FALSE) -> 0.2454022989 | J6: =VLOOKUP($B6,'TA SRI LH'!$X$6:$AY$1118,19,FALSE) -> 0 | K6: =VLOOKUP($B6,'TA SRI LH'!$X$6:$AY$1118,20,FALSE) -> 0 | L6: =VLOOKUP($B6,'TA SRI LH'!$X$6:$AY$1118,21,FALSE) -> 0.9852493623 | M6: =VLOOKUP($B6,'TA SRI LH'!$X$6:$AY$1118,22,FALSE) -> 0.9847737565 | N6: =VLOOKUP($B6,'TA SRI LH'!$X$6:$AY$1118,23,FALSE) -> 0.982323341 | O6: =VLOOKUP($B6,'TA SRI LH'!$X$6:$AY$1118,24,FALSE) -> 0.9892361936 | P6: =VLOOKUP($B6,'TA SRI LH'!$X$6:$AY$1118,25,FALSE) -> 514.75 | Q6: =VLOOKUP($B6,'TA SRI LH'!$X$6:$AY$1118,26,FALSE) -> 0.07888888889 | R6: =DATA!$C$9 -> 0.89
B7: =B8-1 -> 37 | E7: =VLOOKUP($B7,'TA SRI LH'!$X$6:$AY$1118,14,FALSE) -> 6117.1875 | F7: =VLOOKUP($B7,'TA SRI LH'!$X$6:$AY$1118,15,FALSE) -> 4525 | G7: =VLOOKUP($B7,'TA SRI LH'!$X$6:$AY$1118,16,FALSE) -> 0.7397190294 | H7: =VLOOKUP($B7,'TA SRI LH'!$X$6:$AY$1118,17,FALSE) -> 1023.75 | I7: =VLOOKUP($B7,'TA SRI LH'!$X$6:$AY$1118,18,FALSE) -> 0.1673563218 | J7: =VLOOKUP($B7,'TA SRI LH'!$X$6:$AY$1118,19,FALSE) -> 0 | K7: =VLOOKUP($B7,'TA SRI LH'!$X$6:$AY$1118,20,FALSE) -> 0 | L7: =VLOOKUP($B7,'TA SRI LH'!$X$6:$AY$1118,21,FALSE) -> 0.9826177135 | M7: =VLOOKUP($B7,'TA SRI LH'!$X$6:$AY$1118,22,FALSE) -> 0.9989373007 | N7: =VLOOKUP($B7,'TA SRI LH'!$X$6:$AY$1118,23,FALSE) -> 0.9883791052 | O7: =VLOOKUP($B7,'TA SRI LH'!$X$6:$AY$1118,24,FALSE) -> 0.9605367345 | P7: =VLOOKUP($B7,'TA SRI LH'!$X$6:$AY$1118,25,FALSE) -> 568.4375 | Q7: =VLOOKUP($B7,'TA SRI LH'!$X$6:$AY$1118,26,FALSE) -> 0.09292464879 | R7: =DATA!$C$9 -> 0.89
B8: 38 | E8: =VLOOKUP($B8,'TA SRI LH'!$X$6:$AY$1118,14,FALSE) -> 6117.1875 | F8: =VLOOKUP($B8,'TA SRI LH'!$X$6:$AY$1118,15,FALSE) -> 4297 | G8: =VLOOKUP($B8,'TA SRI LH'!$X$6:$AY$1118,16,FALSE) -> 0.7024469987 | H8: =VLOOKUP($B8,'TA SRI LH'!$X$6:$AY$1118,17,FALSE) -> 1579.6875 | I8: =VLOOKUP($B8,'TA SRI LH'!$X$6:$AY$1118,18,FALSE) -> 0.2582375479 | J8: =VLOOKUP($B8,'TA SRI LH'!$X$6:$AY$1118,19,FALSE) -> 0 | K8: =VLOOKUP($B8,'TA SRI LH'!$X$6:$AY$1118,20,FALSE) -> 0 | L8: =VLOOKUP($B8,'TA SRI LH'!$X$6:$AY$1118,21,FALSE) -> 0.9679536566 | M8: =VLOOKUP($B8,'TA SRI LH'!$X$6:$AY$1118,22,FALSE) -> 0.976575288 | N8: =VLOOKUP($B8,'TA SRI LH'!$X$6:$AY$1118,23,FALSE) -> 0.9757870203 | O8: =VLOOKUP($B8,'TA SRI LH'!$X$6:$AY$1118,24,FALSE) -> 0.9516563152 | P8: =VLOOKUP($B8,'TA SRI LH'!$X$6:$AY$1118,25,FALSE) -> 240.5 | Q8: =VLOOKUP($B8,'TA SRI LH'!$X$6:$AY$1118,26,FALSE) -> 0.03931545338 | R8: =DATA!$C$9 -> 0.89
B9: =A1 -> 39 | E9: =VLOOKUP($B9,'TA SRI LH'!$X$6:$AY$1118,14,FALSE) ->  | F9: =VLOOKUP($B9,'TA SRI LH'!$X$6:$AY$1118,15,FALSE) ->  | G9: =VLOOKUP($B9,'TA SRI LH'!$X$6:$AY$1118,16,FALSE) -> - | H9: =VLOOKUP($B9,'TA SRI LH'!$X$6:$AY$1118,17,FALSE) -> 0 | I9: =VLOOKUP($B9,'TA SRI LH'!$X$6:$AY$1118,18,FALSE) -> - | J9: =VLOOKUP($B9,'TA SRI LH'!$X$6:$AY$1118,19,FALSE) -> 0 | K9: =VLOOKUP($B9,'TA SRI LH'!$X$6:$AY$1118,20,FALSE) -> - | L9: =VLOOKUP($B9,'TA SRI LH'!$X$6:$AY$1118,21,FALSE) -> 0 | M9: =VLOOKUP($B9,'TA SRI LH'!$X$6:$AY$1118,22,FALSE) ->  | N9: =VLOOKUP($B9,'TA SRI LH'!$X$6:$AY$1118,23,FALSE) ->  | O9: =VLOOKUP($B9,'TA SRI LH'!$X$6:$AY$1118,24,FALSE) ->  | P9: =VLOOKUP($B9,'TA SRI LH'!$X$6:$AY$1118,25,FALSE) -> - | Q9: =VLOOKUP($B9,'TA SRI LH'!$X$6:$AY$1118,26,FALSE) -> - | R9: =DATA!$C$9 -> 0.89
B10: =B9+1 -> 40 | E10: =VLOOKUP($B10,'TA SRI LH'!$X$6:$AY$1118,14,FALSE) ->  | F10: =VLOOKUP($B10,'TA SRI LH'!$X$6:$AY$1118,15,FALSE) ->  | G10: =VLOOKUP($B10,'TA SRI LH'!$X$6:$AY$1118,16,FALSE) -> - | H10: =VLOOKUP($B10,'TA SRI LH'!$X$6:$AY$1118,17,FALSE) -> 0 | I10: =VLOOKUP($B10,'TA SRI LH'!$X$6:$AY$1118,18,FALSE) -> - | J10: =VLOOKUP($B10,'TA SRI LH'!$X$6:$AY$1118,19,FALSE) -> 0 | K10: =VLOOKUP($B10,'TA SRI LH'!$X$6:$AY$1118,20,FALSE) -> - | L10: =VLOOKUP($B10,'TA SRI LH'!$X$6:$AY$1118,21,FALSE) -> - | M10: =VLOOKUP($B10,'TA SRI LH'!$X$6:$AY$1118,22,FALSE) ->  | N10: =VLOOKUP($B10,'TA SRI LH'!$X$6:$AY$1118,23,FALSE) ->  | O10: =VLOOKUP($B10,'TA SRI LH'!$X$6:$AY$1118,24,FALSE) ->  | P10: =VLOOKUP($B10,'TA SRI LH'!$X$6:$AY$1118,25,FALSE) -> - | Q10: =VLOOKUP($B10,'TA SRI LH'!$X$6:$AY$1118,26,FALSE) -> - | R10: =DATA!$C$9 -> 0.89
B12: =$B$3 -> 33 | E12: =VLOOKUP($B12,'TA SRI RH'!$X$6:$AY$1118,14,FALSE) -> 6117.1875 | F12: =VLOOKUP($B12,'TA SRI RH'!$X$6:$AY$1118,15,FALSE) -> 3859 | G12: =VLOOKUP($B12,'TA SRI RH'!$X$6:$AY$1118,16,FALSE) -> 0.6308454662 | H12: =VLOOKUP($B12,'TA SRI RH'!$X$6:$AY$1118,17,FALSE) -> 1863.75 | I12: =VLOOKUP($B12,'TA SRI RH'!$X$6:$AY$1118,18,FALSE) -> 0.3046743295 | J12: =VLOOKUP($B12,'TA SRI RH'!$X$6:$AY$1118,19,FALSE) -> 0 | K12: =VLOOKUP($B12,'TA SRI RH'!$X$6:$AY$1118,20,FALSE) -> 0 | L12: =VLOOKUP($B12,'TA SRI RH'!$X$6:$AY$1118,21,FALSE) -> 0.9787432441 | M12: =VLOOKUP($B12,'TA SRI RH'!$X$6:$AY$1118,22,FALSE) -> 0.9786254794 | N12: =VLOOKUP($B12,'TA SRI RH'!$X$6:$AY$1118,23,FALSE) -> 0.9806854292 | O12: =VLOOKUP($B12,'TA SRI RH'!$X$6:$AY$1118,24,FALSE) -> 0.9759771723 | P12: =VLOOKUP($B12,'TA SRI RH'!$X$6:$AY$1118,25,FALSE) -> 394.4375 | Q12: =VLOOKUP($B12,'TA SRI RH'!$X$6:$AY$1118,26,FALSE) -> 0.06448020434 | R12: =DATA!$C$9 -> 0.89 | S12: SRI RH
B13: =$B$4 -> 34 | E13: =VLOOKUP($B13,'TA SRI RH'!$X$6:$AY$1118,14,FALSE) -> 6117.1875 | F13: =VLOOKUP($B13,'TA SRI RH'!$X$6:$AY$1118,15,FALSE) -> 4382 | G13: =VLOOKUP($B13,'TA SRI RH'!$X$6:$AY$1118,16,FALSE) -> 0.7163422733 | H13: =VLOOKUP($B13,'TA SRI RH'!$X$6:$AY$1118,17,FALSE) -> 1626.5625 | I13: =VLOOKUP($B13,'TA SRI RH'!$X$6:$AY$1118,18,FALSE) -> 0.2659003831 | J13: =VLOOKUP($B13,'TA SRI RH'!$X$6:$AY$1118,19,FALSE) -> 0 | K13: =VLOOKUP($B13,'TA SRI RH'!$X$6:$AY$1118,20,FALSE) -> 0 | L13: =VLOOKUP($B13,'TA SRI RH'!$X$6:$AY$1118,21,FALSE) -> 0.9780810175 | M13: =VLOOKUP($B13,'TA SRI RH'!$X$6:$AY$1118,22,FALSE) -> 0.9862500288 | N13: =VLOOKUP($B13,'TA SRI RH'!$X$6:$AY$1118,23,FALSE) -> 0.9702220936 | O13: =VLOOKUP($B13,'TA SRI RH'!$X$6:$AY$1118,24,FALSE) -> 0.9777709301 | P13: =VLOOKUP($B13,'TA SRI RH'!$X$6:$AY$1118,25,FALSE) -> 108.625 | Q13: =VLOOKUP($B13,'TA SRI RH'!$X$6:$AY$1118,26,FALSE) -> 0.01775734355 | R13: =DATA!$C$9 -> 0.89
B14: =$B$5 -> 35 | E14: =VLOOKUP($B14,'TA SRI RH'!$X$6:$AY$1118,14,FALSE) -> 5709.375 | F14: =VLOOKUP($B14,'TA SRI RH'!$X$6:$AY$1118,15,FALSE) -> 4226 | G14: =VLOOKUP($B14,'TA SRI RH'!$X$6:$AY$1118,16,FALSE) -> 0.7401860974 | H14: =VLOOKUP($B14,'TA SRI RH'!$X$6:$AY$1118,17,FALSE) -> 1196.25 | I14: =VLOOKUP($B14,'TA SRI RH'!$X$6:$AY$1118,18,FALSE) -> 0.2095238095 | J14: =VLOOKUP($B14,'TA SRI RH'!$X$6:$AY$1118,19,FALSE) -> 0 | K14: =VLOOKUP($B14,'TA SRI RH'!$X$6:$AY$1118,20,FALSE) -> 0 | L14: =VLOOKUP($B14,'TA SRI RH'!$X$6:$AY$1118,21,FALSE) -> 0.9700679435 | M14: =VLOOKUP($B14,'TA SRI RH'!$X$6:$AY$1118,22,FALSE) -> 0.968582941 | N14: =VLOOKUP($B14,'TA SRI RH'!$X$6:$AY$1118,23,FALSE) -> 0.975453813 | O14: =VLOOKUP($B14,'TA SRI RH'!$X$6:$AY$1118,24,FALSE) -> 0.9658700759 | P14: =VLOOKUP($B14,'TA SRI RH'!$X$6:$AY$1118,25,FALSE) -> 287.125 | Q14: =VLOOKUP($B14,'TA SRI RH'!$X$6:$AY$1118,26,FALSE) -> 0.05029009305 | R14: =DATA!$C$9 -> 0.89
B15: =$B$6 -> 36 | E15: =VLOOKUP($B15,'TA SRI RH'!$X$6:$AY$1118,14,FALSE) -> 6525 | F15: =VLOOKUP($B15,'TA SRI RH'!$X$6:$AY$1118,15,FALSE) -> 4311 | G15: =VLOOKUP($B15,'TA SRI RH'!$X$6:$AY$1118,16,FALSE) -> 0.6606896552 | H15: =VLOOKUP($B15,'TA SRI RH'!$X$6:$AY$1118,17,FALSE) -> 1746.5625 | I15: =VLOOKUP($B15,'TA SRI RH'!$X$6:$AY$1118,18,FALSE) -> 0.2676724138 | J15: =VLOOKUP($B15,'TA SRI RH'!$X$6:$AY$1118,19,FALSE) -> 0 | K15: =VLOOKUP($B15,'TA SRI RH'!$X$6:$AY$1118,20,FALSE) -> 0 | L15: =VLOOKUP($B15,'TA SRI RH'!$X$6:$AY$1118,21,FALSE) -> 0.9887103425 | M15: =VLOOKUP($B15,'TA SRI RH'!$X$6:$AY$1118,22,FALSE) -> 0.9933120105 | N15: =VLOOKUP($B15,'TA SRI RH'!$X$6:$AY$1118,23,FALSE) -> 0.9842271293 | O15: =VLOOKUP($B15,'TA SRI RH'!$X$6:$AY$1118,24,FALSE) -> 0.9894885305 | P15: =VLOOKUP($B15,'TA SRI RH'!$X$6:$AY$1118,25,FALSE) -> 467.4375 | Q15: =VLOOKUP($B15,'TA SRI RH'!$X$6:$AY$1118,26,FALSE) -> 0.07163793103 | R15: =DATA!$C$9 -> 0.89
B16: =$B$7 -> 37 | E16: =VLOOKUP($B16,'TA SRI RH'!$X$6:$AY$1118,14,FALSE) -> 6117.1875 | F16: =VLOOKUP($B16,'TA SRI RH'!$X$6:$AY$1118,15,FALSE) -> 4465 | G16: =VLOOKUP($B16,'TA SRI RH'!$X$6:$AY$1118,16,FALSE) -> 0.7299106003 | H16: =VLOOKUP($B16,'TA SRI RH'!$X$6:$AY$1118,17,FALSE) -> 1249.6875 | I16: =VLOOKUP($B16,'TA SRI RH'!$X$6:$AY$1118,18,FALSE) -> 0.2042911877 | J16: =VLOOKUP($B16,'TA SRI RH'!$X$6:$AY$1118,19,FALSE) -> 0 | K16: =VLOOKUP($B16,'TA SRI RH'!$X$6:$AY$1118,20,FALSE) -> 0 | L16: =VLOOKUP($B16,'TA SRI RH'!$X$6:$AY$1118,21,FALSE) -> 0.9769966768 | M16: =VLOOKUP($B16,'TA SRI RH'!$X$6:$AY$1118,22,FALSE) -> 0.9873129186 | N16: =VLOOKUP($B16,'TA SRI RH'!$X$6:$AY$1118,23,FALSE) -> 0.9989521481 | O16: =VLOOKUP($B16,'TA SRI RH'!$X$6:$AY$1118,24,FALSE) -> 0.9447249637 | P16: =VLOOKUP($B16,'TA SRI RH'!$X$6:$AY$1118,25,FALSE) -> 402.5 | Q16: =VLOOKUP($B16,'TA SRI RH'!$X$6:$AY$1118,26,FALSE) -> 0.06579821201 | R16: =DATA!$C$9 -> 0.89
B17: =$B$8 -> 38 | E17: =VLOOKUP($B17,'TA SRI RH'!$X$6:$AY$1118,14,FALSE) -> 6117.1875 | F17: =VLOOKUP($B17,'TA SRI RH'!$X$6:$AY$1118,15,FALSE) -> 4255 | G17: =VLOOKUP($B17,'TA SRI RH'!$X$6:$AY$1118,16,FALSE) -> 0.6955810983 | H17: =VLOOKUP($B17,'TA SRI RH'!$X$6:$AY$1118,17,FALSE) -> 1593.75 | I17: =VLOOKUP($B17,'TA SRI RH'!$X$6:$AY$1118,18,FALSE) -> 0.2605363985 | J17: =VLOOKUP($B17,'TA SRI RH'!$X$6:$AY$1118,19,FALSE) -> 0 | K17: =VLOOKUP($B17,'TA SRI RH'!$X$6:$AY$1118,20,FALSE) -> 0 | L17: =VLOOKUP($B17,'TA SRI RH'!$X$6:$AY$1118,21,FALSE) -> 0.9772775914 | M17: =VLOOKUP($B17,'TA SRI RH'!$X$6:$AY$1118,22,FALSE) -> 0.9954477458 | N17: =VLOOKUP($B17,'TA SRI RH'!$X$6:$AY$1118,23,FALSE) -> 0.9553808142 | O17: =VLOOKUP($B17,'TA SRI RH'!$X$6:$AY$1118,24,FALSE) -> 0.9890176005 | P17: =VLOOKUP($B17,'TA SRI RH'!$X$6:$AY$1118,25,FALSE) -> 268.4375 | Q17: =VLOOKUP($B17,'TA SRI RH'!$X$6:$AY$1118,26,FALSE) -> 0.04388250319 | R17: =DATA!$C$9 -> 0.89
B18: =$B$9 -> 39 | E18: =VLOOKUP($B18,'TA SRI RH'!$X$6:$AY$1118,14,FALSE) ->  | F18: =VLOOKUP($B18,'TA SRI RH'!$X$6:$AY$1118,15,FALSE) ->  | G18: =VLOOKUP($B18,'TA SRI RH'!$X$6:$AY$1118,16,FALSE) -> - | H18: =VLOOKUP($B18,'TA SRI RH'!$X$6:$AY$1118,17,FALSE) -> 0 | I18: =VLOOKUP($B18,'TA SRI RH'!$X$6:$AY$1118,18,FALSE) -> - | J18: =VLOOKUP($B18,'TA SRI RH'!$X$6:$AY$1118,19,FALSE) -> 0 | K18: =VLOOKUP($B18,'TA SRI RH'!$X$6:$AY$1118,20,FALSE) -> - | L18: =VLOOKUP($B18,'TA SRI RH'!$X$6:$AY$1118,21,FALSE) -> 0 | M18: =VLOOKUP($B18,'TA SRI RH'!$X$6:$AY$1118,22,FALSE) ->  | N18: =VLOOKUP($B18,'TA SRI RH'!$X$6:$AY$1118,23,FALSE) ->  | O18: =VLOOKUP($B18,'TA SRI RH'!$X$6:$AY$1118,24,FALSE) ->  | P18: =VLOOKUP($B18,'TA SRI RH'!$X$6:$AY$1118,25,FALSE) -> - | Q18: =VLOOKUP($B18,'TA SRI RH'!$X$6:$AY$1118,26,FALSE) -> - | R18: =DATA!$C$9 -> 0.89
B19: =$B$10 -> 40 | E19: =VLOOKUP($B19,'TA SRI RH'!$X$6:$AY$1118,14,FALSE) ->  | F19: =VLOOKUP($B19,'TA SRI RH'!$X$6:$AY$1118,15,FALSE) ->  | G19: =VLOOKUP($B19,'TA SRI RH'!$X$6:$AY$1118,16,FALSE) -> - | H19: =VLOOKUP($B19,'TA SRI RH'!$X$6:$AY$1118,17,FALSE) -> 0 | I19: =VLOOKUP($B19,'TA SRI RH'!$X$6:$AY$1118,18,FALSE) -> - | J19: =VLOOKUP($B19,'TA SRI RH'!$X$6:$AY$1118,19,FALSE) -> 0 | K19: =VLOOKUP($B19,'TA SRI RH'!$X$6:$AY$1118,20,FALSE) -> - | L19: =VLOOKUP($B19,'TA SRI RH'!$X$6:$AY$1118,21,FALSE) -> - | M19: =VLOOKUP($B19,'TA SRI RH'!$X$6:$AY$1118,22,FALSE) ->  | N19: =VLOOKUP($B19,'TA SRI RH'!$X$6:$AY$1118,23,FALSE) ->  | O19: =VLOOKUP($B19,'TA SRI RH'!$X$6:$AY$1118,24,FALSE) ->  | P19: =VLOOKUP($B19,'TA SRI RH'!$X$6:$AY$1118,25,FALSE) -> - | Q19: =VLOOKUP($B19,'TA SRI RH'!$X$6:$AY$1118,26,FALSE) -> - | R19: =DATA!$C$9 -> 0.89
B21: Week | C21: ="Technical Downtime SAP "&DATA!C15 -> Technical Downtime SAP SRI LH | L21: ="Technical Downtime SAP "&DATA!C16 -> Technical Downtime SAP SRI RH
C22: F48 [min] | D22: Freq | E22: Running [min] | F22: Freq | G22: Totaal | H22: Feq | L22: F48 [min] | M22: Freq | N22: Running [min] | O22: Freq | P22: Totaal | Q22: Feq
B23: =$B$3 -> 33 | C23: =VLOOKUP($B23,[1]SRI!$A$4:$P$55,2,0) -> 36 | D23: =VLOOKUP($B23,[1]SRI!$A$4:$P$55,3,0) -> 4 | E23: =VLOOKUP($B23,[1]SRI!$A$4:$P$55,4,0) -> 161 | F23: =VLOOKUP($B23,[1]SRI!$A$4:$P$55,5,0) -> 25 | G23: =VLOOKUP($B23,[1]SRI!$A$4:$P$55,6,0) -> 197 | H23: =VLOOKUP($B23,[1]SRI!$A$4:$P$55,7,0) -> 29 | L23: =VLOOKUP($B23,[1]SRI!$A$4:$P$55,11,0) -> 24 | M23: =VLOOKUP($B23,[1]SRI!$A$4:$P$55,12,0) -> 3 | N23: =VLOOKUP($B23,[1]SRI!$A$4:$P$55,13,0) -> 76 | O23: =VLOOKUP($B23,[1]SRI!$A$4:$P$55,14,0) -> 16 | P23: =VLOOKUP($B23,[1]SRI!$A$4:$P$55,15,0) -> 100 | Q23: =VLOOKUP($B23,[1]SRI!$A$4:$P$55,16,0) -> 19
B24: =$B$4 -> 34 | C24: =VLOOKUP($B24,[1]SRI!$A$4:$P$55,2,0) -> 110 | D24: =VLOOKUP($B24,[1]SRI!$A$4:$P$55,3,0) -> 3 | E24: =VLOOKUP($B24,[1]SRI!$A$4:$P$55,4,0) -> 150 | F24: =VLOOKUP($B24,[1]SRI!$A$4:$P$55,5,0) -> 20 | G24: =VLOOKUP($B24,[1]SRI!$A$4:$P$55,6,0) -> 260 | H24: =VLOOKUP($B24,[1]SRI!$A$4:$P$55,7,0) -> 23 | L24: =VLOOKUP($B24,[1]SRI!$A$4:$P$55,11,0) -> 6 | M24: =VLOOKUP($B24,[1]SRI!$A$4:$P$55,12,0) -> 1 | N24: =VLOOKUP($B24,[1]SRI!$A$4:$P$55,13,0) -> 99 | O24: =VLOOKUP($B24,[1]SRI!$A$4:$P$55,14,0) -> 17 | P24: =VLOOKUP($B24,[1]SRI!$A$4:$P$55,15,0) -> 105 | Q24: =VLOOKUP($B24,[1]SRI!$A$4:$P$55,16,0) -> 18
B25: =$B$5 -> 35 | C25: =VLOOKUP($B25,[1]SRI!$A$4:$P$55,2,0) -> 49 | D25: =VLOOKUP($B25,[1]SRI!$A$4:$P$55,3,0) -> 5 | E25: =VLOOKUP($B25,[1]SRI!$A$4:$P$55,4,0) -> 333 | F25: =VLOOKUP($B25,[1]SRI!$A$4:$P$55,5,0) -> 34 | G25: =VLOOKUP($B25,[1]SRI!$A$4:$P$55,6,0) -> 382 | H25: =VLOOKUP($B25,[1]SRI!$A$4:$P$55,7,0) -> 39 | L25: =VLOOKUP($B25,[1]SRI!$A$4:$P$55,11,0) -> 30 | M25: =VLOOKUP($B25,[1]SRI!$A$4:$P$55,12,0) -> 2 | N25: =VLOOKUP($B25,[1]SRI!$A$4:$P$55,13,0) -> 107 | O25: =VLOOKUP($B25,[1]SRI!$A$4:$P$55,14,0) -> 19 | P25: =VLOOKUP($B25,[1]SRI!$A$4:$P$55,15,0) -> 137 | Q25: =VLOOKUP($B25,[1]SRI!$A$4:$P$55,16,0) -> 21
B26: =$B$6 -> 36 | C26: =VLOOKUP($B26,[1]SRI!$A$4:$P$55,2,0) -> 20 | D26: =VLOOKUP($B26,[1]SRI!$A$4:$P$55,3,0) -> 4 | E26: =VLOOKUP($B26,[1]SRI!$A$4:$P$55,4,0) -> 60 | F26: =VLOOKUP($B26,[1]SRI!$A$4:$P$55,5,0) -> 16 | G26: =VLOOKUP($B26,[1]SRI!$A$4:$P$55,6,0) -> 80 | H26: =VLOOKUP($B26,[1]SRI!$A$4:$P$55,7,0) -> 20 | L26: =VLOOKUP($B26,[1]SRI!$A$4:$P$55,11,0) -> 4 | M26: =VLOOKUP($B26,[1]SRI!$A$4:$P$55,12,0) -> 1 | N26: =VLOOKUP($B26,[1]SRI!$A$4:$P$55,13,0) -> 57 | O26: =VLOOKUP($B26,[1]SRI!$A$4:$P$55,14,0) -> 9 | P26: =VLOOKUP($B26,[1]SRI!$A$4:$P$55,15,0) -> 61 | Q26: =VLOOKUP($B26,[1]SRI!$A$4:$P$55,16,0) -> 10
B27: =$B$7 -> 37 | C27: =VLOOKUP($B27,[1]SRI!$A$4:$P$55,2,0) -> 7 | D27: =VLOOKUP($B27,[1]SRI!$A$4:$P$55,3,0) -> 1 | E27: =VLOOKUP($B27,[1]SRI!$A$4:$P$55,4,0) -> 71 | F27: =VLOOKUP($B27,[1]SRI!$A$4:$P$55,5,0) -> 15 | G27: =VLOOKUP($B27,[1]SRI!$A$4:$P$55,6,0) -> 78 | H27: =VLOOKUP($B27,[1]SRI!$A$4:$P$55,7,0) -> 16 | L27: =VLOOKUP($B27,[1]SRI!$A$4:$P$55,11,0) -> 19 | M27: =VLOOKUP($B27,[1]SRI!$A$4:$P$55,12,0) -> 4 | N27: =VLOOKUP($B27,[1]SRI!$A$4:$P$55,13,0) -> 76 | O27: =VLOOKUP($B27,[1]SRI!$A$4:$P$55,14,0) -> 12 | P27: =VLOOKUP($B27,[1]SRI!$A$4:$P$55,15,0) -> 95 | Q27: =VLOOKUP($B27,[1]SRI!$A$4:$P$55,16,0) -> 16
B28: =$B$8 -> 38 | C28: =VLOOKUP($B28,[1]SRI!$A$4:$P$55,2,0) -> 45 | D28: =VLOOKUP($B28,[1]SRI!$A$4:$P$55,3,0) -> 4 | E28: =VLOOKUP($B28,[1]SRI!$A$4:$P$55,4,0) -> 125 | F28: =VLOOKUP($B28,[1]SRI!$A$4:$P$55,5,0) -> 21 | G28: =VLOOKUP($B28,[1]SRI!$A$4:$P$55,6,0) -> 170 | H28: =VLOOKUP($B28,[1]SRI!$A$4:$P$55,7,0) -> 25 | L28: =VLOOKUP($B28,[1]SRI!$A$4:$P$55,11,0) -> 5 | M28: =VLOOKUP($B28,[1]SRI!$A$4:$P$55,12,0) -> 1 | N28: =VLOOKUP($B28,[1]SRI!$A$4:$P$55,13,0) -> 100 | O28: =VLOOKUP($B28,[1]SRI!$A$4:$P$55,14,0) -> 11 | P28: =VLOOKUP($B28,[1]SRI!$A$4:$P$55,15,0) -> 105 | Q28: =VLOOKUP($B28,[1]SRI!$A$4:$P$55,16,0) -> 12
B29: =$B$9 -> 39 | C29: =VLOOKUP($B29,[1]SRI!$A$4:$P$55,2,0) -> 24 | D29: =VLOOKUP($B29,[1]SRI!$A$4:$P$55,3,0) -> 3 | E29: =VLOOKUP($B29,[1]SRI!$A$4:$P$55,4,0) -> 60 | F29: =VLOOKUP($B29,[1]SRI!$A$4:$P$55,5,0) -> 9 | G29: =VLOOKUP($B29,[1]SRI!$A$4:$P$55,6,0) -> 84 | H29: =VLOOKUP($B29,[1]SRI!$A$4:$P$55,7,0) -> 12 | L29: =VLOOKUP($B29,[1]SRI!$A$4:$P$55,11,0) -> 12 | M29: =VLOOKUP($B29,[1]SRI!$A$4:$P$55,12,0) -> 2 | N29: =VLOOKUP($B29,[1]SRI!$A$4:$P$55,13,0) -> 98 | O29: =VLOOKUP($B29,[1]SRI!$A$4:$P$55,14,0) -> 12 | P29: =VLOOKUP($B29,[1]SRI!$A$4:$P$55,15,0) -> 110 | Q29: =VLOOKUP($B29,[1]SRI!$A$4:$P$55,16,0) -> 14
B30: =$B$10 -> 40 | C30: =VLOOKUP($B30,[1]SRI!$A$4:$P$55,2,0) -> 0 | D30: =VLOOKUP($B30,[1]SRI!$A$4:$P$55,3,0) -> 0 | E30: =VLOOKUP($B30,[1]SRI!$A$4:$P$55,4,0) -> 0 | F30: =VLOOKUP($B30,[1]SRI!$A$4:$P$55,5,0) -> 0 | G30: =VLOOKUP($B30,[1]SRI!$A$4:$P$55,6,0) -> 0 | H30: =VLOOKUP($B30,[1]SRI!$A$4:$P$55,7,0) -> 0 | L30: =VLOOKUP($B30,[1]SRI!$A$4:$P$55,11,0) -> 0 | M30: =VLOOKUP($B30,[1]SRI!$A$4:$P$55,12,0) -> 0 | N30: =VLOOKUP($B30,[1]SRI!$A$4:$P$55,13,0) -> 0 | O30: =VLOOKUP($B30,[1]SRI!$A$4:$P$55,14,0) -> 0 | P30: =VLOOKUP($B30,[1]SRI!$A$4:$P$55,15,0) -> 0 | Q30: =VLOOKUP($B30,[1]SRI!$A$4:$P$55,16,0) -> 0
C33: =$B$36&$C$34&C35 -> 39MaDD | D33: =$B$36&$C$34&D35 -> 39MaMD | E33: =$B$36&$C$34&E35 -> 39MaND | F33: =$B$36&$F$34&F35 -> 39DiDD | G33: =$B$36&$F$34&G35 -> 39DiMD | H33: =$B$36&$F$34&H35 -> 39DiND | I33: =$B$36&$I$34&I35 -> 39WoDD | J33: =$B$36&$I$34&J35 -> 39WoMD | K33: =$B$36&$I$34&K35 -> 39WoND | L33: =$B$36&$L$34&L35 -> 39DoDD | M33: =$B$36&$L$34&M35 -> 39DoMD | N33: =$B$36&$L$34&N35 -> 39DoND | O33: =$B$36&$O$34&O35 -> 39VrDD | P33: =$B$36&$O$34&P35 -> 39VrMD | Q33: =$B$36&$O$34&Q35 -> 39VrND | R33: =$B$36&$R$34&R35 -> 39ZaDD | S33: =$B$36&$R$34&S35 -> 39ZaMD | T33: =$B$36&$R$34&T35 -> 39ZaND | U33: =$B$36&$U$34&U35 -> 39ZaDD | V33: =$B$36&$U$34&V35 -> 39ZaMD | W33: =$B$36&$U$34&W35 -> 39ZaND
B34: Week | C34: Ma | F34: Di | I34: Wo | L34: Do | O34: Vr | R34: Za | U34: Za
C35: DD | D35: MD | E35: ND | F35: DD | G35: MD | H35: ND | I35: DD | J35: MD | K35: ND | L35: DD | M35: MD | N35: ND | O35: DD | P35: MD | Q35: ND | R35: DD | S35: MD | T35: ND | U35: DD | V35: MD | W35: ND
A36: ="TA SRI LH Week "&B36 -> TA SRI LH Week 39 | B36: =Grafieken!AB10 -> 39 | C36: =VLOOKUP(C$33,'TA SRI LH'!$A$6:$AJ$1120,36,0) ->  | D36: =VLOOKUP(D$33,'TA SRI LH'!$A$6:$AJ$1120,36,0) -> 0 | E36: =VLOOKUP(E$33,'TA SRI LH'!$A$6:$AJ$1120,36,0) -> 0 | F36: =VLOOKUP(F$33,'TA SRI LH'!$A$6:$AJ$1120,36,0) -> 0 | G36: =VLOOKUP(G$33,'TA SRI LH'!$A$6:$AJ$1120,36,0) -> 0 | H36: =VLOOKUP(H$33,'TA SRI LH'!$A$6:$AJ$1120,36,0) ->  | I36: =VLOOKUP(I$33,'TA SRI LH'!$A$6:$AJ$1120,36,0) -> 0 | J36: =VLOOKUP(J$33,'TA SRI LH'!$A$6:$AJ$1120,36,0) -> 0 | K36: =VLOOKUP(K$33,'TA SRI LH'!$A$6:$AJ$1120,36,0) ->  | L36: =VLOOKUP(L$33,'TA SRI LH'!$A$6:$AJ$1120,36,0) ->  | M36: =VLOOKUP(M$33,'TA SRI LH'!$A$6:$AJ$1120,36,0) -> 0 | N36: =VLOOKUP(N$33,'TA SRI LH'!$A$6:$AJ$1120,36,0) ->  | O36: =VLOOKUP(O$33,'TA SRI LH'!$A$6:$AJ$1120,36,0) ->  | P36: =VLOOKUP(P$33,'TA SRI LH'!$A$6:$AJ$1120,36,0) ->  | Q36: =VLOOKUP(Q$33,'TA SRI LH'!$A$6:$AJ$1120,36,0) ->  | R36: =VLOOKUP(R$33,'TA SRI LH'!$A$6:$AJ$1120,36,0) ->  | S36: =VLOOKUP(S$33,'TA SRI LH'!$A$6:$AJ$1120,36,0) ->  | T36: =VLOOKUP(T$33,'TA SRI LH'!$A$6:$AJ$1120,36,0) ->  | U36: =VLOOKUP(U$33,'TA SRI LH'!$A$6:$AJ$1120,36,0) ->  | V36: =VLOOKUP(V$33,'TA SRI LH'!$A$6:$AJ$1120,36,0) ->  | W36: =VLOOKUP(W$33,'TA SRI LH'!$A$6:$AJ$1120,36,0) -> 
A37: ="TA SRI RH Week "&B37 -> TA SRI RH Week 39 | B37: =Grafieken!AB10 -> 39 | C37: =VLOOKUP(C$33,'TA SRI RH'!$A$6:$AJ$1120,36,0) -> 0 | D37: =VLOOKUP(D$33,'TA SRI RH'!$A$6:$AJ$1120,36,0) -> 0 | E37: =VLOOKUP(E$33,'TA SRI RH'!$A$6:$AJ$1120,36,0) ->  | F37: =VLOOKUP(F$33,'TA SRI RH'!$A$6:$AJ$1120,36,0) -> 0 | G37: =VLOOKUP(G$33,'TA SRI RH'!$A$6:$AJ$1120,36,0) -> 0 | H37: =VLOOKUP(H$33,'TA SRI RH'!$A$6:$AJ$1120,36,0) -> 0 | I37: =VLOOKUP(I$33,'TA SRI RH'!$A$6:$AJ$1120,36,0) -> 0 | J37: =VLOOKUP(J$33,'TA SRI RH'!$A$6:$AJ$1120,36,0) ->  | K37: =VLOOKUP(K$33,'TA SRI RH'!$A$6:$AJ$1120,36,0) ->  | L37: =VLOOKUP(L$33,'TA SRI RH'!$A$6:$AJ$1120,36,0) -> 0 | M37: =VLOOKUP(M$33,'TA SRI RH'!$A$6:$AJ$1120,36,0) -> 0 | N37: =VLOOKUP(N$33,'TA SRI RH'!$A$6:$AJ$1120,36,0) ->  | O37: =VLOOKUP(O$33,'TA SRI RH'!$A$6:$AJ$1120,36,0) ->  | P37: =VLOOKUP(P$33,'TA SRI RH'!$A$6:$AJ$1120,36,0) ->  | Q37: =VLOOKUP(Q$33,'TA SRI RH'!$A$6:$AJ$1120,36,0) ->  | R37: =VLOOKUP(R$33,'TA SRI RH'!$A$6:$AJ$1120,36,0) ->  | S37: =VLOOKUP(S$33,'TA SRI RH'!$A$6:$AJ$1120,36,0) ->  | T37: =VLOOKUP(T$33,'TA SRI RH'!$A$6:$AJ$1120,36,0) ->  | U37: =VLOOKUP(U$33,'TA SRI RH'!$A$6:$AJ$1120,36,0) ->  | V37: =VLOOKUP(V$33,'TA SRI RH'!$A$6:$AJ$1120,36,0) ->  | W37: =VLOOKUP(W$33,'TA SRI RH'!$A$6:$AJ$1120,36,0) -> 
A38: Target [%] | C38: =DATA!$C$9 -> 0.89 | D38: =DATA!$C$9 -> 0.89 | E38: =DATA!$C$9 -> 0.89 | F38: =DATA!$C$9 -> 0.89 | G38: =DATA!$C$9 -> 0.89 | H38: =DATA!$C$9 -> 0.89 | I38: =DATA!$C$9 -> 0.89 | J38: =DATA!$C$9 -> 0.89 | K38: =DATA!$C$9 -> 0.89 | L38: =DATA!$C$9 -> 0.89 | M38: =DATA!$C$9 -> 0.89 | N38: =DATA!$C$9 -> 0.89 | O38: =DATA!$C$9 -> 0.89 | P38: =DATA!$C$9 -> 0.89 | Q38: =DATA!$C$9 -> 0.89 | R38: =DATA!$C$9 -> 0.89 | S38: =DATA!$C$9 -> 0.89 | T38: =DATA!$C$9 -> 0.89 | U38: =DATA!$C$9 -> 0.89 | V38: =DATA!$C$9 -> 0.89 | W38: =DATA!$C$9 -> 0.89
E42: ="Major Items "&DATA!C15&" Week "&$B36&" "&J63&" min" -> Major Items SRI LH Week 39 45 min | J42: Downtime | N42: ="Major Items "&DATA!C16&" Week "&$B36&" "&S63&" min" -> Major Items SRI RH Week 39 67 min | S42: Downtime
C43: =$B$36&"M"&DATA!$C$15&DATA!$C27 -> 39MSRI LH1 | E43: =IFERROR(VLOOKUP($C43,'[1]Downtime SAP'!$V$2:$Z$20000,2,0),"") -> 02R02 F60 tip af tijdens lassen | J43: =IFERROR(VLOOKUP($C43,'[1]Downtime SAP'!$V$2:$Z$20000,3,0),"") -> 30 | L43: =$B$36&"M"&DATA!$C$16&DATA!$C27 -> 39MSRI RH1 | N43: =IFERROR(VLOOKUP($L43,'[1]Downtime SAP'!$V$2:$Z$20000,2,0),"") -> Max Time Expired Z22.5 (F57) 10x | S43: =IFERROR(VLOOKUP($L43,'[1]Downtime SAP'!$V$2:$Z$20000,3,0),"") -> 17
C44: =$B$36&"M"&DATA!$C$15&DATA!$C28 -> 39MSRI LH2 | E44: =IFERROR(VLOOKUP($C44,'[1]Downtime SAP'!$V$2:$Z$20000,2,0),"") -> 66FX01 geen retract melding DEV0153 | J44: =IFERROR(VLOOKUP($C44,'[1]Downtime SAP'!$V$2:$Z$20000,3,0),"") -> 15 | L44: =$B$36&"M"&DATA!$C$16&DATA!$C28 -> 39MSRI RH2 | N44: =IFERROR(VLOOKUP($L44,'[1]Downtime SAP'!$V$2:$Z$20000,2,0),"") -> Delen uit trolley gevallen (crash) | S44: =IFERROR(VLOOKUP($L44,'[1]Downtime SAP'!$V$2:$Z$20000,3,0),"") -> 30
C45: =$B$36&"M"&DATA!$C$15&DATA!$C29 -> 39MSRI LH3 | E45: =IFERROR(VLOOKUP($C45,'[1]Downtime SAP'!$V$2:$Z$20000,2,0),"") ->  | J45: =IFERROR(VLOOKUP($C45,'[1]Downtime SAP'!$V$2:$Z$20000,3,0),"") ->  | L45: =$B$36&"M"&DATA!$C$16&DATA!$C29 -> 39MSRI RH3 | N45: =IFERROR(VLOOKUP($L45,'[1]Downtime SAP'!$V$2:$Z$20000,2,0),"") -> 05R01 verkeerde stap (S11) | S45: =IFERROR(VLOOKUP($L45,'[1]Downtime SAP'!$V$2:$Z$20000,3,0),"") -> 20
C46: =$B$36&"M"&DATA!$C$15&DATA!$C30 -> 39MSRI LH4 | E46: =IFERROR(VLOOKUP($C46,'[1]Downtime SAP'!$V$2:$Z$20000,2,0),"") ->  | J46: =IFERROR(VLOOKUP($C46,'[1]Downtime SAP'!$V$2:$Z$20000,3,0),"") ->  | L46: =$B$36&"M"&DATA!$C$16&DATA!$C30 -> 39MSRI RH4 | N46: =IFERROR(VLOOKUP($L46,'[1]Downtime SAP'!$V$2:$Z$20000,2,0),"") ->  | S46: =IFERROR(VLOOKUP($L46,'[1]Downtime SAP'!$V$2:$Z$20000,3,0),"") -> 
C47: =$B$36&"M"&DATA!$C$15&DATA!$C31 -> 39MSRI LH5 | E47: =IFERROR(VLOOKUP($C47,'[1]Downtime SAP'!$V$2:$Z$20000,2,0),"") ->  | J47: =IFERROR(VLOOKUP($C47,'[1]Downtime SAP'!$V$2:$Z$20000,3,0),"") ->  | L47: =$B$36&"M"&DATA!$C$16&DATA!$C31 -> 39MSRI RH5 | N47: =IFERROR(VLOOKUP($L47,'[1]Downtime SAP'!$V$2:$Z$20000,2,0),"") ->  | S47: =IFERROR(VLOOKUP($L47,'[1]Downtime SAP'!$V$2:$Z$20000,3,0),"") -> 
C48: =$B$36&"M"&DATA!$C$15&DATA!$C32 -> 39MSRI LH6 | E48: =IFERROR(VLOOKUP($C48,'[1]Downtime SAP'!$V$2:$Z$20000,2,0),"") ->  | J48: =IFERROR(VLOOKUP($C48,'[1]Downtime SAP'!$V$2:$Z$20000,3,0),"") ->  | L48: =$B$36&"M"&DATA!$C$16&DATA!$C32 -> 39MSRI RH6 | N48: =IFERROR(VLOOKUP($L48,'[1]Downtime SAP'!$V$2:$Z$20000,2,0),"") ->  | S48: =IFERROR(VLOOKUP($L48,'[1]Downtime SAP'!$V$2:$Z$20000,3,0),"") -> 
C49: =$B$36&"M"&DATA!$C$15&DATA!$C33 -> 39MSRI LH7 | E49: =IFERROR(VLOOKUP($C49,'[1]Downtime SAP'!$V$2:$Z$20000,2,0),"") ->  | J49: =IFERROR(VLOOKUP($C49,'[1]Downtime SAP'!$V$2:$Z$20000,3,0),"") ->  | L49: =$B$36&"M"&DATA!$C$16&DATA!$C33 -> 39MSRI RH7 | N49: =IFERROR(VLOOKUP($L49,'[1]Downtime SAP'!$V$2:$Z$20000,2,0),"") ->  | S49: =IFERROR(VLOOKUP($L49,'[1]Downtime SAP'!$V$2:$Z$20000,3,0),"") -> 
C50: =$B$36&"M"&DATA!$C$15&DATA!$C34 -> 39MSRI LH8 | E50: =IFERROR(VLOOKUP($C50,'[1]Downtime SAP'!$V$2:$Z$20000,2,0),"") ->  | J50: =IFERROR(VLOOKUP($C50,'[1]Downtime SAP'!$V$2:$Z$20000,3,0),"") ->  | L50: =$B$36&"M"&DATA!$C$16&DATA!$C34 -> 39MSRI RH8 | N50: =IFERROR(VLOOKUP($L50,'[1]Downtime SAP'!$V$2:$Z$20000,2,0),"") ->  | S50: =IFERROR(VLOOKUP($L50,'[1]Downtime SAP'!$V$2:$Z$20000,3,0),"") -> 
C51: =$B$36&"M"&DATA!$C$15&DATA!$C35 -> 39MSRI LH9 | E51: =IFERROR(VLOOKUP($C51,'[1]Downtime SAP'!$V$2:$Z$20000,2,0),"") ->  | J51: =IFERROR(VLOOKUP($C51,'[1]Downtime SAP'!$V$2:$Z$20000,3,0),"") ->  | L51: =$B$36&"M"&DATA!$C$16&DATA!$C35 -> 39MSRI RH9 | N51: =IFERROR(VLOOKUP($L51,'[1]Downtime SAP'!$V$2:$Z$20000,2,0),"") ->  | S51: =IFERROR(VLOOKUP($L51,'[1]Downtime SAP'!$V$2:$Z$20000,3,0),"") -> 
C52: =$B$36&"M"&DATA!$C$15&DATA!$C36 -> 39MSRI LH10 | E52: =IFERROR(VLOOKUP($C52,'[1]Downtime SAP'!$V$2:$Z$20000,2,0),"") ->  | J52: =IFERROR(VLOOKUP($C52,'[1]Downtime SAP'!$V$2:$Z$20000,3,0),"") ->  | L52: =$B$36&"M"&DATA!$C$16&DATA!$C36 -> 39MSRI RH10 | N52: =IFERROR(VLOOKUP($L52,'[1]Downtime SAP'!$V$2:$Z$20000,2,0),"") ->  | S52: =IFERROR(VLOOKUP($L52,'[1]Downtime SAP'!$V$2:$Z$20000,3,0),"") -> 
C53: =$B$36&"M"&DATA!$C$15&DATA!$C37 -> 39MSRI LH11 | E53: =IFERROR(VLOOKUP($C53,'[1]Downtime SAP'!$V$2:$Z$20000,2,0),"") ->  | J53: =IFERROR(VLOOKUP($C53,'[1]Downtime SAP'!$V$2:$Z$20000,3,0),"") ->  | L53: =$B$36&"M"&DATA!$C$16&DATA!$C37 -> 39MSRI RH11 | N53: =IFERROR(VLOOKUP($L53,'[1]Downtime SAP'!$V$2:$Z$20000,2,0),"") ->  | S53: =IFERROR(VLOOKUP($L53,'[1]Downtime SAP'!$V$2:$Z$20000,3,0),"") -> 
C54: =$B$36&"M"&DATA!$C$15&DATA!$C38 -> 39MSRI LH12 | E54: =IFERROR(VLOOKUP($C54,'[1]Downtime SAP'!$V$2:$Z$20000,2,0),"") ->  | J54: =IFERROR(VLOOKUP($C54,'[1]Downtime SAP'!$V$2:$Z$20000,3,0),"") ->  | L54: =$B$36&"M"&DATA!$C$16&DATA!$C38 -> 39MSRI RH12 | N54: =IFERROR(VLOOKUP($L54,'[1]Downtime SAP'!$V$2:$Z$20000,2,0),"") ->  | S54: =IFERROR(VLOOKUP($L54,'[1]Downtime SAP'!$V$2:$Z$20000,3,0),"") -> 
C55: =$B$36&"M"&DATA!$C$15&DATA!$C39 -> 39MSRI LH13 | E55: =IFERROR(VLOOKUP($C55,'[1]Downtime SAP'!$V$2:$Z$20000,2,0),"") ->  | J55: =IFERROR(VLOOKUP($C55,'[1]Downtime SAP'!$V$2:$Z$20000,3,0),"") ->  | L55: =$B$36&"M"&DATA!$C$16&DATA!$C39 -> 39MSRI RH13 | N55: =IFERROR(VLOOKUP($L55,'[1]Downtime SAP'!$V$2:$Z$20000,2,0),"") ->  | S55: =IFERROR(VLOOKUP($L55,'[1]Downtime SAP'!$V$2:$Z$20000,3,0),"") -> 
C56: =$B$36&"M"&DATA!$C$15&DATA!$C40 -> 39MSRI LH14 | E56: =IFERROR(VLOOKUP($C56,'[1]Downtime SAP'!$V$2:$Z$20000,2,0),"") ->  | J56: =IFERROR(VLOOKUP($C56,'[1]Downtime SAP'!$V$2:$Z$20000,3,0),"") ->  | L56: =$B$36&"M"&DATA!$C$16&DATA!$C40 -> 39MSRI RH14 | N56: =IFERROR(VLOOKUP($L56,'[1]Downtime SAP'!$V$2:$Z$20000,2,0),"") ->  | S56: =IFERROR(VLOOKUP($L56,'[1]Downtime SAP'!$V$2:$Z$20000,3,0),"") -> 
C57: =$B$36&"M"&DATA!$C$15&DATA!$C41 -> 39MSRI LH15 | E57: =IFERROR(VLOOKUP($C57,'[1]Downtime SAP'!$V$2:$Z$20000,2,0),"") ->  | J57: =IFERROR(VLOOKUP($C57,'[1]Downtime SAP'!$V$2:$Z$20000,3,0),"") ->  | L57: =$B$36&"M"&DATA!$C$16&DATA!$C41 -> 39MSRI RH15 | N57: =IFERROR(VLOOKUP($L57,'[1]Downtime SAP'!$V$2:$Z$20000,2,0),"") ->  | S57: =IFERROR(VLOOKUP($L57,'[1]Downtime SAP'!$V$2:$Z$20000,3,0),"") -> 
C58: =$B$36&"M"&DATA!$C$15&DATA!$C42 -> 39MSRI LH16 | E58: =IFERROR(VLOOKUP($C58,'[1]Downtime SAP'!$V$2:$Z$20000,2,0),"") ->  | J58: =IFERROR(VLOOKUP($C58,'[1]Downtime SAP'!$V$2:$Z$20000,3,0),"") ->  | L58: =$B$36&"M"&DATA!$C$16&DATA!$C42 -> 39MSRI RH16 | N58: =IFERROR(VLOOKUP($L58,'[1]Downtime SAP'!$V$2:$Z$20000,2,0),"") ->  | S58: =IFERROR(VLOOKUP($L58,'[1]Downtime SAP'!$V$2:$Z$20000,3,0),"") -> 
C59: =$B$36&"M"&DATA!$C$15&DATA!$C43 -> 39MSRI LH17 | E59: =IFERROR(VLOOKUP($C59,'[1]Downtime SAP'!$V$2:$Z$20000,2,0),"") ->  | J59: =IFERROR(VLOOKUP($C59,'[1]Downtime SAP'!$V$2:$Z$20000,3,0),"") ->  | L59: =$B$36&"M"&DATA!$C$16&DATA!$C43 -> 39MSRI RH17 | N59: =IFERROR(VLOOKUP($L59,'[1]Downtime SAP'!$V$2:$Z$20000,2,0),"") ->  | S59: =IFERROR(VLOOKUP($L59,'[1]Downtime SAP'!$V$2:$Z$20000,3,0),"") -> 
C60: =$B$36&"M"&DATA!$C$15&DATA!$C44 -> 39MSRI LH18 | E60: =IFERROR(VLOOKUP($C60,'[1]Downtime SAP'!$V$2:$Z$20000,2,0),"") ->  | J60: =IFERROR(VLOOKUP($C60,'[1]Downtime SAP'!$V$2:$Z$20000,3,0),"") ->  | L60: =$B$36&"M"&DATA!$C$16&DATA!$C44 -> 39MSRI RH18 | N60: =IFERROR(VLOOKUP($L60,'[1]Downtime SAP'!$V$2:$Z$20000,2,0),"") ->  | S60: =IFERROR(VLOOKUP($L60,'[1]Downtime SAP'!$V$2:$Z$20000,3,0),"") -> 
C61: =$B$36&"M"&DATA!$C$15&DATA!$C45 -> 39MSRI LH19 | E61: =IFERROR(VLOOKUP($C61,'[1]Downtime SAP'!$V$2:$Z$20000,2,0),"") ->  | J61: =IFERROR(VLOOKUP($C61,'[1]Downtime SAP'!$V$2:$Z$20000,3,0),"") ->  | L61: =$B$36&"M"&DATA!$C$16&DATA!$C45 -> 39MSRI RH19 | N61: =IFERROR(VLOOKUP($L61,'[1]Downtime SAP'!$V$2:$Z$20000,2,0),"") ->  | S61: =IFERROR(VLOOKUP($L61,'[1]Downtime SAP'!$V$2:$Z$20000,3,0),"") -> 
C62: =$B$36&"M"&DATA!$C$15&DATA!$C46 -> 39MSRI LH20 | E62: =IFERROR(VLOOKUP($C62,'[1]Downtime SAP'!$V$2:$Z$20000,2,0),"") ->  | J62: =IFERROR(VLOOKUP($C62,'[1]Downtime SAP'!$V$2:$Z$20000,3,0),"") ->  | L62: =$B$36&"M"&DATA!$C$16&DATA!$C46 -> 39MSRI RH20 | N62: =IFERROR(VLOOKUP($L62,'[1]Downtime SAP'!$V$2:$Z$20000,2,0),"") ->  | S62: =IFERROR(VLOOKUP($L62,'[1]Downtime SAP'!$V$2:$Z$20000,3,0),"") -> 
I63: Totaal | J63: =SUM(J43:J62) -> 45 | R63: Totaal | S63: =SUM(S43:S62) -> 67

Sheet DATA (hidden)
B2: Werktijden | E2: Breaktimes
B3: DD | C3: 06:30:00 | D3: 14:30:00 | E3: 00:45:00
B4: MD | C4: 14:30:00 | D4: 22:30:00 | E4: 00:45:00
B5: ND | C5: 22:30:00 | D5: 06:30:00 | E5: 00:45:00
B6: ZND | E6: 00:45:00
B9: Target SRI | C9: 0.89
B10: Cycle Time | C10: 64
C12: KS
C13: X
C14: R
C15: SRI LH
C16: SRI RH
C20: ="UPTIME "&C15 -> UPTIME SRI LH
C21: ="UPTIME "&C16 -> UPTIME SRI RH
C22: ="TA "&C15&" TREND" -> TA SRI LH TREND
C23: ="TA "&C16&" TREND" -> TA SRI RH TREND
C24: ="DOWNTIME SAP "&C15 -> DOWNTIME SAP SRI LH
C25: ="DOWNTIME SAP "&C16 -> DOWNTIME SAP SRI RH
C27: 1
C28: 2
C29: 3
C30: 4
C31: 5
C32: 6
C33: 7
C34: 8
C35: 9
C36: 10
C37: 11
C38: 12
C39: 13
C40: 14
C41: 15
C42: 16
C43: 17
C44: 18
C45: 19
C46: 20
